Workbook

Sheet Les meg

Sheet Brukerveiledning

Sheet Generelle forutsetninger
B1: Fargekoding
B2: Standard forutsetninger - endring i forutsetninger må begrunnes
B3: Skriv inn forutsetninger og annen input
B4: Resultat av beregninger
A8: Informasjon | B8: Inndata | C8: Svarformat
A9: Utredningens navn | B9: Opprydning av ulovelige søppelfyllinger | C9: Navn
A10: Oppstartsår | B10: 2019 | C10: Årstall
A11: Analyseperiode (inntil 40 år) | B11: 15 | C11: År | D11: =IF(B11<B12,"Dersom analyseperioden er kortere enn tiltakets levetid, beregnes en restverdi.","") -> 
A14: Felles forutsetninger | B14: Inndata og beregninger | C14: Svarformat
A15: Kalkulasjonsrente | B15: 0.04 | C15: Prosent
A16: Realprisvekst/BNP-vekst | B16: 0.008 | C16: Prosent
A17: Skattekostnad | B17: 0.2 | C17: Prosent
A18: Verdi tidsbesparelse - arbeidstid | C18: Kroner per time
A19: Verdi tidsbesparelse - fritid | C19: Kroner per time
A20: Verdi tidsbesparelse - årsverk | B20: 770000 | C20: Kroner
A21: Verdien av et statistisk liv | C21: Millioner kroner
A22: Verdi tidsbesparelse - arbeidstid, prisjustert | B22: =B18*(1+Celleref_reallønnsvekst)^(B10-YEAR(TODAY())) -> 0 | C22: Kroner per time
A23: Verdi tidsbesparelse - fritid, prisjustert | B23: =B19*(1+Celleref_reallønnsvekst)^(B10-YEAR(TODAY())) -> 0 | C23: Kroner per time
A24: Verdi tidsbesparelse - årsverk, prisjustert | B24: =B20*(1+Celleref_reallønnsvekst)^(B10-YEAR(TODAY())) -> 770000 | C24: Kroner
A25: Verdien av et statistisk liv, prisjustert | C25: Millioner kroner
A26: Alternativer
A29: Alternativnummer | B29: Alternativnavn
A30: Alternativ -1
A31: Alternativ 0 | B31: Nullalternativet
A32: Alternativ 1 | B32: Droner
A33: Alternativ 2 | B33: Nettportal

Sheet Mellomregning (hidden)
D1: Prissatte nyttevirkninger | F1: 2 | G1: 8 | H1: 9 | I1: 10 | J1: 11 | K1: 12 | L1: 13 | M1: 14 | N1: 15 | O1: 16 | P1: 17 | Q1: 18 | R1: 19 | S1: 20 | T1: 21 | U1: 22 | V1: 23 | W1: 24 | X1: 25 | Y1: 26 | Z1: 27 | AA1: 28 | AB1: 29 | AC1: 30 | AD1: 31 | AE1: 32 | AF1: 33 | AG1: 34 | AH1: 35 | AI1: 36 | AJ1: 37 | AK1: 38 | AL1: 39 | AM1: 40 | AN1: 41 | AO1: 42 | AP1: 43 | AQ1: 44 | AR1: 45 | AS1: 46 | AT1: 47 | AU1: 48 | AV1: 49 | AW1: 50 | AX1: 51 | AY1: 52 | AZ1: 53 | BA1: 54 | BB1: 55 | BC1: 56 | BD1: 57 | BE1: 58 | BF1: 59 | BG1: 60 | BH1: 61 | BI1: 62 | BJ1: 63 | BK1: 64 | BL1: 65 | BM1: 66 | BN1: 67 | BO1: 68 | BP1: 69 | BQ1: 70 | BR1: 71 | BS1: 72 | BT1: 73 | BU1: 74 | BV1: 75 | BW1: 76 | BX1: 77 | BY1: 78 | BZ1: 79 | CA1: 80 | CB1: 81 | CC1: 82 | CD1: 83 | CE1: 84 | CF1: 85 | CG1: 86 | CH1: 87 | CI1: 88 | CJ1: 89 | CK1: 90 | CL1: 91 | CM1: 92 | CN1: 93 | CO1: 94 | CP1: 95 | CQ1: 96 | CR1: 97 | CS1: 98 | CT1: 99 | CU1: 100 | CV1: 101 | CW1: 102
D2: Beregning av direkte nytteeffekter | F2: Virkning | G2: Nåverdi | I2: ='Generelle forutsetninger'!B10 -> 2019 | J2: =I2+1 -> 2020 | K2: 2021 | L2: 2022 | M2: 2023 | N2: 2024 | O2: 2025 | P2: 2026 | Q2: 2027 | R2: 2028 | S2: 2029 | T2: 2030 | U2: 2031 | V2: 2032 | W2: 2033 | X2: 2034 | Y2: 2035 | Z2: 2036 | AA2: 2037 | AB2: 2038 | AC2: 2039 | AD2: 2040 | AE2: 2041 | AF2: 2042 | AG2: 2043 | AH2: 2044 | AI2: 2045 | AJ2: 2046 | AK2: 2047 | AL2: 2048 | AM2: 2049 | AN2: 2050 | AO2: 2051 | AP2: 2052 | AQ2: 2053 | AR2: 2054 | AS2: 2055 | AT2: 2056 | AU2: 2057 | AV2: =AU2+1 -> 2058 | AW2: =AV2+1 -> 2059 | AX2: 2060 | AY2: 2061 | AZ2: 2062 | BA2: 2063 | BB2: 2064 | BC2: 2065 | BD2: 2066 | BE2: 2067 | BF2: 2068 | BG2: 2069 | BH2: 2070 | BI2: 2071 | BJ2: 2072 | BK2: 2073 | BL2: 2074 | BM2: 2075 | BN2: 2076 | BO2: 2077 | BP2: 2078 | BQ2: =BP2+1 -> 2079 | BR2: 2080 | BS2: 2081 | BT2: 2082 | BU2: 2083 | BV2: 2084 | BW2: 2085 | BX2: 2086 | BY2: 2087 | BZ2: 2088 | CA2: 2089 | CB2: 2090 | CC2: 2091 | CD2: 2092 | CE2: 2093 | CF2: 2094 | CG2: 2095 | CH2: 2096 | CI2: 2097 | CJ2: 2098 | CK2: 2099 | CL2: 2100 | CM2: 2101 | CN2: 2102 | CO2: 2103 | CP2: 2104 | CQ2: 2105 | CR2: 2106 | CS2: 2107 | CT2: 2108 | CU2: 2109 | CV2: 2110 | CW2: 2111
A3: A-1 | D3: =IF(B3="","Alternativ "&RIGHT(A3,LEN(A3)-1),IF(LEFT(B3,1)="N","Nytte"&RIGHT(A3,LEN(A3)-1),"Kostnad"&RIGHT(A3,LEN(A3)-1))) -> Alternativ -1 | F3: =IFERROR(IF(LEFT($C3,1)="s",VLOOKUP(INT(RIGHT($C3,LEN($C3)-1)),INDIRECT($D3&"S"),F$1,FALSE),VLOOKUP($C3,INDIRECT($D3),F$1,FALSE)),"") ->  | H3: =IFERROR(IF(LEFT($C3,1)="s",VLOOKUP(INT(RIGHT($C3,LEN($C3)-1)),INDIRECT($D3&"S"),H$1,FALSE),VLOOKUP($C3,INDIRECT($D3),H$1,FALSE)),"") ->  | I3: =IFERROR(IF(LEFT($C3,1)="s",VLOOKUP(INT(RIGHT($C3,LEN($C3)-1)),INDIRECT($D3&"S"),I$1,FALSE),VLOOKUP($C3,INDIRECT($D3),I$1,FALSE)),"") ->  | BU3: =IFERROR(IF(LEFT($C3,1)="s",VLOOKUP(INT(RIGHT($C3,LEN($C3)-1)),INDIRECT($D3&"S"),BU$1,FALSE),VLOOKUP($C3,INDIRECT($D3),BU$1,FALSE)),"") ->  | CE3: =IFERROR(IF(LEFT($C3,1)="s",VLOOKUP(INT(RIGHT($C3,LEN($C3)-1)),INDIRECT($D3&"S"),CE$1,FALSE),VLOOKUP($C3,INDIRECT($D3),CE$1,FALSE)),"") ->  | CO3: =IFERROR(IF(LEFT($C3,1)="s",VLOOKUP(INT(RIGHT($C3,LEN($C3)-1)),INDIRECT($D3&"S"),CO$1,FALSE),VLOOKUP($C3,INDIRECT($D3),CO$1,FALSE)),"") -> 
A4: A-1 | B4: K-1 | C4: k160 | D4: Kostnad-1 | I4: =IFERROR(IF(LEFT($C4,1)="s",VLOOKUP(INT(RIGHT($C4,LEN($C4)-1)),INDIRECT($D4&"S"),I$1,FALSE),VLOOKUP($C4,INDIRECT($D4),I$1,FALSE)),"") -> 
A5: A-1 | B5: K-1 | C5: k161 | D5: Kostnad-1 | I5: =IFERROR(IF(LEFT($C5,1)="s",VLOOKUP(INT(RIGHT($C5,LEN($C5)-1)),INDIRECT($D5&"S"),I$1,FALSE),VLOOKUP($C5,INDIRECT($D5),I$1,FALSE)),"") -> 
A6: A-1 | B6: K-1 | C6: k163 | D6: Kostnad-1
A7: A-1 | B7: K-1 | C7: k164 | D7: Kostnad-1
A8: A-1 | B8: K-1 | C8: k165 | D8: Kostnad-1 | BT8: =IFERROR(IF(LEFT($C8,1)="s",VLOOKUP(INT(RIGHT($C8,LEN($C8)-1)),INDIRECT($D8&"S"),BT$1,FALSE),VLOOKUP($C8,INDIRECT($D8),BT$1,FALSE)),"") ->  | CW8: =IFERROR(IF(LEFT($C8,1)="s",VLOOKUP(INT(RIGHT($C8,LEN($C8)-1)),INDIRECT($D8&"S"),CW$1,FALSE),VLOOKUP($C8,INDIRECT($D8),CW$1,FALSE)),"") -> 
A9: A0 | D9: =IF(B9="","Alternativ "&RIGHT(A9,LEN(A9)-1),IF(LEFT(B9,1)="N","Nytte"&RIGHT(A9,LEN(A9)-1),"Kostnad"&RIGHT(A9,LEN(A9)-1))) -> Alternativ 0 | X9: =IFERROR(IF(LEFT($C9,1)="s",VLOOKUP(INT(RIGHT($C9,LEN($C9)-1)),INDIRECT($D9&"S"),X$1,FALSE),VLOOKUP($C9,INDIRECT($D9),X$1,FALSE)),"") -> 
A10: A0 | B10: N0 | C10: k404 | D10: =IF(B10="","Alternativ "&RIGHT(A10,LEN(A10)-1),IF(LEFT(B10,1)="N","Nytte"&RIGHT(A10,LEN(A10)-1),"Kostnad"&RIGHT(A10,LEN(A10)-1))) -> Nytte0 | F10: Nytte for virksomheten | H10: 0 | I10: 0 | J10: 0 | K10: 0 | L10: 0 | M10: 0 | N10: 0 | O10: 0 | P10: 0 | Q10: 0 | R10: 0 | S10: 0 | T10: 0 | U10: 0 | V10: 0 | W10: 0 | X10: 0 | Y10: 0 | Z10: 0 | AA10: 0 | AB10: 0 | AC10: 0 | AD10: 0 | AE10: 0 | AF10: 0 | AG10: 0 | AH10: 0 | AI10: 0 | AJ10: 0 | AK10: 0 | AL10: 0 | AM10: 0 | AN10: 0 | AO10: 0 | AP10: 0 | AQ10: 0 | AR10: 0 | AS10: 0 | AT10: 0 | AU10: 0 | AV10: 0 | AW10: 0 | AX10: 0 | AY10: 0 | AZ10: 0 | BA10: 0 | BB10: 0 | BC10: 0 | BD10: 0 | BE10: 0 | BF10: 0 | BG10: 0 | BH10: 0 | BI10: 0 | BJ10: 0 | BK10: 0 | BL10: 0 | BM10: 0 | BN10: 0 | BO10: 0 | BP10: 0 | BQ10: 0 | BR10: 0 | BS10: 0 | BT10: 0 | BU10: 0 | BV10: 0 | BW10: 0 | BX10: 0 | BY10: 0 | BZ10: 0 | CA10: 0 | CB10: 0 | CC10: 0 | CD10: 0 | CE10: 0 | CF10: 0 | CG10: 0 | CH10: 0 | CI10: 0 | CJ10: 0 | CK10: 0 | CL10: 0 | CM10: 0 | CN10: 0 | CO10: 0 | CP10: 0 | CQ10: 0 | CR10: 0 | CS10: 0 | CT10: 0 | CU10: 0 | CV10: 0 | CW10: 0
A11: A0 | B11: N0 | C11: k405 | D11: =IF(B11="","Alternativ "&RIGHT(A11,LEN(A11)-1),IF(LEFT(B11,1)="N","Nytte"&RIGHT(A11,LEN(A11)-1),"Kostnad"&RIGHT(A11,LEN(A11)-1))) -> Nytte0 | F11: Nytte for øvrig offentlig sektor | H11: 0 | I11: 0 | J11: 0 | K11: 0 | L11: 0 | M11: 0 | N11: 0 | O11: 0 | P11: 0 | Q11: 0 | R11: 0 | S11: 0 | T11: 0 | U11: 0 | V11: 0 | W11: 0 | X11: 0 | Y11: 0 | Z11: 0 | AA11: 0 | AB11: 0 | AC11: 0 | AD11: 0 | AE11: 0 | AF11: 0 | AG11: 0 | AH11: 0 | AI11: 0 | AJ11: 0 | AK11: 0 | AL11: 0 | AM11: 0 | AN11: 0 | AO11: 0 | AP11: 0 | AQ11: 0 | AR11: 0 | AS11: 0 | AT11: 0 | AU11: 0 | AV11: 0 | AW11: 0 | AX11: 0 | AY11: 0 | AZ11: 0 | BA11: 0 | BB11: 0 | BC11: 0 | BD11: 0 | BE11: 0 | BF11: 0 | BG11: 0 | BH11: 0 | BI11: 0 | BJ11: 0 | BK11: 0 | BL11: 0 | BM11: 0 | BN11: 0 | BO11: 0 | BP11: 0 | BQ11: 0 | BR11: 0 | BS11: 0 | BT11: 0 | BU11: 0 | BV11: 0 | BW11: 0 | BX11: 0 | BY11: 0 | BZ11: 0 | CA11: 0 | CB11: 0 | CC11: 0 | CD11: 0 | CE11: 0 | CF11: 0 | CG11: 0 | CH11: 0 | CI11: 0 | CJ11: 0 | CK11: 0 | CL11: 0 | CM11: 0 | CN11: 0 | CO11: 0 | CP11: 0 | CQ11: 0 | CR11: 0 | CS11: 0 | CT11: 0 | CU11: 0 | CV11: 0 | CW11: 0
A12: A0 | B12: N0 | C12: k406 | D12: =IF(B12="","Alternativ "&RIGHT(A12,LEN(A12)-1),IF(LEFT(B12,1)="N","Nytte"&RIGHT(A12,LEN(A12)-1),"Kostnad"&RIGHT(A12,LEN(A12)-1))) -> Nytte0 | F12: Nytte for privat næringsliv | H12: 0 | I12: 0 | J12: 0 | K12: 0 | L12: 0 | M12: 0 | N12: 0 | O12: 0 | P12: 0 | Q12: 0 | R12: 0 | S12: 0 | T12: 0 | U12: 0 | V12: 0 | W12: 0 | X12: 0 | Y12: 0 | Z12: 0 | AA12: 0 | AB12: 0 | AC12: 0 | AD12: 0 | AE12: 0 | AF12: 0 | AG12: 0 | AH12: 0 | AI12: 0 | AJ12: 0 | AK12: 0 | AL12: 0 | AM12: 0 | AN12: 0 | AO12: 0 | AP12: 0 | AQ12: 0 | AR12: 0 | AS12: 0 | AT12: 0 | AU12: 0 | AV12: 0 | AW12: 0 | AX12: 0 | AY12: 0 | AZ12: 0 | BA12: 0 | BB12: 0 | BC12: 0 | BD12: 0 | BE12: 0 | BF12: 0 | BG12: 0 | BH12: 0 | BI12: 0 | BJ12: 0 | BK12: 0 | BL12: 0 | BM12: 0 | BN12: 0 | BO12: 0 | BP12: 0 | BQ12: 0 | BR12: 0 | BS12: 0 | BT12: 0 | BU12: 0 | BV12: 0 | BW12: 0 | BX12: 0 | BY12: 0 | BZ12: 0 | CA12: 0 | CB12: 0 | CC12: 0 | CD12: 0 | CE12: 0 | CF12: 0 | CG12: 0 | CH12: 0 | CI12: 0 | CJ12: 0 | CK12: 0 | CL12: 0 | CM12: 0 | CN12: 0 | CO12: 0 | CP12: 0 | CQ12: 0 | CR12: 0 | CS12: 0 | CT12: 0 | CU12: 0 | CV12: 0 | CW12: 0
A13: A0 | B13: N0 | C13: k408 | D13: =IF(B13="","Alternativ "&RIGHT(A13,LEN(A13)-1),IF(LEFT(B13,1)="N","Nytte"&RIGHT(A13,LEN(A13)-1),"Kostnad"&RIGHT(A13,LEN(A13)-1))) -> Nytte0 | F13: Nytte for privatpersoner | H13: 0 | I13: 0 | J13: 0 | K13: 0 | L13: 0 | M13: 0 | N13: 0 | O13: 0 | P13: 0 | Q13: 0 | R13: 0 | S13: 0 | T13: 0 | U13: 0 | V13: 0 | W13: 0 | X13: 0 | Y13: 0 | Z13: 0 | AA13: 0 | AB13: 0 | AC13: 0 | AD13: 0 | AE13: 0 | AF13: 0 | AG13: 0 | AH13: 0 | AI13: 0 | AJ13: 0 | AK13: 0 | AL13: 0 | AM13: 0 | AN13: 0 | AO13: 0 | AP13: 0 | AQ13: 0 | AR13: 0 | AS13: 0 | AT13: 0 | AU13: 0 | AV13: 0 | AW13: 0 | AX13: 0 | AY13: 0 | AZ13: 0 | BA13: 0 | BB13: 0 | BC13: 0 | BD13: 0 | BE13: 0 | BF13: 0 | BG13: 0 | BH13: 0 | BI13: 0 | BJ13: 0 | BK13: 0 | BL13: 0 | BM13: 0 | BN13: 0 | BO13: 0 | BP13: 0 | BQ13: 0 | BR13: 0 | BS13: 0 | BT13: 0 | BU13: 0 | BV13: 0 | BW13: 0 | BX13: 0 | BY13: 0 | BZ13: 0 | CA13: 0 | CB13: 0 | CC13: 0 | CD13: 0 | CE13: 0 | CF13: 0 | CG13: 0 | CH13: 0 | CI13: 0 | CJ13: 0 | CK13: 0 | CL13: 0 | CM13: 0 | CN13: 0 | CO13: 0 | CP13: 0 | CQ13: 0 | CR13: 0 | CS13: 0 | CT13: 0 | CU13: 0 | CV13: 0 | CW13: 0
A14: A0 | B14: K0 | C14: k311 | D14: =IF(B14="","Alternativ "&RIGHT(A14,LEN(A14)-1),IF(LEFT(B14,1)="N","Nytte"&RIGHT(A14,LEN(A14)-1),"Kostnad"&RIGHT(A14,LEN(A14)-1))) -> Kostnad0 | F14: Kostnader for virksomheten | H14: 0 | I14: 0 | J14: 0 | K14: 0 | L14: 0 | M14: 0 | N14: 0 | O14: 0 | P14: 0 | Q14: 0 | R14: 0 | S14: 0 | T14: 0 | U14: 0 | V14: 0 | W14: 0 | X14: 0 | Y14: 0 | Z14: 0 | AA14: 0 | AB14: 0 | AC14: 0 | AD14: 0 | AE14: 0 | AF14: 0 | AG14: 0 | AH14: 0 | AI14: 0 | AJ14: 0 | AK14: 0 | AL14: 0 | AM14: =IFERROR(IF(LEFT($C14,1)="s",VLOOKUP(INT(RIGHT($C14,LEN($C14)-1)),INDIRECT($D14&"S"),AM$1,FALSE),VLOOKUP($C14,INDIRECT($D14),AM$1,FALSE)),"") -> 0 | AN14: 0 | AO14: 0 | AP14: 0 | AQ14: 0 | AR14: 0 | AS14: 0 | AT14: 0 | AU14: 0 | AV14: 0 | AW14: 0 | AX14: 0 | AY14: 0 | AZ14: 0 | BA14: 0 | BB14: 0 | BC14: 0 | BD14: 0 | BE14: 0 | BF14: 0 | BG14: 0 | BH14: 0 | BI14: 0 | BJ14: 0 | BK14: 0 | BL14: 0 | BM14: 0 | BN14: 0 | BO14: 0 | BP14: 0 | BQ14: 0 | BR14: 0 | BS14: 0 | BT14: 0 | BU14: 0 | BV14: 0 | BW14: 0 | BX14: 0 | BY14: 0 | BZ14: 0 | CA14: 0 | CB14: 0 | CC14: 0 | CD14: 0 | CE14: 0 | CF14: 0 | CG14: 0 | CH14: 0 | CI14: 0 | CJ14: 0 | CK14: 0 | CL14: 0 | CM14: 0 | CN14: 0 | CO14: 0 | CP14: 0 | CQ14: 0 | CR14: 0 | CS14: 0 | CT14: 0 | CU14: 0 | CV14: 0 | CW14: 0
A15: A0 | B15: K0 | C15: 24 | D15: =IF(B15="","Alternativ "&RIGHT(A15,LEN(A15)-1),IF(LEFT(B15,1)="N","Nytte"&RIGHT(A15,LEN(A15)-1),"Kostnad"&RIGHT(A15,LEN(A15)-1))) -> Kostnad0 | F15: Kartlegging utført av kommuneansatte | H15: =IFERROR(IF(LEFT($C15,1)="s",VLOOKUP(INT(RIGHT($C15,LEN($C15)-1)),INDIRECT($D15&"S"),H$1,FALSE),VLOOKUP($C15,INDIRECT($D15),H$1,FALSE)),"") -> -26710813.97 | I15: -2310000 | J15: -2310000 | K15: -2310000 | L15: -2310000 | M15: -2310000 | N15: -2310000 | O15: -2310000 | P15: -2310000 | Q15: -2310000 | R15: -2310000 | S15: -2310000 | T15: -2310000 | U15: -2310000 | V15: -2310000 | W15: -2310000 | X15: 0 | Y15: 0 | Z15: 0 | AA15: 0 | AB15: 0 | AC15: 0 | AD15: 0 | AE15: 0 | AF15: 0 | AG15: 0 | AH15: 0 | AI15: 0 | AJ15: 0 | AK15: 0 | AL15: 0 | AM15: 0 | AN15: 0 | AO15: 0 | AP15: 0 | AQ15: 0 | AR15: 0 | AS15: 0 | AT15: 0 | AU15: 0 | AV15: 0 | AW15: 0 | AX15: 0 | AY15: 0 | AZ15: 0 | BA15: 0 | BB15: 0 | BC15: 0 | BD15: 0 | BE15: 0 | BF15: 0 | BG15: 0 | BH15: 0 | BI15: 0 | BJ15: 0 | BK15: 0 | BL15: 0 | BM15: 0 | BN15: 0 | BO15: 0 | BP15: 0 | BQ15: 0 | BR15: 0 | BS15: 0 | BT15: =IFERROR(IF(LEFT($C15,1)="s",VLOOKUP(INT(RIGHT($C15,LEN($C15)-1)),INDIRECT($D15&"S"),BT$1,FALSE),VLOOKUP($C15,INDIRECT($D15),BT$1,FALSE)),"") -> 0 | BU15: 0 | BV15: 0 | BW15: 0 | BX15: 0 | BY15: 0 | BZ15: 0 | CA15: 0 | CB15: 0 | CC15: 0 | CD15: 0 | CE15: 0 | CF15: 0 | CG15: 0 | CH15: 0 | CI15: 0 | CJ15: 0 | CK15: 0 | CL15: 0 | CM15: 0 | CN15: 0 | CO15: 0 | CP15: 0 | CQ15: 0 | CR15: 0 | CS15: 0 | CT15: 0 | CU15: 0 | CV15: 0 | CW15: 0
A16: A0 | B16: K0 | C16: s24 | D16: =IF(B16="","Alternativ "&RIGHT(A16,LEN(A16)-1),IF(LEFT(B16,1)="N","Nytte"&RIGHT(A16,LEN(A16)-1),"Kostnad"&RIGHT(A16,LEN(A16)-1))) -> Kostnad0 | F16: Kartlegging utført av kommuneansatte | H16: 0 | I16: 0 | J16: 0 | K16: 0 | L16: 0 | M16: 0 | N16: 0 | O16: 0 | P16: 0 | Q16: 0 | R16: 0 | S16: 0 | T16: 0 | U16: 0 | V16: 0 | W16: 0 | X16: 0 | Y16: 0 | Z16: 0 | AA16: 0 | AB16: 0 | AC16: 0 | AD16: 0 | AE16: 0 | AF16: 0 | AG16: 0 | AH16: 0 | AI16: 0 | AJ16: 0 | AK16: 0 | AL16: 0 | AM16: 0 | AN16: 0 | AO16: 0 | AP16: 0 | AQ16: 0 | AR16: 0 | AS16: 0 | AT16: 0 | AU16: 0 | AV16: 0 | AW16: 0 | AX16: 0 | AY16: 0 | AZ16: 0 | BA16: 0 | BB16: 0 | BC16: 0 | BD16: 0 | BE16: 0 | BF16: 0 | BG16: 0 | BH16: 0 | BI16: 0 | BJ16: 0 | BK16: 0 | BL16: 0 | BM16: 0 | BN16: 0 | BO16: 0 | BP16: 0 | BQ16: 0 | BR16: 0 | BS16: 0 | BT16: 0 | BU16: 0 | BV16: 0 | BW16: 0 | BX16: 0 | BY16: 0 | BZ16: 0 | CA16: 0 | CB16: 0 | CC16: 0 | CD16: 0 | CE16: 0 | CF16: 0 | CG16: 0 | CH16: 0 | CI16: 0 | CJ16: 0 | CK16: 0 | CL16: 0 | CM16: 0 | CN16: 0 | CO16: 0 | CP16: 0 | CQ16: 0 | CR16: 0 | CS16: 0 | CT16: 0 | CU16: 0 | CV16: 0 | CW16: 0
A17: A0 | B17: K0 | C17: 25 | D17: =IF(B17="","Alternativ "&RIGHT(A17,LEN(A17)-1),IF(LEFT(B17,1)="N","Nytte"&RIGHT(A17,LEN(A17)-1),"Kostnad"&RIGHT(A17,LEN(A17)-1))) -> Kostnad0 | F17: Årlig oppryddingsarbeid | H17: -71228837.25 | I17: -6160000 | J17: -6160000 | K17: -6160000 | L17: -6160000 | M17: -6160000 | N17: -6160000 | O17: -6160000 | P17: -6160000 | Q17: -6160000 | R17: -6160000 | S17: -6160000 | T17: -6160000 | U17: -6160000 | V17: -6160000 | W17: -6160000 | X17: 0 | Y17: 0 | Z17: 0 | AA17: 0 | AB17: 0 | AC17: 0 | AD17: 0 | AE17: 0 | AF17: 0 | AG17: 0 | AH17: 0 | AI17: 0 | AJ17: 0 | AK17: 0 | AL17: 0 | AM17: 0 | AN17: 0 | AO17: 0 | AP17: 0 | AQ17: 0 | AR17: 0 | AS17: 0 | AT17: 0 | AU17: 0 | AV17: 0 | AW17: 0 | AX17: 0 | AY17: 0 | AZ17: 0 | BA17: 0 | BB17: 0 | BC17: 0 | BD17: 0 | BE17: 0 | BF17: 0 | BG17: 0 | BH17: 0 | BI17: 0 | BJ17: 0 | BK17: 0 | BL17: 0 | BM17: 0 | BN17: 0 | BO17: 0 | BP17: 0 | BQ17: 0 | BR17: 0 | BS17: 0 | BT17: 0 | BU17: 0 | BV17: 0 | BW17: 0 | BX17: 0 | BY17: 0 | BZ17: 0 | CA17: 0 | CB17: 0 | CC17: 0 | CD17: 0 | CE17: 0 | CF17: 0 | CG17: 0 | CH17: 0 | CI17: 0 | CJ17: 0 | CK17: 0 | CL17: 0 | CM17: 0 | CN17: 0 | CO17: 0 | CP17: 0 | CQ17: 0 | CR17: 0 | CS17: 0 | CT17: 0 | CU17: 0 | CV17: 0 | CW17: 0
A18: A0 | B18: K0 | C18: s25 | D18: =IF(B18="","Alternativ "&RIGHT(A18,LEN(A18)-1),IF(LEFT(B18,1)="N","Nytte"&RIGHT(A18,LEN(A18)-1),"Kostnad"&RIGHT(A18,LEN(A18)-1))) -> Kostnad0 | F18: Årlig oppryddingsarbeid | H18: 0 | I18: 0 | J18: 0 | K18: 0 | L18: 0 | M18: 0 | N18: 0 | O18: 0 | P18: 0 | Q18: 0 | R18: 0 | S18: 0 | T18: 0 | U18: 0 | V18: 0 | W18: 0 | X18: 0 | Y18: 0 | Z18: 0 | AA18: 0 | AB18: 0 | AC18: 0 | AD18: 0 | AE18: 0 | AF18: 0 | AG18: 0 | AH18: 0 | AI18: 0 | AJ18: 0 | AK18: 0 | AL18: 0 | AM18: 0 | AN18: 0 | AO18: 0 | AP18: 0 | AQ18: 0 | AR18: 0 | AS18: 0 | AT18: 0 | AU18: 0 | AV18: 0 | AW18: 0 | AX18: 0 | AY18: 0 | AZ18: 0 | BA18: 0 | BB18: 0 | BC18: 0 | BD18: 0 | BE18: 0 | BF18: 0 | BG18: 0 | BH18: 0 | BI18: 0 | BJ18: 0 | BK18: 0 | BL18: 0 | BM18: 0 | BN18: 0 | BO18: 0 | BP18: 0 | BQ18: 0 | BR18: 0 | BS18: =IFERROR(IF(LEFT($C18,1)="s",VLOOKUP(INT(RIGHT($C18,LEN($C18)-1)),INDIRECT($D18&"S"),BS$1,FALSE),VLOOKUP($C18,INDIRECT($D18),BS$1,FALSE)),"") -> 0 | BT18: 0 | BU18: 0 | BV18: 0 | BW18: 0 | BX18: 0 | BY18: 0 | BZ18: 0 | CA18: 0 | CB18: 0 | CC18: 0 | CD18: 0 | CE18: 0 | CF18: 0 | CG18: 0 | CH18: 0 | CI18: 0 | CJ18: 0 | CK18: 0 | CL18: 0 | CM18: 0 | CN18: 0 | CO18: 0 | CP18: 0 | CQ18: 0 | CR18: 0 | CS18: 0 | CT18: 0 | CU18: 0 | CV18: 0 | CW18: 0
A19: A0 | B19: K0 | C19: k312 | D19: =IF(B19="","Alternativ "&RIGHT(A19,LEN(A19)-1),IF(LEFT(B19,1)="N","Nytte"&RIGHT(A19,LEN(A19)-1),"Kostnad"&RIGHT(A19,LEN(A19)-1))) -> Kostnad0 | F19: Kostnader for øvrig offentlig sektor | H19: 0 | I19: 0 | J19: 0 | K19: 0 | L19: 0 | M19: 0 | N19: 0 | O19: 0 | P19: 0 | Q19: 0 | R19: 0 | S19: 0 | T19: 0 | U19: 0 | V19: 0 | W19: 0 | X19: =IFERROR(IF(LEFT($C19,1)="s",VLOOKUP(INT(RIGHT($C19,LEN($C19)-1)),INDIRECT($D19&"S"),X$1,FALSE),VLOOKUP($C19,INDIRECT($D19),X$1,FALSE)),"") -> 0 | Y19: 0 | Z19: 0 | AA19: 0 | AB19: 0 | AC19: 0 | AD19: 0 | AE19: 0 | AF19: 0 | AG19: 0 | AH19: 0 | AI19: 0 | AJ19: 0 | AK19: 0 | AL19: 0 | AM19: 0 | AN19: 0 | AO19: 0 | AP19: 0 | AQ19: 0 | AR19: 0 | AS19: 0 | AT19: 0 | AU19: 0 | AV19: 0 | AW19: 0 | AX19: 0 | AY19: 0 | AZ19: 0 | BA19: 0 | BB19: 0 | BC19: 0 | BD19: 0 | BE19: 0 | BF19: 0 | BG19: 0 | BH19: 0 | BI19: 0 | BJ19: 0 | BK19: 0 | BL19: 0 | BM19: 0 | BN19: 0 | BO19: 0 | BP19: 0 | BQ19: 0 | BR19: 0 | BS19: 0 | BT19: 0 | BU19: 0 | BV19: 0 | BW19: 0 | BX19: 0 | BY19: 0 | BZ19: 0 | CA19: 0 | CB19: 0 | CC19: 0 | CD19: 0 | CE19: 0 | CF19: 0 | CG19: 0 | CH19: 0 | CI19: 0 | CJ19: 0 | CK19: 0 | CL19: 0 | CM19: 0 | CN19: 0 | CO19: 0 | CP19: 0 | CQ19: 0 | CR19: 0 | CS19: 0 | CT19: 0 | CU19: 0 | CV19: 0 | CW19: 0
A20: A0 | B20: K0 | C20: k313 | D20: =IF(B20="","Alternativ "&RIGHT(A20,LEN(A20)-1),IF(LEFT(B20,1)="N","Nytte"&RIGHT(A20,LEN(A20)-1),"Kostnad"&RIGHT(A20,LEN(A20)-1))) -> Kostnad0 | F20: Kostnader for privat næringsliv | H20: 0 | I20: 0 | J20: 0 | K20: 0 | L20: 0 | M20: 0 | N20: 0 | O20: 0 | P20: 0 | Q20: 0 | R20: 0 | S20: 0 | T20: 0 | U20: 0 | V20: 0 | W20: 0 | X20: 0 | Y20: 0 | Z20: 0 | AA20: 0 | AB20: 0 | AC20: 0 | AD20: 0 | AE20: 0 | AF20: 0 | AG20: 0 | AH20: 0 | AI20: 0 | AJ20: 0 | AK20: 0 | AL20: 0 | AM20: 0 | AN20: 0 | AO20: 0 | AP20: 0 | AQ20: 0 | AR20: 0 | AS20: 0 | AT20: 0 | AU20: 0 | AV20: 0 | AW20: 0 | AX20: 0 | AY20: 0 | AZ20: 0 | BA20: 0 | BB20: 0 | BC20: 0 | BD20: 0 | BE20: 0 | BF20: 0 | BG20: 0 | BH20: 0 | BI20: 0 | BJ20: 0 | BK20: 0 | BL20: 0 | BM20: 0 | BN20: 0 | BO20: 0 | BP20: 0 | BQ20: 0 | BR20: 0 | BS20: 0 | BT20: 0 | BU20: 0 | BV20: 0 | BW20: 0 | BX20: 0 | BY20: 0 | BZ20: 0 | CA20: 0 | CB20: 0 | CC20: 0 | CD20: 0 | CE20: 0 | CF20: 0 | CG20: 0 | CH20: 0 | CI20: 0 | CJ20: 0 | CK20: 0 | CL20: 0 | CM20: 0 | CN20: 0 | CO20: 0 | CP20: 0 | CQ20: =IFERROR(IF(LEFT($C20,1)="s",VLOOKUP(INT(RIGHT($C20,LEN($C20)-1)),INDIRECT($D20&"S"),CQ$1,FALSE),VLOOKUP($C20,INDIRECT($D20),CQ$1,FALSE)),"") -> 0 | CR20: 0 | CS20: 0 | CT20: 0 | CU20: 0 | CV20: 0 | CW20: 0
A21: A0 | B21: K0 | C21: k434 | D21: =IF(B21="","Alternativ "&RIGHT(A21,LEN(A21)-1),IF(LEFT(B21,1)="N","Nytte"&RIGHT(A21,LEN(A21)-1),"Kostnad"&RIGHT(A21,LEN(A21)-1))) -> Kostnad0 | F21: Kostnader for privatpersoner | H21: 0 | I21: 0 | J21: 0 | K21: 0 | L21: 0 | M21: 0 | N21: 0 | O21: 0 | P21: 0 | Q21: 0 | R21: 0 | S21: 0 | T21: 0 | U21: 0 | V21: 0 | W21: 0 | X21: 0 | Y21: 0 | Z21: 0 | AA21: 0 | AB21: 0 | AC21: 0 | AD21: 0 | AE21: 0 | AF21: 0 | AG21: 0 | AH21: 0 | AI21: 0 | AJ21: 0 | AK21: 0 | AL21: 0 | AM21: 0 | AN21: 0 | AO21: 0 | AP21: 0 | AQ21: 0 | AR21: 0 | AS21: 0 | AT21: 0 | AU21: 0 | AV21: 0 | AW21: 0 | AX21: 0 | AY21: 0 | AZ21: 0 | BA21: 0 | BB21: 0 | BC21: 0 | BD21: 0 | BE21: 0 | BF21: 0 | BG21: 0 | BH21: 0 | BI21: 0 | BJ21: 0 | BK21: 0 | BL21: 0 | BM21: 0 | BN21: 0 | BO21: 0 | BP21: 0 | BQ21: 0 | BR21: 0 | BS21: 0 | BT21: 0 | BU21: 0 | BV21: 0 | BW21: 0 | BX21: 0 | BY21: 0 | BZ21: 0 | CA21: 0 | CB21: 0 | CC21: 0 | CD21: 0 | CE21: 0 | CF21: 0 | CG21: 0 | CH21: 0 | CI21: 0 | CJ21: 0 | CK21: 0 | CL21: 0 | CM21: 0 | CN21: 0 | CO21: 0 | CP21: 0 | CQ21: 0 | CR21: 0 | CS21: 0 | CT21: 0 | CU21: 0 | CV21: 0 | CW21: 0
A22: A1 | D22: =IF(B22="","Alternativ "&RIGHT(A22,LEN(A22)-1),IF(LEFT(B22,1)="N","Nytte"&RIGHT(A22,LEN(A22)-1),"Kostnad"&RIGHT(A22,LEN(A22)-1))) -> Alternativ 1
A23: A1 | B23: N1 | C23: k404 | D23: =IF(B23="","Alternativ "&RIGHT(A23,LEN(A23)-1),IF(LEFT(B23,1)="N","Nytte"&RIGHT(A23,LEN(A23)-1),"Kostnad"&RIGHT(A23,LEN(A23)-1))) -> Nytte1 | F23: Nytte for virksomheten | H23: 0 | I23: 0 | J23: 0 | K23: 0 | L23: 0 | M23: 0 | N23: 0 | O23: 0 | P23: 0 | Q23: 0 | R23: 0 | S23: 0 | T23: 0 | U23: 0 | V23: 0 | W23: 0 | X23: 0 | Y23: 0 | Z23: 0 | AA23: 0 | AB23: 0 | AC23: 0 | AD23: 0 | AE23: 0 | AF23: 0 | AG23: 0 | AH23: 0 | AI23: 0 | AJ23: 0 | AK23: 0 | AL23: 0 | AM23: 0 | AN23: 0 | AO23: 0 | AP23: 0 | AQ23: 0 | AR23: 0 | AS23: 0 | AT23: 0 | AU23: 0 | AV23: 0 | AW23: 0 | AX23: 0 | AY23: 0 | AZ23: 0 | BA23: 0 | BB23: 0 | BC23: 0 | BD23: 0 | BE23: 0 | BF23: 0 | BG23: 0 | BH23: 0 | BI23: 0 | BJ23: 0 | BK23: 0 | BL23: 0 | BM23: 0 | BN23: 0 | BO23: 0 | BP23: 0 | BQ23: 0 | BR23: 0 | BS23: 0 | BT23: 0 | BU23: 0 | BV23: 0 | BW23: 0 | BX23: 0 | BY23: 0 | BZ23: 0 | CA23: 0 | CB23: 0 | CC23: 0 | CD23: 0 | CE23: =IFERROR(IF(LEFT($C23,1)="s",VLOOKUP(INT(RIGHT($C23,LEN($C23)-1)),INDIRECT($D23&"S"),CE$1,FALSE),VLOOKUP($C23,INDIRECT($D23),CE$1,FALSE)),"") -> 0 | CF23: 0 | CG23: 0 | CH23: 0 | CI23: 0 | CJ23: 0 | CK23: 0 | CL23: 0 | CM23: 0 | CN23: 0 | CO23: 0 | CP23: 0 | CQ23: 0 | CR23: 0 | CS23: 0 | CT23: 0 | CU23: 0 | CV23: 0 | CW23: 0
A24: A1 | B24: N1 | C24: k405 | D24: =IF(B24="","Alternativ "&RIGHT(A24,LEN(A24)-1),IF(LEFT(B24,1)="N","Nytte"&RIGHT(A24,LEN(A24)-1),"Kostnad"&RIGHT(A24,LEN(A24)-1))) -> Nytte1 | F24: Nytte for øvrig offentlig sektor | H24: 0 | I24: 0 | J24: 0 | K24: 0 | L24: 0 | M24: 0 | N24: 0 | O24: 0 | P24: 0 | Q24: 0 | R24: 0 | S24: 0 | T24: 0 | U24: 0 | V24: 0 | W24: 0 | X24: 0 | Y24: 0 | Z24: 0 | AA24: 0 | AB24: 0 | AC24: 0 | AD24: 0 | AE24: 0 | AF24: 0 | AG24: 0 | AH24: 0 | AI24: 0 | AJ24: 0 | AK24: 0 | AL24: 0 | AM24: 0 | AN24: =IFERROR(IF(LEFT($C24,1)="s",VLOOKUP(INT(RIGHT($C24,LEN($C24)-1)),INDIRECT($D24&"S"),AN$1,FALSE),VLOOKUP($C24,INDIRECT($D24),AN$1,FALSE)),"") -> 0 | AO24: 0 | AP24: 0 | AQ24: 0 | AR24: 0 | AS24: 0 | AT24: 0 | AU24: 0 | AV24: 0 | AW24: 0 | AX24: 0 | AY24: 0 | AZ24: 0 | BA24: 0 | BB24: 0 | BC24: 0 | BD24: 0 | BE24: 0 | BF24: 0 | BG24: 0 | BH24: 0 | BI24: 0 | BJ24: 0 | BK24: 0 | BL24: 0 | BM24: 0 | BN24: 0 | BO24: 0 | BP24: 0 | BQ24: 0 | BR24: 0 | BS24: 0 | BT24: 0 | BU24: 0 | BV24: 0 | BW24: 0 | BX24: 0 | BY24: 0 | BZ24: 0 | CA24: 0 | CB24: 0 | CC24: 0 | CD24: 0 | CE24: 0 | CF24: 0 | CG24: 0 | CH24: 0 | CI24: 0 | CJ24: 0 | CK24: 0 | CL24: 0 | CM24: 0 | CN24: 0 | CO24: 0 | CP24: 0 | CQ24: 0 | CR24: 0 | CS24: 0 | CT24: 0 | CU24: 0 | CV24: 0 | CW24: 0
A25: A1 | B25: N1 | C25: k406 | D25: =IF(B25="","Alternativ "&RIGHT(A25,LEN(A25)-1),IF(LEFT(B25,1)="N","Nytte"&RIGHT(A25,LEN(A25)-1),"Kostnad"&RIGHT(A25,LEN(A25)-1))) -> Nytte1 | F25: Nytte for privat næringsliv | H25: 0 | I25: 0 | J25: 0 | K25: 0 | L25: 0 | M25: 0 | N25: 0 | O25: 0 | P25: 0 | Q25: 0 | R25: 0 | S25: 0 | T25: 0 | U25: 0 | V25: 0 | W25: 0 | X25: 0 | Y25: 0 | Z25: 0 | AA25: 0 | AB25: 0 | AC25: 0 | AD25: 0 | AE25: 0 | AF25: 0 | AG25: 0 | AH25: 0 | AI25: 0 | AJ25: 0 | AK25: 0 | AL25: 0 | AM25: 0 | AN25: 0 | AO25: 0 | AP25: 0 | AQ25: 0 | AR25: 0 | AS25: 0 | AT25: 0 | AU25: 0 | AV25: 0 | AW25: 0 | AX25: 0 | AY25: 0 | AZ25: 0 | BA25: 0 | BB25: 0 | BC25: 0 | BD25: 0 | BE25: 0 | BF25: 0 | BG25: 0 | BH25: 0 | BI25: 0 | BJ25: 0 | BK25: 0 | BL25: 0 | BM25: 0 | BN25: 0 | BO25: 0 | BP25: 0 | BQ25: 0 | BR25: 0 | BS25: 0 | BT25: 0 | BU25: 0 | BV25: 0 | BW25: 0 | BX25: 0 | BY25: 0 | BZ25: 0 | CA25: 0 | CB25: 0 | CC25: 0 | CD25: 0 | CE25: 0 | CF25: 0 | CG25: 0 | CH25: 0 | CI25: 0 | CJ25: 0 | CK25: 0 | CL25: 0 | CM25: 0 | CN25: 0 | CO25: 0 | CP25: 0 | CQ25: 0 | CR25: 0 | CS25: 0 | CT25: 0 | CU25: 0 | CV25: 0 | CW25: 0
A26: A1 | B26: N1 | C26: k408 | D26: =IF(B26="","Alternativ "&RIGHT(A26,LEN(A26)-1),IF(LEFT(B26,1)="N","Nytte"&RIGHT(A26,LEN(A26)-1),"Kostnad"&RIGHT(A26,LEN(A26)-1))) -> Nytte1 | F26: Nytte for privatpersoner | H26: 0 | I26: 0 | J26: 0 | K26: 0 | L26: 0 | M26: 0 | N26: 0 | O26: 0 | P26: 0 | Q26: 0 | R26: 0 | S26: 0 | T26: 0 | U26: 0 | V26: 0 | W26: 0 | X26: 0 | Y26: 0 | Z26: 0 | AA26: 0 | AB26: 0 | AC26: 0 | AD26: 0 | AE26: 0 | AF26: 0 | AG26: 0 | AH26: 0 | AI26: 0 | AJ26: 0 | AK26: 0 | AL26: 0 | AM26: 0 | AN26: 0 | AO26: 0 | AP26: 0 | AQ26: 0 | AR26: 0 | AS26: 0 | AT26: 0 | AU26: 0 | AV26: 0 | AW26: 0 | AX26: 0 | AY26: 0 | AZ26: 0 | BA26: 0 | BB26: 0 | BC26: 0 | BD26: 0 | BE26: 0 | BF26: 0 | BG26: 0 | BH26: 0 | BI26: 0 | BJ26: 0 | BK26: 0 | BL26: 0 | BM26: 0 | BN26: 0 | BO26: 0 | BP26: 0 | BQ26: 0 | BR26: 0 | BS26: 0 | BT26: 0 | BU26: 0 | BV26: 0 | BW26: 0 | BX26: 0 | BY26: 0 | BZ26: 0 | CA26: 0 | CB26: 0 | CC26: 0 | CD26: 0 | CE26: 0 | CF26: 0 | CG26: 0 | CH26: 0 | CI26: 0 | CJ26: 0 | CK26: 0 | CL26: 0 | CM26: 0 | CN26: 0 | CO26: 0 | CP26: 0 | CQ26: 0 | CR26: 0 | CS26: 0 | CT26: 0 | CU26: 0 | CV26: 0 | CW26: 0
A27: A1 | B27: K1 | C27: k311 | D27: =IF(B27="","Alternativ "&RIGHT(A27,LEN(A27)-1),IF(LEFT(B27,1)="N","Nytte"&RIGHT(A27,LEN(A27)-1),"Kostnad"&RIGHT(A27,LEN(A27)-1))) -> Kostnad1 | F27: Kostnader for virksomheten | H27: 0 | I27: 0 | J27: 0 | K27: 0 | L27: 0 | M27: 0 | N27: 0 | O27: 0 | P27: 0 | Q27: 0 | R27: 0 | S27: 0 | T27: 0 | U27: 0 | V27: 0 | W27: 0 | X27: 0 | Y27: 0 | Z27: 0 | AA27: 0 | AB27: 0 | AC27: 0 | AD27: 0 | AE27: 0 | AF27: 0 | AG27: 0 | AH27: 0 | AI27: 0 | AJ27: 0 | AK27: 0 | AL27: 0 | AM27: 0 | AN27: 0 | AO27: 0 | AP27: 0 | AQ27: 0 | AR27: 0 | AS27: 0 | AT27: 0 | AU27: 0 | AV27: 0 | AW27: 0 | AX27: 0 | AY27: 0 | AZ27: 0 | BA27: 0 | BB27: 0 | BC27: 0 | BD27: 0 | BE27: 0 | BF27: 0 | BG27: 0 | BH27: 0 | BI27: 0 | BJ27: 0 | BK27: 0 | BL27: 0 | BM27: 0 | BN27: 0 | BO27: 0 | BP27: 0 | BQ27: 0 | BR27: 0 | BS27: 0 | BT27: 0 | BU27: 0 | BV27: 0 | BW27: 0 | BX27: 0 | BY27: 0 | BZ27: 0 | CA27: 0 | CB27: 0 | CC27: 0 | CD27: 0 | CE27: 0 | CF27: 0 | CG27: 0 | CH27: 0 | CI27: 0 | CJ27: 0 | CK27: 0 | CL27: 0 | CM27: 0 | CN27: 0 | CO27: 0 | CP27: 0 | CQ27: 0 | CR27: 0 | CS27: 0 | CT27: 0 | CU27: 0 | CV27: 0 | CW27: 0
A28: A1 | B28: K1 | C28: 9 | D28: =IF(B28="","Alternativ "&RIGHT(A28,LEN(A28)-1),IF(LEFT(B28,1)="N","Nytte"&RIGHT(A28,LEN(A28)-1),"Kostnad"&RIGHT(A28,LEN(A28)-1))) -> Kostnad1 | F28: Investering i utstyr | H28: =IFERROR(IF(LEFT($C28,1)="s",VLOOKUP(INT(RIGHT($C28,LEN($C28)-1)),INDIRECT($D28&"S"),H$1,FALSE),VLOOKUP($C28,INDIRECT($D28),H$1,FALSE)),"") -> -1000000 | I28: -1000000 | J28: 0 | K28: 0 | L28: 0 | M28: 0 | N28: 0 | O28: 0 | P28: 0 | Q28: 0 | R28: 0 | S28: 0 | T28: 0 | U28: 0 | V28: 0 | W28: 0 | X28: 0 | Y28: 0 | Z28: 0 | AA28: 0 | AB28: 0 | AC28: 0 | AD28: 0 | AE28: 0 | AF28: 0 | AG28: 0 | AH28: 0 | AI28: 0 | AJ28: 0 | AK28: 0 | AL28: 0 | AM28: 0 | AN28: =IFERROR(IF(LEFT($C28,1)="s",VLOOKUP(INT(RIGHT($C28,LEN($C28)-1)),INDIRECT($D28&"S"),AN$1,FALSE),VLOOKUP($C28,INDIRECT($D28),AN$1,FALSE)),"") -> 0 | AO28: 0 | AP28: 0 | AQ28: 0 | AR28: 0 | AS28: 0 | AT28: 0 | AU28: 0 | AV28: 0 | AW28: 0 | AX28: 0 | AY28: 0 | AZ28: 0 | BA28: 0 | BB28: 0 | BC28: 0 | BD28: 0 | BE28: 0 | BF28: 0 | BG28: 0 | BH28: 0 | BI28: 0 | BJ28: 0 | BK28: 0 | BL28: 0 | BM28: 0 | BN28: 0 | BO28: 0 | BP28: 0 | BQ28: 0 | BR28: 0 | BS28: 0 | BT28: 0 | BU28: 0 | BV28: 0 | BW28: 0 | BX28: 0 | BY28: 0 | BZ28: 0 | CA28: 0 | CB28: 0 | CC28: 0 | CD28: 0 | CE28: 0 | CF28: 0 | CG28: 0 | CH28: 0 | CI28: 0 | CJ28: 0 | CK28: 0 | CL28: 0 | CM28: 0 | CN28: 0 | CO28: 0 | CP28: 0 | CQ28: 0 | CR28: 0 | CS28: 0 | CT28: 0 | CU28: 0 | CV28: 0 | CW28: 0
A29: A1 | B29: K1 | C29: s9 | D29: =IF(B29="","Alternativ "&RIGHT(A29,LEN(A29)-1),IF(LEFT(B29,1)="N","Nytte"&RIGHT(A29,LEN(A29)-1),"Kostnad"&RIGHT(A29,LEN(A29)-1))) -> Kostnad1 | F29: Investering i utstyr | H29: 0 | I29: 0 | J29: 0 | K29: 0 | L29: 0 | M29: 0 | N29: 0 | O29: 0 | P29: 0 | Q29: 0 | R29: 0 | S29: 0 | T29: 0 | U29: 0 | V29: 0 | W29: 0 | X29: 0 | Y29: 0 | Z29: 0 | AA29: 0 | AB29: 0 | AC29: 0 | AD29: 0 | AE29: 0 | AF29: 0 | AG29: 0 | AH29: 0 | AI29: 0 | AJ29: 0 | AK29: 0 | AL29: 0 | AM29: 0 | AN29: 0 | AO29: 0 | AP29: 0 | AQ29: 0 | AR29: 0 | AS29: 0 | AT29: 0 | AU29: 0 | AV29: 0 | AW29: 0 | AX29: 0 | AY29: 0 | AZ29: 0 | BA29: 0 | BB29: 0 | BC29: 0 | BD29: 0 | BE29: 0 | BF29: 0 | BG29: 0 | BH29: 0 | BI29: 0 | BJ29: 0 | BK29: 0 | BL29: 0 | BM29: 0 | BN29: 0 | BO29: 0 | BP29: 0 | BQ29: 0 | BR29: 0 | BS29: 0 | BT29: 0 | BU29: 0 | BV29: 0 | BW29: 0 | BX29: 0 | BY29: 0 | BZ29: 0 | CA29: 0 | CB29: 0 | CC29: 0 | CD29: 0 | CE29: 0 | CF29: 0 | CG29: 0 | CH29: 0 | CI29: 0 | CJ29: 0 | CK29: 0 | CL29: 0 | CM29: 0 | CN29: 0 | CO29: 0 | CP29: 0 | CQ29: 0 | CR29: 0 | CS29: 0 | CT29: 0 | CU29: 0 | CV29: 0 | CW29: 0
A30: A1 | B30: K1 | C30: 10 | D30: =IF(B30="","Alternativ "&RIGHT(A30,LEN(A30)-1),IF(LEFT(B30,1)="N","Nytte"&RIGHT(A30,LEN(A30)-1),"Kostnad"&RIGHT(A30,LEN(A30)-1))) -> Kostnad1 | F30: Årlig kostnad til utstyr, bil m.m. | H30: -3584568.108 | I30: -310000 | J30: -310000 | K30: -310000 | L30: -310000 | M30: -310000 | N30: -310000 | O30: -310000 | P30: -310000 | Q30: -310000 | R30: -310000 | S30: -310000 | T30: -310000 | U30: -310000 | V30: -310000 | W30: -310000 | X30: 0 | Y30: 0 | Z30: 0 | AA30: 0 | AB30: 0 | AC30: 0 | AD30: 0 | AE30: 0 | AF30: 0 | AG30: 0 | AH30: 0 | AI30: 0 | AJ30: 0 | AK30: 0 | AL30: 0 | AM30: 0 | AN30: 0 | AO30: 0 | AP30: 0 | AQ30: 0 | AR30: 0 | AS30: 0 | AT30: 0 | AU30: 0 | AV30: 0 | AW30: 0 | AX30: 0 | AY30: 0 | AZ30: 0 | BA30: 0 | BB30: 0 | BC30: 0 | BD30: 0 | BE30: 0 | BF30: 0 | BG30: 0 | BH30: 0 | BI30: 0 | BJ30: 0 | BK30: 0 | BL30: 0 | BM30: 0 | BN30: 0 | BO30: 0 | BP30: 0 | BQ30: 0 | BR30: 0 | BS30: 0 | BT30: 0 | BU30: 0 | BV30: 0 | BW30: 0 | BX30: 0 | BY30: 0 | BZ30: 0 | CA30: 0 | CB30: 0 | CC30: 0 | CD30: 0 | CE30: 0 | CF30: 0 | CG30: 0 | CH30: 0 | CI30: 0 | CJ30: 0 | CK30: 0 | CL30: 0 | CM30: 0 | CN30: 0 | CO30: 0 | CP30: 0 | CQ30: 0 | CR30: 0 | CS30: 0 | CT30: 0 | CU30: 0 | CV30: 0 | CW30: 0
A31: A1 | B31: K1 | C31: s10 | D31: =IF(B31="","Alternativ "&RIGHT(A31,LEN(A31)-1),IF(LEFT(B31,1)="N","Nytte"&RIGHT(A31,LEN(A31)-1),"Kostnad"&RIGHT(A31,LEN(A31)-1))) -> Kostnad1 | F31: Årlig kostnad til utstyr, bil m.m. | H31: 0 | I31: 0 | J31: 0 | K31: 0 | L31: 0 | M31: 0 | N31: 0 | O31: 0 | P31: 0 | Q31: 0 | R31: 0 | S31: 0 | T31: 0 | U31: 0 | V31: 0 | W31: 0 | X31: 0 | Y31: 0 | Z31: 0 | AA31: 0 | AB31: 0 | AC31: 0 | AD31: 0 | AE31: 0 | AF31: 0 | AG31: 0 | AH31: 0 | AI31: 0 | AJ31: 0 | AK31: 0 | AL31: 0 | AM31: 0 | AN31: 0 | AO31: 0 | AP31: 0 | AQ31: 0 | AR31: 0 | AS31: 0 | AT31: 0 | AU31: 0 | AV31: 0 | AW31: 0 | AX31: 0 | AY31: 0 | AZ31: 0 | BA31: 0 | BB31: 0 | BC31: 0 | BD31: 0 | BE31: 0 | BF31: 0 | BG31: 0 | BH31: 0 | BI31: 0 | BJ31: 0 | BK31: 0 | BL31: 0 | BM31: 0 | BN31: 0 | BO31: 0 | BP31: 0 | BQ31: 0 | BR31: 0 | BS31: 0 | BT31: 0 | BU31: 0 | BV31: 0 | BW31: 0 | BX31: 0 | BY31: 0 | BZ31: 0 | CA31: 0 | CB31: 0 | CC31: 0 | CD31: 0 | CE31: 0 | CF31: 0 | CG31: 0 | CH31: 0 | CI31: 0 | CJ31: 0 | CK31: 0 | CL31: 0 | CM31: 0 | CN31: 0 | CO31: 0 | CP31: 0 | CQ31: 0 | CR31: 0 | CS31: 0 | CT31: 0 | CU31: 0 | CV31: 0 | CW31: 0
A32: A1 | B32: K1 | C32: 11 | D32: =IF(B32="","Alternativ "&RIGHT(A32,LEN(A32)-1),IF(LEFT(B32,1)="N","Nytte"&RIGHT(A32,LEN(A32)-1),"Kostnad"&RIGHT(A32,LEN(A32)-1))) -> Kostnad1 | F32: Personellkostnad til prosjektet | H32: -22259011.64 | I32: -1925000 | J32: -1925000 | K32: -1925000 | L32: -1925000 | M32: -1925000 | N32: -1925000 | O32: -1925000 | P32: -1925000 | Q32: -1925000 | R32: -1925000 | S32: -1925000 | T32: -1925000 | U32: -1925000 | V32: -1925000 | W32: -1925000 | X32: 0 | Y32: 0 | Z32: 0 | AA32: 0 | AB32: =IFERROR(IF(LEFT($C32,1)="s",VLOOKUP(INT(RIGHT($C32,LEN($C32)-1)),INDIRECT($D32&"S"),AB$1,FALSE),VLOOKUP($C32,INDIRECT($D32),AB$1,FALSE)),"") -> 0 | AC32: 0 | AD32: 0 | AE32: 0 | AF32: 0 | AG32: 0 | AH32: 0 | AI32: 0 | AJ32: 0 | AK32: 0 | AL32: 0 | AM32: 0 | AN32: 0 | AO32: 0 | AP32: 0 | AQ32: 0 | AR32: 0 | AS32: 0 | AT32: 0 | AU32: 0 | AV32: 0 | AW32: 0 | AX32: 0 | AY32: 0 | AZ32: 0 | BA32: 0 | BB32: 0 | BC32: 0 | BD32: 0 | BE32: 0 | BF32: 0 | BG32: 0 | BH32: 0 | BI32: 0 | BJ32: 0 | BK32: 0 | BL32: 0 | BM32: 0 | BN32: 0 | BO32: 0 | BP32: 0 | BQ32: 0 | BR32: 0 | BS32: 0 | BT32: 0 | BU32: 0 | BV32: 0 | BW32: 0 | BX32: 0 | BY32: 0 | BZ32: 0 | CA32: 0 | CB32: 0 | CC32: 0 | CD32: 0 | CE32: 0 | CF32: 0 | CG32: 0 | CH32: 0 | CI32: 0 | CJ32: 0 | CK32: 0 | CL32: 0 | CM32: 0 | CN32: 0 | CO32: 0 | CP32: 0 | CQ32: 0 | CR32: 0 | CS32: 0 | CT32: 0 | CU32: 0 | CV32: 0 | CW32: 0
A33: A1 | B33: K1 | C33: s11 | D33: =IF(B33="","Alternativ "&RIGHT(A33,LEN(A33)-1),IF(LEFT(B33,1)="N","Nytte"&RIGHT(A33,LEN(A33)-1),"Kostnad"&RIGHT(A33,LEN(A33)-1))) -> Kostnad1 | F33: Personellkostnad til prosjektet | H33: 0 | I33: 0 | J33: 0 | K33: 0 | L33: 0 | M33: 0 | N33: 0 | O33: 0 | P33: 0 | Q33: 0 | R33: 0 | S33: 0 | T33: 0 | U33: 0 | V33: 0 | W33: 0 | X33: =IFERROR(IF(LEFT($C33,1)="s",VLOOKUP(INT(RIGHT($C33,LEN($C33)-1)),INDIRECT($D33&"S"),X$1,FALSE),VLOOKUP($C33,INDIRECT($D33),X$1,FALSE)),"") -> 0 | Y33: 0 | Z33: 0 | AA33: 0 | AB33: 0 | AC33: 0 | AD33: 0 | AE33: 0 | AF33: 0 | AG33: 0 | AH33: 0 | AI33: 0 | AJ33: 0 | AK33: 0 | AL33: 0 | AM33: 0 | AN33: 0 | AO33: 0 | AP33: 0 | AQ33: 0 | AR33: 0 | AS33: 0 | AT33: 0 | AU33: 0 | AV33: 0 | AW33: 0 | AX33: 0 | AY33: 0 | AZ33: 0 | BA33: 0 | BB33: 0 | BC33: 0 | BD33: 0 | BE33: 0 | BF33: 0 | BG33: 0 | BH33: 0 | BI33: 0 | BJ33: 0 | BK33: 0 | BL33: 0 | BM33: 0 | BN33: 0 | BO33: 0 | BP33: 0 | BQ33: 0 | BR33: 0 | BS33: 0 | BT33: 0 | BU33: 0 | BV33: 0 | BW33: 0 | BX33: 0 | BY33: 0 | BZ33: 0 | CA33: 0 | CB33: =IFERROR(IF(LEFT($C33,1)="s",VLOOKUP(INT(RIGHT($C33,LEN($C33)-1)),INDIRECT($D33&"S"),CB$1,FALSE),VLOOKUP($C33,INDIRECT($D33),CB$1,FALSE)),"") -> 0 | CC33: 0 | CD33: 0 | CE33: 0 | CF33: 0 | CG33: 0 | CH33: 0 | CI33: 0 | CJ33: 0 | CK33: 0 | CL33: 0 | CM33: 0 | CN33: 0 | CO33: 0 | CP33: 0 | CQ33: 0 | CR33: 0 | CS33: 0 | CT33: 0 | CU33: 0 | CV33: 0 | CW33: 0
A34: A1 | B34: K1 | C34: 12 | D34: =IF(B34="","Alternativ "&RIGHT(A34,LEN(A34)-1),IF(LEFT(B34,1)="N","Nytte"&RIGHT(A34,LEN(A34)-1),"Kostnad"&RIGHT(A34,LEN(A34)-1))) -> Kostnad1 | F34: Årlig oppryddingsarbeid | H34: -58502690.65 | I34: -12320000 | J34: -12320000 | K34: -12320000 | L34: -12320000 | M34: -1540000 | N34: -1540000 | O34: -1540000 | P34: -1540000 | Q34: -1540000 | R34: -1540000 | S34: -1540000 | T34: -1540000 | U34: -1540000 | V34: -1540000 | W34: -1540000 | X34: 0 | Y34: 0 | Z34: 0 | AA34: 0 | AB34: 0 | AC34: 0 | AD34: 0 | AE34: 0 | AF34: 0 | AG34: 0 | AH34: 0 | AI34: 0 | AJ34: 0 | AK34: 0 | AL34: 0 | AM34: 0 | AN34: 0 | AO34: 0 | AP34: 0 | AQ34: 0 | AR34: =IFERROR(IF(LEFT($C34,1)="s",VLOOKUP(INT(RIGHT($C34,LEN($C34)-1)),INDIRECT($D34&"S"),AR$1,FALSE),VLOOKUP($C34,INDIRECT($D34),AR$1,FALSE)),"") -> 0 | AS34: 0 | AT34: 0 | AU34: 0 | AV34: 0 | AW34: 0 | AX34: 0 | AY34: 0 | AZ34: 0 | BA34: 0 | BB34: 0 | BC34: 0 | BD34: 0 | BE34: 0 | BF34: 0 | BG34: 0 | BH34: 0 | BI34: 0 | BJ34: 0 | BK34: 0 | BL34: 0 | BM34: 0 | BN34: 0 | BO34: 0 | BP34: 0 | BQ34: 0 | BR34: 0 | BS34: 0 | BT34: 0 | BU34: 0 | BV34: 0 | BW34: 0 | BX34: 0 | BY34: 0 | BZ34: 0 | CA34: 0 | CB34: 0 | CC34: 0 | CD34: 0 | CE34: 0 | CF34: 0 | CG34: 0 | CH34: 0 | CI34: 0 | CJ34: 0 | CK34: 0 | CL34: 0 | CM34: 0 | CN34: 0 | CO34: 0 | CP34: 0 | CQ34: 0 | CR34: 0 | CS34: 0 | CT34: 0 | CU34: 0 | CV34: 0 | CW34: 0
A35: A1 | B35: K1 | C35: s12 | D35: =IF(B35="","Alternativ "&RIGHT(A35,LEN(A35)-1),IF(LEFT(B35,1)="N","Nytte"&RIGHT(A35,LEN(A35)-1),"Kostnad"&RIGHT(A35,LEN(A35)-1))) -> Kostnad1 | F35: Årlig oppryddingsarbeid | H35: 0 | I35: 0 | J35: 0 | K35: 0 | L35: 0 | M35: 0 | N35: 0 | O35: 0 | P35: 0 | Q35: 0 | R35: 0 | S35: 0 | T35: 0 | U35: 0 | V35: 0 | W35: 0 | X35: 0 | Y35: 0 | Z35: 0 | AA35: 0 | AB35: 0 | AC35: 0 | AD35: 0 | AE35: 0 | AF35: 0 | AG35: 0 | AH35: 0 | AI35: 0 | AJ35: 0 | AK35: 0 | AL35: 0 | AM35: 0 | AN35: 0 | AO35: 0 | AP35: 0 | AQ35: 0 | AR35: 0 | AS35: 0 | AT35: 0 | AU35: 0 | AV35: 0 | AW35: 0 | AX35: 0 | AY35: 0 | AZ35: 0 | BA35: 0 | BB35: 0 | BC35: 0 | BD35: 0 | BE35: 0 | BF35: 0 | BG35: 0 | BH35: 0 | BI35: 0 | BJ35: 0 | BK35: 0 | BL35: 0 | BM35: 0 | BN35: 0 | BO35: 0 | BP35: 0 | BQ35: 0 | BR35: 0 | BS35: 0 | BT35: 0 | BU35: 0 | BV35: 0 | BW35: 0 | BX35: 0 | BY35: 0 | BZ35: 0 | CA35: 0 | CB35: 0 | CC35: 0 | CD35: 0 | CE35: 0 | CF35: 0 | CG35: 0 | CH35: 0 | CI35: 0 | CJ35: 0 | CK35: 0 | CL35: 0 | CM35: 0 | CN35: 0 | CO35: 0 | CP35: 0 | CQ35: 0 | CR35: 0 | CS35: 0 | CT35: 0 | CU35: 0 | CV35: 0 | CW35: 0
A36: A1 | B36: K1 | C36: 26 | D36: =IF(B36="","Alternativ "&RIGHT(A36,LEN(A36)-1),IF(LEFT(B36,1)="N","Nytte"&RIGHT(A36,LEN(A36)-1),"Kostnad"&RIGHT(A36,LEN(A36)-1))) -> Kostnad1 | F36: Kartlegging utført av kommunensatte | H36: -8903604.656 | I36: -770000 | J36: -770000 | K36: -770000 | L36: -770000 | M36: -770000 | N36: -770000 | O36: -770000 | P36: -770000 | Q36: -770000 | R36: -770000 | S36: -770000 | T36: -770000 | U36: -770000 | V36: -770000 | W36: -770000 | X36: 0 | Y36: 0 | Z36: 0 | AA36: 0 | AB36: 0 | AC36: 0 | AD36: 0 | AE36: 0 | AF36: 0 | AG36: 0 | AH36: 0 | AI36: 0 | AJ36: 0 | AK36: 0 | AL36: 0 | AM36: 0 | AN36: 0 | AO36: 0 | AP36: 0 | AQ36: 0 | AR36: 0 | AS36: 0 | AT36: 0 | AU36: 0 | AV36: 0 | AW36: 0 | AX36: 0 | AY36: 0 | AZ36: 0 | BA36: 0 | BB36: 0 | BC36: 0 | BD36: 0 | BE36: 0 | BF36: 0 | BG36: 0 | BH36: 0 | BI36: 0 | BJ36: 0 | BK36: 0 | BL36: 0 | BM36: 0 | BN36: 0 | BO36: 0 | BP36: 0 | BQ36: 0 | BR36: 0 | BS36: 0 | BT36: 0 | BU36: 0 | BV36: 0 | BW36: 0 | BX36: 0 | BY36: 0 | BZ36: 0 | CA36: 0 | CB36: 0 | CC36: 0 | CD36: 0 | CE36: 0 | CF36: 0 | CG36: 0 | CH36: 0 | CI36: 0 | CJ36: 0 | CK36: 0 | CL36: 0 | CM36: 0 | CN36: 0 | CO36: 0 | CP36: 0 | CQ36: 0 | CR36: =IFERROR(IF(LEFT($C36,1)="s",VLOOKUP(INT(RIGHT($C36,LEN($C36)-1)),INDIRECT($D36&"S"),CR$1,FALSE),VLOOKUP($C36,INDIRECT($D36),CR$1,FALSE)),"") -> 0 | CS36: 0 | CT36: 0 | CU36: 0 | CV36: 0 | CW36: 0
A37: A1 | B37: K1 | C37: s26 | D37: =IF(B37="","Alternativ "&RIGHT(A37,LEN(A37)-1),IF(LEFT(B37,1)="N","Nytte"&RIGHT(A37,LEN(A37)-1),"Kostnad"&RIGHT(A37,LEN(A37)-1))) -> Kostnad1 | F37: Kartlegging utført av kommunensatte | H37: 0 | I37: 0 | J37: 0 | K37: 0 | L37: 0 | M37: 0 | N37: 0 | O37: 0 | P37: 0 | Q37: 0 | R37: 0 | S37: 0 | T37: 0 | U37: 0 | V37: 0 | W37: 0 | X37: 0 | Y37: 0 | Z37: 0 | AA37: 0 | AB37: 0 | AC37: 0 | AD37: 0 | AE37: 0 | AF37: 0 | AG37: 0 | AH37: 0 | AI37: 0 | AJ37: 0 | AK37: 0 | AL37: 0 | AM37: 0 | AN37: 0 | AO37: 0 | AP37: 0 | AQ37: 0 | AR37: 0 | AS37: 0 | AT37: 0 | AU37: 0 | AV37: 0 | AW37: 0 | AX37: 0 | AY37: 0 | AZ37: 0 | BA37: 0 | BB37: 0 | BC37: 0 | BD37: 0 | BE37: 0 | BF37: 0 | BG37: 0 | BH37: 0 | BI37: 0 | BJ37: 0 | BK37: 0 | BL37: 0 | BM37: 0 | BN37: 0 | BO37: 0 | BP37: 0 | BQ37: 0 | BR37: 0 | BS37: 0 | BT37: 0 | BU37: 0 | BV37: 0 | BW37: 0 | BX37: 0 | BY37: 0 | BZ37: 0 | CA37: 0 | CB37: 0 | CC37: 0 | CD37: 0 | CE37: 0 | CF37: 0 | CG37: 0 | CH37: 0 | CI37: 0 | CJ37: 0 | CK37: 0 | CL37: 0 | CM37: 0 | CN37: 0 | CO37: 0 | CP37: 0 | CQ37: 0 | CR37: 0 | CS37: 0 | CT37: 0 | CU37: 0 | CV37: 0 | CW37: 0
A38: A1 | B38: K1 | C38: k312 | D38: =IF(B38="","Alternativ "&RIGHT(A38,LEN(A38)-1),IF(LEFT(B38,1)="N","Nytte"&RIGHT(A38,LEN(A38)-1),"Kostnad"&RIGHT(A38,LEN(A38)-1))) -> Kostnad1 | F38: Kostnader for øvrig offentlig sektor | H38: 0 | I38: 0 | J38: 0 | K38: 0 | L38: 0 | M38: 0 | N38: 0 | O38: 0 | P38: 0 | Q38: =IFERROR(IF(LEFT($C38,1)="s",VLOOKUP(INT(RIGHT($C38,LEN($C38)-1)),INDIRECT($D38&"S"),Q$1,FALSE),VLOOKUP($C38,INDIRECT($D38),Q$1,FALSE)),"") -> 0 | R38: 0 | S38: 0 | T38: 0 | U38: 0 | V38: 0 | W38: 0 | X38: 0 | Y38: 0 | Z38: 0 | AA38: 0 | AB38: 0 | AC38: 0 | AD38: 0 | AE38: 0 | AF38: 0 | AG38: 0 | AH38: 0 | AI38: 0 | AJ38: 0 | AK38: 0 | AL38: 0 | AM38: 0 | AN38: 0 | AO38: 0 | AP38: 0 | AQ38: 0 | AR38: 0 | AS38: 0 | AT38: 0 | AU38: 0 | AV38: 0 | AW38: 0 | AX38: 0 | AY38: 0 | AZ38: 0 | BA38: 0 | BB38: 0 | BC38: 0 | BD38: 0 | BE38: 0 | BF38: 0 | BG38: 0 | BH38: 0 | BI38: 0 | BJ38: 0 | BK38: 0 | BL38: 0 | BM38: 0 | BN38: 0 | BO38: 0 | BP38: 0 | BQ38: 0 | BR38: 0 | BS38: 0 | BT38: 0 | BU38: 0 | BV38: 0 | BW38: 0 | BX38: 0 | BY38: 0 | BZ38: 0 | CA38: 0 | CB38: 0 | CC38: 0 | CD38: 0 | CE38: 0 | CF38: 0 | CG38: 0 | CH38: 0 | CI38: 0 | CJ38: 0 | CK38: 0 | CL38: 0 | CM38: 0 | CN38: 0 | CO38: 0 | CP38: 0 | CQ38: 0 | CR38: 0 | CS38: 0 | CT38: 0 | CU38: 0 | CV38: 0 | CW38: 0
A39: A1 | B39: K1 | C39: k313 | D39: =IF(B39="","Alternativ "&RIGHT(A39,LEN(A39)-1),IF(LEFT(B39,1)="N","Nytte"&RIGHT(A39,LEN(A39)-1),"Kostnad"&RIGHT(A39,LEN(A39)-1))) -> Kostnad1 | F39: Kostnader for privat næringsliv | H39: =IFERROR(IF(LEFT($C39,1)="s",VLOOKUP(INT(RIGHT($C39,LEN($C39)-1)),INDIRECT($D39&"S"),H$1,FALSE),VLOOKUP($C39,INDIRECT($D39),H$1,FALSE)),"") -> 0 | I39: 0 | J39: 0 | K39: 0 | L39: 0 | M39: 0 | N39: 0 | O39: 0 | P39: 0 | Q39: 0 | R39: 0 | S39: 0 | T39: 0 | U39: 0 | V39: 0 | W39: 0 | X39: 0 | Y39: 0 | Z39: 0 | AA39: 0 | AB39: 0 | AC39: 0 | AD39: 0 | AE39: 0 | AF39: 0 | AG39: 0 | AH39: 0 | AI39: 0 | AJ39: 0 | AK39: 0 | AL39: 0 | AM39: 0 | AN39: 0 | AO39: 0 | AP39: 0 | AQ39: 0 | AR39: 0 | AS39: 0 | AT39: 0 | AU39: 0 | AV39: 0 | AW39: 0 | AX39: 0 | AY39: 0 | AZ39: 0 | BA39: 0 | BB39: 0 | BC39: 0 | BD39: 0 | BE39: 0 | BF39: 0 | BG39: 0 | BH39: 0 | BI39: 0 | BJ39: 0 | BK39: 0 | BL39: 0 | BM39: 0 | BN39: 0 | BO39: 0 | BP39: 0 | BQ39: 0 | BR39: 0 | BS39: 0 | BT39: 0 | BU39: 0 | BV39: 0 | BW39: 0 | BX39: 0 | BY39: 0 | BZ39: 0 | CA39: 0 | CB39: =IFERROR(IF(LEFT($C39,1)="s",VLOOKUP(INT(RIGHT($C39,LEN($C39)-1)),INDIRECT($D39&"S"),CB$1,FALSE),VLOOKUP($C39,INDIRECT($D39),CB$1,FALSE)),"") -> 0 | CC39: 0 | CD39: 0 | CE39: 0 | CF39: 0 | CG39: 0 | CH39: 0 | CI39: 0 | CJ39: 0 | CK39: 0 | CL39: 0 | CM39: 0 | CN39: 0 | CO39: 0 | CP39: 0 | CQ39: 0 | CR39: 0 | CS39: 0 | CT39: 0 | CU39: 0 | CV39: 0 | CW39: 0
A40: A1 | B40: K1 | C40: k434 | D40: =IF(B40="","Alternativ "&RIGHT(A40,LEN(A40)-1),IF(LEFT(B40,1)="N","Nytte"&RIGHT(A40,LEN(A40)-1),"Kostnad"&RIGHT(A40,LEN(A40)-1))) -> Kostnad1 | F40: Kostnader for privatpersoner | H40: 0 | I40: 0 | J40: 0 | K40: 0 | L40: 0 | M40: 0 | N40: 0 | O40: 0 | P40: 0 | Q40: 0 | R40: 0 | S40: 0 | T40: 0 | U40: 0 | V40: 0 | W40: 0 | X40: 0 | Y40: 0 | Z40: 0 | AA40: 0 | AB40: 0 | AC40: 0 | AD40: 0 | AE40: 0 | AF40: 0 | AG40: 0 | AH40: 0 | AI40: 0 | AJ40: 0 | AK40: 0 | AL40: 0 | AM40: 0 | AN40: =IFERROR(IF(LEFT($C40,1)="s",VLOOKUP(INT(RIGHT($C40,LEN($C40)-1)),INDIRECT($D40&"S"),AN$1,FALSE),VLOOKUP($C40,INDIRECT($D40),AN$1,FALSE)),"") -> 0 | AO40: 0 | AP40: 0 | AQ40: 0 | AR40: 0 | AS40: 0 | AT40: 0 | AU40: 0 | AV40: 0 | AW40: 0 | AX40: 0 | AY40: 0 | AZ40: 0 | BA40: 0 | BB40: 0 | BC40: 0 | BD40: 0 | BE40: 0 | BF40: 0 | BG40: 0 | BH40: 0 | BI40: 0 | BJ40: 0 | BK40: 0 | BL40: 0 | BM40: 0 | BN40: 0 | BO40: 0 | BP40: 0 | BQ40: 0 | BR40: 0 | BS40: 0 | BT40: 0 | BU40: 0 | BV40: 0 | BW40: 0 | BX40: 0 | BY40: 0 | BZ40: 0 | CA40: 0 | CB40: 0 | CC40: 0 | CD40: 0 | CE40: 0 | CF40: 0 | CG40: 0 | CH40: 0 | CI40: 0 | CJ40: 0 | CK40: 0 | CL40: 0 | CM40: 0 | CN40: 0 | CO40: 0 | CP40: 0 | CQ40: 0 | CR40: 0 | CS40: 0 | CT40: 0 | CU40: 0 | CV40: 0 | CW40: 0
A41: A2 | D41: =IF(B41="","Alternativ "&RIGHT(A41,LEN(A41)-1),IF(LEFT(B41,1)="N","Nytte"&RIGHT(A41,LEN(A41)-1),"Kostnad"&RIGHT(A41,LEN(A41)-1))) -> Alternativ 2 | AG41: =IFERROR(IF(LEFT($C41,1)="s",VLOOKUP(INT(RIGHT($C41,LEN($C41)-1)),INDIRECT($D41&"S"),AG$1,FALSE),VLOOKUP($C41,INDIRECT($D41),AG$1,FALSE)),"") -> 
A42: A2 | B42: N2 | C42: k404 | D42: =IF(B42="","Alternativ "&RIGHT(A42,LEN(A42)-1),IF(LEFT(B42,1)="N","Nytte"&RIGHT(A42,LEN(A42)-1),"Kostnad"&RIGHT(A42,LEN(A42)-1))) -> Nytte2 | F42: Nytte for virksomheten | H42: 0 | I42: 0 | J42: 0 | K42: 0 | L42: 0 | M42: 0 | N42: 0 | O42: 0 | P42: 0 | Q42: 0 | R42: 0 | S42: 0 | T42: 0 | U42: 0 | V42: 0 | W42: 0 | X42: 0 | Y42: 0 | Z42: 0 | AA42: 0 | AB42: 0 | AC42: 0 | AD42: 0 | AE42: 0 | AF42: 0 | AG42: 0 | AH42: 0 | AI42: 0 | AJ42: 0 | AK42: 0 | AL42: 0 | AM42: 0 | AN42: 0 | AO42: 0 | AP42: 0 | AQ42: 0 | AR42: 0 | AS42: 0 | AT42: 0 | AU42: 0 | AV42: 0 | AW42: 0 | AX42: 0 | AY42: 0 | AZ42: 0 | BA42: 0 | BB42: 0 | BC42: 0 | BD42: 0 | BE42: 0 | BF42: 0 | BG42: 0 | BH42: 0 | BI42: 0 | BJ42: 0 | BK42: 0 | BL42: 0 | BM42: 0 | BN42: 0 | BO42: 0 | BP42: 0 | BQ42: 0 | BR42: 0 | BS42: 0 | BT42: 0 | BU42: 0 | BV42: 0 | BW42: 0 | BX42: 0 | BY42: 0 | BZ42: 0 | CA42: 0 | CB42: 0 | CC42: 0 | CD42: 0 | CE42: 0 | CF42: 0 | CG42: 0 | CH42: =IFERROR(IF(LEFT($C42,1)="s",VLOOKUP(INT(RIGHT($C42,LEN($C42)-1)),INDIRECT($D42&"S"),CH$1,FALSE),VLOOKUP($C42,INDIRECT($D42),CH$1,FALSE)),"") -> 0 | CI42: 0 | CJ42: 0 | CK42: 0 | CL42: 0 | CM42: 0 | CN42: 0 | CO42: 0 | CP42: 0 | CQ42: 0 | CR42: 0 | CS42: 0 | CT42: 0 | CU42: 0 | CV42: 0 | CW42: 0
A43: A2 | B43: N2 | C43: k405 | D43: =IF(B43="","Alternativ "&RIGHT(A43,LEN(A43)-1),IF(LEFT(B43,1)="N","Nytte"&RIGHT(A43,LEN(A43)-1),"Kostnad"&RIGHT(A43,LEN(A43)-1))) -> Nytte2 | F43: Nytte for øvrig offentlig sektor | H43: 0 | I43: 0 | J43: 0 | K43: 0 | L43: 0 | M43: 0 | N43: 0 | O43: 0 | P43: 0 | Q43: 0 | R43: 0 | S43: 0 | T43: 0 | U43: 0 | V43: 0 | W43: 0 | X43: 0 | Y43: 0 | Z43: 0 | AA43: 0 | AB43: 0 | AC43: 0 | AD43: 0 | AE43: 0 | AF43: 0 | AG43: 0 | AH43: 0 | AI43: 0 | AJ43: 0 | AK43: 0 | AL43: 0 | AM43: 0 | AN43: 0 | AO43: 0 | AP43: 0 | AQ43: 0 | AR43: 0 | AS43: 0 | AT43: 0 | AU43: 0 | AV43: 0 | AW43: 0 | AX43: 0 | AY43: 0 | AZ43: 0 | BA43: 0 | BB43: 0 | BC43: 0 | BD43: 0 | BE43: 0 | BF43: 0 | BG43: 0 | BH43: 0 | BI43: 0 | BJ43: 0 | BK43: 0 | BL43: 0 | BM43: 0 | BN43: 0 | BO43: 0 | BP43: 0 | BQ43: 0 | BR43: 0 | BS43: 0 | BT43: 0 | BU43: 0 | BV43: 0 | BW43: 0 | BX43: 0 | BY43: 0 | BZ43: 0 | CA43: 0 | CB43: 0 | CC43: 0 | CD43: 0 | CE43: 0 | CF43: 0 | CG43: 0 | CH43: 0 | CI43: 0 | CJ43: 0 | CK43: 0 | CL43: 0 | CM43: 0 | CN43: 0 | CO43: 0 | CP43: 0 | CQ43: 0 | CR43: 0 | CS43: 0 | CT43: 0 | CU43: 0 | CV43: 0 | CW43: 0
A44: A2 | B44: N2 | C44: k406 | D44: =IF(B44="","Alternativ "&RIGHT(A44,LEN(A44)-1),IF(LEFT(B44,1)="N","Nytte"&RIGHT(A44,LEN(A44)-1),"Kostnad"&RIGHT(A44,LEN(A44)-1))) -> Nytte2 | F44: Nytte for privat næringsliv | H44: 0 | I44: 0 | J44: 0 | K44: 0 | L44: 0 | M44: 0 | N44: 0 | O44: 0 | P44: 0 | Q44: 0 | R44: 0 | S44: 0 | T44: 0 | U44: 0 | V44: 0 | W44: 0 | X44: 0 | Y44: 0 | Z44: 0 | AA44: 0 | AB44: 0 | AC44: 0 | AD44: 0 | AE44: 0 | AF44: 0 | AG44: 0 | AH44: 0 | AI44: 0 | AJ44: 0 | AK44: 0 | AL44: 0 | AM44: 0 | AN44: 0 | AO44: 0 | AP44: 0 | AQ44: 0 | AR44: 0 | AS44: 0 | AT44: 0 | AU44: 0 | AV44: 0 | AW44: 0 | AX44: 0 | AY44: 0 | AZ44: 0 | BA44: 0 | BB44: 0 | BC44: 0 | BD44: 0 | BE44: 0 | BF44: 0 | BG44: 0 | BH44: 0 | BI44: 0 | BJ44: 0 | BK44: 0 | BL44: 0 | BM44: 0 | BN44: 0 | BO44: 0 | BP44: 0 | BQ44: 0 | BR44: 0 | BS44: 0 | BT44: 0 | BU44: 0 | BV44: 0 | BW44: 0 | BX44: 0 | BY44: 0 | BZ44: 0 | CA44: 0 | CB44: 0 | CC44: 0 | CD44: 0 | CE44: 0 | CF44: 0 | CG44: 0 | CH44: 0 | CI44: 0 | CJ44: 0 | CK44: 0 | CL44: 0 | CM44: 0 | CN44: 0 | CO44: 0 | CP44: 0 | CQ44: 0 | CR44: 0 | CS44: 0 | CT44: 0 | CU44: 0 | CV44: 0 | CW44: 0
A45: A2 | B45: N2 | C45: k408 | D45: =IF(B45="","Alternativ "&RIGHT(A45,LEN(A45)-1),IF(LEFT(B45,1)="N","Nytte"&RIGHT(A45,LEN(A45)-1),"Kostnad"&RIGHT(A45,LEN(A45)-1))) -> Nytte2 | F45: Nytte for privatpersoner | H45: 0 | I45: 0 | J45: 0 | K45: 0 | L45: 0 | M45: 0 | N45: 0 | O45: 0 | P45: 0 | Q45: 0 | R45: 0 | S45: 0 | T45: 0 | U45: 0 | V45: 0 | W45: 0 | X45: 0 | Y45: 0 | Z45: 0 | AA45: 0 | AB45: 0 | AC45: 0 | AD45: 0 | AE45: 0 | AF45: 0 | AG45: 0 | AH45: 0 | AI45: 0 | AJ45: 0 | AK45: 0 | AL45: 0 | AM45: 0 | AN45: 0 | AO45: 0 | AP45: 0 | AQ45: 0 | AR45: 0 | AS45: 0 | AT45: 0 | AU45: 0 | AV45: 0 | AW45: 0 | AX45: 0 | AY45: 0 | AZ45: 0 | BA45: 0 | BB45: 0 | BC45: 0 | BD45: 0 | BE45: 0 | BF45: 0 | BG45: 0 | BH45: 0 | BI45: 0 | BJ45: 0 | BK45: 0 | BL45: 0 | BM45: 0 | BN45: 0 | BO45: 0 | BP45: 0 | BQ45: 0 | BR45: 0 | BS45: 0 | BT45: 0 | BU45: 0 | BV45: 0 | BW45: 0 | BX45: 0 | BY45: 0 | BZ45: 0 | CA45: 0 | CB45: 0 | CC45: 0 | CD45: 0 | CE45: 0 | CF45: 0 | CG45: 0 | CH45: 0 | CI45: 0 | CJ45: 0 | CK45: 0 | CL45: 0 | CM45: 0 | CN45: 0 | CO45: 0 | CP45: 0 | CQ45: 0 | CR45: 0 | CS45: 0 | CT45: 0 | CU45: 0 | CV45: 0 | CW45: 0
A46: A2 | B46: K2 | C46: k311 | D46: =IF(B46="","Alternativ "&RIGHT(A46,LEN(A46)-1),IF(LEFT(B46,1)="N","Nytte"&RIGHT(A46,LEN(A46)-1),"Kostnad"&RIGHT(A46,LEN(A46)-1))) -> Kostnad2 | F46: Kostnader for virksomheten | H46: 0 | I46: 0 | J46: 0 | K46: 0 | L46: 0 | M46: 0 | N46: 0 | O46: 0 | P46: 0 | Q46: 0 | R46: 0 | S46: 0 | T46: 0 | U46: 0 | V46: 0 | W46: 0 | X46: 0 | Y46: 0 | Z46: 0 | AA46: 0 | AB46: 0 | AC46: 0 | AD46: 0 | AE46: 0 | AF46: 0 | AG46: 0 | AH46: 0 | AI46: 0 | AJ46: 0 | AK46: 0 | AL46: 0 | AM46: 0 | AN46: 0 | AO46: 0 | AP46: 0 | AQ46: 0 | AR46: 0 | AS46: 0 | AT46: 0 | AU46: 0 | AV46: 0 | AW46: 0 | AX46: 0 | AY46: 0 | AZ46: 0 | BA46: 0 | BB46: 0 | BC46: =IFERROR(IF(LEFT($C46,1)="s",VLOOKUP(INT(RIGHT($C46,LEN($C46)-1)),INDIRECT($D46&"S"),BC$1,FALSE),VLOOKUP($C46,INDIRECT($D46),BC$1,FALSE)),"") -> 0 | BD46: 0 | BE46: 0 | BF46: 0 | BG46: 0 | BH46: 0 | BI46: 0 | BJ46: 0 | BK46: 0 | BL46: 0 | BM46: 0 | BN46: 0 | BO46: 0 | BP46: 0 | BQ46: 0 | BR46: 0 | BS46: 0 | BT46: 0 | BU46: 0 | BV46: 0 | BW46: 0 | BX46: 0 | BY46: 0 | BZ46: 0 | CA46: 0 | CB46: 0 | CC46: 0 | CD46: 0 | CE46: 0 | CF46: 0 | CG46: 0 | CH46: 0 | CI46: 0 | CJ46: 0 | CK46: 0 | CL46: 0 | CM46: 0 | CN46: 0 | CO46: 0 | CP46: 0 | CQ46: 0 | CR46: 0 | CS46: 0 | CT46: 0 | CU46: 0 | CV46: 0 | CW46: 0
A47: A2 | B47: K2 | C47: 15 | D47: =IF(B47="","Alternativ "&RIGHT(A47,LEN(A47)-1),IF(LEFT(B47,1)="N","Nytte"&RIGHT(A47,LEN(A47)-1),"Kostnad"&RIGHT(A47,LEN(A47)-1))) -> Kostnad2 | F47: Investering nettportal | H47: -2000000 | I47: -2000000 | J47: 0 | K47: 0 | L47: 0 | M47: 0 | N47: 0 | O47: 0 | P47: 0 | Q47: 0 | R47: 0 | S47: 0 | T47: 0 | U47: 0 | V47: 0 | W47: 0 | X47: 0 | Y47: 0 | Z47: 0 | AA47: 0 | AB47: 0 | AC47: 0 | AD47: 0 | AE47: 0 | AF47: 0 | AG47: 0 | AH47: 0 | AI47: 0 | AJ47: 0 | AK47: 0 | AL47: 0 | AM47: 0 | AN47: 0 | AO47: 0 | AP47: 0 | AQ47: 0 | AR47: 0 | AS47: 0 | AT47: 0 | AU47: 0 | AV47: 0 | AW47: =IFERROR(IF(LEFT($C47,1)="s",VLOOKUP(INT(RIGHT($C47,LEN($C47)-1)),INDIRECT($D47&"S"),AW$1,FALSE),VLOOKUP($C47,INDIRECT($D47),AW$1,FALSE)),"") -> 0 | AX47: 0 | AY47: 0 | AZ47: 0 | BA47: 0 | BB47: 0 | BC47: 0 | BD47: 0 | BE47: 0 | BF47: 0 | BG47: 0 | BH47: 0 | BI47: 0 | BJ47: 0 | BK47: 0 | BL47: 0 | BM47: 0 | BN47: 0 | BO47: 0 | BP47: 0 | BQ47: 0 | BR47: 0 | BS47: 0 | BT47: 0 | BU47: 0 | BV47: 0 | BW47: 0 | BX47: 0 | BY47: 0 | BZ47: 0 | CA47: 0 | CB47: 0 | CC47: 0 | CD47: 0 | CE47: 0 | CF47: 0 | CG47: 0 | CH47: 0 | CI47: 0 | CJ47: 0 | CK47: 0 | CL47: 0 | CM47: 0 | CN47: 0 | CO47: 0 | CP47: 0 | CQ47: 0 | CR47: 0 | CS47: 0 | CT47: 0 | CU47: 0 | CV47: 0 | CW47: 0
A48: A2 | B48: K2 | C48: s15 | D48: =IF(B48="","Alternativ "&RIGHT(A48,LEN(A48)-1),IF(LEFT(B48,1)="N","Nytte"&RIGHT(A48,LEN(A48)-1),"Kostnad"&RIGHT(A48,LEN(A48)-1))) -> Kostnad2 | F48: Investering nettportal | H48: 0 | I48: 0 | J48: 0 | K48: 0 | L48: 0 | M48: 0 | N48: 0 | O48: 0 | P48: 0 | Q48: 0 | R48: 0 | S48: 0 | T48: 0 | U48: 0 | V48: 0 | W48: 0 | X48: 0 | Y48: 0 | Z48: 0 | AA48: 0 | AB48: 0 | AC48: 0 | AD48: 0 | AE48: 0 | AF48: 0 | AG48: 0 | AH48: 0 | AI48: 0 | AJ48: 0 | AK48: 0 | AL48: 0 | AM48: 0 | AN48: 0 | AO48: 0 | AP48: 0 | AQ48: 0 | AR48: 0 | AS48: 0 | AT48: 0 | AU48: 0 | AV48: 0 | AW48: 0 | AX48: 0 | AY48: 0 | AZ48: 0 | BA48: 0 | BB48: 0 | BC48: 0 | BD48: 0 | BE48: 0 | BF48: 0 | BG48: 0 | BH48: 0 | BI48: 0 | BJ48: 0 | BK48: 0 | BL48: 0 | BM48: 0 | BN48: 0 | BO48: 0 | BP48: 0 | BQ48: 0 | BR48: 0 | BS48: 0 | BT48: 0 | BU48: 0 | BV48: 0 | BW48: 0 | BX48: 0 | BY48: 0 | BZ48: 0 | CA48: 0 | CB48: 0 | CC48: 0 | CD48: 0 | CE48: 0 | CF48: 0 | CG48: 0 | CH48: 0 | CI48: 0 | CJ48: 0 | CK48: 0 | CL48: 0 | CM48: 0 | CN48: 0 | CO48: 0 | CP48: 0 | CQ48: 0 | CR48: 0 | CS48: 0 | CT48: 0 | CU48: 0 | CV48: 0 | CW48: 0
A49: A2 | B49: K2 | C49: 16 | D49: =IF(B49="","Alternativ "&RIGHT(A49,LEN(A49)-1),IF(LEFT(B49,1)="N","Nytte"&RIGHT(A49,LEN(A49)-1),"Kostnad"&RIGHT(A49,LEN(A49)-1))) -> Kostnad2 | F49: Årlig driftskostnad | H49: -2312624.586 | I49: -200000 | J49: -200000 | K49: -200000 | L49: -200000 | M49: -200000 | N49: -200000 | O49: -200000 | P49: -200000 | Q49: -200000 | R49: -200000 | S49: -200000 | T49: -200000 | U49: -200000 | V49: -200000 | W49: -200000 | X49: 0 | Y49: 0 | Z49: 0 | AA49: 0 | AB49: 0 | AC49: 0 | AD49: 0 | AE49: 0 | AF49: 0 | AG49: 0 | AH49: 0 | AI49: 0 | AJ49: 0 | AK49: 0 | AL49: 0 | AM49: 0 | AN49: 0 | AO49: 0 | AP49: 0 | AQ49: 0 | AR49: 0 | AS49: 0 | AT49: 0 | AU49: 0 | AV49: 0 | AW49: 0 | AX49: 0 | AY49: 0 | AZ49: 0 | BA49: 0 | BB49: 0 | BC49: 0 | BD49: 0 | BE49: 0 | BF49: 0 | BG49: 0 | BH49: 0 | BI49: 0 | BJ49: 0 | BK49: 0 | BL49: 0 | BM49: 0 | BN49: 0 | BO49: 0 | BP49: 0 | BQ49: 0 | BR49: 0 | BS49: 0 | BT49: 0 | BU49: 0 | BV49: 0 | BW49: 0 | BX49: 0 | BY49: 0 | BZ49: 0 | CA49: 0 | CB49: 0 | CC49: 0 | CD49: 0 | CE49: 0 | CF49: 0 | CG49: 0 | CH49: 0 | CI49: 0 | CJ49: 0 | CK49: 0 | CL49: 0 | CM49: 0 | CN49: 0 | CO49: 0 | CP49: 0 | CQ49: 0 | CR49: 0 | CS49: 0 | CT49: 0 | CU49: 0 | CV49: 0 | CW49: 0
A50: A2 | B50: K2 | C50: s16 | D50: =IF(B50="","Alternativ "&RIGHT(A50,LEN(A50)-1),IF(LEFT(B50,1)="N","Nytte"&RIGHT(A50,LEN(A50)-1),"Kostnad"&RIGHT(A50,LEN(A50)-1))) -> Kostnad2 | F50: Årlig driftskostnad | H50: 0 | I50: 0 | J50: 0 | K50: 0 | L50: 0 | M50: 0 | N50: 0 | O50: 0 | P50: 0 | Q50: 0 | R50: 0 | S50: 0 | T50: 0 | U50: 0 | V50: 0 | W50: 0 | X50: 0 | Y50: 0 | Z50: 0 | AA50: 0 | AB50: 0 | AC50: 0 | AD50: 0 | AE50: 0 | AF50: 0 | AG50: 0 | AH50: 0 | AI50: 0 | AJ50: 0 | AK50: 0 | AL50: 0 | AM50: 0 | AN50: 0 | AO50: 0 | AP50: 0 | AQ50: 0 | AR50: 0 | AS50: 0 | AT50: 0 | AU50: 0 | AV50: 0 | AW50: 0 | AX50: 0 | AY50: 0 | AZ50: 0 | BA50: 0 | BB50: 0 | BC50: 0 | BD50: 0 | BE50: 0 | BF50: 0 | BG50: 0 | BH50: 0 | BI50: 0 | BJ50: 0 | BK50: 0 | BL50: 0 | BM50: 0 | BN50: 0 | BO50: 0 | BP50: 0 | BQ50: 0 | BR50: 0 | BS50: 0 | BT50: 0 | BU50: 0 | BV50: 0 | BW50: 0 | BX50: 0 | BY50: 0 | BZ50: 0 | CA50: 0 | CB50: 0 | CC50: 0 | CD50: 0 | CE50: 0 | CF50: 0 | CG50: 0 | CH50: 0 | CI50: 0 | CJ50: 0 | CK50: 0 | CL50: 0 | CM50: 0 | CN50: 0 | CO50: 0 | CP50: 0 | CQ50: 0 | CR50: 0 | CS50: 0 | CT50: 0 | CU50: 0 | CV50: 0 | CW50: 0
A51: A2 | B51: K2 | C51: 17 | D51: =IF(B51="","Alternativ "&RIGHT(A51,LEN(A51)-1),IF(LEFT(B51,1)="N","Nytte"&RIGHT(A51,LEN(A51)-1),"Kostnad"&RIGHT(A51,LEN(A51)-1))) -> Kostnad2 | F51: Årlig markedsføringskostnad | H51: -3468936.879 | I51: -300000 | J51: -300000 | K51: -300000 | L51: -300000 | M51: -300000 | N51: -300000 | O51: -300000 | P51: -300000 | Q51: -300000 | R51: -300000 | S51: -300000 | T51: -300000 | U51: -300000 | V51: -300000 | W51: -300000 | X51: 0 | Y51: 0 | Z51: 0 | AA51: 0 | AB51: 0 | AC51: 0 | AD51: 0 | AE51: 0 | AF51: 0 | AG51: 0 | AH51: 0 | AI51: 0 | AJ51: 0 | AK51: 0 | AL51: 0 | AM51: 0 | AN51: 0 | AO51: 0 | AP51: 0 | AQ51: 0 | AR51: 0 | AS51: 0 | AT51: 0 | AU51: 0 | AV51: 0 | AW51: 0 | AX51: 0 | AY51: 0 | AZ51: 0 | BA51: 0 | BB51: 0 | BC51: 0 | BD51: 0 | BE51: 0 | BF51: 0 | BG51: 0 | BH51: 0 | BI51: 0 | BJ51: 0 | BK51: 0 | BL51: 0 | BM51: 0 | BN51: 0 | BO51: 0 | BP51: 0 | BQ51: 0 | BR51: 0 | BS51: 0 | BT51: 0 | BU51: 0 | BV51: 0 | BW51: 0 | BX51: 0 | BY51: 0 | BZ51: 0 | CA51: 0 | CB51: 0 | CC51: 0 | CD51: 0 | CE51: 0 | CF51: 0 | CG51: 0 | CH51: 0 | CI51: 0 | CJ51: 0 | CK51: 0 | CL51: 0 | CM51: 0 | CN51: 0 | CO51: 0 | CP51: 0 | CQ51: 0 | CR51: 0 | CS51: 0 | CT51: 0 | CU51: 0 | CV51: 0 | CW51: 0
A52: A2 | B52: K2 | C52: s17 | D52: =IF(B52="","Alternativ "&RIGHT(A52,LEN(A52)-1),IF(LEFT(B52,1)="N","Nytte"&RIGHT(A52,LEN(A52)-1),"Kostnad"&RIGHT(A52,LEN(A52)-1))) -> Kostnad2 | F52: Årlig markedsføringskostnad | H52: 0 | I52: 0 | J52: 0 | K52: 0 | L52: 0 | M52: 0 | N52: 0 | O52: 0 | P52: 0 | Q52: 0 | R52: 0 | S52: 0 | T52: 0 | U52: 0 | V52: 0 | W52: 0 | X52: 0 | Y52: 0 | Z52: 0 | AA52: =IFERROR(IF(LEFT($C52,1)="s",VLOOKUP(INT(RIGHT($C52,LEN($C52)-1)),INDIRECT($D52&"S"),AA$1,FALSE),VLOOKUP($C52,INDIRECT($D52),AA$1,FALSE)),"") -> 0 | AB52: 0 | AC52: 0 | AD52: 0 | AE52: 0 | AF52: 0 | AG52: 0 | AH52: 0 | AI52: 0 | AJ52: 0 | AK52: 0 | AL52: 0 | AM52: 0 | AN52: 0 | AO52: 0 | AP52: 0 | AQ52: 0 | AR52: 0 | AS52: 0 | AT52: 0 | AU52: 0 | AV52: 0 | AW52: 0 | AX52: 0 | AY52: 0 | AZ52: 0 | BA52: 0 | BB52: 0 | BC52: 0 | BD52: 0 | BE52: 0 | BF52: 0 | BG52: 0 | BH52: 0 | BI52: 0 | BJ52: 0 | BK52: 0 | BL52: 0 | BM52: 0 | BN52: 0 | BO52: 0 | BP52: 0 | BQ52: 0 | BR52: 0 | BS52: 0 | BT52: 0 | BU52: 0 | BV52: 0 | BW52: 0 | BX52: 0 | BY52: 0 | BZ52: 0 | CA52: 0 | CB52: 0 | CC52: 0 | CD52: 0 | CE52: 0 | CF52: 0 | CG52: 0 | CH52: 0 | CI52: 0 | CJ52: 0 | CK52: 0 | CL52: 0 | CM52: 0 | CN52: 0 | CO52: 0 | CP52: 0 | CQ52: 0 | CR52: 0 | CS52: 0 | CT52: 0 | CU52: 0 | CV52: 0 | CW52: 0
A53: A2 | B53: K2 | C53: 18 | D53: =IF(B53="","Alternativ "&RIGHT(A53,LEN(A53)-1),IF(LEFT(B53,1)="N","Nytte"&RIGHT(A53,LEN(A53)-1),"Kostnad"&RIGHT(A53,LEN(A53)-1))) -> Kostnad2 | F53: Personellkostnad til nettportalen | H53: -4451802.328 | I53: -385000 | J53: -385000 | K53: -385000 | L53: -385000 | M53: -385000 | N53: -385000 | O53: -385000 | P53: -385000 | Q53: -385000 | R53: -385000 | S53: -385000 | T53: -385000 | U53: -385000 | V53: -385000 | W53: -385000 | X53: =IFERROR(IF(LEFT($C53,1)="s",VLOOKUP(INT(RIGHT($C53,LEN($C53)-1)),INDIRECT($D53&"S"),X$1,FALSE),VLOOKUP($C53,INDIRECT($D53),X$1,FALSE)),"") -> 0 | Y53: 0 | Z53: 0 | AA53: 0 | AB53: 0 | AC53: 0 | AD53: 0 | AE53: 0 | AF53: 0 | AG53: 0 | AH53: 0 | AI53: 0 | AJ53: 0 | AK53: 0 | AL53: 0 | AM53: 0 | AN53: 0 | AO53: 0 | AP53: 0 | AQ53: 0 | AR53: 0 | AS53: 0 | AT53: 0 | AU53: 0 | AV53: 0 | AW53: 0 | AX53: 0 | AY53: 0 | AZ53: 0 | BA53: 0 | BB53: 0 | BC53: 0 | BD53: 0 | BE53: 0 | BF53: 0 | BG53: 0 | BH53: =IFERROR(IF(LEFT($C53,1)="s",VLOOKUP(INT(RIGHT($C53,LEN($C53)-1)),INDIRECT($D53&"S"),BH$1,FALSE),VLOOKUP($C53,INDIRECT($D53),BH$1,FALSE)),"") -> 0 | BI53: 0 | BJ53: 0 | BK53: 0 | BL53: 0 | BM53: 0 | BN53: 0 | BO53: 0 | BP53: 0 | BQ53: 0 | BR53: 0 | BS53: 0 | BT53: 0 | BU53: 0 | BV53: 0 | BW53: 0 | BX53: 0 | BY53: 0 | BZ53: 0 | CA53: 0 | CB53: 0 | CC53: 0 | CD53: 0 | CE53: 0 | CF53: 0 | CG53: 0 | CH53: 0 | CI53: 0 | CJ53: 0 | CK53: 0 | CL53: 0 | CM53: 0 | CN53: 0 | CO53: 0 | CP53: 0 | CQ53: 0 | CR53: 0 | CS53: 0 | CT53: 0 | CU53: 0 | CV53: 0 | CW53: 0
A54: A2 | B54: K2 | C54: s18 | D54: =IF(B54="","Alternativ "&RIGHT(A54,LEN(A54)-1),IF(LEFT(B54,1)="N","Nytte"&RIGHT(A54,LEN(A54)-1),"Kostnad"&RIGHT(A54,LEN(A54)-1))) -> Kostnad2 | F54: Personellkostnad til nettportalen | H54: 0 | I54: 0 | J54: 0 | K54: 0 | L54: 0 | M54: 0 | N54: 0 | O54: 0 | P54: 0 | Q54: 0 | R54: 0 | S54: 0 | T54: 0 | U54: 0 | V54: 0 | W54: 0 | X54: 0 | Y54: 0 | Z54: 0 | AA54: 0 | AB54: 0 | AC54: 0 | AD54: 0 | AE54: 0 | AF54: 0 | AG54: 0 | AH54: 0 | AI54: 0 | AJ54: 0 | AK54: 0 | AL54: 0 | AM54: 0 | AN54: 0 | AO54: 0 | AP54: 0 | AQ54: 0 | AR54: 0 | AS54: 0 | AT54: 0 | AU54: 0 | AV54: 0 | AW54: 0 | AX54: 0 | AY54: 0 | AZ54: 0 | BA54: 0 | BB54: 0 | BC54: 0 | BD54: 0 | BE54: 0 | BF54: 0 | BG54: 0 | BH54: 0 | BI54: 0 | BJ54: 0 | BK54: 0 | BL54: 0 | BM54: 0 | BN54: 0 | BO54: 0 | BP54: 0 | BQ54: 0 | BR54: 0 | BS54: 0 | BT54: 0 | BU54: 0 | BV54: 0 | BW54: 0 | BX54: 0 | BY54: 0 | BZ54: 0 | CA54: 0 | CB54: 0 | CC54: 0 | CD54: 0 | CE54: 0 | CF54: 0 | CG54: 0 | CH54: 0 | CI54: 0 | CJ54: 0 | CK54: 0 | CL54: 0 | CM54: 0 | CN54: 0 | CO54: 0 | CP54: 0 | CQ54: 0 | CR54: 0 | CS54: 0 | CT54: 0 | CU54: 0 | CV54: 0 | CW54: 0
A55: A2 | B55: K2 | C55: 27 | D55: =IF(B55="","Alternativ "&RIGHT(A55,LEN(A55)-1),IF(LEFT(B55,1)="N","Nytte"&RIGHT(A55,LEN(A55)-1),"Kostnad"&RIGHT(A55,LEN(A55)-1))) -> Kostnad2 | F55: Kartlegging utført av kommuneansatte | H55: -17807209.31 | I55: -1540000 | J55: -1540000 | K55: -1540000 | L55: -1540000 | M55: -1540000 | N55: -1540000 | O55: -1540000 | P55: -1540000 | Q55: -1540000 | R55: -1540000 | S55: -1540000 | T55: -1540000 | U55: -1540000 | V55: -1540000 | W55: -1540000 | X55: 0 | Y55: 0 | Z55: 0 | AA55: 0 | AB55: 0 | AC55: 0 | AD55: 0 | AE55: 0 | AF55: 0 | AG55: 0 | AH55: 0 | AI55: 0 | AJ55: 0 | AK55: 0 | AL55: 0 | AM55: 0 | AN55: 0 | AO55: 0 | AP55: 0 | AQ55: 0 | AR55: 0 | AS55: 0 | AT55: 0 | AU55: 0 | AV55: 0 | AW55: 0 | AX55: 0 | AY55: 0 | AZ55: 0 | BA55: 0 | BB55: 0 | BC55: 0 | BD55: 0 | BE55: 0 | BF55: 0 | BG55: 0 | BH55: 0 | BI55: 0 | BJ55: 0 | BK55: 0 | BL55: 0 | BM55: 0 | BN55: 0 | BO55: 0 | BP55: 0 | BQ55: 0 | BR55: 0 | BS55: 0 | BT55: 0 | BU55: 0 | BV55: 0 | BW55: 0 | BX55: 0 | BY55: 0 | BZ55: 0 | CA55: 0 | CB55: 0 | CC55: 0 | CD55: 0 | CE55: 0 | CF55: 0 | CG55: 0 | CH55: 0 | CI55: 0 | CJ55: 0 | CK55: 0 | CL55: 0 | CM55: 0 | CN55: 0 | CO55: 0 | CP55: 0 | CQ55: 0 | CR55: 0 | CS55: 0 | CT55: 0 | CU55: 0 | CV55: 0 | CW55: 0
A56: A2 | B56: K2 | C56: s27 | D56: =IF(B56="","Alternativ "&RIGHT(A56,LEN(A56)-1),IF(LEFT(B56,1)="N","Nytte"&RIGHT(A56,LEN(A56)-1),"Kostnad"&RIGHT(A56,LEN(A56)-1))) -> Kostnad2 | F56: Kartlegging utført av kommuneansatte | H56: 0 | I56: 0 | J56: 0 | K56: 0 | L56: 0 | M56: 0 | N56: 0 | O56: 0 | P56: 0 | Q56: 0 | R56: 0 | S56: 0 | T56: 0 | U56: 0 | V56: 0 | W56: 0 | X56: 0 | Y56: 0 | Z56: 0 | AA56: 0 | AB56: 0 | AC56: 0 | AD56: 0 | AE56: 0 | AF56: 0 | AG56: 0 | AH56: 0 | AI56: 0 | AJ56: 0 | AK56: 0 | AL56: 0 | AM56: 0 | AN56: 0 | AO56: 0 | AP56: 0 | AQ56: 0 | AR56: 0 | AS56: 0 | AT56: 0 | AU56: 0 | AV56: 0 | AW56: 0 | AX56: 0 | AY56: 0 | AZ56: 0 | BA56: 0 | BB56: 0 | BC56: 0 | BD56: 0 | BE56: 0 | BF56: 0 | BG56: 0 | BH56: 0 | BI56: 0 | BJ56: 0 | BK56: 0 | BL56: 0 | BM56: 0 | BN56: 0 | BO56: 0 | BP56: 0 | BQ56: 0 | BR56: 0 | BS56: 0 | BT56: 0 | BU56: 0 | BV56: 0 | BW56: 0 | BX56: 0 | BY56: 0 | BZ56: 0 | CA56: 0 | CB56: 0 | CC56: 0 | CD56: 0 | CE56: 0 | CF56: 0 | CG56: 0 | CH56: 0 | CI56: 0 | CJ56: 0 | CK56: 0 | CL56: 0 | CM56: 0 | CN56: 0 | CO56: 0 | CP56: 0 | CQ56: 0 | CR56: 0 | CS56: 0 | CT56: 0 | CU56: 0 | CV56: 0 | CW56: 0
A57: A2 | B57: K2 | C57: 28 | D57: =IF(B57="","Alternativ "&RIGHT(A57,LEN(A57)-1),IF(LEFT(B57,1)="N","Nytte"&RIGHT(A57,LEN(A57)-1),"Kostnad"&RIGHT(A57,LEN(A57)-1))) -> Kostnad2 | F57: Årlig oppryddingsarbeid | H57: -62325232.59 | I57: -5390000 | J57: -5390000 | K57: -5390000 | L57: -5390000 | M57: -5390000 | N57: -5390000 | O57: -5390000 | P57: -5390000 | Q57: -5390000 | R57: -5390000 | S57: -5390000 | T57: -5390000 | U57: -5390000 | V57: -5390000 | W57: -5390000 | X57: 0 | Y57: 0 | Z57: 0 | AA57: 0 | AB57: 0 | AC57: 0 | AD57: 0 | AE57: 0 | AF57: 0 | AG57: 0 | AH57: 0 | AI57: 0 | AJ57: 0 | AK57: 0 | AL57: =IFERROR(IF(LEFT($C57,1)="s",VLOOKUP(INT(RIGHT($C57,LEN($C57)-1)),INDIRECT($D57&"S"),AL$1,FALSE),VLOOKUP($C57,INDIRECT($D57),AL$1,FALSE)),"") -> 0 | AM57: 0 | AN57: 0 | AO57: 0 | AP57: 0 | AQ57: 0 | AR57: 0 | AS57: 0 | AT57: 0 | AU57: 0 | AV57: 0 | AW57: 0 | AX57: 0 | AY57: 0 | AZ57: 0 | BA57: 0 | BB57: 0 | BC57: 0 | BD57: 0 | BE57: 0 | BF57: 0 | BG57: 0 | BH57: 0 | BI57: 0 | BJ57: 0 | BK57: 0 | BL57: 0 | BM57: 0 | BN57: 0 | BO57: 0 | BP57: 0 | BQ57: 0 | BR57: 0 | BS57: 0 | BT57: 0 | BU57: 0 | BV57: 0 | BW57: 0 | BX57: 0 | BY57: 0 | BZ57: 0 | CA57: 0 | CB57: 0 | CC57: 0 | CD57: 0 | CE57: 0 | CF57: 0 | CG57: 0 | CH57: 0 | CI57: 0 | CJ57: 0 | CK57: 0 | CL57: 0 | CM57: 0 | CN57: 0 | CO57: 0 | CP57: 0 | CQ57: 0 | CR57: 0 | CS57: 0 | CT57: 0 | CU57: 0 | CV57: 0 | CW57: 0
A58: A2 | B58: K2 | C58: s28 | D58: =IF(B58="","Alternativ "&RIGHT(A58,LEN(A58)-1),IF(LEFT(B58,1)="N","Nytte"&RIGHT(A58,LEN(A58)-1),"Kostnad"&RIGHT(A58,LEN(A58)-1))) -> Kostnad2 | F58: Årlig oppryddingsarbeid | H58: 0 | I58: 0 | J58: 0 | K58: 0 | L58: 0 | M58: 0 | N58: 0 | O58: 0 | P58: 0 | Q58: 0 | R58: 0 | S58: 0 | T58: 0 | U58: 0 | V58: 0 | W58: 0 | X58: 0 | Y58: 0 | Z58: 0 | AA58: 0 | AB58: 0 | AC58: 0 | AD58: 0 | AE58: 0 | AF58: 0 | AG58: 0 | AH58: 0 | AI58: 0 | AJ58: 0 | AK58: 0 | AL58: 0 | AM58: 0 | AN58: 0 | AO58: 0 | AP58: 0 | AQ58: 0 | AR58: 0 | AS58: 0 | AT58: 0 | AU58: 0 | AV58: 0 | AW58: 0 | AX58: 0 | AY58: 0 | AZ58: 0 | BA58: 0 | BB58: 0 | BC58: 0 | BD58: 0 | BE58: 0 | BF58: 0 | BG58: 0 | BH58: 0 | BI58: 0 | BJ58: 0 | BK58: 0 | BL58: 0 | BM58: 0 | BN58: 0 | BO58: 0 | BP58: 0 | BQ58: 0 | BR58: 0 | BS58: 0 | BT58: 0 | BU58: 0 | BV58: 0 | BW58: 0 | BX58: 0 | BY58: 0 | BZ58: 0 | CA58: 0 | CB58: 0 | CC58: 0 | CD58: 0 | CE58: 0 | CF58: 0 | CG58: 0 | CH58: 0 | CI58: 0 | CJ58: 0 | CK58: 0 | CL58: 0 | CM58: 0 | CN58: 0 | CO58: 0 | CP58: 0 | CQ58: 0 | CR58: 0 | CS58: 0 | CT58: 0 | CU58: 0 | CV58: 0 | CW58: 0
A59: A2 | B59: K2 | C59: k312 | D59: =IF(B59="","Alternativ "&RIGHT(A59,LEN(A59)-1),IF(LEFT(B59,1)="N","Nytte"&RIGHT(A59,LEN(A59)-1),"Kostnad"&RIGHT(A59,LEN(A59)-1))) -> Kostnad2 | F59: Kostnader for øvrig offentlig sektor | H59: 0 | I59: 0 | J59: 0 | K59: 0 | L59: 0 | M59: 0 | N59: 0 | O59: 0 | P59: 0 | Q59: 0 | R59: 0 | S59: 0 | T59: 0 | U59: 0 | V59: 0 | W59: 0 | X59: 0 | Y59: 0 | Z59: 0 | AA59: 0 | AB59: 0 | AC59: 0 | AD59: 0 | AE59: 0 | AF59: 0 | AG59: 0 | AH59: 0 | AI59: 0 | AJ59: 0 | AK59: 0 | AL59: 0 | AM59: 0 | AN59: 0 | AO59: 0 | AP59: 0 | AQ59: 0 | AR59: 0 | AS59: 0 | AT59: 0 | AU59: 0 | AV59: 0 | AW59: =IFERROR(IF(LEFT($C59,1)="s",VLOOKUP(INT(RIGHT($C59,LEN($C59)-1)),INDIRECT($D59&"S"),AW$1,FALSE),VLOOKUP($C59,INDIRECT($D59),AW$1,FALSE)),"") -> 0 | AX59: 0 | AY59: 0 | AZ59: 0 | BA59: 0 | BB59: 0 | BC59: 0 | BD59: 0 | BE59: 0 | BF59: 0 | BG59: 0 | BH59: 0 | BI59: 0 | BJ59: 0 | BK59: 0 | BL59: 0 | BM59: 0 | BN59: 0 | BO59: 0 | BP59: 0 | BQ59: 0 | BR59: 0 | BS59: 0 | BT59: 0 | BU59: 0 | BV59: 0 | BW59: 0 | BX59: 0 | BY59: 0 | BZ59: 0 | CA59: 0 | CB59: 0 | CC59: 0 | CD59: 0 | CE59: 0 | CF59: 0 | CG59: 0 | CH59: 0 | CI59: 0 | CJ59: 0 | CK59: 0 | CL59: 0 | CM59: 0 | CN59: 0 | CO59: 0 | CP59: 0 | CQ59: 0 | CR59: 0 | CS59: 0 | CT59: 0 | CU59: 0 | CV59: 0 | CW59: 0
A60: A2 | B60: K2 | C60: k313 | D60: =IF(B60="","Alternativ "&RIGHT(A60,LEN(A60)-1),IF(LEFT(B60,1)="N","Nytte"&RIGHT(A60,LEN(A60)-1),"Kostnad"&RIGHT(A60,LEN(A60)-1))) -> Kostnad2 | F60: Kostnader for privat næringsliv | H60: 0 | I60: 0 | J60: 0 | K60: 0 | L60: 0 | M60: 0 | N60: 0 | O60: 0 | P60: 0 | Q60: 0 | R60: 0 | S60: 0 | T60: 0 | U60: 0 | V60: 0 | W60: 0 | X60: 0 | Y60: 0 | Z60: 0 | AA60: 0 | AB60: 0 | AC60: 0 | AD60: 0 | AE60: 0 | AF60: 0 | AG60: 0 | AH60: 0 | AI60: 0 | AJ60: 0 | AK60: 0 | AL60: 0 | AM60: 0 | AN60: 0 | AO60: 0 | AP60: 0 | AQ60: 0 | AR60: 0 | AS60: 0 | AT60: 0 | AU60: 0 | AV60: 0 | AW60: 0 | AX60: 0 | AY60: 0 | AZ60: 0 | BA60: 0 | BB60: 0 | BC60: 0 | BD60: 0 | BE60: 0 | BF60: 0 | BG60: 0 | BH60: 0 | BI60: 0 | BJ60: 0 | BK60: 0 | BL60: 0 | BM60: 0 | BN60: 0 | BO60: 0 | BP60: 0 | BQ60: 0 | BR60: 0 | BS60: 0 | BT60: 0 | BU60: 0 | BV60: 0 | BW60: 0 | BX60: 0 | BY60: 0 | BZ60: 0 | CA60: 0 | CB60: 0 | CC60: 0 | CD60: 0 | CE60: 0 | CF60: 0 | CG60: 0 | CH60: 0 | CI60: 0 | CJ60: 0 | CK60: 0 | CL60: 0 | CM60: 0 | CN60: 0 | CO60: 0 | CP60: 0 | CQ60: 0 | CR60: 0 | CS60: 0 | CT60: 0 | CU60: 0 | CV60: 0 | CW60: 0
A61: A2 | B61: K2 | C61: k434 | D61: =IF(B61="","Alternativ "&RIGHT(A61,LEN(A61)-1),IF(LEFT(B61,1)="N","Nytte"&RIGHT(A61,LEN(A61)-1),"Kostnad"&RIGHT(A61,LEN(A61)-1))) -> Kostnad2 | F61: Kostnader for privatpersoner | H61: 0 | I61: 0 | J61: 0 | K61: 0 | L61: 0 | M61: 0 | N61: 0 | O61: 0 | P61: 0 | Q61: 0 | R61: 0 | S61: 0 | T61: 0 | U61: 0 | V61: 0 | W61: 0 | X61: 0 | Y61: 0 | Z61: 0 | AA61: 0 | AB61: 0 | AC61: 0 | AD61: 0 | AE61: 0 | AF61: 0 | AG61: 0 | AH61: 0 | AI61: 0 | AJ61: 0 | AK61: 0 | AL61: 0 | AM61: 0 | AN61: 0 | AO61: 0 | AP61: 0 | AQ61: 0 | AR61: 0 | AS61: 0 | AT61: 0 | AU61: 0 | AV61: 0 | AW61: 0 | AX61: 0 | AY61: 0 | AZ61: 0 | BA61: 0 | BB61: 0 | BC61: 0 | BD61: 0 | BE61: 0 | BF61: 0 | BG61: 0 | BH61: 0 | BI61: 0 | BJ61: 0 | BK61: 0 | BL61: 0 | BM61: 0 | BN61: 0 | BO61: 0 | BP61: 0 | BQ61: 0 | BR61: 0 | BS61: 0 | BT61: 0 | BU61: 0 | BV61: 0 | BW61: 0 | BX61: 0 | BY61: 0 | BZ61: 0 | CA61: 0 | CB61: 0 | CC61: 0 | CD61: 0 | CE61: 0 | CF61: 0 | CG61: 0 | CH61: 0 | CI61: 0 | CJ61: 0 | CK61: 0 | CL61: 0 | CM61: 0 | CN61: 0 | CO61: 0 | CP61: 0 | CQ61: 0 | CR61: 0 | CS61: 0 | CT61: 0 | CU61: 0 | CV61: 0 | CW61: 0

Sheet Tellere (hidden)
A1: Nummer på siste alternativ (nAlt) | B1: 2 | F1: Analyseperiode-validering
A2: Antall alternativer | B2: 3 | F2: 1
F3: 2
A4: VirkningID | B4: 28 | F4: 3
F5: 4
F6: 5
F7: 6
F8: 7
F9: 8
F10: 9
F11: 10
F12: 11
F13: 12
F14: 13
F15: 14
F16: 15
F17: 16
F18: 17
F19: 18
F20: 19
F21: 20
F22: 21
F23: 22
F24: 23
F25: 24
F26: 25
F27: 26
F28: 27
F29: 28
F30: 29
F31: 30
F32: 31
F33: 32
F34: 33
F35: 34
F36: 35
F37: 36
F38: 37
F39: 38
F40: 39
F41: 40

Sheet Kostnad alternativ -1 (hidden)
A1: Kostnad alternativ -1 | B1: Alternativnavn: | C1: =VLOOKUP(RIGHT(A1,12),Alternativområde,2,FALSE) -> 
J4: 0 | K4: 1 | L4: 2 | M4: 3 | N4: 4 | O4: 5 | P4: 6 | Q4: 7 | R4: 8 | S4: 9 | T4: 10 | U4: 11 | V4: 12 | W4: 13 | X4: 14 | Y4: 15 | Z4: 16 | AA4: 17 | AB4: 18 | AC4: 19 | AD4: 20 | AE4: 21 | AF4: 22 | AG4: 23 | AH4: 24 | AI4: 25 | AJ4: 26 | AK4: 27 | AL4: 28 | AM4: 29 | AN4: 30 | AO4: 31 | AP4: 32 | AQ4: 33 | AR4: 34 | AS4: 35 | AT4: 36 | AU4: 37 | AV4: 38 | AW4: 39 | AX4: 40 | AY4: 41 | AZ4: 42 | BA4: 43 | BB4: 44 | BC4: 45 | BD4: 46 | BE4: 47 | BF4: 48 | BG4: 49 | BH4: 50 | BI4: 51 | BJ4: 52 | BK4: 53 | BL4: 54 | BM4: 55 | BN4: 56 | BO4: 57 | BP4: 58 | BQ4: 59 | BR4: 60 | BS4: 61 | BT4: 62 | BU4: 63 | BV4: 64 | BW4: 65 | BX4: 66 | BY4: 67 | BZ4: 68 | CA4: 69 | CB4: 70 | CC4: 71 | CD4: 72 | CE4: 73 | CF4: 74 | CG4: 75 | CH4: 76 | CI4: 77 | CJ4: 78 | CK4: 79 | CL4: 80 | CM4: 81 | CN4: 82 | CO4: 83 | CP4: 84 | CQ4: 85 | CR4: 86 | CS4: 87 | CT4: 88 | CU4: 89 | CV4: 90 | CW4: 91 | CX4: 92 | CY4: 93 | CZ4: 94 | DA4: 95 | DB4: 96 | DC4: 97 | DD4: 98 | DE4: 99 | DF4: 100 | DG4: 101
A6: 1 | B6: Prissatte kostnadsvirkninger | H6: Enhet | J6: ='Generelle forutsetninger'!B10 -> 2019 | K6: =IF($J$6+K4<'Generelle forutsetninger'!$B$10+'Generelle forutsetninger'!$B$11,$J$6+K4,IF(OR(J6="Restverdi",J6=""),"","Restverdi")) -> 2020 | L6: =IF($J$6+L4<'Generelle forutsetninger'!$B$10+'Generelle forutsetninger'!$B$11,$J$6+L4,IF(OR(K6="Restverdi",K6=""),"","Restverdi")) -> 2021 | M6: =IF($J$6+M4<'Generelle forutsetninger'!$B$10+'Generelle forutsetninger'!$B$11,$J$6+M4,IF(OR(L6="Restverdi",L6=""),"","Restverdi")) -> 2022 | N6: =IF($J$6+N4<'Generelle forutsetninger'!$B$10+'Generelle forutsetninger'!$B$11,$J$6+N4,IF(OR(M6="Restverdi",M6=""),"","Restverdi")) -> 2023 | O6: =IF($J$6+O4<'Generelle forutsetninger'!$B$10+'Generelle forutsetninger'!$B$11,$J$6+O4,IF(OR(N6="Restverdi",N6=""),"","Restverdi")) -> 2024 | P6: =IF($J$6+P4<'Generelle forutsetninger'!$B$10+'Generelle forutsetninger'!$B$11,$J$6+P4,IF(OR(O6="Restverdi",O6=""),"","Restverdi")) -> 2025 | Q6: =IF($J$6+Q4<'Generelle forutsetninger'!$B$10+'Generelle forutsetninger'!$B$11,$J$6+Q4,IF(OR(P6="Restverdi",P6=""),"","Restverdi")) -> 2026 | R6: =IF($J$6+R4<'Generelle forutsetninger'!$B$10+'Generelle forutsetninger'!$B$11,$J$6+R4,IF(OR(Q6="Restverdi",Q6=""),"","Restverdi")) -> 2027 | S6: =IF($J$6+S4<'Generelle forutsetninger'!$B$10+'Generelle forutsetninger'!$B$11,$J$6+S4,IF(OR(R6="Restverdi",R6=""),"","Restverdi")) -> 2028 | T6: =IF($J$6+T4<'Generelle forutsetninger'!$B$10+'Generelle forutsetninger'!$B$11,$J$6+T4,IF(OR(S6="Restverdi",S6=""),"","Restverdi")) -> 2029 | U6: =IF($J$6+U4<'Generelle forutsetninger'!$B$10+'Generelle forutsetninger'!$B$11,$J$6+U4,IF(OR(T6="Restverdi",T6=""),"","Restverdi")) -> 2030 | V6: =IF($J$6+V4<'Generelle forutsetninger'!$B$10+'Generelle forutsetninger'!$B$11,$J$6+V4,IF(OR(U6="Restverdi",U6=""),"","Restverdi")) -> 2031 | W6: =IF($J$6+W4<'Generelle forutsetninger'!$B$10+'Generelle forutsetninger'!$B$11,$J$6+W4,IF(OR(V6="Restverdi",V6=""),"","Restverdi")) -> 2032 | X6: =IF($J$6+X4<'Generelle forutsetninger'!$B$10+'Generelle forutsetninger'!$B$11,$J$6+X4,IF(OR(W6="Restverdi",W6=""),"","Restverdi")) -> 2033 | Y6: =IF($J$6+Y4<'Generelle forutsetninger'!$B$10+'Generelle forutsetninger'!$B$11,$J$6+Y4,IF(OR(X6="Restverdi",X6=""),"","Restverdi")) -> Restverdi | Z6: =IF($J$6+Z4<'Generelle forutsetninger'!$B$10+'Generelle forutsetninger'!$B$11,$J$6+Z4,IF(OR(Y6="Restverdi",Y6=""),"","Restverdi")) ->  | AA6: =IF($J$6+AA4<'Generelle forutsetninger'!$B$10+'Generelle forutsetninger'!$B$11,$J$6+AA4,IF(OR(Z6="Restverdi",Z6=""),"","Restverdi")) ->  | AB6: =IF($J$6+AB4<'Generelle forutsetninger'!$B$10+'Generelle forutsetninger'!$B$11,$J$6+AB4,IF(OR(AA6="Restverdi",AA6=""),"","Restverdi")) ->  | AC6: =IF($J$6+AC4<'Generelle forutsetninger'!$B$10+'Generelle forutsetninger'!$B$11,$J$6+AC4,IF(OR(AB6="Restverdi",AB6=""),"","Restverdi")) ->  | AD6: =IF($J$6+AD4<'Generelle forutsetninger'!$B$10+'Generelle forutsetninger'!$B$11,$J$6+AD4,IF(OR(AC6="Restverdi",AC6=""),"","Restverdi")) ->  | AE6: =IF($J$6+AE4<'Generelle forutsetninger'!$B$10+'Generelle forutsetninger'!$B$11,$J$6+AE4,IF(OR(AD6="Restverdi",AD6=""),"","Restverdi")) ->  | AF6: =IF($J$6+AF4<'Generelle forutsetninger'!$B$10+'Generelle forutsetninger'!$B$11,$J$6+AF4,IF(OR(AE6="Restverdi",AE6=""),"","Restverdi")) ->  | AG6: =IF($J$6+AG4<'Generelle forutsetninger'!$B$10+'Generelle forutsetninger'!$B$11,$J$6+AG4,IF(OR(AF6="Restverdi",AF6=""),"","Restverdi")) ->  | AH6: =IF($J$6+AH4<'Generelle forutsetninger'!$B$10+'Generelle forutsetninger'!$B$11,$J$6+AH4,IF(OR(AG6="Restverdi",AG6=""),"","Restverdi")) ->  | AI6: =IF($J$6+AI4<'Generelle forutsetninger'!$B$10+'Generelle forutsetninger'!$B$11,$J$6+AI4,IF(OR(AH6="Restverdi",AH6=""),"","Restverdi")) ->  | AJ6: =IF($J$6+AJ4<'Generelle forutsetninger'!$B$10+'Generelle forutsetninger'!$B$11,$J$6+AJ4,IF(OR(AI6="Restverdi",AI6=""),"","Restverdi")) ->  | AK6: =IF($J$6+AK4<'Generelle forutsetninger'!$B$10+'Generelle forutsetninger'!$B$11,$J$6+AK4,IF(OR(AJ6="Restverdi",AJ6=""),"","Restverdi")) ->  | AL6: =IF($J$6+AL4<'Generelle forutsetninger'!$B$10+'Generelle forutsetninger'!$B$11,$J$6+AL4,IF(OR(AK6="Restverdi",AK6=""),"","Restverdi")) ->  | AM6: =IF($J$6+AM4<'Generelle forutsetninger'!$B$10+'Generelle forutsetninger'!$B$11,$J$6+AM4,IF(OR(AL6="Restverdi",AL6=""),"","Restverdi")) ->  | AN6: =IF($J$6+AN4<'Generelle forutsetninger'!$B$10+'Generelle forutsetninger'!$B$11,$J$6+AN4,IF(OR(AM6="Restverdi",AM6=""),"","Restverdi")) ->  | AO6: =IF($J$6+AO4<'Generelle forutsetninger'!$B$10+'Generelle forutsetninger'!$B$11,$J$6+AO4,IF(OR(AN6="Restverdi",AN6=""),"","Restverdi")) ->  | AP6: =IF($J$6+AP4<'Generelle forutsetninger'!$B$10+'Generelle forutsetninger'!$B$11,$J$6+AP4,IF(OR(AO6="Restverdi",AO6=""),"","Restverdi")) ->  | AQ6: =IF($J$6+AQ4<'Generelle forutsetninger'!$B$10+'Generelle forutsetninger'!$B$11,$J$6+AQ4,IF(OR(AP6="Restverdi",AP6=""),"","Restverdi")) ->  | AR6: =IF($J$6+AR4<'Generelle forutsetninger'!$B$10+'Generelle forutsetninger'!$B$11,$J$6+AR4,IF(OR(AQ6="Restverdi",AQ6=""),"","Restverdi")) ->  | AS6: =IF($J$6+AS4<'Generelle forutsetninger'!$B$10+'Generelle forutsetninger'!$B$11,$J$6+AS4,IF(OR(AR6="Restverdi",AR6=""),"","Restverdi")) ->  | AT6: =IF($J$6+AT4<'Generelle forutsetninger'!$B$10+'Generelle forutsetninger'!$B$11,$J$6+AT4,IF(OR(AS6="Restverdi",AS6=""),"","Restverdi")) ->  | AU6: =IF($J$6+AU4<'Generelle forutsetninger'!$B$10+'Generelle forutsetninger'!$B$11,$J$6+AU4,IF(OR(AT6="Restverdi",AT6=""),"","Restverdi")) ->  | AV6: =IF($J$6+AV4<'Generelle forutsetninger'!$B$10+'Generelle forutsetninger'!$B$11,$J$6+AV4,IF(OR(AU6="Restverdi",AU6=""),"","Restverdi")) ->  | AW6: =IF($J$6+AW4<'Generelle forutsetninger'!$B$10+'Generelle forutsetninger'!$B$11,$J$6+AW4,IF(OR(AV6="Restverdi",AV6=""),"","Restverdi")) ->  | AX6: =IF($J$6+AX4<'Generelle forutsetninger'!$B$10+'Generelle forutsetninger'!$B$11,$J$6+AX4,IF(OR(AW6="Restverdi",AW6=""),"","Restverdi")) ->  | AY6: =IF($J$6+AY4<'Generelle forutsetninger'!$B$10+'Generelle forutsetninger'!$B$11,$J$6+AY4,IF(OR(AX6="Restverdi",AX6=""),"","Restverdi")) ->  | AZ6: =IF($J$6+AZ4<'Generelle forutsetninger'!$B$10+'Generelle forutsetninger'!$B$11,$J$6+AZ4,IF(OR(AY6="Restverdi",AY6=""),"","Restverdi")) ->  | BA6: =IF($J$6+BA4<'Generelle forutsetninger'!$B$10+'Generelle forutsetninger'!$B$11,$J$6+BA4,IF(OR(AZ6="Restverdi",AZ6=""),"","Restverdi")) ->  | BB6: =IF($J$6+BB4<'Generelle forutsetninger'!$B$10+'Generelle forutsetninger'!$B$11,$J$6+BB4,IF(OR(BA6="Restverdi",BA6=""),"","Restverdi")) ->  | BC6: =IF($J$6+BC4<'Generelle forutsetninger'!$B$10+'Generelle forutsetninger'!$B$11,$J$6+BC4,IF(OR(BB6="Restverdi",BB6=""),"","Restverdi")) ->  | BD6: =IF($J$6+BD4<'Generelle forutsetninger'!$B$10+'Generelle forutsetninger'!$B$11,$J$6+BD4,IF(OR(BC6="Restverdi",BC6=""),"","Restverdi")) ->  | BE6: =IF($J$6+BE4<'Generelle forutsetninger'!$B$10+'Generelle forutsetninger'!$B$11,$J$6+BE4,IF(OR(BD6="Restverdi",BD6=""),"","Restverdi")) ->  | BF6: =IF($J$6+BF4<'Generelle forutsetninger'!$B$10+'Generelle forutsetninger'!$B$11,$J$6+BF4,IF(OR(BE6="Restverdi",BE6=""),"","Restverdi")) ->  | BG6: =IF($J$6+BG4<'Generelle forutsetninger'!$B$10+'Generelle forutsetninger'!$B$11,$J$6+BG4,IF(OR(BF6="Restverdi",BF6=""),"","Restverdi")) ->  | BH6: =IF($J$6+BH4<'Generelle forutsetninger'!$B$10+'Generelle forutsetninger'!$B$11,$J$6+BH4,IF(OR(BG6="Restverdi",BG6=""),"","Restverdi")) ->  | BI6: =IF($J$6+BI4<'Generelle forutsetninger'!$B$10+'Generelle forutsetninger'!$B$11,$J$6+BI4,IF(OR(BH6="Restverdi",BH6=""),"","Restverdi")) ->  | BJ6: =IF($J$6+BJ4<'Generelle forutsetninger'!$B$10+'Generelle forutsetninger'!$B$11,$J$6+BJ4,IF(OR(BI6="Restverdi",BI6=""),"","Restverdi")) ->  | BK6: =IF($J$6+BK4<'Generelle forutsetninger'!$B$10+'Generelle forutsetninger'!$B$11,$J$6+BK4,IF(OR(BJ6="Restverdi",BJ6=""),"","Restverdi")) ->  | BL6: =IF($J$6+BL4<'Generelle forutsetninger'!$B$10+'Generelle forutsetninger'!$B$11,$J$6+BL4,IF(OR(BK6="Restverdi",BK6=""),"","Restverdi")) ->  | BM6: =IF($J$6+BM4<'Generelle forutsetninger'!$B$10+'Generelle forutsetninger'!$B$11,$J$6+BM4,IF(OR(BL6="Restverdi",BL6=""),"","Restverdi")) ->  | BN6: =IF($J$6+BN4<'Generelle forutsetninger'!$B$10+'Generelle forutsetninger'!$B$11,$J$6+BN4,IF(OR(BM6="Restverdi",BM6=""),"","Restverdi")) ->  | BO6: =IF($J$6+BO4<'Generelle forutsetninger'!$B$10+'Generelle forutsetninger'!$B$11,$J$6+BO4,IF(OR(BN6="Restverdi",BN6=""),"","Restverdi")) ->  | BP6: =IF($J$6+BP4<'Generelle forutsetninger'!$B$10+'Generelle forutsetninger'!$B$11,$J$6+BP4,IF(OR(BO6="Restverdi",BO6=""),"","Restverdi")) ->  | BQ6: =IF($J$6+BQ4<'Generelle forutsetninger'!$B$10+'Generelle forutsetninger'!$B$11,$J$6+BQ4,IF(OR(BP6="Restverdi",BP6=""),"","Restverdi")) ->  | BR6: =IF($J$6+BR4<'Generelle forutsetninger'!$B$10+'Generelle forutsetninger'!$B$11,$J$6+BR4,IF(OR(BQ6="Restverdi",BQ6=""),"","Restverdi")) ->  | BS6: =IF($J$6+BS4<'Generelle forutsetninger'!$B$10+'Generelle forutsetninger'!$B$11,$J$6+BS4,IF(OR(BR6="Restverdi",BR6=""),"","Restverdi")) ->  | BT6: =IF($J$6+BT4<'Generelle forutsetninger'!$B$10+'Generelle forutsetninger'!$B$11,$J$6+BT4,IF(OR(BS6="Restverdi",BS6=""),"","Restverdi")) ->  | BU6: =IF($J$6+BU4<'Generelle forutsetninger'!$B$10+'Generelle forutsetninger'!$B$11,$J$6+BU4,IF(OR(BT6="Restverdi",BT6=""),"","Restverdi")) ->  | BV6: =IF($J$6+BV4<'Generelle forutsetninger'!$B$10+'Generelle forutsetninger'!$B$11,$J$6+BV4,IF(OR(BU6="Restverdi",BU6=""),"","Restverdi")) ->  | BW6: =IF($J$6+BW4<'Generelle forutsetninger'!$B$10+'Generelle forutsetninger'!$B$11,$J$6+BW4,IF(OR(BV6="Restverdi",BV6=""),"","Restverdi")) ->  | BX6: =IF($J$6+BX4<'Generelle forutsetninger'!$B$10+'Generelle forutsetninger'!$B$11,$J$6+BX4,IF(OR(BW6="Restverdi",BW6=""),"","Restverdi")) ->  | BY6: =IF($J$6+BY4<'Generelle forutsetninger'!$B$10+'Generelle forutsetninger'!$B$11,$J$6+BY4,IF(OR(BX6="Restverdi",BX6=""),"","Restverdi")) ->  | BZ6: =IF($J$6+BZ4<'Generelle forutsetninger'!$B$10+'Generelle forutsetninger'!$B$11,$J$6+BZ4,IF(OR(BY6="Restverdi",BY6=""),"","Restverdi")) ->  | CA6: =IF($J$6+CA4<'Generelle forutsetninger'!$B$10+'Generelle forutsetninger'!$B$11,$J$6+CA4,IF(OR(BZ6="Restverdi",BZ6=""),"","Restverdi")) ->  | CB6: =IF($J$6+CB4<'Generelle forutsetninger'!$B$10+'Generelle forutsetninger'!$B$11,$J$6+CB4,IF(OR(CA6="Restverdi",CA6=""),"","Restverdi")) ->  | CC6: =IF($J$6+CC4<'Generelle forutsetninger'!$B$10+'Generelle forutsetninger'!$B$11,$J$6+CC4,IF(OR(CB6="Restverdi",CB6=""),"","Restverdi")) ->  | CD6: =IF($J$6+CD4<'Generelle forutsetninger'!$B$10+'Generelle forutsetninger'!$B$11,$J$6+CD4,IF(OR(CC6="Restverdi",CC6=""),"","Restverdi")) ->  | CE6: =IF($J$6+CE4<'Generelle forutsetninger'!$B$10+'Generelle forutsetninger'!$B$11,$J$6+CE4,IF(OR(CD6="Restverdi",CD6=""),"","Restverdi")) ->  | CF6: =IF($J$6+CF4<'Generelle forutsetninger'!$B$10+'Generelle forutsetninger'!$B$11,$J$6+CF4,IF(OR(CE6="Restverdi",CE6=""),"","Restverdi")) ->  | CG6: =IF($J$6+CG4<'Generelle forutsetninger'!$B$10+'Generelle forutsetninger'!$B$11,$J$6+CG4,IF(OR(CF6="Restverdi",CF6=""),"","Restverdi")) ->  | CH6: =IF($J$6+CH4<'Generelle forutsetninger'!$B$10+'Generelle forutsetninger'!$B$11,$J$6+CH4,IF(OR(CG6="Restverdi",CG6=""),"","Restverdi")) ->  | CI6: =IF($J$6+CI4<'Generelle forutsetninger'!$B$10+'Generelle forutsetninger'!$B$11,$J$6+CI4,IF(OR(CH6="Restverdi",CH6=""),"","Restverdi")) ->  | CJ6: =IF($J$6+CJ4<'Generelle forutsetninger'!$B$10+'Generelle forutsetninger'!$B$11,$J$6+CJ4,IF(OR(CI6="Restverdi",CI6=""),"","Restverdi")) ->  | CK6: =IF($J$6+CK4<'Generelle forutsetninger'!$B$10+'Generelle forutsetninger'!$B$11,$J$6+CK4,IF(OR(CJ6="Restverdi",CJ6=""),"","Restverdi")) ->  | CL6: =IF($J$6+CL4<'Generelle forutsetninger'!$B$10+'Generelle forutsetninger'!$B$11,$J$6+CL4,IF(OR(CK6="Restverdi",CK6=""),"","Restverdi")) ->  | CM6: =IF($J$6+CM4<'Generelle forutsetninger'!$B$10+'Generelle forutsetninger'!$B$11,$J$6+CM4,IF(OR(CL6="Restverdi",CL6=""),"","Restverdi")) ->  | CN6: =IF($J$6+CN4<'Generelle forutsetninger'!$B$10+'Generelle forutsetninger'!$B$11,$J$6+CN4,IF(OR(CM6="Restverdi",CM6=""),"","Restverdi")) ->  | CO6: =IF($J$6+CO4<'Generelle forutsetninger'!$B$10+'Generelle forutsetninger'!$B$11,$J$6+CO4,IF(OR(CN6="Restverdi",CN6=""),"","Restverdi")) ->  | CP6: =IF($J$6+CP4<'Generelle forutsetninger'!$B$10+'Generelle forutsetninger'!$B$11,$J$6+CP4,IF(OR(CO6="Restverdi",CO6=""),"","Restverdi")) ->  | CQ6: =IF($J$6+CQ4<'Generelle forutsetninger'!$B$10+'Generelle forutsetninger'!$B$11,$J$6+CQ4,IF(OR(CP6="Restverdi",CP6=""),"","Restverdi")) ->  | CR6: =IF($J$6+CR4<'Generelle forutsetninger'!$B$10+'Generelle forutsetninger'!$B$11,$J$6+CR4,IF(OR(CQ6="Restverdi",CQ6=""),"","Restverdi")) ->  | CS6: =IF($J$6+CS4<'Generelle forutsetninger'!$B$10+'Generelle forutsetninger'!$B$11,$J$6+CS4,IF(OR(CR6="Restverdi",CR6=""),"","Restverdi")) ->  | CT6: =IF($J$6+CT4<'Generelle forutsetninger'!$B$10+'Generelle forutsetninger'!$B$11,$J$6+CT4,IF(OR(CS6="Restverdi",CS6=""),"","Restverdi")) ->  | CU6: =IF($J$6+CU4<'Generelle forutsetninger'!$B$10+'Generelle forutsetninger'!$B$11,$J$6+CU4,IF(OR(CT6="Restverdi",CT6=""),"","Restverdi")) ->  | CV6: =IF($J$6+CV4<'Generelle forutsetninger'!$B$10+'Generelle forutsetninger'!$B$11,$J$6+CV4,IF(OR(CU6="Restverdi",CU6=""),"","Restverdi")) ->  | CW6: =IF($J$6+CW4<'Generelle forutsetninger'!$B$10+'Generelle forutsetninger'!$B$11,$J$6+CW4,IF(OR(CV6="Restverdi",CV6=""),"","Restverdi")) ->  | CX6: =IF($J$6+CX4<'Generelle forutsetninger'!$B$10+'Generelle forutsetninger'!$B$11,$J$6+CX4,IF(OR(CW6="Restverdi",CW6=""),"","Restverdi")) ->  | CY6: =IF($J$6+CY4<'Generelle forutsetninger'!$B$10+'Generelle forutsetninger'!$B$11,$J$6+CY4,IF(OR(CX6="Restverdi",CX6=""),"","Restverdi")) ->  | CZ6: =IF($J$6+CZ4<'Generelle forutsetninger'!$B$10+'Generelle forutsetninger'!$B$11,$J$6+CZ4,IF(OR(CY6="Restverdi",CY6=""),"","Restverdi")) ->  | DA6: =IF($J$6+DA4<'Generelle forutsetninger'!$B$10+'Generelle forutsetninger'!$B$11,$J$6+DA4,IF(OR(CZ6="Restverdi",CZ6=""),"","Restverdi")) ->  | DB6: =IF($J$6+DB4<'Generelle forutsetninger'!$B$10+'Generelle forutsetninger'!$B$11,$J$6+DB4,IF(OR(DA6="Restverdi",DA6=""),"","Restverdi")) ->  | DC6: =IF($J$6+DC4<'Generelle forutsetninger'!$B$10+'Generelle forutsetninger'!$B$11,$J$6+DC4,IF(OR(DB6="Restverdi",DB6=""),"","Restverdi")) ->  | DD6: =IF($J$6+DD4<'Generelle forutsetninger'!$B$10+'Generelle forutsetninger'!$B$11,$J$6+DD4,IF(OR(DC6="Restverdi",DC6=""),"","Restverdi")) ->  | DE6: =IF($J$6+DE4<'Generelle forutsetninger'!$B$10+'Generelle forutsetninger'!$B$11,$J$6+DE4,IF(OR(DD6="Restverdi",DD6=""),"","Restverdi")) ->  | DF6: =IF($J$6+DF4<'Generelle forutsetninger'!$B$10+'Generelle forutsetninger'!$B$11,$J$6+DF4,IF(OR(DE6="Restverdi",DE6=""),"","Restverdi")) ->  | DG6: =IF($J$6+DG4<'Generelle forutsetninger'!$B$10+'Generelle forutsetninger'!$B$11,$J$6+DG4,IF(OR(DF6="Restverdi",DF6=""),"","Restverdi")) -> 
A7: 72 | C7: 1 | D7: =1 -> 1 | E7: =1 + Celleref_Skattekostnad -> 1.2 | F7: =0 -> 0 | H7: Kroner
A8: k311 | B8: Kostnader for virksomheten
A9: k312 | B9: Kostnader for øvrig offentlig sektor
A10: k313 | B10: Kostnader for privat næringsliv
A11: k434 | B11: Kostnader for privatpersoner
A14: B | B14: Prissatte kostnadsvirkninger - direkte virkning | H14: Enhet | I14: Nåverdi | J14: =J6 -> 2019 | K14: 2020 | L14: 2021 | M14: 2022 | N14: 2023 | O14: 2024 | P14: 2025 | Q14: 2026 | R14: 2027 | S14: 2028 | T14: 2029 | U14: 2030 | V14: 2031 | W14: 2032 | X14: 2033 | Y14: Restverdi | AP14: =AP6 ->  | BV14: =BV6 -> 
A15: 72 | B15: =VLOOKUP(A15,$A$7:$B$13,2,FALSE) -> 0 | C15: =C7 -> 1 | D15: 1 | E15: 1.2 | F15: 0 | G15: 0 | H15: Kroner | I15: =J15+NPV(Celleref_kalkulasjonsrente,K15:DG15) -> 0 | J15: =-IF(J$6="Restverdi",IF(J7=0,0,J7*$C7*$D7^(I$6+1-$J$6)),IF(J7=0,0,J7*$C7*$D7^(J$6-$J$6))) -> 0 | K15: =-IF(K$6="Restverdi",IF(K7=0,0,K7*$C7*$D7^(J$6+1-$J$6)),IF(K7=0,0,K7*$C7*$D7^(K$6-$J$6))) -> 0 | L15: 0 | M15: 0 | N15: 0 | O15: 0 | P15: 0 | Q15: 0 | R15: 0 | S15: 0 | T15: 0 | U15: 0 | V15: 0 | W15: 0 | X15: 0 | Y15: 0 | Z15: 0 | AA15: 0 | AB15: 0 | AC15: 0 | AD15: 0 | AE15: 0 | AF15: 0 | AG15: 0 | AH15: 0 | AI15: 0 | AJ15: 0 | AK15: 0 | AL15: 0 | AM15: 0 | AN15: 0 | AO15: 0 | AP15: 0 | AQ15: 0 | AR15: 0 | AS15: 0 | AT15: 0 | AU15: 0 | AV15: 0 | AW15: 0 | AX15: 0 | AY15: 0 | AZ15: 0 | BA15: 0 | BB15: 0 | BC15: 0 | BD15: 0 | BE15: 0 | BF15: 0 | BG15: 0 | BH15: 0 | BI15: 0 | BJ15: 0 | BK15: 0 | BL15: 0 | BM15: 0 | BN15: 0 | BO15: 0 | BP15: 0 | BQ15: 0 | BR15: 0 | BS15: 0 | BT15: 0 | BU15: 0 | BV15: 0 | BW15: =-IF(BW$6="Restverdi",IF(BW7=0,0,BW7*$C7*$D7^(BV$6+1-$J$6)),IF(BW7=0,0,BW7*$C7*$D7^(BW$6-$J$6))) -> 0 | BX15: 0 | BY15: 0 | BZ15: 0 | CA15: 0 | CB15: 0 | CC15: 0 | CD15: 0 | CE15: 0 | CF15: 0 | CG15: 0 | CH15: 0 | CI15: 0 | CJ15: 0 | CK15: 0 | CL15: 0 | CM15: 0 | CN15: 0 | CO15: 0 | CP15: 0 | CQ15: 0 | CR15: 0 | CS15: 0 | CT15: 0 | CU15: 0 | CV15: 0 | CW15: 0 | CX15: 0 | CY15: 0 | CZ15: 0 | DA15: 0 | DB15: 0 | DC15: 0 | DD15: 0 | DE15: 0 | DF15: 0 | DG15: 0
A16: k311 | B16: =VLOOKUP(A16,$A$7:$B$13,2,FALSE) -> Kostnader for virksomheten | C16: 0 | D16: 0 | E16: 0 | F16: 0 | G16: 0 | H16: Kroner | I16: =J16+NPV(Celleref_kalkulasjonsrente,K16:DG16) -> 0 | J16: =-IF(J$6="Restverdi",IF(J8=0,0,J8*$C8*$D8^(I$6+1-$J$6)),IF(J8=0,0,J8*$C8*$D8^(J$6-$J$6))) -> 0 | K16: =-IF(K$6="Restverdi",IF(K8=0,0,K8*$C8*$D8^(J$6+1-$J$6)),IF(K8=0,0,K8*$C8*$D8^(K$6-$J$6))) -> 0 | L16: 0 | M16: 0 | N16: 0 | O16: 0 | P16: 0 | Q16: 0 | R16: 0 | S16: 0 | T16: 0 | U16: 0 | V16: 0 | W16: 0 | X16: 0 | Y16: 0 | Z16: 0 | AA16: 0 | AB16: 0 | AC16: 0 | AD16: 0 | AE16: 0 | AF16: 0 | AG16: 0 | AH16: 0 | AI16: 0 | AJ16: 0 | AK16: 0 | AL16: 0 | AM16: 0 | AN16: 0 | AO16: 0 | AP16: 0 | AQ16: 0 | AR16: 0 | AS16: 0 | AT16: 0 | AU16: 0 | AV16: 0 | AW16: 0 | AX16: 0 | AY16: 0 | AZ16: 0 | BA16: 0 | BB16: 0 | BC16: 0 | BD16: 0 | BE16: 0 | BF16: 0 | BG16: 0 | BH16: 0 | BI16: 0 | BJ16: 0 | BK16: 0 | BL16: 0 | BM16: 0 | BN16: 0 | BO16: 0 | BP16: 0 | BQ16: 0 | BR16: 0 | BS16: 0 | BT16: 0 | BU16: 0 | BV16: 0 | BW16: 0 | BX16: 0 | BY16: 0 | BZ16: 0 | CA16: 0 | CB16: 0 | CC16: 0 | CD16: 0 | CE16: 0 | CF16: 0 | CG16: 0 | CH16: 0 | CI16: 0 | CJ16: 0 | CK16: 0 | CL16: 0 | CM16: 0 | CN16: 0 | CO16: 0 | CP16: 0 | CQ16: 0 | CR16: 0 | CS16: 0 | CT16: 0 | CU16: 0 | CV16: 0 | CW16: 0 | CX16: 0 | CY16: 0 | CZ16: 0 | DA16: 0 | DB16: 0 | DC16: 0 | DD16: 0 | DE16: 0 | DF16: 0 | DG16: 0
A17: k312 | B17: =VLOOKUP(A17,$A$7:$B$13,2,FALSE) -> Kostnader for øvrig offentlig sektor | C17: 0 | D17: 0 | E17: 0 | F17: 0 | G17: 0 | H17: Kroner | I17: =J17+NPV(Celleref_kalkulasjonsrente,K17:DG17) -> 0 | J17: =-IF(J$6="Restverdi",IF(J9=0,0,J9*$C9*$D9^(I$6+1-$J$6)),IF(J9=0,0,J9*$C9*$D9^(J$6-$J$6))) -> 0 | K17: =-IF(K$6="Restverdi",IF(K9=0,0,K9*$C9*$D9^(J$6+1-$J$6)),IF(K9=0,0,K9*$C9*$D9^(K$6-$J$6))) -> 0 | L17: 0 | M17: 0 | N17: 0 | O17: 0 | P17: 0 | Q17: 0 | R17: 0 | S17: 0 | T17: 0 | U17: 0 | V17: 0 | W17: 0 | X17: 0 | Y17: 0 | Z17: 0 | AA17: 0 | AB17: 0 | AC17: 0 | AD17: 0 | AE17: 0 | AF17: 0 | AG17: 0 | AH17: 0 | AI17: 0 | AJ17: 0 | AK17: 0 | AL17: 0 | AM17: 0 | AN17: 0 | AO17: 0 | AP17: 0 | AQ17: 0 | AR17: 0 | AS17: 0 | AT17: 0 | AU17: 0 | AV17: 0 | AW17: 0 | AX17: 0 | AY17: 0 | AZ17: 0 | BA17: 0 | BB17: 0 | BC17: 0 | BD17: 0 | BE17: 0 | BF17: 0 | BG17: 0 | BH17: 0 | BI17: 0 | BJ17: 0 | BK17: 0 | BL17: 0 | BM17: 0 | BN17: 0 | BO17: 0 | BP17: 0 | BQ17: 0 | BR17: 0 | BS17: 0 | BT17: 0 | BU17: 0 | BV17: 0 | BW17: 0 | BX17: 0 | BY17: 0 | BZ17: 0 | CA17: 0 | CB17: 0 | CC17: 0 | CD17: 0 | CE17: 0 | CF17: 0 | CG17: 0 | CH17: 0 | CI17: 0 | CJ17: 0 | CK17: 0 | CL17: 0 | CM17: 0 | CN17: 0 | CO17: 0 | CP17: 0 | CQ17: 0 | CR17: 0 | CS17: 0 | CT17: 0 | CU17: 0 | CV17: 0 | CW17: 0 | CX17: 0 | CY17: 0 | CZ17: 0 | DA17: 0 | DB17: 0 | DC17: 0 | DD17: 0 | DE17: 0 | DF17: 0 | DG17: 0
A18: k313 | B18: =VLOOKUP(A18,$A$7:$B$13,2,FALSE) -> Kostnader for privat næringsliv | C18: 0 | D18: 0 | E18: 0 | F18: 0 | G18: 0 | H18: Kroner | I18: =J18+NPV(Celleref_kalkulasjonsrente,K18:DG18) -> 0 | J18: =-IF(J$6="Restverdi",IF(J10=0,0,J10*$C10*$D10^(I$6+1-$J$6)),IF(J10=0,0,J10*$C10*$D10^(J$6-$J$6))) -> 0 | K18: 0 | L18: 0 | M18: 0 | N18: 0 | O18: 0 | P18: 0 | Q18: 0 | R18: 0 | S18: 0 | T18: 0 | U18: 0 | V18: 0 | W18: 0 | X18: 0 | Y18: 0 | Z18: 0 | AA18: 0 | AB18: 0 | AC18: 0 | AD18: 0 | AE18: 0 | AF18: 0 | AG18: 0 | AH18: 0 | AI18: 0 | AJ18: 0 | AK18: 0 | AL18: 0 | AM18: 0 | AN18: 0 | AO18: 0 | AP18: 0 | AQ18: 0 | AR18: 0 | AS18: 0 | AT18: 0 | AU18: 0 | AV18: 0 | AW18: 0 | AX18: 0 | AY18: 0 | AZ18: 0 | BA18: 0 | BB18: 0 | BC18: 0 | BD18: 0 | BE18: 0 | BF18: 0 | BG18: 0 | BH18: 0 | BI18: 0 | BJ18: 0 | BK18: 0 | BL18: 0 | BM18: 0 | BN18: 0 | BO18: 0 | BP18: 0 | BQ18: 0 | BR18: 0 | BS18: 0 | BT18: 0 | BU18: 0 | BV18: 0 | BW18: 0 | BX18: 0 | BY18: 0 | BZ18: 0 | CA18: 0 | CB18: 0 | CC18: 0 | CD18: 0 | CE18: 0 | CF18: 0 | CG18: 0 | CH18: 0 | CI18: 0 | CJ18: 0 | CK18: 0 | CL18: 0 | CM18: 0 | CN18: 0 | CO18: 0 | CP18: 0 | CQ18: 0 | CR18: 0 | CS18: 0 | CT18: 0 | CU18: 0 | CV18: 0 | CW18: 0 | CX18: 0 | CY18: 0 | CZ18: 0 | DA18: 0 | DB18: 0 | DC18: 0 | DD18: 0 | DE18: 0 | DF18: 0 | DG18: 0
A19: k434 | B19: =VLOOKUP(A19,$A$7:$B$13,2,FALSE) -> Kostnader for privatpersoner | C19: 0 | D19: 0 | E19: 0 | F19: 0 | G19: 0 | H19: Kroner | I19: =J19+NPV(Celleref_kalkulasjonsrente,K19:DG19) -> 0 | J19: =-IF(J$6="Restverdi",IF(J11=0,0,J11*$C11*$D11^(I$6+1-$J$6)),IF(J11=0,0,J11*$C11*$D11^(J$6-$J$6))) -> 0 | K19: 0 | L19: 0 | M19: 0 | N19: 0 | O19: 0 | P19: 0 | Q19: 0 | R19: 0 | S19: 0 | T19: 0 | U19: 0 | V19: 0 | W19: 0 | X19: 0 | Y19: 0 | Z19: 0 | AA19: 0 | AB19: 0 | AC19: 0 | AD19: 0 | AE19: 0 | AF19: 0 | AG19: 0 | AH19: 0 | AI19: 0 | AJ19: 0 | AK19: 0 | AL19: 0 | AM19: 0 | AN19: 0 | AO19: 0 | AP19: 0 | AQ19: 0 | AR19: 0 | AS19: 0 | AT19: 0 | AU19: 0 | AV19: 0 | AW19: 0 | AX19: 0 | AY19: 0 | AZ19: 0 | BA19: 0 | BB19: 0 | BC19: 0 | BD19: 0 | BE19: 0 | BF19: 0 | BG19: 0 | BH19: 0 | BI19: 0 | BJ19: 0 | BK19: 0 | BL19: 0 | BM19: 0 | BN19: 0 | BO19: 0 | BP19: 0 | BQ19: 0 | BR19: 0 | BS19: 0 | BT19: 0 | BU19: 0 | BV19: 0 | BW19: 0 | BX19: 0 | BY19: 0 | BZ19: 0 | CA19: 0 | CB19: 0 | CC19: 0 | CD19: 0 | CE19: 0 | CF19: 0 | CG19: 0 | CH19: 0 | CI19: 0 | CJ19: 0 | CK19: 0 | CL19: 0 | CM19: 0 | CN19: 0 | CO19: 0 | CP19: 0 | CQ19: 0 | CR19: 0 | CS19: 0 | CT19: 0 | CU19: 0 | CV19: 0 | CW19: 0 | CX19: 0 | CY19: 0 | CZ19: 0 | DA19: 0 | DB19: 0 | DC19: 0 | DD19: 0 | DE19: 0 | DF19: 0 | DG19: 0
A22: S | B22: Prissatte kostnadsvirkninger - Skattefinansieringskostnad | H22: Enhet | I22: Nåverdi | J22: =J14 -> 2019 | K22: 2020 | L22: 2021 | M22: 2022 | N22: 2023 | O22: 2024 | P22: 2025 | Q22: 2026 | R22: 2027 | S22: 2028 | T22: 2029 | U22: 2030 | V22: 2031 | W22: 2032 | X22: 2033 | Y22: Restverdi | AP22: =AP14 ->  | BV22: =BV14 -> 
A23: 72 | B23: =VLOOKUP(A23,$A$7:$B$13,2,FALSE) -> 0 | H23: Kroner | I23: =J23+NPV(Celleref_kalkulasjonsrente,K23:DG23) -> 0 | J23: =IF(J7=0,0,J15*($E7-1)) -> 0 | K23: 0 | L23: 0 | M23: 0 | N23: 0 | O23: 0 | P23: 0 | Q23: 0 | R23: 0 | S23: 0 | T23: 0 | U23: 0 | V23: 0 | W23: 0 | X23: 0 | Y23: 0 | Z23: 0 | AA23: 0 | AB23: 0 | AC23: 0 | AD23: 0 | AE23: 0 | AF23: 0 | AG23: 0 | AH23: 0 | AI23: 0 | AJ23: 0 | AK23: 0 | AL23: 0 | AM23: 0 | AN23: 0 | AO23: 0 | AP23: =IF(AP7=0,0,AP15*($E7-1)) -> 0 | AQ23: 0 | AR23: 0 | AS23: 0 | AT23: 0 | AU23: 0 | AV23: 0 | AW23: 0 | AX23: 0 | AY23: 0 | AZ23: 0 | BA23: 0 | BB23: 0 | BC23: 0 | BD23: 0 | BE23: 0 | BF23: 0 | BG23: 0 | BH23: 0 | BI23: 0 | BJ23: 0 | BK23: 0 | BL23: 0 | BM23: 0 | BN23: 0 | BO23: 0 | BP23: 0 | BQ23: 0 | BR23: 0 | BS23: 0 | BT23: 0 | BU23: 0 | BV23: =IF(BV7=0,0,BV15*($E7-1)) -> 0 | BW23: 0 | BX23: 0 | BY23: 0 | BZ23: 0 | CA23: 0 | CB23: 0 | CC23: 0 | CD23: 0 | CE23: 0 | CF23: 0 | CG23: 0 | CH23: 0 | CI23: 0 | CJ23: 0 | CK23: 0 | CL23: 0 | CM23: 0 | CN23: 0 | CO23: 0 | CP23: 0 | CQ23: 0 | CR23: 0 | CS23: 0 | CT23: 0 | CU23: 0 | CV23: 0 | CW23: 0 | CX23: 0 | CY23: 0 | CZ23: 0 | DA23: 0 | DB23: =IF(DB7=0,0,DB15*($E7-1)) -> 0 | DC23: 0 | DD23: 0 | DE23: 0 | DF23: 0 | DG23: 0
A24: k311 | B24: =VLOOKUP(A24,$A$7:$B$13,2,FALSE) -> Kostnader for virksomheten | H24: Kroner | I24: =J24+NPV(Celleref_kalkulasjonsrente,K24:DG24) -> 0 | J24: =IF(J8=0,0,J16*($E8-1)) -> 0 | K24: 0 | L24: 0 | M24: 0 | N24: 0 | O24: 0 | P24: 0 | Q24: 0 | R24: 0 | S24: 0 | T24: 0 | U24: 0 | V24: 0 | W24: 0 | X24: 0 | Y24: 0 | Z24: 0 | AA24: 0 | AB24: 0 | AC24: 0 | AD24: 0 | AE24: 0 | AF24: 0 | AG24: 0 | AH24: 0 | AI24: 0 | AJ24: 0 | AK24: 0 | AL24: 0 | AM24: 0 | AN24: 0 | AO24: 0 | AP24: =IF(AP8=0,0,AP16*($E8-1)) -> 0 | AQ24: 0 | AR24: 0 | AS24: 0 | AT24: 0 | AU24: 0 | AV24: 0 | AW24: 0 | AX24: 0 | AY24: 0 | AZ24: 0 | BA24: 0 | BB24: 0 | BC24: 0 | BD24: 0 | BE24: 0 | BF24: 0 | BG24: 0 | BH24: 0 | BI24: 0 | BJ24: 0 | BK24: 0 | BL24: 0 | BM24: 0 | BN24: 0 | BO24: 0 | BP24: 0 | BQ24: 0 | BR24: 0 | BS24: 0 | BT24: 0 | BU24: 0 | BV24: =IF(BV8=0,0,BV16*($E8-1)) -> 0 | BW24: 0 | BX24: 0 | BY24: 0 | BZ24: 0 | CA24: 0 | CB24: 0 | CC24: 0 | CD24: 0 | CE24: 0 | CF24: 0 | CG24: 0 | CH24: 0 | CI24: 0 | CJ24: 0 | CK24: 0 | CL24: 0 | CM24: 0 | CN24: 0 | CO24: 0 | CP24: 0 | CQ24: 0 | CR24: 0 | CS24: 0 | CT24: 0 | CU24: 0 | CV24: 0 | CW24: 0 | CX24: 0 | CY24: 0 | CZ24: 0 | DA24: 0 | DB24: =IF(DB8=0,0,DB16*($E8-1)) -> 0 | DC24: 0 | DD24: 0 | DE24: 0 | DF24: 0 | DG24: 0
A25: k312 | B25: =VLOOKUP(A25,$A$7:$B$13,2,FALSE) -> Kostnader for øvrig offentlig sektor | H25: Kroner | I25: =J25+NPV(Celleref_kalkulasjonsrente,K25:DG25) -> 0 | J25: =IF(J9=0,0,J17*($E9-1)) -> 0 | K25: 0 | L25: 0 | M25: 0 | N25: 0 | O25: 0 | P25: 0 | Q25: 0 | R25: 0 | S25: 0 | T25: 0 | U25: 0 | V25: 0 | W25: 0 | X25: 0 | Y25: 0 | Z25: 0 | AA25: 0 | AB25: 0 | AC25: 0 | AD25: 0 | AE25: 0 | AF25: 0 | AG25: 0 | AH25: 0 | AI25: 0 | AJ25: 0 | AK25: 0 | AL25: 0 | AM25: 0 | AN25: 0 | AO25: 0 | AP25: =IF(AP9=0,0,AP17*($E9-1)) -> 0 | AQ25: 0 | AR25: 0 | AS25: 0 | AT25: 0 | AU25: 0 | AV25: 0 | AW25: 0 | AX25: 0 | AY25: 0 | AZ25: 0 | BA25: 0 | BB25: 0 | BC25: 0 | BD25: 0 | BE25: 0 | BF25: 0 | BG25: 0 | BH25: 0 | BI25: 0 | BJ25: 0 | BK25: 0 | BL25: 0 | BM25: 0 | BN25: 0 | BO25: 0 | BP25: 0 | BQ25: 0 | BR25: 0 | BS25: 0 | BT25: 0 | BU25: 0 | BV25: =IF(BV9=0,0,BV17*($E9-1)) -> 0 | BW25: 0 | BX25: 0 | BY25: 0 | BZ25: 0 | CA25: 0 | CB25: 0 | CC25: 0 | CD25: 0 | CE25: 0 | CF25: 0 | CG25: 0 | CH25: 0 | CI25: 0 | CJ25: 0 | CK25: 0 | CL25: 0 | CM25: 0 | CN25: 0 | CO25: 0 | CP25: 0 | CQ25: 0 | CR25: 0 | CS25: 0 | CT25: 0 | CU25: 0 | CV25: 0 | CW25: 0 | CX25: 0 | CY25: 0 | CZ25: 0 | DA25: 0 | DB25: =IF(DB9=0,0,DB17*($E9-1)) -> 0 | DC25: 0 | DD25: 0 | DE25: 0 | DF25: 0 | DG25: 0
A26: k313 | B26: =VLOOKUP(A26,$A$7:$B$13,2,FALSE) -> Kostnader for privat næringsliv | H26: Kroner | I26: =J26+NPV(Celleref_kalkulasjonsrente,K26:DG26) -> 0 | J26: =IF(J10=0,0,J18*($E10-1)) -> 0 | K26: 0 | L26: 0 | M26: 0 | N26: 0 | O26: 0 | P26: 0 | Q26: 0 | R26: 0 | S26: 0 | T26: 0 | U26: 0 | V26: 0 | W26: 0 | X26: 0 | Y26: 0 | Z26: 0 | AA26: 0 | AB26: 0 | AC26: 0 | AD26: 0 | AE26: 0 | AF26: 0 | AG26: 0 | AH26: 0 | AI26: 0 | AJ26: 0 | AK26: 0 | AL26: 0 | AM26: 0 | AN26: 0 | AO26: 0 | AP26: =IF(AP10=0,0,AP18*($E10-1)) -> 0 | AQ26: 0 | AR26: 0 | AS26: 0 | AT26: 0 | AU26: 0 | AV26: 0 | AW26: 0 | AX26: 0 | AY26: 0 | AZ26: 0 | BA26: 0 | BB26: 0 | BC26: 0 | BD26: 0 | BE26: 0 | BF26: 0 | BG26: 0 | BH26: 0 | BI26: 0 | BJ26: 0 | BK26: 0 | BL26: 0 | BM26: 0 | BN26: 0 | BO26: 0 | BP26: 0 | BQ26: 0 | BR26: 0 | BS26: 0 | BT26: 0 | BU26: 0 | BV26: =IF(BV10=0,0,BV18*($E10-1)) -> 0 | BW26: 0 | BX26: 0 | BY26: 0 | BZ26: 0 | CA26: 0 | CB26: 0 | CC26: 0 | CD26: 0 | CE26: 0 | CF26: 0 | CG26: 0 | CH26: 0 | CI26: 0 | CJ26: 0 | CK26: 0 | CL26: 0 | CM26: 0 | CN26: 0 | CO26: 0 | CP26: 0 | CQ26: 0 | CR26: 0 | CS26: 0 | CT26: 0 | CU26: 0 | CV26: 0 | CW26: 0 | CX26: 0 | CY26: 0 | CZ26: 0 | DA26: 0 | DB26: =IF(DB10=0,0,DB18*($E10-1)) -> 0 | DC26: 0 | DD26: 0 | DE26: 0 | DF26: 0 | DG26: 0
A27: k434 | B27: =VLOOKUP(A27,$A$7:$B$13,2,FALSE) -> Kostnader for privatpersoner | H27: Kroner | I27: =J27+NPV(Celleref_kalkulasjonsrente,K27:DG27) -> 0 | J27: =IF(J11=0,0,J19*($E11-1)) -> 0 | K27: 0 | L27: 0 | M27: 0 | N27: 0 | O27: 0 | P27: 0 | Q27: 0 | R27: 0 | S27: 0 | T27: 0 | U27: 0 | V27: 0 | W27: 0 | X27: 0 | Y27: 0 | Z27: 0 | AA27: 0 | AB27: 0 | AC27: 0 | AD27: 0 | AE27: 0 | AF27: 0 | AG27: 0 | AH27: 0 | AI27: 0 | AJ27: 0 | AK27: 0 | AL27: 0 | AM27: 0 | AN27: 0 | AO27: 0 | AP27: =IF(AP11=0,0,AP19*($E11-1)) -> 0 | AQ27: 0 | AR27: 0 | AS27: 0 | AT27: 0 | AU27: 0 | AV27: 0 | AW27: 0 | AX27: 0 | AY27: 0 | AZ27: 0 | BA27: 0 | BB27: 0 | BC27: 0 | BD27: 0 | BE27: 0 | BF27: 0 | BG27: 0 | BH27: 0 | BI27: 0 | BJ27: 0 | BK27: 0 | BL27: 0 | BM27: 0 | BN27: 0 | BO27: 0 | BP27: 0 | BQ27: 0 | BR27: 0 | BS27: 0 | BT27: 0 | BU27: 0 | BV27: =IF(BV11=0,0,BV19*($E11-1)) -> 0 | BW27: 0 | BX27: 0 | BY27: 0 | BZ27: 0 | CA27: 0 | CB27: 0 | CC27: 0 | CD27: 0 | CE27: 0 | CF27: 0 | CG27: 0 | CH27: 0 | CI27: 0 | CJ27: 0 | CK27: 0 | CL27: 0 | CM27: 0 | CN27: 0 | CO27: 0 | CP27: 0 | CQ27: 0 | CR27: 0 | CS27: 0 | CT27: 0 | CU27: 0 | CV27: 0 | CW27: 0 | CX27: 0 | CY27: 0 | CZ27: 0 | DA27: 0 | DB27: =IF(DB11=0,0,DB19*($E11-1)) -> 0 | DC27: 0 | DD27: 0 | DE27: 0 | DF27: 0 | DG27: 0

Sheet Kostnad alternativ 0
A1: Kostnad alternativ 0 | B1: Alternativnavn: | C1: =VLOOKUP(RIGHT(A1,12),Alternativområde,2,FALSE) -> Nullalternativet
J4: 0 | K4: 1 | L4: 2 | M4: 3 | N4: 4 | O4: 5 | P4: 6 | Q4: 7 | R4: 8 | S4: 9 | T4: 10 | U4: 11 | V4: 12 | W4: 13 | X4: 14 | Y4: 15 | Z4: 16 | AA4: 17 | AB4: 18 | AC4: 19 | AD4: 20 | AE4: 21 | AF4: 22 | AG4: 23 | AH4: 24 | AI4: 25 | AJ4: 26 | AK4: 27 | AL4: 28 | AM4: 29 | AN4: 30 | AO4: 31 | AP4: 32 | AQ4: 33 | AR4: 34 | AS4: 35 | AT4: 36 | AU4: 37 | AV4: 38 | AW4: 39 | AX4: 40 | AY4: 41 | AZ4: 42 | BA4: 43 | BB4: 44 | BC4: 45 | BD4: 46 | BE4: 47 | BF4: 48 | BG4: 49 | BH4: 50 | BI4: 51 | BJ4: 52 | BK4: 53 | BL4: 54 | BM4: 55 | BN4: 56 | BO4: 57 | BP4: 58 | BQ4: 59 | BR4: 60 | BS4: 61 | BT4: 62 | BU4: 63 | BV4: 64 | BW4: 65 | BX4: 66 | BY4: 67 | BZ4: 68 | CA4: 69 | CB4: 70 | CC4: 71 | CD4: 72 | CE4: 73 | CF4: 74 | CG4: 75 | CH4: 76 | CI4: 77 | CJ4: 78 | CK4: 79 | CL4: 80 | CM4: 81 | CN4: 82 | CO4: 83 | CP4: 84 | CQ4: 85 | CR4: 86 | CS4: 87 | CT4: 88 | CU4: 89 | CV4: 90 | CW4: 91 | CX4: 92 | CY4: 93 | CZ4: 94 | DA4: 95 | DB4: 96 | DC4: 97 | DD4: 98 | DE4: 99 | DF4: 100 | DG4: 101
A6: 1 | B6: Prissatte kostnadsvirkninger | H6: Enhet | J6: ='Generelle forutsetninger'!B10 -> 2019 | K6: =IF($J$6+K4<'Generelle forutsetninger'!$B$10+'Generelle forutsetninger'!$B$11,$J$6+K4,IF(OR(J6="Restverdi",J6=""),"","Restverdi")) -> 2020 | L6: =IF($J$6+L4<'Generelle forutsetninger'!$B$10+'Generelle forutsetninger'!$B$11,$J$6+L4,IF(OR(K6="Restverdi",K6=""),"","Restverdi")) -> 2021 | M6: =IF($J$6+M4<'Generelle forutsetninger'!$B$10+'Generelle forutsetninger'!$B$11,$J$6+M4,IF(OR(L6="Restverdi",L6=""),"","Restverdi")) -> 2022 | N6: =IF($J$6+N4<'Generelle forutsetninger'!$B$10+'Generelle forutsetninger'!$B$11,$J$6+N4,IF(OR(M6="Restverdi",M6=""),"","Restverdi")) -> 2023 | O6: =IF($J$6+O4<'Generelle forutsetninger'!$B$10+'Generelle forutsetninger'!$B$11,$J$6+O4,IF(OR(N6="Restverdi",N6=""),"","Restverdi")) -> 2024 | P6: =IF($J$6+P4<'Generelle forutsetninger'!$B$10+'Generelle forutsetninger'!$B$11,$J$6+P4,IF(OR(O6="Restverdi",O6=""),"","Restverdi")) -> 2025 | Q6: =IF($J$6+Q4<'Generelle forutsetninger'!$B$10+'Generelle forutsetninger'!$B$11,$J$6+Q4,IF(OR(P6="Restverdi",P6=""),"","Restverdi")) -> 2026 | R6: =IF($J$6+R4<'Generelle forutsetninger'!$B$10+'Generelle forutsetninger'!$B$11,$J$6+R4,IF(OR(Q6="Restverdi",Q6=""),"","Restverdi")) -> 2027 | S6: =IF($J$6+S4<'Generelle forutsetninger'!$B$10+'Generelle forutsetninger'!$B$11,$J$6+S4,IF(OR(R6="Restverdi",R6=""),"","Restverdi")) -> 2028 | T6: =IF($J$6+T4<'Generelle forutsetninger'!$B$10+'Generelle forutsetninger'!$B$11,$J$6+T4,IF(OR(S6="Restverdi",S6=""),"","Restverdi")) -> 2029 | U6: =IF($J$6+U4<'Generelle forutsetninger'!$B$10+'Generelle forutsetninger'!$B$11,$J$6+U4,IF(OR(T6="Restverdi",T6=""),"","Restverdi")) -> 2030 | V6: =IF($J$6+V4<'Generelle forutsetninger'!$B$10+'Generelle forutsetninger'!$B$11,$J$6+V4,IF(OR(U6="Restverdi",U6=""),"","Restverdi")) -> 2031 | W6: =IF($J$6+W4<'Generelle forutsetninger'!$B$10+'Generelle forutsetninger'!$B$11,$J$6+W4,IF(OR(V6="Restverdi",V6=""),"","Restverdi")) -> 2032 | X6: =IF($J$6+X4<'Generelle forutsetninger'!$B$10+'Generelle forutsetninger'!$B$11,$J$6+X4,IF(OR(W6="Restverdi",W6=""),"","Restverdi")) -> 2033 | Y6: =IF($J$6+Y4<'Generelle forutsetninger'!$B$10+'Generelle forutsetninger'!$B$11,$J$6+Y4,IF(OR(X6="Restverdi",X6=""),"","Restverdi")) -> Restverdi | Z6: =IF($J$6+Z4<'Generelle forutsetninger'!$B$10+'Generelle forutsetninger'!$B$11,$J$6+Z4,IF(OR(Y6="Restverdi",Y6=""),"","Restverdi")) ->  | AA6: =IF($J$6+AA4<'Generelle forutsetninger'!$B$10+'Generelle forutsetninger'!$B$11,$J$6+AA4,IF(OR(Z6="Restverdi",Z6=""),"","Restverdi")) ->  | AB6: =IF($J$6+AB4<'Generelle forutsetninger'!$B$10+'Generelle forutsetninger'!$B$11,$J$6+AB4,IF(OR(AA6="Restverdi",AA6=""),"","Restverdi")) ->  | AC6: =IF($J$6+AC4<'Generelle forutsetninger'!$B$10+'Generelle forutsetninger'!$B$11,$J$6+AC4,IF(OR(AB6="Restverdi",AB6=""),"","Restverdi")) ->  | AD6: =IF($J$6+AD4<'Generelle forutsetninger'!$B$10+'Generelle forutsetninger'!$B$11,$J$6+AD4,IF(OR(AC6="Restverdi",AC6=""),"","Restverdi")) ->  | AE6: =IF($J$6+AE4<'Generelle forutsetninger'!$B$10+'Generelle forutsetninger'!$B$11,$J$6+AE4,IF(OR(AD6="Restverdi",AD6=""),"","Restverdi")) ->  | AF6: =IF($J$6+AF4<'Generelle forutsetninger'!$B$10+'Generelle forutsetninger'!$B$11,$J$6+AF4,IF(OR(AE6="Restverdi",AE6=""),"","Restverdi")) ->  | AG6: =IF($J$6+AG4<'Generelle forutsetninger'!$B$10+'Generelle forutsetninger'!$B$11,$J$6+AG4,IF(OR(AF6="Restverdi",AF6=""),"","Restverdi")) ->  | AH6: =IF($J$6+AH4<'Generelle forutsetninger'!$B$10+'Generelle forutsetninger'!$B$11,$J$6+AH4,IF(OR(AG6="Restverdi",AG6=""),"","Restverdi")) ->  | AI6: =IF($J$6+AI4<'Generelle forutsetninger'!$B$10+'Generelle forutsetninger'!$B$11,$J$6+AI4,IF(OR(AH6="Restverdi",AH6=""),"","Restverdi")) ->  | AJ6: =IF($J$6+AJ4<'Generelle forutsetninger'!$B$10+'Generelle forutsetninger'!$B$11,$J$6+AJ4,IF(OR(AI6="Restverdi",AI6=""),"","Restverdi")) ->  | AK6: =IF($J$6+AK4<'Generelle forutsetninger'!$B$10+'Generelle forutsetninger'!$B$11,$J$6+AK4,IF(OR(AJ6="Restverdi",AJ6=""),"","Restverdi")) ->  | AL6: =IF($J$6+AL4<'Generelle forutsetninger'!$B$10+'Generelle forutsetninger'!$B$11,$J$6+AL4,IF(OR(AK6="Restverdi",AK6=""),"","Restverdi")) ->  | AM6: =IF($J$6+AM4<'Generelle forutsetninger'!$B$10+'Generelle forutsetninger'!$B$11,$J$6+AM4,IF(OR(AL6="Restverdi",AL6=""),"","Restverdi")) ->  | AN6: =IF($J$6+AN4<'Generelle forutsetninger'!$B$10+'Generelle forutsetninger'!$B$11,$J$6+AN4,IF(OR(AM6="Restverdi",AM6=""),"","Restverdi")) ->  | AO6: =IF($J$6+AO4<'Generelle forutsetninger'!$B$10+'Generelle forutsetninger'!$B$11,$J$6+AO4,IF(OR(AN6="Restverdi",AN6=""),"","Restverdi")) ->  | AP6: =IF($J$6+AP4<'Generelle forutsetninger'!$B$10+'Generelle forutsetninger'!$B$11,$J$6+AP4,IF(OR(AO6="Restverdi",AO6=""),"","Restverdi")) ->  | AQ6: =IF($J$6+AQ4<'Generelle forutsetninger'!$B$10+'Generelle forutsetninger'!$B$11,$J$6+AQ4,IF(OR(AP6="Restverdi",AP6=""),"","Restverdi")) ->  | AR6: =IF($J$6+AR4<'Generelle forutsetninger'!$B$10+'Generelle forutsetninger'!$B$11,$J$6+AR4,IF(OR(AQ6="Restverdi",AQ6=""),"","Restverdi")) ->  | AS6: =IF($J$6+AS4<'Generelle forutsetninger'!$B$10+'Generelle forutsetninger'!$B$11,$J$6+AS4,IF(OR(AR6="Restverdi",AR6=""),"","Restverdi")) ->  | AT6: =IF($J$6+AT4<'Generelle forutsetninger'!$B$10+'Generelle forutsetninger'!$B$11,$J$6+AT4,IF(OR(AS6="Restverdi",AS6=""),"","Restverdi")) ->  | AU6: =IF($J$6+AU4<'Generelle forutsetninger'!$B$10+'Generelle forutsetninger'!$B$11,$J$6+AU4,IF(OR(AT6="Restverdi",AT6=""),"","Restverdi")) ->  | AV6: =IF($J$6+AV4<'Generelle forutsetninger'!$B$10+'Generelle forutsetninger'!$B$11,$J$6+AV4,IF(OR(AU6="Restverdi",AU6=""),"","Restverdi")) ->  | AW6: =IF($J$6+AW4<'Generelle forutsetninger'!$B$10+'Generelle forutsetninger'!$B$11,$J$6+AW4,IF(OR(AV6="Restverdi",AV6=""),"","Restverdi")) ->  | AX6: =IF($J$6+AX4<'Generelle forutsetninger'!$B$10+'Generelle forutsetninger'!$B$11,$J$6+AX4,IF(OR(AW6="Restverdi",AW6=""),"","Restverdi")) ->  | AY6: =IF($J$6+AY4<'Generelle forutsetninger'!$B$10+'Generelle forutsetninger'!$B$11,$J$6+AY4,IF(OR(AX6="Restverdi",AX6=""),"","Restverdi")) ->  | AZ6: =IF($J$6+AZ4<'Generelle forutsetninger'!$B$10+'Generelle forutsetninger'!$B$11,$J$6+AZ4,IF(OR(AY6="Restverdi",AY6=""),"","Restverdi")) ->  | BA6: =IF($J$6+BA4<'Generelle forutsetninger'!$B$10+'Generelle forutsetninger'!$B$11,$J$6+BA4,IF(OR(AZ6="Restverdi",AZ6=""),"","Restverdi")) ->  | BB6: =IF($J$6+BB4<'Generelle forutsetninger'!$B$10+'Generelle forutsetninger'!$B$11,$J$6+BB4,IF(OR(BA6="Restverdi",BA6=""),"","Restverdi")) ->  | BC6: =IF($J$6+BC4<'Generelle forutsetninger'!$B$10+'Generelle forutsetninger'!$B$11,$J$6+BC4,IF(OR(BB6="Restverdi",BB6=""),"","Restverdi")) ->  | BD6: =IF($J$6+BD4<'Generelle forutsetninger'!$B$10+'Generelle forutsetninger'!$B$11,$J$6+BD4,IF(OR(BC6="Restverdi",BC6=""),"","Restverdi")) ->  | BE6: =IF($J$6+BE4<'Generelle forutsetninger'!$B$10+'Generelle forutsetninger'!$B$11,$J$6+BE4,IF(OR(BD6="Restverdi",BD6=""),"","Restverdi")) ->  | BF6: =IF($J$6+BF4<'Generelle forutsetninger'!$B$10+'Generelle forutsetninger'!$B$11,$J$6+BF4,IF(OR(BE6="Restverdi",BE6=""),"","Restverdi")) ->  | BG6: =IF($J$6+BG4<'Generelle forutsetninger'!$B$10+'Generelle forutsetninger'!$B$11,$J$6+BG4,IF(OR(BF6="Restverdi",BF6=""),"","Restverdi")) ->  | BH6: =IF($J$6+BH4<'Generelle forutsetninger'!$B$10+'Generelle forutsetninger'!$B$11,$J$6+BH4,IF(OR(BG6="Restverdi",BG6=""),"","Restverdi")) ->  | BI6: =IF($J$6+BI4<'Generelle forutsetninger'!$B$10+'Generelle forutsetninger'!$B$11,$J$6+BI4,IF(OR(BH6="Restverdi",BH6=""),"","Restverdi")) ->  | BJ6: =IF($J$6+BJ4<'Generelle forutsetninger'!$B$10+'Generelle forutsetninger'!$B$11,$J$6+BJ4,IF(OR(BI6="Restverdi",BI6=""),"","Restverdi")) ->  | BK6: =IF($J$6+BK4<'Generelle forutsetninger'!$B$10+'Generelle forutsetninger'!$B$11,$J$6+BK4,IF(OR(BJ6="Restverdi",BJ6=""),"","Restverdi")) ->  | BL6: =IF($J$6+BL4<'Generelle forutsetninger'!$B$10+'Generelle forutsetninger'!$B$11,$J$6+BL4,IF(OR(BK6="Restverdi",BK6=""),"","Restverdi")) ->  | BM6: =IF($J$6+BM4<'Generelle forutsetninger'!$B$10+'Generelle forutsetninger'!$B$11,$J$6+BM4,IF(OR(BL6="Restverdi",BL6=""),"","Restverdi")) ->  | BN6: =IF($J$6+BN4<'Generelle forutsetninger'!$B$10+'Generelle forutsetninger'!$B$11,$J$6+BN4,IF(OR(BM6="Restverdi",BM6=""),"","Restverdi")) ->  | BO6: =IF($J$6+BO4<'Generelle forutsetninger'!$B$10+'Generelle forutsetninger'!$B$11,$J$6+BO4,IF(OR(BN6="Restverdi",BN6=""),"","Restverdi")) ->  | BP6: =IF($J$6+BP4<'Generelle forutsetninger'!$B$10+'Generelle forutsetninger'!$B$11,$J$6+BP4,IF(OR(BO6="Restverdi",BO6=""),"","Restverdi")) ->  | BQ6: =IF($J$6+BQ4<'Generelle forutsetninger'!$B$10+'Generelle forutsetninger'!$B$11,$J$6+BQ4,IF(OR(BP6="Restverdi",BP6=""),"","Restverdi")) ->  | BR6: =IF($J$6+BR4<'Generelle forutsetninger'!$B$10+'Generelle forutsetninger'!$B$11,$J$6+BR4,IF(OR(BQ6="Restverdi",BQ6=""),"","Restverdi")) ->  | BS6: =IF($J$6+BS4<'Generelle forutsetninger'!$B$10+'Generelle forutsetninger'!$B$11,$J$6+BS4,IF(OR(BR6="Restverdi",BR6=""),"","Restverdi")) ->  | BT6: =IF($J$6+BT4<'Generelle forutsetninger'!$B$10+'Generelle forutsetninger'!$B$11,$J$6+BT4,IF(OR(BS6="Restverdi",BS6=""),"","Restverdi")) ->  | BU6: =IF($J$6+BU4<'Generelle forutsetninger'!$B$10+'Generelle forutsetninger'!$B$11,$J$6+BU4,IF(OR(BT6="Restverdi",BT6=""),"","Restverdi")) ->  | BV6: =IF($J$6+BV4<'Generelle forutsetninger'!$B$10+'Generelle forutsetninger'!$B$11,$J$6+BV4,IF(OR(BU6="Restverdi",BU6=""),"","Restverdi")) ->  | BW6: =IF($J$6+BW4<'Generelle forutsetninger'!$B$10+'Generelle forutsetninger'!$B$11,$J$6+BW4,IF(OR(BV6="Restverdi",BV6=""),"","Restverdi")) ->  | BX6: =IF($J$6+BX4<'Generelle forutsetninger'!$B$10+'Generelle forutsetninger'!$B$11,$J$6+BX4,IF(OR(BW6="Restverdi",BW6=""),"","Restverdi")) ->  | BY6: =IF($J$6+BY4<'Generelle forutsetninger'!$B$10+'Generelle forutsetninger'!$B$11,$J$6+BY4,IF(OR(BX6="Restverdi",BX6=""),"","Restverdi")) ->  | BZ6: =IF($J$6+BZ4<'Generelle forutsetninger'!$B$10+'Generelle forutsetninger'!$B$11,$J$6+BZ4,IF(OR(BY6="Restverdi",BY6=""),"","Restverdi")) ->  | CA6: =IF($J$6+CA4<'Generelle forutsetninger'!$B$10+'Generelle forutsetninger'!$B$11,$J$6+CA4,IF(OR(BZ6="Restverdi",BZ6=""),"","Restverdi")) ->  | CB6: =IF($J$6+CB4<'Generelle forutsetninger'!$B$10+'Generelle forutsetninger'!$B$11,$J$6+CB4,IF(OR(CA6="Restverdi",CA6=""),"","Restverdi")) ->  | CC6: =IF($J$6+CC4<'Generelle forutsetninger'!$B$10+'Generelle forutsetninger'!$B$11,$J$6+CC4,IF(OR(CB6="Restverdi",CB6=""),"","Restverdi")) ->  | CD6: =IF($J$6+CD4<'Generelle forutsetninger'!$B$10+'Generelle forutsetninger'!$B$11,$J$6+CD4,IF(OR(CC6="Restverdi",CC6=""),"","Restverdi")) ->  | CE6: =IF($J$6+CE4<'Generelle forutsetninger'!$B$10+'Generelle forutsetninger'!$B$11,$J$6+CE4,IF(OR(CD6="Restverdi",CD6=""),"","Restverdi")) ->  | CF6: =IF($J$6+CF4<'Generelle forutsetninger'!$B$10+'Generelle forutsetninger'!$B$11,$J$6+CF4,IF(OR(CE6="Restverdi",CE6=""),"","Restverdi")) ->  | CG6: =IF($J$6+CG4<'Generelle forutsetninger'!$B$10+'Generelle forutsetninger'!$B$11,$J$6+CG4,IF(OR(CF6="Restverdi",CF6=""),"","Restverdi")) ->  | CH6: =IF($J$6+CH4<'Generelle forutsetninger'!$B$10+'Generelle forutsetninger'!$B$11,$J$6+CH4,IF(OR(CG6="Restverdi",CG6=""),"","Restverdi")) ->  | CI6: =IF($J$6+CI4<'Generelle forutsetninger'!$B$10+'Generelle forutsetninger'!$B$11,$J$6+CI4,IF(OR(CH6="Restverdi",CH6=""),"","Restverdi")) ->  | CJ6: =IF($J$6+CJ4<'Generelle forutsetninger'!$B$10+'Generelle forutsetninger'!$B$11,$J$6+CJ4,IF(OR(CI6="Restverdi",CI6=""),"","Restverdi")) ->  | CK6: =IF($J$6+CK4<'Generelle forutsetninger'!$B$10+'Generelle forutsetninger'!$B$11,$J$6+CK4,IF(OR(CJ6="Restverdi",CJ6=""),"","Restverdi")) ->  | CL6: =IF($J$6+CL4<'Generelle forutsetninger'!$B$10+'Generelle forutsetninger'!$B$11,$J$6+CL4,IF(OR(CK6="Restverdi",CK6=""),"","Restverdi")) ->  | CM6: =IF($J$6+CM4<'Generelle forutsetninger'!$B$10+'Generelle forutsetninger'!$B$11,$J$6+CM4,IF(OR(CL6="Restverdi",CL6=""),"","Restverdi")) ->  | CN6: =IF($J$6+CN4<'Generelle forutsetninger'!$B$10+'Generelle forutsetninger'!$B$11,$J$6+CN4,IF(OR(CM6="Restverdi",CM6=""),"","Restverdi")) ->  | CO6: =IF($J$6+CO4<'Generelle forutsetninger'!$B$10+'Generelle forutsetninger'!$B$11,$J$6+CO4,IF(OR(CN6="Restverdi",CN6=""),"","Restverdi")) ->  | CP6: =IF($J$6+CP4<'Generelle forutsetninger'!$B$10+'Generelle forutsetninger'!$B$11,$J$6+CP4,IF(OR(CO6="Restverdi",CO6=""),"","Restverdi")) ->  | CQ6: =IF($J$6+CQ4<'Generelle forutsetninger'!$B$10+'Generelle forutsetninger'!$B$11,$J$6+CQ4,IF(OR(CP6="Restverdi",CP6=""),"","Restverdi")) ->  | CR6: =IF($J$6+CR4<'Generelle forutsetninger'!$B$10+'Generelle forutsetninger'!$B$11,$J$6+CR4,IF(OR(CQ6="Restverdi",CQ6=""),"","Restverdi")) ->  | CS6: =IF($J$6+CS4<'Generelle forutsetninger'!$B$10+'Generelle forutsetninger'!$B$11,$J$6+CS4,IF(OR(CR6="Restverdi",CR6=""),"","Restverdi")) ->  | CT6: =IF($J$6+CT4<'Generelle forutsetninger'!$B$10+'Generelle forutsetninger'!$B$11,$J$6+CT4,IF(OR(CS6="Restverdi",CS6=""),"","Restverdi")) ->  | CU6: =IF($J$6+CU4<'Generelle forutsetninger'!$B$10+'Generelle forutsetninger'!$B$11,$J$6+CU4,IF(OR(CT6="Restverdi",CT6=""),"","Restverdi")) ->  | CV6: =IF($J$6+CV4<'Generelle forutsetninger'!$B$10+'Generelle forutsetninger'!$B$11,$J$6+CV4,IF(OR(CU6="Restverdi",CU6=""),"","Restverdi")) ->  | CW6: =IF($J$6+CW4<'Generelle forutsetninger'!$B$10+'Generelle forutsetninger'!$B$11,$J$6+CW4,IF(OR(CV6="Restverdi",CV6=""),"","Restverdi")) ->  | CX6: =IF($J$6+CX4<'Generelle forutsetninger'!$B$10+'Generelle forutsetninger'!$B$11,$J$6+CX4,IF(OR(CW6="Restverdi",CW6=""),"","Restverdi")) ->  | CY6: =IF($J$6+CY4<'Generelle forutsetninger'!$B$10+'Generelle forutsetninger'!$B$11,$J$6+CY4,IF(OR(CX6="Restverdi",CX6=""),"","Restverdi")) ->  | CZ6: =IF($J$6+CZ4<'Generelle forutsetninger'!$B$10+'Generelle forutsetninger'!$B$11,$J$6+CZ4,IF(OR(CY6="Restverdi",CY6=""),"","Restverdi")) ->  | DA6: =IF($J$6+DA4<'Generelle forutsetninger'!$B$10+'Generelle forutsetninger'!$B$11,$J$6+DA4,IF(OR(CZ6="Restverdi",CZ6=""),"","Restverdi")) ->  | DB6: =IF($J$6+DB4<'Generelle forutsetninger'!$B$10+'Generelle forutsetninger'!$B$11,$J$6+DB4,IF(OR(DA6="Restverdi",DA6=""),"","Restverdi")) ->  | DC6: =IF($J$6+DC4<'Generelle forutsetninger'!$B$10+'Generelle forutsetninger'!$B$11,$J$6+DC4,IF(OR(DB6="Restverdi",DB6=""),"","Restverdi")) ->  | DD6: =IF($J$6+DD4<'Generelle forutsetninger'!$B$10+'Generelle forutsetninger'!$B$11,$J$6+DD4,IF(OR(DC6="Restverdi",DC6=""),"","Restverdi")) ->  | DE6: =IF($J$6+DE4<'Generelle forutsetninger'!$B$10+'Generelle forutsetninger'!$B$11,$J$6+DE4,IF(OR(DD6="Restverdi",DD6=""),"","Restverdi")) ->  | DF6: =IF($J$6+DF4<'Generelle forutsetninger'!$B$10+'Generelle forutsetninger'!$B$11,$J$6+DF4,IF(OR(DE6="Restverdi",DE6=""),"","Restverdi")) ->  | DG6: =IF($J$6+DG4<'Generelle forutsetninger'!$B$10+'Generelle forutsetninger'!$B$11,$J$6+DG4,IF(OR(DF6="Restverdi",DF6=""),"","Restverdi")) -> 
A7: 72 | C7: 1 | D7: =1 -> 1 | E7: =1 + Celleref_Skattekostnad -> 1.2 | F7: =0 -> 0 | H7: Kroner
A8: k311 | B8: Kostnader for virksomheten
A9: 24 | B9: Kartlegging utført av kommuneansatte | C9: =Celleref_arsverk -> 770000 | D9: =1 -> 1 | E9: =1 -> 1 | F9: =1 -> 1 | G9: 3 | H9: Årsverk | J9: 3 | K9: 3 | L9: 3 | M9: 3 | N9: 3 | O9: 3 | P9: 3 | Q9: 3 | R9: 3 | S9: 3 | T9: 3 | U9: 3 | V9: 3 | W9: 3 | X9: 3
A10: 25 | B10: Årlig oppryddingsarbeid | C10: =Celleref_arsverk -> 770000 | D10: =1 -> 1 | E10: =1 -> 1 | F10: =1 -> 1 | G10: 8 | H10: Årsverk | J10: 8 | K10: 8 | L10: 8 | M10: 8 | N10: 8 | O10: 8 | P10: 8 | Q10: 8 | R10: 8 | S10: 8 | T10: 8 | U10: 8 | V10: 8 | W10: 8 | X10: 8
A11: k312 | B11: Kostnader for øvrig offentlig sektor
A12: k313 | B12: Kostnader for privat næringsliv
A13: k434 | B13: Kostnader for privatpersoner
A16: B | B16: Prissatte kostnadsvirkninger - direkte virkning | H16: Enhet | I16: Nåverdi | J16: =J6 -> 2019 | K16: 2020 | L16: 2021 | M16: 2022 | N16: 2023 | O16: 2024 | P16: 2025 | Q16: 2026 | R16: 2027 | S16: 2028 | T16: 2029 | U16: 2030 | V16: 2031 | W16: 2032 | X16: 2033 | Y16: Restverdi | BV16: =BV6 -> 
A17: 72 | B17: =VLOOKUP(A17,$A$7:$B$15,2,FALSE) -> 0 | C17: =C7 -> 1 | D17: 1 | E17: 1.2 | F17: 0 | G17: 0 | H17: Kroner | I17: =J17+NPV(Celleref_kalkulasjonsrente,K17:DG17) -> 0 | J17: =-IF(J$6="Restverdi",IF(J7=0,0,J7*$C7*$D7^(I$6+1-$J$6)),IF(J7=0,0,J7*$C7*$D7^(J$6-$J$6))) -> 0 | K17: 0 | L17: 0 | M17: 0 | N17: 0 | O17: 0 | P17: 0 | Q17: 0 | R17: 0 | S17: 0 | T17: 0 | U17: 0 | V17: 0 | W17: 0 | X17: 0 | Y17: 0 | Z17: 0 | AA17: 0 | AB17: 0 | AC17: 0 | AD17: 0 | AE17: 0 | AF17: 0 | AG17: 0 | AH17: 0 | AI17: 0 | AJ17: 0 | AK17: 0 | AL17: 0 | AM17: 0 | AN17: 0 | AO17: 0 | AP17: =-IF(AP$6="Restverdi",IF(AP7=0,0,AP7*$C7*$D7^(AO$6+1-$J$6)),IF(AP7=0,0,AP7*$C7*$D7^(AP$6-$J$6))) -> 0 | AQ17: 0 | AR17: 0 | AS17: 0 | AT17: 0 | AU17: 0 | AV17: 0 | AW17: 0 | AX17: 0 | AY17: 0 | AZ17: 0 | BA17: 0 | BB17: 0 | BC17: 0 | BD17: 0 | BE17: 0 | BF17: 0 | BG17: 0 | BH17: 0 | BI17: 0 | BJ17: 0 | BK17: 0 | BL17: 0 | BM17: 0 | BN17: 0 | BO17: 0 | BP17: 0 | BQ17: 0 | BR17: 0 | BS17: 0 | BT17: 0 | BU17: 0 | BV17: =-IF(BV$6="Restverdi",IF(BV7=0,0,BV7*$C7*$D7^(BU$6+1-$J$6)),IF(BV7=0,0,BV7*$C7*$D7^(BV$6-$J$6))) -> 0 | BW17: 0 | BX17: 0 | BY17: 0 | BZ17: 0 | CA17: 0 | CB17: 0 | CC17: 0 | CD17: 0 | CE17: 0 | CF17: 0 | CG17: 0 | CH17: 0 | CI17: 0 | CJ17: 0 | CK17: 0 | CL17: 0 | CM17: 0 | CN17: 0 | CO17: 0 | CP17: 0 | CQ17: 0 | CR17: 0 | CS17: 0 | CT17: 0 | CU17: 0 | CV17: 0 | CW17: 0 | CX17: 0 | CY17: 0 | CZ17: 0 | DA17: 0 | DB17: =-IF(DB$6="Restverdi",IF(DB7=0,0,DB7*$C7*$D7^(DA$6+1-$J$6)),IF(DB7=0,0,DB7*$C7*$D7^(DB$6-$J$6))) -> 0 | DC17: 0 | DD17: 0 | DE17: 0 | DF17: 0 | DG17: 0
A18: k311 | B18: Kostnader for virksomheten | C18: 0 | D18: 0 | E18: 0 | F18: 0 | G18: 0 | H18: Kroner | I18: 0 | J18: =-IF(J$6="Restverdi",IF(J8=0,0,J8*$C8*$D8^(I$6+1-$J$6)),IF(J8=0,0,J8*$C8*$D8^(J$6-$J$6))) -> 0 | K18: 0 | L18: 0 | M18: 0 | N18: 0 | O18: 0 | P18: 0 | Q18: 0 | R18: 0 | S18: 0 | T18: 0 | U18: 0 | V18: 0 | W18: 0 | X18: 0 | Y18: 0 | Z18: 0 | AA18: 0 | AB18: 0 | AC18: 0 | AD18: 0 | AE18: 0 | AF18: 0 | AG18: 0 | AH18: 0 | AI18: 0 | AJ18: 0 | AK18: 0 | AL18: 0 | AM18: 0 | AN18: 0 | AO18: 0 | AP18: =-IF(AP$6="Restverdi",IF(AP8=0,0,AP8*$C8*$D8^(AO$6+1-$J$6)),IF(AP8=0,0,AP8*$C8*$D8^(AP$6-$J$6))) -> 0 | AQ18: 0 | AR18: 0 | AS18: 0 | AT18: 0 | AU18: 0 | AV18: 0 | AW18: 0 | AX18: 0 | AY18: 0 | AZ18: 0 | BA18: 0 | BB18: 0 | BC18: 0 | BD18: 0 | BE18: 0 | BF18: 0 | BG18: 0 | BH18: 0 | BI18: 0 | BJ18: 0 | BK18: 0 | BL18: 0 | BM18: 0 | BN18: 0 | BO18: 0 | BP18: 0 | BQ18: 0 | BR18: 0 | BS18: 0 | BT18: 0 | BU18: 0 | BV18: =-IF(BV$6="Restverdi",IF(BV8=0,0,BV8*$C8*$D8^(BU$6+1-$J$6)),IF(BV8=0,0,BV8*$C8*$D8^(BV$6-$J$6))) -> 0 | BW18: 0 | BX18: 0 | BY18: 0 | BZ18: 0 | CA18: 0 | CB18: 0 | CC18: 0 | CD18: 0 | CE18: 0 | CF18: 0 | CG18: 0 | CH18: 0 | CI18: 0 | CJ18: 0 | CK18: 0 | CL18: 0 | CM18: 0 | CN18: 0 | CO18: 0 | CP18: 0 | CQ18: 0 | CR18: 0 | CS18: 0 | CT18: 0 | CU18: 0 | CV18: 0 | CW18: 0 | CX18: 0 | CY18: 0 | CZ18: 0 | DA18: 0 | DB18: =-IF(DB$6="Restverdi",IF(DB8=0,0,DB8*$C8*$D8^(DA$6+1-$J$6)),IF(DB8=0,0,DB8*$C8*$D8^(DB$6-$J$6))) -> 0 | DC18: 0 | DD18: 0 | DE18: 0 | DF18: 0 | DG18: 0
A19: 24 | B19: Kartlegging utført av kommuneansatte | C19: 770000 | D19: 1 | E19: 1 | F19: 1 | G19: 3 | H19: Kroner | I19: -26710813.97 | J19: =-IF(J$6="Restverdi",IF(J9=0,0,J9*$C9*$D9^(I$6+1-$J$6)),IF(J9=0,0,J9*$C9*$D9^(J$6-$J$6))) -> -2310000 | K19: -2310000 | L19: -2310000 | M19: -2310000 | N19: -2310000 | O19: -2310000 | P19: -2310000 | Q19: -2310000 | R19: -2310000 | S19: -2310000 | T19: -2310000 | U19: -2310000 | V19: -2310000 | W19: -2310000 | X19: -2310000 | Y19: 0 | Z19: 0 | AA19: 0 | AB19: 0 | AC19: 0 | AD19: 0 | AE19: 0 | AF19: 0 | AG19: 0 | AH19: 0 | AI19: 0 | AJ19: 0 | AK19: 0 | AL19: 0 | AM19: 0 | AN19: 0 | AO19: 0 | AP19: =-IF(AP$6="Restverdi",IF(AP9=0,0,AP9*$C9*$D9^(AO$6+1-$J$6)),IF(AP9=0,0,AP9*$C9*$D9^(AP$6-$J$6))) -> 0 | AQ19: 0 | AR19: 0 | AS19: 0 | AT19: 0 | AU19: 0 | AV19: 0 | AW19: 0 | AX19: 0 | AY19: 0 | AZ19: 0 | BA19: 0 | BB19: 0 | BC19: 0 | BD19: 0 | BE19: 0 | BF19: 0 | BG19: 0 | BH19: 0 | BI19: 0 | BJ19: 0 | BK19: 0 | BL19: 0 | BM19: 0 | BN19: 0 | BO19: 0 | BP19: 0 | BQ19: 0 | BR19: 0 | BS19: 0 | BT19: 0 | BU19: 0 | BV19: =-IF(BV$6="Restverdi",IF(BV9=0,0,BV9*$C9*$D9^(BU$6+1-$J$6)),IF(BV9=0,0,BV9*$C9*$D9^(BV$6-$J$6))) -> 0 | BW19: 0 | BX19: 0 | BY19: 0 | BZ19: 0 | CA19: 0 | CB19: 0 | CC19: 0 | CD19: 0 | CE19: 0 | CF19: 0 | CG19: 0 | CH19: 0 | CI19: 0 | CJ19: 0 | CK19: 0 | CL19: 0 | CM19: 0 | CN19: 0 | CO19: 0 | CP19: 0 | CQ19: 0 | CR19: 0 | CS19: 0 | CT19: 0 | CU19: 0 | CV19: 0 | CW19: 0 | CX19: 0 | CY19: 0 | CZ19: 0 | DA19: 0 | DB19: =-IF(DB$6="Restverdi",IF(DB9=0,0,DB9*$C9*$D9^(DA$6+1-$J$6)),IF(DB9=0,0,DB9*$C9*$D9^(DB$6-$J$6))) -> 0 | DC19: 0 | DD19: 0 | DE19: 0 | DF19: 0 | DG19: 0
A20: 25 | B20: Årlig oppryddingsarbeid | C20: 770000 | D20: 1 | E20: 1 | F20: 1 | G20: 8 | H20: Kroner | I20: -71228837.25 | J20: =-IF(J$6="Restverdi",IF(J10=0,0,J10*$C10*$D10^(I$6+1-$J$6)),IF(J10=0,0,J10*$C10*$D10^(J$6-$J$6))) -> -6160000 | K20: -6160000 | L20: -6160000 | M20: -6160000 | N20: -6160000 | O20: -6160000 | P20: -6160000 | Q20: -6160000 | R20: -6160000 | S20: -6160000 | T20: -6160000 | U20: -6160000 | V20: -6160000 | W20: -6160000 | X20: -6160000 | Y20: 0 | Z20: 0 | AA20: 0 | AB20: 0 | AC20: 0 | AD20: 0 | AE20: 0 | AF20: 0 | AG20: 0 | AH20: 0 | AI20: 0 | AJ20: 0 | AK20: 0 | AL20: 0 | AM20: 0 | AN20: 0 | AO20: 0 | AP20: =-IF(AP$6="Restverdi",IF(AP10=0,0,AP10*$C10*$D10^(AO$6+1-$J$6)),IF(AP10=0,0,AP10*$C10*$D10^(AP$6-$J$6))) -> 0 | AQ20: 0 | AR20: 0 | AS20: 0 | AT20: 0 | AU20: 0 | AV20: 0 | AW20: 0 | AX20: 0 | AY20: 0 | AZ20: 0 | BA20: 0 | BB20: 0 | BC20: 0 | BD20: 0 | BE20: 0 | BF20: 0 | BG20: 0 | BH20: 0 | BI20: 0 | BJ20: 0 | BK20: 0 | BL20: 0 | BM20: 0 | BN20: 0 | BO20: 0 | BP20: 0 | BQ20: 0 | BR20: 0 | BS20: 0 | BT20: 0 | BU20: 0 | BV20: =-IF(BV$6="Restverdi",IF(BV10=0,0,BV10*$C10*$D10^(BU$6+1-$J$6)),IF(BV10=0,0,BV10*$C10*$D10^(BV$6-$J$6))) -> 0 | BW20: 0 | BX20: 0 | BY20: 0 | BZ20: 0 | CA20: 0 | CB20: 0 | CC20: 0 | CD20: 0 | CE20: 0 | CF20: 0 | CG20: 0 | CH20: 0 | CI20: 0 | CJ20: 0 | CK20: 0 | CL20: 0 | CM20: 0 | CN20: 0 | CO20: 0 | CP20: 0 | CQ20: 0 | CR20: 0 | CS20: 0 | CT20: 0 | CU20: 0 | CV20: 0 | CW20: 0 | CX20: 0 | CY20: 0 | CZ20: 0 | DA20: 0 | DB20: =-IF(DB$6="Restverdi",IF(DB10=0,0,DB10*$C10*$D10^(DA$6+1-$J$6)),IF(DB10=0,0,DB10*$C10*$D10^(DB$6-$J$6))) -> 0 | DC20: 0 | DD20: 0 | DE20: 0 | DF20: 0 | DG20: 0
A21: k312 | B21: Kostnader for øvrig offentlig sektor | C21: 0 | D21: 0 | E21: 0 | F21: 0 | G21: 0 | H21: Kroner | I21: 0 | J21: =-IF(J$6="Restverdi",IF(J11=0,0,J11*$C11*$D11^(I$6+1-$J$6)),IF(J11=0,0,J11*$C11*$D11^(J$6-$J$6))) -> 0 | K21: 0 | L21: 0 | M21: 0 | N21: 0 | O21: 0 | P21: 0 | Q21: 0 | R21: 0 | S21: 0 | T21: 0 | U21: 0 | V21: 0 | W21: 0 | X21: 0 | Y21: 0 | Z21: 0 | AA21: 0 | AB21: 0 | AC21: 0 | AD21: 0 | AE21: 0 | AF21: 0 | AG21: 0 | AH21: 0 | AI21: 0 | AJ21: 0 | AK21: 0 | AL21: 0 | AM21: 0 | AN21: 0 | AO21: 0 | AP21: =-IF(AP$6="Restverdi",IF(AP11=0,0,AP11*$C11*$D11^(AO$6+1-$J$6)),IF(AP11=0,0,AP11*$C11*$D11^(AP$6-$J$6))) -> 0 | AQ21: 0 | AR21: 0 | AS21: 0 | AT21: 0 | AU21: 0 | AV21: 0 | AW21: 0 | AX21: 0 | AY21: 0 | AZ21: 0 | BA21: 0 | BB21: 0 | BC21: 0 | BD21: 0 | BE21: 0 | BF21: 0 | BG21: 0 | BH21: 0 | BI21: 0 | BJ21: 0 | BK21: 0 | BL21: 0 | BM21: 0 | BN21: 0 | BO21: 0 | BP21: 0 | BQ21: 0 | BR21: 0 | BS21: 0 | BT21: 0 | BU21: 0 | BV21: =-IF(BV$6="Restverdi",IF(BV11=0,0,BV11*$C11*$D11^(BU$6+1-$J$6)),IF(BV11=0,0,BV11*$C11*$D11^(BV$6-$J$6))) -> 0 | BW21: 0 | BX21: 0 | BY21: 0 | BZ21: 0 | CA21: 0 | CB21: 0 | CC21: 0 | CD21: 0 | CE21: 0 | CF21: 0 | CG21: 0 | CH21: 0 | CI21: 0 | CJ21: 0 | CK21: 0 | CL21: 0 | CM21: 0 | CN21: 0 | CO21: 0 | CP21: 0 | CQ21: 0 | CR21: 0 | CS21: 0 | CT21: 0 | CU21: 0 | CV21: 0 | CW21: 0 | CX21: 0 | CY21: 0 | CZ21: 0 | DA21: 0 | DB21: =-IF(DB$6="Restverdi",IF(DB11=0,0,DB11*$C11*$D11^(DA$6+1-$J$6)),IF(DB11=0,0,DB11*$C11*$D11^(DB$6-$J$6))) -> 0 | DC21: 0 | DD21: 0 | DE21: 0 | DF21: 0 | DG21: 0
A22: k313 | B22: Kostnader for privat næringsliv | C22: 0 | D22: 0 | E22: 0 | F22: 0 | G22: 0 | H22: Kroner | I22: 0 | J22: =-IF(J$6="Restverdi",IF(J12=0,0,J12*$C12*$D12^(I$6+1-$J$6)),IF(J12=0,0,J12*$C12*$D12^(J$6-$J$6))) -> 0 | K22: 0 | L22: 0 | M22: 0 | N22: 0 | O22: 0 | P22: 0 | Q22: 0 | R22: 0 | S22: 0 | T22: 0 | U22: 0 | V22: 0 | W22: 0 | X22: 0 | Y22: 0 | Z22: 0 | AA22: 0 | AB22: 0 | AC22: 0 | AD22: 0 | AE22: 0 | AF22: 0 | AG22: 0 | AH22: 0 | AI22: 0 | AJ22: 0 | AK22: 0 | AL22: 0 | AM22: 0 | AN22: 0 | AO22: 0 | AP22: =-IF(AP$6="Restverdi",IF(AP12=0,0,AP12*$C12*$D12^(AO$6+1-$J$6)),IF(AP12=0,0,AP12*$C12*$D12^(AP$6-$J$6))) -> 0 | AQ22: 0 | AR22: 0 | AS22: 0 | AT22: 0 | AU22: 0 | AV22: 0 | AW22: 0 | AX22: 0 | AY22: 0 | AZ22: 0 | BA22: 0 | BB22: 0 | BC22: 0 | BD22: 0 | BE22: 0 | BF22: 0 | BG22: 0 | BH22: 0 | BI22: 0 | BJ22: 0 | BK22: 0 | BL22: 0 | BM22: 0 | BN22: 0 | BO22: 0 | BP22: 0 | BQ22: 0 | BR22: 0 | BS22: 0 | BT22: 0 | BU22: 0 | BV22: =-IF(BV$6="Restverdi",IF(BV12=0,0,BV12*$C12*$D12^(BU$6+1-$J$6)),IF(BV12=0,0,BV12*$C12*$D12^(BV$6-$J$6))) -> 0 | BW22: 0 | BX22: 0 | BY22: 0 | BZ22: 0 | CA22: 0 | CB22: 0 | CC22: 0 | CD22: 0 | CE22: 0 | CF22: 0 | CG22: 0 | CH22: 0 | CI22: 0 | CJ22: 0 | CK22: 0 | CL22: 0 | CM22: 0 | CN22: 0 | CO22: 0 | CP22: 0 | CQ22: 0 | CR22: 0 | CS22: 0 | CT22: 0 | CU22: 0 | CV22: 0 | CW22: 0 | CX22: 0 | CY22: 0 | CZ22: 0 | DA22: 0 | DB22: =-IF(DB$6="Restverdi",IF(DB12=0,0,DB12*$C12*$D12^(DA$6+1-$J$6)),IF(DB12=0,0,DB12*$C12*$D12^(DB$6-$J$6))) -> 0 | DC22: 0 | DD22: 0 | DE22: 0 | DF22: 0 | DG22: 0
A23: k434 | B23: Kostnader for privatpersoner | C23: 0 | D23: 0 | E23: 0 | F23: 0 | G23: 0 | H23: Kroner | I23: 0 | J23: =-IF(J$6="Restverdi",IF(J13=0,0,J13*$C13*$D13^(I$6+1-$J$6)),IF(J13=0,0,J13*$C13*$D13^(J$6-$J$6))) -> 0 | K23: 0 | L23: 0 | M23: 0 | N23: 0 | O23: 0 | P23: 0 | Q23: 0 | R23: 0 | S23: 0 | T23: 0 | U23: 0 | V23: 0 | W23: 0 | X23: 0 | Y23: 0 | Z23: 0 | AA23: 0 | AB23: 0 | AC23: 0 | AD23: 0 | AE23: 0 | AF23: 0 | AG23: 0 | AH23: 0 | AI23: 0 | AJ23: 0 | AK23: 0 | AL23: 0 | AM23: 0 | AN23: 0 | AO23: 0 | AP23: =-IF(AP$6="Restverdi",IF(AP13=0,0,AP13*$C13*$D13^(AO$6+1-$J$6)),IF(AP13=0,0,AP13*$C13*$D13^(AP$6-$J$6))) -> 0 | AQ23: 0 | AR23: 0 | AS23: 0 | AT23: 0 | AU23: 0 | AV23: 0 | AW23: 0 | AX23: 0 | AY23: 0 | AZ23: 0 | BA23: 0 | BB23: 0 | BC23: 0 | BD23: 0 | BE23: 0 | BF23: 0 | BG23: 0 | BH23: 0 | BI23: 0 | BJ23: 0 | BK23: 0 | BL23: 0 | BM23: 0 | BN23: 0 | BO23: 0 | BP23: 0 | BQ23: 0 | BR23: 0 | BS23: 0 | BT23: 0 | BU23: 0 | BV23: =-IF(BV$6="Restverdi",IF(BV13=0,0,BV13*$C13*$D13^(BU$6+1-$J$6)),IF(BV13=0,0,BV13*$C13*$D13^(BV$6-$J$6))) -> 0 | BW23: 0 | BX23: 0 | BY23: 0 | BZ23: 0 | CA23: 0 | CB23: 0 | CC23: 0 | CD23: 0 | CE23: 0 | CF23: 0 | CG23: 0 | CH23: 0 | CI23: 0 | CJ23: 0 | CK23: 0 | CL23: 0 | CM23: 0 | CN23: 0 | CO23: 0 | CP23: 0 | CQ23: 0 | CR23: 0 | CS23: 0 | CT23: 0 | CU23: 0 | CV23: 0 | CW23: 0 | CX23: 0 | CY23: 0 | CZ23: 0 | DA23: 0 | DB23: =-IF(DB$6="Restverdi",IF(DB13=0,0,DB13*$C13*$D13^(DA$6+1-$J$6)),IF(DB13=0,0,DB13*$C13*$D13^(DB$6-$J$6))) -> 0 | DC23: 0 | DD23: 0 | DE23: 0 | DF23: 0 | DG23: 0
A26: S | B26: Prissatte kostnadsvirkninger - Skattefinansieringskostnad | H26: Enhet | I26: Nåverdi | J26: =J16 -> 2019 | K26: 2020 | L26: 2021 | M26: 2022 | N26: 2023 | O26: 2024 | P26: 2025 | Q26: 2026 | R26: 2027 | S26: 2028 | T26: 2029 | U26: 2030 | V26: 2031 | W26: 2032 | X26: 2033 | Y26: Restverdi | BV26: =BV16 -> 
A27: 72 | B27: =VLOOKUP(A27,$A$7:$B$15,2,FALSE) -> 0 | H27: Kroner | I27: =J27+NPV(Celleref_kalkulasjonsrente,K27:DG27) -> 0 | J27: =IF(J7=0,0,J17*($E7-1)) -> 0 | K27: 0 | L27: 0 | M27: 0 | N27: 0 | O27: 0 | P27: 0 | Q27: 0 | R27: 0 | S27: 0 | T27: 0 | U27: 0 | V27: 0 | W27: 0 | X27: 0 | Y27: 0 | Z27: 0 | AA27: 0 | AB27: 0 | AC27: 0 | AD27: 0 | AE27: 0 | AF27: 0 | AG27: 0 | AH27: 0 | AI27: 0 | AJ27: 0 | AK27: 0 | AL27: 0 | AM27: 0 | AN27: 0 | AO27: 0 | AP27: =IF(AP7=0,0,AP17*($E7-1)) -> 0 | AQ27: 0 | AR27: 0 | AS27: 0 | AT27: 0 | AU27: 0 | AV27: 0 | AW27: 0 | AX27: 0 | AY27: 0 | AZ27: 0 | BA27: 0 | BB27: 0 | BC27: 0 | BD27: 0 | BE27: 0 | BF27: 0 | BG27: 0 | BH27: 0 | BI27: 0 | BJ27: 0 | BK27: 0 | BL27: 0 | BM27: 0 | BN27: 0 | BO27: 0 | BP27: 0 | BQ27: 0 | BR27: 0 | BS27: 0 | BT27: 0 | BU27: 0 | BV27: =IF(BV7=0,0,BV17*($E7-1)) -> 0 | BW27: 0 | BX27: 0 | BY27: 0 | BZ27: 0 | CA27: 0 | CB27: 0 | CC27: 0 | CD27: 0 | CE27: 0 | CF27: 0 | CG27: 0 | CH27: 0 | CI27: 0 | CJ27: 0 | CK27: 0 | CL27: 0 | CM27: 0 | CN27: 0 | CO27: 0 | CP27: 0 | CQ27: 0 | CR27: 0 | CS27: 0 | CT27: 0 | CU27: 0 | CV27: 0 | CW27: 0 | CX27: 0 | CY27: 0 | CZ27: 0 | DA27: 0 | DB27: =IF(DB7=0,0,DB17*($E7-1)) -> 0 | DC27: 0 | DD27: 0 | DE27: 0 | DF27: 0 | DG27: 0
A28: k311 | B28: Kostnader for virksomheten | H28: Kroner | I28: 0 | J28: =IF(J8=0,0,J18*($E8-1)) -> 0 | K28: 0 | L28: 0 | M28: 0 | N28: 0 | O28: 0 | P28: 0 | Q28: 0 | R28: 0 | S28: 0 | T28: 0 | U28: 0 | V28: 0 | W28: 0 | X28: 0 | Y28: 0 | Z28: 0 | AA28: 0 | AB28: 0 | AC28: 0 | AD28: 0 | AE28: 0 | AF28: 0 | AG28: 0 | AH28: 0 | AI28: 0 | AJ28: 0 | AK28: 0 | AL28: 0 | AM28: 0 | AN28: 0 | AO28: 0 | AP28: =IF(AP8=0,0,AP18*($E8-1)) -> 0 | AQ28: 0 | AR28: 0 | AS28: 0 | AT28: 0 | AU28: 0 | AV28: 0 | AW28: 0 | AX28: 0 | AY28: 0 | AZ28: 0 | BA28: 0 | BB28: 0 | BC28: 0 | BD28: 0 | BE28: 0 | BF28: 0 | BG28: 0 | BH28: 0 | BI28: 0 | BJ28: 0 | BK28: 0 | BL28: 0 | BM28: 0 | BN28: 0 | BO28: 0 | BP28: 0 | BQ28: 0 | BR28: 0 | BS28: 0 | BT28: 0 | BU28: 0 | BV28: =IF(BV8=0,0,BV18*($E8-1)) -> 0 | BW28: 0 | BX28: 0 | BY28: 0 | BZ28: 0 | CA28: 0 | CB28: 0 | CC28: 0 | CD28: 0 | CE28: 0 | CF28: 0 | CG28: 0 | CH28: 0 | CI28: 0 | CJ28: 0 | CK28: 0 | CL28: 0 | CM28: 0 | CN28: 0 | CO28: 0 | CP28: 0 | CQ28: 0 | CR28: 0 | CS28: 0 | CT28: 0 | CU28: 0 | CV28: 0 | CW28: 0 | CX28: 0 | CY28: 0 | CZ28: 0 | DA28: 0 | DB28: =IF(DB8=0,0,DB18*($E8-1)) -> 0 | DC28: 0 | DD28: 0 | DE28: 0 | DF28: 0 | DG28: 0
A29: 24 | B29: Kartlegging utført av kommuneansatte | H29: Kroner | I29: 0 | J29: =IF(J9=0,0,J19*($E9-1)) -> 0 | K29: 0 | L29: 0 | M29: 0 | N29: 0 | O29: 0 | P29: 0 | Q29: 0 | R29: 0 | S29: 0 | T29: 0 | U29: 0 | V29: 0 | W29: 0 | X29: 0 | Y29: 0 | Z29: 0 | AA29: 0 | AB29: 0 | AC29: 0 | AD29: 0 | AE29: 0 | AF29: 0 | AG29: 0 | AH29: 0 | AI29: 0 | AJ29: 0 | AK29: 0 | AL29: 0 | AM29: 0 | AN29: 0 | AO29: 0 | AP29: =IF(AP9=0,0,AP19*($E9-1)) -> 0 | AQ29: 0 | AR29: 0 | AS29: 0 | AT29: 0 | AU29: 0 | AV29: 0 | AW29: 0 | AX29: 0 | AY29: 0 | AZ29: 0 | BA29: 0 | BB29: 0 | BC29: 0 | BD29: 0 | BE29: 0 | BF29: 0 | BG29: 0 | BH29: 0 | BI29: 0 | BJ29: 0 | BK29: 0 | BL29: 0 | BM29: 0 | BN29: 0 | BO29: 0 | BP29: 0 | BQ29: 0 | BR29: 0 | BS29: 0 | BT29: 0 | BU29: 0 | BV29: =IF(BV9=0,0,BV19*($E9-1)) -> 0 | BW29: 0 | BX29: 0 | BY29: 0 | BZ29: 0 | CA29: 0 | CB29: 0 | CC29: 0 | CD29: 0 | CE29: 0 | CF29: 0 | CG29: 0 | CH29: 0 | CI29: 0 | CJ29: 0 | CK29: 0 | CL29: 0 | CM29: 0 | CN29: 0 | CO29: 0 | CP29: 0 | CQ29: 0 | CR29: 0 | CS29: 0 | CT29: 0 | CU29: 0 | CV29: 0 | CW29: 0 | CX29: 0 | CY29: 0 | CZ29: 0 | DA29: 0 | DB29: =IF(DB9=0,0,DB19*($E9-1)) -> 0 | DC29: 0 | DD29: 0 | DE29: 0 | DF29: 0 | DG29: 0
A30: 25 | B30: Årlig oppryddingsarbeid | H30: Kroner | I30: 0 | J30: =IF(J10=0,0,J20*($E10-1)) -> 0 | K30: 0 | L30: 0 | M30: 0 | N30: 0 | O30: 0 | P30: 0 | Q30: 0 | R30: 0 | S30: 0 | T30: 0 | U30: 0 | V30: 0 | W30: 0 | X30: 0 | Y30: 0 | Z30: 0 | AA30: 0 | AB30: 0 | AC30: 0 | AD30: 0 | AE30: 0 | AF30: 0 | AG30: 0 | AH30: 0 | AI30: 0 | AJ30: 0 | AK30: 0 | AL30: 0 | AM30: 0 | AN30: 0 | AO30: 0 | AP30: =IF(AP10=0,0,AP20*($E10-1)) -> 0 | AQ30: 0 | AR30: 0 | AS30: 0 | AT30: 0 | AU30: 0 | AV30: 0 | AW30: 0 | AX30: 0 | AY30: 0 | AZ30: 0 | BA30: 0 | BB30: 0 | BC30: 0 | BD30: 0 | BE30: 0 | BF30: 0 | BG30: 0 | BH30: 0 | BI30: 0 | BJ30: 0 | BK30: 0 | BL30: 0 | BM30: 0 | BN30: 0 | BO30: 0 | BP30: 0 | BQ30: 0 | BR30: 0 | BS30: 0 | BT30: 0 | BU30: 0 | BV30: =IF(BV10=0,0,BV20*($E10-1)) -> 0 | BW30: 0 | BX30: 0 | BY30: 0 | BZ30: 0 | CA30: 0 | CB30: 0 | CC30: 0 | CD30: 0 | CE30: 0 | CF30: 0 | CG30: 0 | CH30: 0 | CI30: 0 | CJ30: 0 | CK30: 0 | CL30: 0 | CM30: 0 | CN30: 0 | CO30: 0 | CP30: 0 | CQ30: 0 | CR30: 0 | CS30: 0 | CT30: 0 | CU30: 0 | CV30: 0 | CW30: 0 | CX30: 0 | CY30: 0 | CZ30: 0 | DA30: 0 | DB30: =IF(DB10=0,0,DB20*($E10-1)) -> 0 | DC30: 0 | DD30: 0 | DE30: 0 | DF30: 0 | DG30: 0
A31: k312 | B31: Kostnader for øvrig offentlig sektor | H31: Kroner | I31: 0 | J31: =IF(J11=0,0,J21*($E11-1)) -> 0 | K31: 0 | L31: 0 | M31: 0 | N31: 0 | O31: 0 | P31: 0 | Q31: 0 | R31: 0 | S31: 0 | T31: 0 | U31: 0 | V31: 0 | W31: 0 | X31: 0 | Y31: 0 | Z31: 0 | AA31: 0 | AB31: 0 | AC31: 0 | AD31: 0 | AE31: 0 | AF31: 0 | AG31: 0 | AH31: 0 | AI31: 0 | AJ31: 0 | AK31: 0 | AL31: 0 | AM31: 0 | AN31: 0 | AO31: 0 | AP31: =IF(AP11=0,0,AP21*($E11-1)) -> 0 | AQ31: 0 | AR31: 0 | AS31: 0 | AT31: 0 | AU31: 0 | AV31: 0 | AW31: 0 | AX31: 0 | AY31: 0 | AZ31: 0 | BA31: 0 | BB31: 0 | BC31: 0 | BD31: 0 | BE31: 0 | BF31: 0 | BG31: 0 | BH31: 0 | BI31: 0 | BJ31: 0 | BK31: 0 | BL31: 0 | BM31: 0 | BN31: 0 | BO31: 0 | BP31: 0 | BQ31: 0 | BR31: 0 | BS31: 0 | BT31: 0 | BU31: 0 | BV31: =IF(BV11=0,0,BV21*($E11-1)) -> 0 | BW31: 0 | BX31: 0 | BY31: 0 | BZ31: 0 | CA31: 0 | CB31: 0 | CC31: 0 | CD31: 0 | CE31: 0 | CF31: 0 | CG31: 0 | CH31: 0 | CI31: 0 | CJ31: 0 | CK31: 0 | CL31: 0 | CM31: 0 | CN31: 0 | CO31: 0 | CP31: 0 | CQ31: 0 | CR31: 0 | CS31: 0 | CT31: 0 | CU31: 0 | CV31: 0 | CW31: 0 | CX31: 0 | CY31: 0 | CZ31: 0 | DA31: 0 | DB31: =IF(DB11=0,0,DB21*($E11-1)) -> 0 | DC31: 0 | DD31: 0 | DE31: 0 | DF31: 0 | DG31: 0
A32: k313 | B32: Kostnader for privat næringsliv | H32: Kroner | I32: 0 | J32: =IF(J12=0,0,J22*($E12-1)) -> 0 | K32: 0 | L32: 0 | M32: 0 | N32: 0 | O32: 0 | P32: 0 | Q32: 0 | R32: 0 | S32: 0 | T32: 0 | U32: 0 | V32: 0 | W32: 0 | X32: 0 | Y32: 0 | Z32: 0 | AA32: 0 | AB32: 0 | AC32: 0 | AD32: 0 | AE32: 0 | AF32: 0 | AG32: 0 | AH32: 0 | AI32: 0 | AJ32: 0 | AK32: 0 | AL32: 0 | AM32: 0 | AN32: 0 | AO32: 0 | AP32: =IF(AP12=0,0,AP22*($E12-1)) -> 0 | AQ32: 0 | AR32: 0 | AS32: 0 | AT32: 0 | AU32: 0 | AV32: 0 | AW32: 0 | AX32: 0 | AY32: 0 | AZ32: 0 | BA32: 0 | BB32: 0 | BC32: 0 | BD32: 0 | BE32: 0 | BF32: 0 | BG32: 0 | BH32: 0 | BI32: 0 | BJ32: 0 | BK32: 0 | BL32: 0 | BM32: 0 | BN32: 0 | BO32: 0 | BP32: 0 | BQ32: 0 | BR32: 0 | BS32: 0 | BT32: 0 | BU32: =IF(BU12=0,0,BU22*($E12-1)) -> 0 | BV32: =IF(BV12=0,0,BV22*($E12-1)) -> 0 | BW32: 0 | BX32: 0 | BY32: 0 | BZ32: 0 | CA32: 0 | CB32: 0 | CC32: 0 | CD32: 0 | CE32: 0 | CF32: 0 | CG32: 0 | CH32: 0 | CI32: 0 | CJ32: 0 | CK32: 0 | CL32: 0 | CM32: 0 | CN32: 0 | CO32: 0 | CP32: 0 | CQ32: 0 | CR32: 0 | CS32: 0 | CT32: 0 | CU32: 0 | CV32: 0 | CW32: 0 | CX32: 0 | CY32: 0 | CZ32: 0 | DA32: 0 | DB32: 0 | DC32: 0 | DD32: 0 | DE32: 0 | DF32: 0 | DG32: 0
A33: k434 | B33: Kostnader for privatpersoner | H33: Kroner | I33: 0 | J33: =IF(J13=0,0,J23*($E13-1)) -> 0 | K33: 0 | L33: 0 | M33: 0 | N33: 0 | O33: 0 | P33: 0 | Q33: 0 | R33: 0 | S33: 0 | T33: 0 | U33: 0 | V33: 0 | W33: 0 | X33: 0 | Y33: 0 | Z33: 0 | AA33: 0 | AB33: 0 | AC33: 0 | AD33: 0 | AE33: 0 | AF33: 0 | AG33: 0 | AH33: 0 | AI33: 0 | AJ33: 0 | AK33: 0 | AL33: 0 | AM33: 0 | AN33: 0 | AO33: 0 | AP33: 0 | AQ33: 0 | AR33: 0 | AS33: 0 | AT33: 0 | AU33: 0 | AV33: 0 | AW33: 0 | AX33: 0 | AY33: 0 | AZ33: 0 | BA33: 0 | BB33: 0 | BC33: 0 | BD33: 0 | BE33: 0 | BF33: 0 | BG33: 0 | BH33: 0 | BI33: 0 | BJ33: 0 | BK33: 0 | BL33: 0 | BM33: 0 | BN33: 0 | BO33: 0 | BP33: 0 | BQ33: 0 | BR33: 0 | BS33: 0 | BT33: 0 | BU33: 0 | BV33: =IF(BV13=0,0,BV23*($E13-1)) -> 0 | BW33: 0 | BX33: 0 | BY33: 0 | BZ33: 0 | CA33: 0 | CB33: 0 | CC33: 0 | CD33: 0 | CE33: 0 | CF33: 0 | CG33: 0 | CH33: 0 | CI33: 0 | CJ33: 0 | CK33: 0 | CL33: 0 | CM33: 0 | CN33: 0 | CO33: 0 | CP33: 0 | CQ33: 0 | CR33: 0 | CS33: 0 | CT33: 0 | CU33: 0 | CV33: 0 | CW33: 0 | CX33: 0 | CY33: 0 | CZ33: 0 | DA33: 0 | DB33: 0 | DC33: 0 | DD33: 0 | DE33: 0 | DF33: 0 | DG33: 0

Sheet Kostnad alternativ 1
A1: Kostnad alternativ 1 | B1: Alternativnavn: | C1: =VLOOKUP(RIGHT(A1,12),Alternativområde,2,FALSE) -> Droner
J4: 0 | K4: 1 | L4: 2 | M4: 3 | N4: 4 | O4: 5 | P4: 6 | Q4: 7 | R4: 8 | S4: 9 | T4: 10 | U4: 11 | V4: 12 | W4: 13 | X4: 14 | Y4: 15 | Z4: 16 | AA4: 17 | AB4: 18 | AC4: 19 | AD4: 20 | AE4: 21 | AF4: 22 | AG4: 23 | AH4: 24 | AI4: 25 | AJ4: 26 | AK4: 27 | AL4: 28 | AM4: 29 | AN4: 30 | AO4: 31 | AP4: 32 | AQ4: 33 | AR4: 34 | AS4: 35 | AT4: 36 | AU4: 37 | AV4: 38 | AW4: 39 | AX4: 40 | AY4: 41 | AZ4: 42 | BA4: 43 | BB4: 44 | BC4: 45 | BD4: 46 | BE4: 47 | BF4: 48 | BG4: 49 | BH4: 50 | BI4: 51 | BJ4: 52 | BK4: 53 | BL4: 54 | BM4: 55 | BN4: 56 | BO4: 57 | BP4: 58 | BQ4: 59 | BR4: 60 | BS4: 61 | BT4: 62 | BU4: 63 | BV4: 64 | BW4: 65 | BX4: 66 | BY4: 67 | BZ4: 68 | CA4: 69 | CB4: 70 | CC4: 71 | CD4: 72 | CE4: 73 | CF4: 74 | CG4: 75 | CH4: 76 | CI4: 77 | CJ4: 78 | CK4: 79 | CL4: 80 | CM4: 81 | CN4: 82 | CO4: 83 | CP4: 84 | CQ4: 85 | CR4: 86 | CS4: 87 | CT4: 88 | CU4: 89 | CV4: 90 | CW4: 91 | CX4: 92 | CY4: 93 | CZ4: 94 | DA4: 95 | DB4: 96 | DC4: 97 | DD4: 98 | DE4: 99 | DF4: 100 | DG4: 101
A6: 1 | B6: Prissatte kostnadsvirkninger | H6: Enhet | J6: ='Generelle forutsetninger'!B10 -> 2019 | K6: =IF($J$6+K4<'Generelle forutsetninger'!$B$10+'Generelle forutsetninger'!$B$11,$J$6+K4,IF(OR(J6="Restverdi",J6=""),"","Restverdi")) -> 2020 | L6: =IF($J$6+L4<'Generelle forutsetninger'!$B$10+'Generelle forutsetninger'!$B$11,$J$6+L4,IF(OR(K6="Restverdi",K6=""),"","Restverdi")) -> 2021 | M6: =IF($J$6+M4<'Generelle forutsetninger'!$B$10+'Generelle forutsetninger'!$B$11,$J$6+M4,IF(OR(L6="Restverdi",L6=""),"","Restverdi")) -> 2022 | N6: =IF($J$6+N4<'Generelle forutsetninger'!$B$10+'Generelle forutsetninger'!$B$11,$J$6+N4,IF(OR(M6="Restverdi",M6=""),"","Restverdi")) -> 2023 | O6: =IF($J$6+O4<'Generelle forutsetninger'!$B$10+'Generelle forutsetninger'!$B$11,$J$6+O4,IF(OR(N6="Restverdi",N6=""),"","Restverdi")) -> 2024 | P6: =IF($J$6+P4<'Generelle forutsetninger'!$B$10+'Generelle forutsetninger'!$B$11,$J$6+P4,IF(OR(O6="Restverdi",O6=""),"","Restverdi")) -> 2025 | Q6: =IF($J$6+Q4<'Generelle forutsetninger'!$B$10+'Generelle forutsetninger'!$B$11,$J$6+Q4,IF(OR(P6="Restverdi",P6=""),"","Restverdi")) -> 2026 | R6: =IF($J$6+R4<'Generelle forutsetninger'!$B$10+'Generelle forutsetninger'!$B$11,$J$6+R4,IF(OR(Q6="Restverdi",Q6=""),"","Restverdi")) -> 2027 | S6: =IF($J$6+S4<'Generelle forutsetninger'!$B$10+'Generelle forutsetninger'!$B$11,$J$6+S4,IF(OR(R6="Restverdi",R6=""),"","Restverdi")) -> 2028 | T6: =IF($J$6+T4<'Generelle forutsetninger'!$B$10+'Generelle forutsetninger'!$B$11,$J$6+T4,IF(OR(S6="Restverdi",S6=""),"","Restverdi")) -> 2029 | U6: =IF($J$6+U4<'Generelle forutsetninger'!$B$10+'Generelle forutsetninger'!$B$11,$J$6+U4,IF(OR(T6="Restverdi",T6=""),"","Restverdi")) -> 2030 | V6: =IF($J$6+V4<'Generelle forutsetninger'!$B$10+'Generelle forutsetninger'!$B$11,$J$6+V4,IF(OR(U6="Restverdi",U6=""),"","Restverdi")) -> 2031 | W6: =IF($J$6+W4<'Generelle forutsetninger'!$B$10+'Generelle forutsetninger'!$B$11,$J$6+W4,IF(OR(V6="Restverdi",V6=""),"","Restverdi")) -> 2032 | X6: =IF($J$6+X4<'Generelle forutsetninger'!$B$10+'Generelle forutsetninger'!$B$11,$J$6+X4,IF(OR(W6="Restverdi",W6=""),"","Restverdi")) -> 2033 | Y6: =IF($J$6+Y4<'Generelle forutsetninger'!$B$10+'Generelle forutsetninger'!$B$11,$J$6+Y4,IF(OR(X6="Restverdi",X6=""),"","Restverdi")) -> Restverdi | Z6: =IF($J$6+Z4<'Generelle forutsetninger'!$B$10+'Generelle forutsetninger'!$B$11,$J$6+Z4,IF(OR(Y6="Restverdi",Y6=""),"","Restverdi")) ->  | AA6: =IF($J$6+AA4<'Generelle forutsetninger'!$B$10+'Generelle forutsetninger'!$B$11,$J$6+AA4,IF(OR(Z6="Restverdi",Z6=""),"","Restverdi")) ->  | AB6: =IF($J$6+AB4<'Generelle forutsetninger'!$B$10+'Generelle forutsetninger'!$B$11,$J$6+AB4,IF(OR(AA6="Restverdi",AA6=""),"","Restverdi")) ->  | AC6: =IF($J$6+AC4<'Generelle forutsetninger'!$B$10+'Generelle forutsetninger'!$B$11,$J$6+AC4,IF(OR(AB6="Restverdi",AB6=""),"","Restverdi")) ->  | AD6: =IF($J$6+AD4<'Generelle forutsetninger'!$B$10+'Generelle forutsetninger'!$B$11,$J$6+AD4,IF(OR(AC6="Restverdi",AC6=""),"","Restverdi")) ->  | AE6: =IF($J$6+AE4<'Generelle forutsetninger'!$B$10+'Generelle forutsetninger'!$B$11,$J$6+AE4,IF(OR(AD6="Restverdi",AD6=""),"","Restverdi")) ->  | AF6: =IF($J$6+AF4<'Generelle forutsetninger'!$B$10+'Generelle forutsetninger'!$B$11,$J$6+AF4,IF(OR(AE6="Restverdi",AE6=""),"","Restverdi")) ->  | AG6: =IF($J$6+AG4<'Generelle forutsetninger'!$B$10+'Generelle forutsetninger'!$B$11,$J$6+AG4,IF(OR(AF6="Restverdi",AF6=""),"","Restverdi")) ->  | AH6: =IF($J$6+AH4<'Generelle forutsetninger'!$B$10+'Generelle forutsetninger'!$B$11,$J$6+AH4,IF(OR(AG6="Restverdi",AG6=""),"","Restverdi")) ->  | AI6: =IF($J$6+AI4<'Generelle forutsetninger'!$B$10+'Generelle forutsetninger'!$B$11,$J$6+AI4,IF(OR(AH6="Restverdi",AH6=""),"","Restverdi")) ->  | AJ6: =IF($J$6+AJ4<'Generelle forutsetninger'!$B$10+'Generelle forutsetninger'!$B$11,$J$6+AJ4,IF(OR(AI6="Restverdi",AI6=""),"","Restverdi")) ->  | AK6: =IF($J$6+AK4<'Generelle forutsetninger'!$B$10+'Generelle forutsetninger'!$B$11,$J$6+AK4,IF(OR(AJ6="Restverdi",AJ6=""),"","Restverdi")) ->  | AL6: =IF($J$6+AL4<'Generelle forutsetninger'!$B$10+'Generelle forutsetninger'!$B$11,$J$6+AL4,IF(OR(AK6="Restverdi",AK6=""),"","Restverdi")) ->  | AM6: =IF($J$6+AM4<'Generelle forutsetninger'!$B$10+'Generelle forutsetninger'!$B$11,$J$6+AM4,IF(OR(AL6="Restverdi",AL6=""),"","Restverdi")) ->  | AN6: =IF($J$6+AN4<'Generelle forutsetninger'!$B$10+'Generelle forutsetninger'!$B$11,$J$6+AN4,IF(OR(AM6="Restverdi",AM6=""),"","Restverdi")) ->  | AO6: =IF($J$6+AO4<'Generelle forutsetninger'!$B$10+'Generelle forutsetninger'!$B$11,$J$6+AO4,IF(OR(AN6="Restverdi",AN6=""),"","Restverdi")) ->  | AP6: =IF($J$6+AP4<'Generelle forutsetninger'!$B$10+'Generelle forutsetninger'!$B$11,$J$6+AP4,IF(OR(AO6="Restverdi",AO6=""),"","Restverdi")) ->  | AQ6: =IF($J$6+AQ4<'Generelle forutsetninger'!$B$10+'Generelle forutsetninger'!$B$11,$J$6+AQ4,IF(OR(AP6="Restverdi",AP6=""),"","Restverdi")) ->  | AR6: =IF($J$6+AR4<'Generelle forutsetninger'!$B$10+'Generelle forutsetninger'!$B$11,$J$6+AR4,IF(OR(AQ6="Restverdi",AQ6=""),"","Restverdi")) ->  | AS6: =IF($J$6+AS4<'Generelle forutsetninger'!$B$10+'Generelle forutsetninger'!$B$11,$J$6+AS4,IF(OR(AR6="Restverdi",AR6=""),"","Restverdi")) ->  | AT6: =IF($J$6+AT4<'Generelle forutsetninger'!$B$10+'Generelle forutsetninger'!$B$11,$J$6+AT4,IF(OR(AS6="Restverdi",AS6=""),"","Restverdi")) ->  | AU6: =IF($J$6+AU4<'Generelle forutsetninger'!$B$10+'Generelle forutsetninger'!$B$11,$J$6+AU4,IF(OR(AT6="Restverdi",AT6=""),"","Restverdi")) ->  | AV6: =IF($J$6+AV4<'Generelle forutsetninger'!$B$10+'Generelle forutsetninger'!$B$11,$J$6+AV4,IF(OR(AU6="Restverdi",AU6=""),"","Restverdi")) ->  | AW6: =IF($J$6+AW4<'Generelle forutsetninger'!$B$10+'Generelle forutsetninger'!$B$11,$J$6+AW4,IF(OR(AV6="Restverdi",AV6=""),"","Restverdi")) ->  | AX6: =IF($J$6+AX4<'Generelle forutsetninger'!$B$10+'Generelle forutsetninger'!$B$11,$J$6+AX4,IF(OR(AW6="Restverdi",AW6=""),"","Restverdi")) ->  | AY6: =IF($J$6+AY4<'Generelle forutsetninger'!$B$10+'Generelle forutsetninger'!$B$11,$J$6+AY4,IF(OR(AX6="Restverdi",AX6=""),"","Restverdi")) ->  | AZ6: =IF($J$6+AZ4<'Generelle forutsetninger'!$B$10+'Generelle forutsetninger'!$B$11,$J$6+AZ4,IF(OR(AY6="Restverdi",AY6=""),"","Restverdi")) ->  | BA6: =IF($J$6+BA4<'Generelle forutsetninger'!$B$10+'Generelle forutsetninger'!$B$11,$J$6+BA4,IF(OR(AZ6="Restverdi",AZ6=""),"","Restverdi")) ->  | BB6: =IF($J$6+BB4<'Generelle forutsetninger'!$B$10+'Generelle forutsetninger'!$B$11,$J$6+BB4,IF(OR(BA6="Restverdi",BA6=""),"","Restverdi")) ->  | BC6: =IF($J$6+BC4<'Generelle forutsetninger'!$B$10+'Generelle forutsetninger'!$B$11,$J$6+BC4,IF(OR(BB6="Restverdi",BB6=""),"","Restverdi")) ->  | BD6: =IF($J$6+BD4<'Generelle forutsetninger'!$B$10+'Generelle forutsetninger'!$B$11,$J$6+BD4,IF(OR(BC6="Restverdi",BC6=""),"","Restverdi")) ->  | BE6: =IF($J$6+BE4<'Generelle forutsetninger'!$B$10+'Generelle forutsetninger'!$B$11,$J$6+BE4,IF(OR(BD6="Restverdi",BD6=""),"","Restverdi")) ->  | BF6: =IF($J$6+BF4<'Generelle forutsetninger'!$B$10+'Generelle forutsetninger'!$B$11,$J$6+BF4,IF(OR(BE6="Restverdi",BE6=""),"","Restverdi")) ->  | BG6: =IF($J$6+BG4<'Generelle forutsetninger'!$B$10+'Generelle forutsetninger'!$B$11,$J$6+BG4,IF(OR(BF6="Restverdi",BF6=""),"","Restverdi")) ->  | BH6: =IF($J$6+BH4<'Generelle forutsetninger'!$B$10+'Generelle forutsetninger'!$B$11,$J$6+BH4,IF(OR(BG6="Restverdi",BG6=""),"","Restverdi")) ->  | BI6: =IF($J$6+BI4<'Generelle forutsetninger'!$B$10+'Generelle forutsetninger'!$B$11,$J$6+BI4,IF(OR(BH6="Restverdi",BH6=""),"","Restverdi")) ->  | BJ6: =IF($J$6+BJ4<'Generelle forutsetninger'!$B$10+'Generelle forutsetninger'!$B$11,$J$6+BJ4,IF(OR(BI6="Restverdi",BI6=""),"","Restverdi")) ->  | BK6: =IF($J$6+BK4<'Generelle forutsetninger'!$B$10+'Generelle forutsetninger'!$B$11,$J$6+BK4,IF(OR(BJ6="Restverdi",BJ6=""),"","Restverdi")) ->  | BL6: =IF($J$6+BL4<'Generelle forutsetninger'!$B$10+'Generelle forutsetninger'!$B$11,$J$6+BL4,IF(OR(BK6="Restverdi",BK6=""),"","Restverdi")) ->  | BM6: =IF($J$6+BM4<'Generelle forutsetninger'!$B$10+'Generelle forutsetninger'!$B$11,$J$6+BM4,IF(OR(BL6="Restverdi",BL6=""),"","Restverdi")) ->  | BN6: =IF($J$6+BN4<'Generelle forutsetninger'!$B$10+'Generelle forutsetninger'!$B$11,$J$6+BN4,IF(OR(BM6="Restverdi",BM6=""),"","Restverdi")) ->  | BO6: =IF($J$6+BO4<'Generelle forutsetninger'!$B$10+'Generelle forutsetninger'!$B$11,$J$6+BO4,IF(OR(BN6="Restverdi",BN6=""),"","Restverdi")) ->  | BP6: =IF($J$6+BP4<'Generelle forutsetninger'!$B$10+'Generelle forutsetninger'!$B$11,$J$6+BP4,IF(OR(BO6="Restverdi",BO6=""),"","Restverdi")) ->  | BQ6: =IF($J$6+BQ4<'Generelle forutsetninger'!$B$10+'Generelle forutsetninger'!$B$11,$J$6+BQ4,IF(OR(BP6="Restverdi",BP6=""),"","Restverdi")) ->  | BR6: =IF($J$6+BR4<'Generelle forutsetninger'!$B$10+'Generelle forutsetninger'!$B$11,$J$6+BR4,IF(OR(BQ6="Restverdi",BQ6=""),"","Restverdi")) ->  | BS6: =IF($J$6+BS4<'Generelle forutsetninger'!$B$10+'Generelle forutsetninger'!$B$11,$J$6+BS4,IF(OR(BR6="Restverdi",BR6=""),"","Restverdi")) ->  | BT6: =IF($J$6+BT4<'Generelle forutsetninger'!$B$10+'Generelle forutsetninger'!$B$11,$J$6+BT4,IF(OR(BS6="Restverdi",BS6=""),"","Restverdi")) ->  | BU6: =IF($J$6+BU4<'Generelle forutsetninger'!$B$10+'Generelle forutsetninger'!$B$11,$J$6+BU4,IF(OR(BT6="Restverdi",BT6=""),"","Restverdi")) ->  | BV6: =IF($J$6+BV4<'Generelle forutsetninger'!$B$10+'Generelle forutsetninger'!$B$11,$J$6+BV4,IF(OR(BU6="Restverdi",BU6=""),"","Restverdi")) ->  | BW6: =IF($J$6+BW4<'Generelle forutsetninger'!$B$10+'Generelle forutsetninger'!$B$11,$J$6+BW4,IF(OR(BV6="Restverdi",BV6=""),"","Restverdi")) ->  | BX6: =IF($J$6+BX4<'Generelle forutsetninger'!$B$10+'Generelle forutsetninger'!$B$11,$J$6+BX4,IF(OR(BW6="Restverdi",BW6=""),"","Restverdi")) ->  | BY6: =IF($J$6+BY4<'Generelle forutsetninger'!$B$10+'Generelle forutsetninger'!$B$11,$J$6+BY4,IF(OR(BX6="Restverdi",BX6=""),"","Restverdi")) ->  | BZ6: =IF($J$6+BZ4<'Generelle forutsetninger'!$B$10+'Generelle forutsetninger'!$B$11,$J$6+BZ4,IF(OR(BY6="Restverdi",BY6=""),"","Restverdi")) ->  | CA6: =IF($J$6+CA4<'Generelle forutsetninger'!$B$10+'Generelle forutsetninger'!$B$11,$J$6+CA4,IF(OR(BZ6="Restverdi",BZ6=""),"","Restverdi")) ->  | CB6: =IF($J$6+CB4<'Generelle forutsetninger'!$B$10+'Generelle forutsetninger'!$B$11,$J$6+CB4,IF(OR(CA6="Restverdi",CA6=""),"","Restverdi")) ->  | CC6: =IF($J$6+CC4<'Generelle forutsetninger'!$B$10+'Generelle forutsetninger'!$B$11,$J$6+CC4,IF(OR(CB6="Restverdi",CB6=""),"","Restverdi")) ->  | CD6: =IF($J$6+CD4<'Generelle forutsetninger'!$B$10+'Generelle forutsetninger'!$B$11,$J$6+CD4,IF(OR(CC6="Restverdi",CC6=""),"","Restverdi")) ->  | CE6: =IF($J$6+CE4<'Generelle forutsetninger'!$B$10+'Generelle forutsetninger'!$B$11,$J$6+CE4,IF(OR(CD6="Restverdi",CD6=""),"","Restverdi")) ->  | CF6: =IF($J$6+CF4<'Generelle forutsetninger'!$B$10+'Generelle forutsetninger'!$B$11,$J$6+CF4,IF(OR(CE6="Restverdi",CE6=""),"","Restverdi")) ->  | CG6: =IF($J$6+CG4<'Generelle forutsetninger'!$B$10+'Generelle forutsetninger'!$B$11,$J$6+CG4,IF(OR(CF6="Restverdi",CF6=""),"","Restverdi")) ->  | CH6: =IF($J$6+CH4<'Generelle forutsetninger'!$B$10+'Generelle forutsetninger'!$B$11,$J$6+CH4,IF(OR(CG6="Restverdi",CG6=""),"","Restverdi")) ->  | CI6: =IF($J$6+CI4<'Generelle forutsetninger'!$B$10+'Generelle forutsetninger'!$B$11,$J$6+CI4,IF(OR(CH6="Restverdi",CH6=""),"","Restverdi")) ->  | CJ6: =IF($J$6+CJ4<'Generelle forutsetninger'!$B$10+'Generelle forutsetninger'!$B$11,$J$6+CJ4,IF(OR(CI6="Restverdi",CI6=""),"","Restverdi")) ->  | CK6: =IF($J$6+CK4<'Generelle forutsetninger'!$B$10+'Generelle forutsetninger'!$B$11,$J$6+CK4,IF(OR(CJ6="Restverdi",CJ6=""),"","Restverdi")) ->  | CL6: =IF($J$6+CL4<'Generelle forutsetninger'!$B$10+'Generelle forutsetninger'!$B$11,$J$6+CL4,IF(OR(CK6="Restverdi",CK6=""),"","Restverdi")) ->  | CM6: =IF($J$6+CM4<'Generelle forutsetninger'!$B$10+'Generelle forutsetninger'!$B$11,$J$6+CM4,IF(OR(CL6="Restverdi",CL6=""),"","Restverdi")) ->  | CN6: =IF($J$6+CN4<'Generelle forutsetninger'!$B$10+'Generelle forutsetninger'!$B$11,$J$6+CN4,IF(OR(CM6="Restverdi",CM6=""),"","Restverdi")) ->  | CO6: =IF($J$6+CO4<'Generelle forutsetninger'!$B$10+'Generelle forutsetninger'!$B$11,$J$6+CO4,IF(OR(CN6="Restverdi",CN6=""),"","Restverdi")) ->  | CP6: =IF($J$6+CP4<'Generelle forutsetninger'!$B$10+'Generelle forutsetninger'!$B$11,$J$6+CP4,IF(OR(CO6="Restverdi",CO6=""),"","Restverdi")) ->  | CQ6: =IF($J$6+CQ4<'Generelle forutsetninger'!$B$10+'Generelle forutsetninger'!$B$11,$J$6+CQ4,IF(OR(CP6="Restverdi",CP6=""),"","Restverdi")) ->  | CR6: =IF($J$6+CR4<'Generelle forutsetninger'!$B$10+'Generelle forutsetninger'!$B$11,$J$6+CR4,IF(OR(CQ6="Restverdi",CQ6=""),"","Restverdi")) ->  | CS6: =IF($J$6+CS4<'Generelle forutsetninger'!$B$10+'Generelle forutsetninger'!$B$11,$J$6+CS4,IF(OR(CR6="Restverdi",CR6=""),"","Restverdi")) ->  | CT6: =IF($J$6+CT4<'Generelle forutsetninger'!$B$10+'Generelle forutsetninger'!$B$11,$J$6+CT4,IF(OR(CS6="Restverdi",CS6=""),"","Restverdi")) ->  | CU6: =IF($J$6+CU4<'Generelle forutsetninger'!$B$10+'Generelle forutsetninger'!$B$11,$J$6+CU4,IF(OR(CT6="Restverdi",CT6=""),"","Restverdi")) ->  | CV6: =IF($J$6+CV4<'Generelle forutsetninger'!$B$10+'Generelle forutsetninger'!$B$11,$J$6+CV4,IF(OR(CU6="Restverdi",CU6=""),"","Restverdi")) ->  | CW6: =IF($J$6+CW4<'Generelle forutsetninger'!$B$10+'Generelle forutsetninger'!$B$11,$J$6+CW4,IF(OR(CV6="Restverdi",CV6=""),"","Restverdi")) ->  | CX6: =IF($J$6+CX4<'Generelle forutsetninger'!$B$10+'Generelle forutsetninger'!$B$11,$J$6+CX4,IF(OR(CW6="Restverdi",CW6=""),"","Restverdi")) ->  | CY6: =IF($J$6+CY4<'Generelle forutsetninger'!$B$10+'Generelle forutsetninger'!$B$11,$J$6+CY4,IF(OR(CX6="Restverdi",CX6=""),"","Restverdi")) ->  | CZ6: =IF($J$6+CZ4<'Generelle forutsetninger'!$B$10+'Generelle forutsetninger'!$B$11,$J$6+CZ4,IF(OR(CY6="Restverdi",CY6=""),"","Restverdi")) ->  | DA6: =IF($J$6+DA4<'Generelle forutsetninger'!$B$10+'Generelle forutsetninger'!$B$11,$J$6+DA4,IF(OR(CZ6="Restverdi",CZ6=""),"","Restverdi")) ->  | DB6: =IF($J$6+DB4<'Generelle forutsetninger'!$B$10+'Generelle forutsetninger'!$B$11,$J$6+DB4,IF(OR(DA6="Restverdi",DA6=""),"","Restverdi")) ->  | DC6: =IF($J$6+DC4<'Generelle forutsetninger'!$B$10+'Generelle forutsetninger'!$B$11,$J$6+DC4,IF(OR(DB6="Restverdi",DB6=""),"","Restverdi")) ->  | DD6: =IF($J$6+DD4<'Generelle forutsetninger'!$B$10+'Generelle forutsetninger'!$B$11,$J$6+DD4,IF(OR(DC6="Restverdi",DC6=""),"","Restverdi")) ->  | DE6: =IF($J$6+DE4<'Generelle forutsetninger'!$B$10+'Generelle forutsetninger'!$B$11,$J$6+DE4,IF(OR(DD6="Restverdi",DD6=""),"","Restverdi")) ->  | DF6: =IF($J$6+DF4<'Generelle forutsetninger'!$B$10+'Generelle forutsetninger'!$B$11,$J$6+DF4,IF(OR(DE6="Restverdi",DE6=""),"","Restverdi")) ->  | DG6: =IF($J$6+DG4<'Generelle forutsetninger'!$B$10+'Generelle forutsetninger'!$B$11,$J$6+DG4,IF(OR(DF6="Restverdi",DF6=""),"","Restverdi")) -> 
A7: 72 | C7: 1 | D7: =1 -> 1 | E7: =1 + Celleref_Skattekostnad -> 1.2 | F7: =0 -> 0 | H7: Kroner
A8: k311 | B8: Kostnader for virksomheten
A9: 9 | B9: Investering i utstyr | C9: 1 | D9: =1 -> 1 | E9: =1 -> 1 | F9: =1 -> 1 | H9: Kroner | J9: 1000000 | K9: 0 | L9: 0 | M9: 0 | N9: 0 | O9: 0 | P9: 0 | Q9: 0 | R9: 0 | S9: 0 | T9: 0 | U9: 0 | V9: 0 | W9: 0 | X9: 0 | Y9: 0 | Z9: 0 | AA9: 0 | AB9: 0 | AC9: 0 | AD9: 0
A10: 10 | B10: Årlig kostnad til utstyr, bil m.m. | C10: 1 | D10: =1 -> 1 | E10: =1 -> 1 | F10: =1 -> 1 | G10: 310000 | H10: Kroner | J10: 310000 | K10: 310000 | L10: 310000 | M10: 310000 | N10: 310000 | O10: 310000 | P10: 310000 | Q10: 310000 | R10: 310000 | S10: 310000 | T10: 310000 | U10: 310000 | V10: 310000 | W10: 310000 | X10: 310000
A11: 11 | B11: Personellkostnad til prosjektet | C11: =Celleref_arsverk -> 770000 | D11: =1 -> 1 | E11: =1 -> 1 | F11: =1 -> 1 | G11: 2.5 | H11: Årsverk | J11: 2.5 | K11: 2.5 | L11: 2.5 | M11: 2.5 | N11: 2.5 | O11: 2.5 | P11: 2.5 | Q11: 2.5 | R11: 2.5 | S11: 2.5 | T11: 2.5 | U11: 2.5 | V11: 2.5 | W11: 2.5 | X11: 2.5
A12: 12 | B12: Årlig oppryddingsarbeid | C12: =Celleref_arsverk -> 770000 | D12: =1 -> 1 | E12: =1 -> 1 | F12: =0 -> 0 | G12: 16 | H12: Årsverk | J12: 16 | K12: 16 | L12: 16 | M12: 16 | N12: 2 | O12: 2 | P12: 2 | Q12: 2 | R12: 2 | S12: 2 | T12: 2 | U12: 2 | V12: 2 | W12: 2 | X12: 2 | Y12: 0
A13: 26 | B13: Kartlegging utført av kommunensatte | C13: =Celleref_arsverk -> 770000 | D13: =1 -> 1 | E13: =1 -> 1 | F13: =1 -> 1 | G13: 1 | H13: Årsverk | J13: 1 | K13: 1 | L13: 1 | M13: 1 | N13: 1 | O13: 1 | P13: 1 | Q13: 1 | R13: 1 | S13: 1 | T13: 1 | U13: 1 | V13: 1 | W13: 1 | X13: 1
A14: k312 | B14: Kostnader for øvrig offentlig sektor
A15: k313 | B15: Kostnader for privat næringsliv
A16: k434 | B16: Kostnader for privatpersoner
A19: B | B19: Prissatte kostnadsvirkninger - direkte virkning | H19: Enhet | I19: Nåverdi | J19: =J6 -> 2019 | K19: 2020 | L19: 2021 | M19: 2022 | N19: 2023 | O19: 2024 | P19: 2025 | Q19: 2026 | R19: 2027 | S19: 2028 | T19: 2029 | U19: 2030 | V19: 2031 | W19: 2032 | X19: 2033 | Y19: Restverdi | BV19: =BV6 -> 
A20: 72 | B20: =VLOOKUP(A20,$A$7:$B$18,2,FALSE) -> 0 | C20: =C7 -> 1 | D20: 1 | E20: 1.2 | F20: 0 | G20: 0 | H20: Kroner | I20: =J20+NPV(Celleref_kalkulasjonsrente,K20:DG20) -> 0 | J20: =-IF(J$6="Restverdi",IF(J7=0,0,J7*$C7*$D7^(I$6+1-$J$6)),IF(J7=0,0,J7*$C7*$D7^(J$6-$J$6))) -> 0 | K20: 0 | L20: 0 | M20: 0 | N20: 0 | O20: 0 | P20: 0 | Q20: 0 | R20: 0 | S20: 0 | T20: 0 | U20: 0 | V20: 0 | W20: 0 | X20: 0 | Y20: 0 | Z20: 0 | AA20: 0 | AB20: 0 | AC20: 0 | AD20: 0 | AE20: 0 | AF20: 0 | AG20: 0 | AH20: 0 | AI20: 0 | AJ20: 0 | AK20: 0 | AL20: 0 | AM20: 0 | AN20: 0 | AO20: 0 | AP20: =-IF(AP$6="Restverdi",IF(AP7=0,0,AP7*$C7*$D7^(AO$6+1-$J$6)),IF(AP7=0,0,AP7*$C7*$D7^(AP$6-$J$6))) -> 0 | AQ20: 0 | AR20: 0 | AS20: 0 | AT20: 0 | AU20: 0 | AV20: 0 | AW20: 0 | AX20: 0 | AY20: 0 | AZ20: 0 | BA20: 0 | BB20: 0 | BC20: 0 | BD20: 0 | BE20: 0 | BF20: 0 | BG20: 0 | BH20: 0 | BI20: 0 | BJ20: 0 | BK20: 0 | BL20: 0 | BM20: 0 | BN20: 0 | BO20: 0 | BP20: 0 | BQ20: 0 | BR20: 0 | BS20: 0 | BT20: 0 | BU20: 0 | BV20: =-IF(BV$6="Restverdi",IF(BV7=0,0,BV7*$C7*$D7^(BU$6+1-$J$6)),IF(BV7=0,0,BV7*$C7*$D7^(BV$6-$J$6))) -> 0 | BW20: 0 | BX20: 0 | BY20: 0 | BZ20: 0 | CA20: 0 | CB20: 0 | CC20: 0 | CD20: 0 | CE20: 0 | CF20: 0 | CG20: 0 | CH20: 0 | CI20: 0 | CJ20: 0 | CK20: 0 | CL20: 0 | CM20: 0 | CN20: 0 | CO20: 0 | CP20: 0 | CQ20: 0 | CR20: 0 | CS20: 0 | CT20: 0 | CU20: 0 | CV20: 0 | CW20: 0 | CX20: 0 | CY20: 0 | CZ20: 0 | DA20: 0 | DB20: =-IF(DB$6="Restverdi",IF(DB7=0,0,DB7*$C7*$D7^(DA$6+1-$J$6)),IF(DB7=0,0,DB7*$C7*$D7^(DB$6-$J$6))) -> 0 | DC20: 0 | DD20: 0 | DE20: 0 | DF20: 0 | DG20: 0
A21: k311 | B21: Kostnader for virksomheten | C21: 0 | D21: 0 | E21: 0 | F21: 0 | G21: 0 | H21: Kroner | I21: 0 | J21: =-IF(J$6="Restverdi",IF(J8=0,0,J8*$C8*$D8^(I$6+1-$J$6)),IF(J8=0,0,J8*$C8*$D8^(J$6-$J$6))) -> 0 | K21: 0 | L21: 0 | M21: 0 | N21: 0 | O21: 0 | P21: 0 | Q21: 0 | R21: 0 | S21: 0 | T21: 0 | U21: 0 | V21: 0 | W21: 0 | X21: 0 | Y21: 0 | Z21: 0 | AA21: 0 | AB21: 0 | AC21: 0 | AD21: 0 | AE21: 0 | AF21: 0 | AG21: 0 | AH21: 0 | AI21: 0 | AJ21: 0 | AK21: 0 | AL21: 0 | AM21: 0 | AN21: 0 | AO21: 0 | AP21: =-IF(AP$6="Restverdi",IF(AP8=0,0,AP8*$C8*$D8^(AO$6+1-$J$6)),IF(AP8=0,0,AP8*$C8*$D8^(AP$6-$J$6))) -> 0 | AQ21: 0 | AR21: 0 | AS21: 0 | AT21: 0 | AU21: 0 | AV21: 0 | AW21: 0 | AX21: 0 | AY21: 0 | AZ21: 0 | BA21: 0 | BB21: 0 | BC21: 0 | BD21: 0 | BE21: 0 | BF21: 0 | BG21: 0 | BH21: 0 | BI21: 0 | BJ21: 0 | BK21: 0 | BL21: 0 | BM21: 0 | BN21: 0 | BO21: 0 | BP21: 0 | BQ21: 0 | BR21: 0 | BS21: 0 | BT21: 0 | BU21: 0 | BV21: =-IF(BV$6="Restverdi",IF(BV8=0,0,BV8*$C8*$D8^(BU$6+1-$J$6)),IF(BV8=0,0,BV8*$C8*$D8^(BV$6-$J$6))) -> 0 | BW21: 0 | BX21: 0 | BY21: 0 | BZ21: 0 | CA21: 0 | CB21: 0 | CC21: 0 | CD21: 0 | CE21: 0 | CF21: 0 | CG21: 0 | CH21: 0 | CI21: 0 | CJ21: 0 | CK21: 0 | CL21: 0 | CM21: 0 | CN21: 0 | CO21: 0 | CP21: 0 | CQ21: 0 | CR21: 0 | CS21: 0 | CT21: 0 | CU21: 0 | CV21: 0 | CW21: 0 | CX21: 0 | CY21: 0 | CZ21: 0 | DA21: 0 | DB21: =-IF(DB$6="Restverdi",IF(DB8=0,0,DB8*$C8*$D8^(DA$6+1-$J$6)),IF(DB8=0,0,DB8*$C8*$D8^(DB$6-$J$6))) -> 0 | DC21: 0 | DD21: 0 | DE21: 0 | DF21: 0 | DG21: 0
A22: 9 | B22: Investering i utstyr | C22: 1 | D22: 1 | E22: 1 | F22: 1 | G22: 0 | H22: Kroner | I22: -1000000 | J22: =-IF(J$6="Restverdi",IF(J9=0,0,J9*$C9*$D9^(I$6+1-$J$6)),IF(J9=0,0,J9*$C9*$D9^(J$6-$J$6))) -> -1000000 | K22: 0 | L22: 0 | M22: 0 | N22: 0 | O22: 0 | P22: 0 | Q22: 0 | R22: 0 | S22: 0 | T22: 0 | U22: 0 | V22: 0 | W22: 0 | X22: 0 | Y22: 0 | Z22: 0 | AA22: 0 | AB22: 0 | AC22: 0 | AD22: 0 | AE22: 0 | AF22: 0 | AG22: 0 | AH22: 0 | AI22: 0 | AJ22: 0 | AK22: 0 | AL22: 0 | AM22: 0 | AN22: 0 | AO22: 0 | AP22: =-IF(AP$6="Restverdi",IF(AP9=0,0,AP9*$C9*$D9^(AO$6+1-$J$6)),IF(AP9=0,0,AP9*$C9*$D9^(AP$6-$J$6))) -> 0 | AQ22: 0 | AR22: 0 | AS22: 0 | AT22: 0 | AU22: 0 | AV22: 0 | AW22: 0 | AX22: 0 | AY22: 0 | AZ22: 0 | BA22: 0 | BB22: 0 | BC22: 0 | BD22: 0 | BE22: 0 | BF22: 0 | BG22: 0 | BH22: 0 | BI22: 0 | BJ22: 0 | BK22: 0 | BL22: 0 | BM22: 0 | BN22: 0 | BO22: 0 | BP22: 0 | BQ22: 0 | BR22: 0 | BS22: 0 | BT22: 0 | BU22: 0 | BV22: =-IF(BV$6="Restverdi",IF(BV9=0,0,BV9*$C9*$D9^(BU$6+1-$J$6)),IF(BV9=0,0,BV9*$C9*$D9^(BV$6-$J$6))) -> 0 | BW22: 0 | BX22: 0 | BY22: 0 | BZ22: 0 | CA22: 0 | CB22: 0 | CC22: 0 | CD22: 0 | CE22: 0 | CF22: 0 | CG22: 0 | CH22: 0 | CI22: 0 | CJ22: 0 | CK22: 0 | CL22: 0 | CM22: 0 | CN22: 0 | CO22: 0 | CP22: 0 | CQ22: 0 | CR22: 0 | CS22: 0 | CT22: 0 | CU22: 0 | CV22: 0 | CW22: 0 | CX22: 0 | CY22: 0 | CZ22: 0 | DA22: 0 | DB22: =-IF(DB$6="Restverdi",IF(DB9=0,0,DB9*$C9*$D9^(DA$6+1-$J$6)),IF(DB9=0,0,DB9*$C9*$D9^(DB$6-$J$6))) -> 0 | DC22: 0 | DD22: 0 | DE22: 0 | DF22: 0 | DG22: 0
A23: 10 | B23: Årlig kostnad til utstyr, bil m.m. | C23: 1 | D23: 1 | E23: 1 | F23: 1 | G23: 310000 | H23: Kroner | I23: -3584568.108 | J23: =-IF(J$6="Restverdi",IF(J10=0,0,J10*$C10*$D10^(I$6+1-$J$6)),IF(J10=0,0,J10*$C10*$D10^(J$6-$J$6))) -> -310000 | K23: -310000 | L23: -310000 | M23: -310000 | N23: -310000 | O23: -310000 | P23: -310000 | Q23: -310000 | R23: -310000 | S23: -310000 | T23: -310000 | U23: -310000 | V23: -310000 | W23: -310000 | X23: -310000 | Y23: 0 | Z23: 0 | AA23: 0 | AB23: 0 | AC23: 0 | AD23: 0 | AE23: 0 | AF23: 0 | AG23: 0 | AH23: 0 | AI23: 0 | AJ23: 0 | AK23: 0 | AL23: 0 | AM23: 0 | AN23: 0 | AO23: 0 | AP23: =-IF(AP$6="Restverdi",IF(AP10=0,0,AP10*$C10*$D10^(AO$6+1-$J$6)),IF(AP10=0,0,AP10*$C10*$D10^(AP$6-$J$6))) -> 0 | AQ23: 0 | AR23: 0 | AS23: 0 | AT23: 0 | AU23: 0 | AV23: 0 | AW23: 0 | AX23: 0 | AY23: 0 | AZ23: 0 | BA23: 0 | BB23: 0 | BC23: 0 | BD23: 0 | BE23: 0 | BF23: 0 | BG23: 0 | BH23: 0 | BI23: 0 | BJ23: 0 | BK23: 0 | BL23: 0 | BM23: 0 | BN23: 0 | BO23: 0 | BP23: 0 | BQ23: 0 | BR23: 0 | BS23: 0 | BT23: 0 | BU23: 0 | BV23: =-IF(BV$6="Restverdi",IF(BV10=0,0,BV10*$C10*$D10^(BU$6+1-$J$6)),IF(BV10=0,0,BV10*$C10*$D10^(BV$6-$J$6))) -> 0 | BW23: 0 | BX23: 0 | BY23: 0 | BZ23: 0 | CA23: 0 | CB23: 0 | CC23: 0 | CD23: 0 | CE23: 0 | CF23: 0 | CG23: 0 | CH23: 0 | CI23: 0 | CJ23: 0 | CK23: 0 | CL23: 0 | CM23: 0 | CN23: 0 | CO23: 0 | CP23: 0 | CQ23: 0 | CR23: 0 | CS23: 0 | CT23: 0 | CU23: 0 | CV23: 0 | CW23: 0 | CX23: 0 | CY23: 0 | CZ23: 0 | DA23: 0 | DB23: =-IF(DB$6="Restverdi",IF(DB10=0,0,DB10*$C10*$D10^(DA$6+1-$J$6)),IF(DB10=0,0,DB10*$C10*$D10^(DB$6-$J$6))) -> 0 | DC23: 0 | DD23: 0 | DE23: 0 | DF23: 0 | DG23: 0
A24: 11 | B24: Personellkostnad til prosjektet | C24: 770000 | D24: 1 | E24: 1 | F24: 1 | G24: 2.5 | H24: Kroner | I24: -22259011.64 | J24: =-IF(J$6="Restverdi",IF(J11=0,0,J11*$C11*$D11^(I$6+1-$J$6)),IF(J11=0,0,J11*$C11*$D11^(J$6-$J$6))) -> -1925000 | K24: -1925000 | L24: -1925000 | M24: -1925000 | N24: -1925000 | O24: -1925000 | P24: -1925000 | Q24: -1925000 | R24: -1925000 | S24: -1925000 | T24: -1925000 | U24: -1925000 | V24: -1925000 | W24: -1925000 | X24: -1925000 | Y24: 0 | Z24: 0 | AA24: 0 | AB24: 0 | AC24: 0 | AD24: 0 | AE24: 0 | AF24: 0 | AG24: 0 | AH24: 0 | AI24: 0 | AJ24: 0 | AK24: 0 | AL24: 0 | AM24: 0 | AN24: 0 | AO24: 0 | AP24: =-IF(AP$6="Restverdi",IF(AP11=0,0,AP11*$C11*$D11^(AO$6+1-$J$6)),IF(AP11=0,0,AP11*$C11*$D11^(AP$6-$J$6))) -> 0 | AQ24: 0 | AR24: 0 | AS24: 0 | AT24: 0 | AU24: 0 | AV24: 0 | AW24: 0 | AX24: 0 | AY24: 0 | AZ24: 0 | BA24: 0 | BB24: 0 | BC24: 0 | BD24: 0 | BE24: 0 | BF24: 0 | BG24: 0 | BH24: 0 | BI24: 0 | BJ24: 0 | BK24: 0 | BL24: 0 | BM24: 0 | BN24: 0 | BO24: 0 | BP24: 0 | BQ24: 0 | BR24: 0 | BS24: 0 | BT24: 0 | BU24: 0 | BV24: =-IF(BV$6="Restverdi",IF(BV11=0,0,BV11*$C11*$D11^(BU$6+1-$J$6)),IF(BV11=0,0,BV11*$C11*$D11^(BV$6-$J$6))) -> 0 | BW24: 0 | BX24: 0 | BY24: 0 | BZ24: 0 | CA24: 0 | CB24: 0 | CC24: 0 | CD24: 0 | CE24: 0 | CF24: 0 | CG24: 0 | CH24: 0 | CI24: 0 | CJ24: 0 | CK24: 0 | CL24: 0 | CM24: 0 | CN24: 0 | CO24: 0 | CP24: 0 | CQ24: 0 | CR24: 0 | CS24: 0 | CT24: 0 | CU24: 0 | CV24: 0 | CW24: 0 | CX24: 0 | CY24: 0 | CZ24: 0 | DA24: 0 | DB24: =-IF(DB$6="Restverdi",IF(DB11=0,0,DB11*$C11*$D11^(DA$6+1-$J$6)),IF(DB11=0,0,DB11*$C11*$D11^(DB$6-$J$6))) -> 0 | DC24: 0 | DD24: 0 | DE24: 0 | DF24: 0 | DG24: 0
A25: 12 | B25: Årlig oppryddingsarbeid | C25: 770000 | D25: 1 | E25: 1 | F25: 0 | G25: 16 | H25: Kroner | I25: -58502690.65 | J25: =-IF(J$6="Restverdi",IF(J12=0,0,J12*$C12*$D12^(I$6+1-$J$6)),IF(J12=0,0,J12*$C12*$D12^(J$6-$J$6))) -> -12320000 | K25: -12320000 | L25: -12320000 | M25: -12320000 | N25: -1540000 | O25: -1540000 | P25: -1540000 | Q25: -1540000 | R25: -1540000 | S25: -1540000 | T25: -1540000 | U25: -1540000 | V25: -1540000 | W25: -1540000 | X25: -1540000 | Y25: 0 | Z25: 0 | AA25: 0 | AB25: 0 | AC25: 0 | AD25: 0 | AE25: 0 | AF25: 0 | AG25: 0 | AH25: 0 | AI25: 0 | AJ25: 0 | AK25: 0 | AL25: 0 | AM25: 0 | AN25: 0 | AO25: 0 | AP25: =-IF(AP$6="Restverdi",IF(AP12=0,0,AP12*$C12*$D12^(AO$6+1-$J$6)),IF(AP12=0,0,AP12*$C12*$D12^(AP$6-$J$6))) -> 0 | AQ25: 0 | AR25: 0 | AS25: 0 | AT25: 0 | AU25: 0 | AV25: 0 | AW25: 0 | AX25: 0 | AY25: 0 | AZ25: 0 | BA25: 0 | BB25: 0 | BC25: 0 | BD25: 0 | BE25: 0 | BF25: 0 | BG25: 0 | BH25: 0 | BI25: 0 | BJ25: 0 | BK25: 0 | BL25: 0 | BM25: 0 | BN25: 0 | BO25: 0 | BP25: 0 | BQ25: 0 | BR25: 0 | BS25: 0 | BT25: 0 | BU25: 0 | BV25: =-IF(BV$6="Restverdi",IF(BV12=0,0,BV12*$C12*$D12^(BU$6+1-$J$6)),IF(BV12=0,0,BV12*$C12*$D12^(BV$6-$J$6))) -> 0 | BW25: 0 | BX25: 0 | BY25: 0 | BZ25: 0 | CA25: 0 | CB25: 0 | CC25: 0 | CD25: 0 | CE25: 0 | CF25: 0 | CG25: 0 | CH25: 0 | CI25: 0 | CJ25: 0 | CK25: 0 | CL25: 0 | CM25: 0 | CN25: 0 | CO25: 0 | CP25: 0 | CQ25: 0 | CR25: 0 | CS25: 0 | CT25: 0 | CU25: 0 | CV25: 0 | CW25: 0 | CX25: 0 | CY25: 0 | CZ25: 0 | DA25: 0 | DB25: =-IF(DB$6="Restverdi",IF(DB12=0,0,DB12*$C12*$D12^(DA$6+1-$J$6)),IF(DB12=0,0,DB12*$C12*$D12^(DB$6-$J$6))) -> 0 | DC25: 0 | DD25: 0 | DE25: 0 | DF25: 0 | DG25: 0
A26: 26 | B26: Kartlegging utført av kommunensatte | C26: 770000 | D26: 1 | E26: 1 | F26: 1 | G26: 1 | H26: Kroner | I26: =J26+NPV(Celleref_kalkulasjonsrente,K26:DG26) -> -8903604.656 | J26: -770000 | K26: -770000 | L26: -770000 | M26: -770000 | N26: -770000 | O26: -770000 | P26: -770000 | Q26: -770000 | R26: -770000 | S26: -770000 | T26: -770000 | U26: -770000 | V26: -770000 | W26: -770000 | X26: -770000 | Y26: 0 | Z26: 0 | AA26: 0 | AB26: 0 | AC26: 0 | AD26: 0 | AE26: 0 | AF26: 0 | AG26: 0 | AH26: 0 | AI26: 0 | AJ26: 0 | AK26: 0 | AL26: 0 | AM26: 0 | AN26: 0 | AO26: 0 | AP26: 0 | AQ26: 0 | AR26: 0 | AS26: 0 | AT26: 0 | AU26: 0 | AV26: 0 | AW26: 0 | AX26: 0 | AY26: 0 | AZ26: 0 | BA26: 0 | BB26: 0 | BC26: 0 | BD26: 0 | BE26: 0 | BF26: 0 | BG26: 0 | BH26: 0 | BI26: 0 | BJ26: 0 | BK26: 0 | BL26: 0 | BM26: 0 | BN26: 0 | BO26: 0 | BP26: 0 | BQ26: 0 | BR26: 0 | BS26: 0 | BT26: 0 | BU26: 0 | BV26: 0 | BW26: 0 | BX26: 0 | BY26: 0 | BZ26: 0 | CA26: 0 | CB26: 0 | CC26: 0 | CD26: 0 | CE26: 0 | CF26: 0 | CG26: 0 | CH26: 0 | CI26: 0 | CJ26: 0 | CK26: 0 | CL26: 0 | CM26: 0 | CN26: 0 | CO26: 0 | CP26: 0 | CQ26: 0 | CR26: 0 | CS26: 0 | CT26: 0 | CU26: 0 | CV26: 0 | CW26: 0 | CX26: 0 | CY26: 0 | CZ26: 0 | DA26: 0 | DB26: 0 | DC26: 0 | DD26: 0 | DE26: 0 | DF26: 0 | DG26: 0
A27: k312 | B27: Kostnader for øvrig offentlig sektor | C27: =C14 -> 0 | D27: 0 | E27: 0 | F27: 0 | G27: 0 | H27: Kroner | I27: 0 | J27: =-IF(J$6="Restverdi",IF(J14=0,0,J14*$C14*$D14^(I$6+1-$J$6)),IF(J14=0,0,J14*$C14*$D14^(J$6-$J$6))) -> 0 | K27: 0 | L27: 0 | M27: 0 | N27: 0 | O27: 0 | P27: 0 | Q27: 0 | R27: 0 | S27: 0 | T27: 0 | U27: 0 | V27: 0 | W27: 0 | X27: 0 | Y27: 0 | Z27: 0 | AA27: 0 | AB27: 0 | AC27: 0 | AD27: 0 | AE27: 0 | AF27: 0 | AG27: 0 | AH27: 0 | AI27: 0 | AJ27: 0 | AK27: 0 | AL27: 0 | AM27: 0 | AN27: 0 | AO27: 0 | AP27: =-IF(AP$6="Restverdi",IF(AP14=0,0,AP14*$C14*$D14^(AO$6+1-$J$6)),IF(AP14=0,0,AP14*$C14*$D14^(AP$6-$J$6))) -> 0 | AQ27: 0 | AR27: 0 | AS27: 0 | AT27: 0 | AU27: 0 | AV27: 0 | AW27: 0 | AX27: 0 | AY27: 0 | AZ27: 0 | BA27: 0 | BB27: 0 | BC27: 0 | BD27: 0 | BE27: 0 | BF27: 0 | BG27: 0 | BH27: 0 | BI27: 0 | BJ27: 0 | BK27: 0 | BL27: 0 | BM27: 0 | BN27: 0 | BO27: 0 | BP27: 0 | BQ27: 0 | BR27: 0 | BS27: 0 | BT27: 0 | BU27: 0 | BV27: =-IF(BV$6="Restverdi",IF(BV14=0,0,BV14*$C14*$D14^(BU$6+1-$J$6)),IF(BV14=0,0,BV14*$C14*$D14^(BV$6-$J$6))) -> 0 | BW27: 0 | BX27: 0 | BY27: 0 | BZ27: 0 | CA27: 0 | CB27: 0 | CC27: 0 | CD27: 0 | CE27: 0 | CF27: 0 | CG27: 0 | CH27: 0 | CI27: 0 | CJ27: 0 | CK27: 0 | CL27: 0 | CM27: 0 | CN27: 0 | CO27: 0 | CP27: 0 | CQ27: 0 | CR27: 0 | CS27: 0 | CT27: 0 | CU27: 0 | CV27: 0 | CW27: 0 | CX27: 0 | CY27: 0 | CZ27: 0 | DA27: 0 | DB27: =-IF(DB$6="Restverdi",IF(DB14=0,0,DB14*$C14*$D14^(DA$6+1-$J$6)),IF(DB14=0,0,DB14*$C14*$D14^(DB$6-$J$6))) -> 0 | DC27: 0 | DD27: 0 | DE27: 0 | DF27: 0 | DG27: 0
A28: k313 | B28: Kostnader for privat næringsliv | C28: 0 | D28: 0 | E28: 0 | F28: 0 | G28: 0 | H28: Kroner | I28: 0 | J28: =-IF(J$6="Restverdi",IF(J15=0,0,J15*$C15*$D15^(I$6+1-$J$6)),IF(J15=0,0,J15*$C15*$D15^(J$6-$J$6))) -> 0 | K28: 0 | L28: 0 | M28: 0 | N28: 0 | O28: 0 | P28: 0 | Q28: 0 | R28: 0 | S28: 0 | T28: 0 | U28: 0 | V28: 0 | W28: 0 | X28: 0 | Y28: 0 | Z28: 0 | AA28: 0 | AB28: 0 | AC28: 0 | AD28: 0 | AE28: 0 | AF28: 0 | AG28: 0 | AH28: 0 | AI28: 0 | AJ28: 0 | AK28: 0 | AL28: 0 | AM28: 0 | AN28: 0 | AO28: 0 | AP28: =-IF(AP$6="Restverdi",IF(AP15=0,0,AP15*$C15*$D15^(AO$6+1-$J$6)),IF(AP15=0,0,AP15*$C15*$D15^(AP$6-$J$6))) -> 0 | AQ28: 0 | AR28: 0 | AS28: 0 | AT28: 0 | AU28: 0 | AV28: 0 | AW28: 0 | AX28: 0 | AY28: 0 | AZ28: 0 | BA28: 0 | BB28: 0 | BC28: 0 | BD28: 0 | BE28: 0 | BF28: 0 | BG28: 0 | BH28: 0 | BI28: 0 | BJ28: 0 | BK28: 0 | BL28: 0 | BM28: 0 | BN28: 0 | BO28: 0 | BP28: 0 | BQ28: 0 | BR28: 0 | BS28: 0 | BT28: 0 | BU28: 0 | BV28: =-IF(BV$6="Restverdi",IF(BV15=0,0,BV15*$C15*$D15^(BU$6+1-$J$6)),IF(BV15=0,0,BV15*$C15*$D15^(BV$6-$J$6))) -> 0 | BW28: 0 | BX28: 0 | BY28: 0 | BZ28: 0 | CA28: 0 | CB28: 0 | CC28: 0 | CD28: 0 | CE28: 0 | CF28: 0 | CG28: 0 | CH28: 0 | CI28: 0 | CJ28: 0 | CK28: 0 | CL28: 0 | CM28: 0 | CN28: 0 | CO28: 0 | CP28: 0 | CQ28: 0 | CR28: 0 | CS28: 0 | CT28: 0 | CU28: 0 | CV28: 0 | CW28: 0 | CX28: 0 | CY28: 0 | CZ28: 0 | DA28: 0 | DB28: =-IF(DB$6="Restverdi",IF(DB15=0,0,DB15*$C15*$D15^(DA$6+1-$J$6)),IF(DB15=0,0,DB15*$C15*$D15^(DB$6-$J$6))) -> 0 | DC28: 0 | DD28: 0 | DE28: 0 | DF28: 0 | DG28: 0
A29: k434 | B29: Kostnader for privatpersoner | C29: 0 | D29: 0 | E29: 0 | F29: 0 | G29: 0 | H29: Kroner | I29: 0 | J29: =-IF(J$6="Restverdi",IF(J16=0,0,J16*$C16*$D16^(I$6+1-$J$6)),IF(J16=0,0,J16*$C16*$D16^(J$6-$J$6))) -> 0 | K29: 0 | L29: 0 | M29: 0 | N29: 0 | O29: 0 | P29: 0 | Q29: 0 | R29: 0 | S29: 0 | T29: 0 | U29: 0 | V29: 0 | W29: 0 | X29: 0 | Y29: 0 | Z29: 0 | AA29: 0 | AB29: 0 | AC29: 0 | AD29: 0 | AE29: 0 | AF29: 0 | AG29: 0 | AH29: 0 | AI29: 0 | AJ29: 0 | AK29: 0 | AL29: 0 | AM29: 0 | AN29: 0 | AO29: 0 | AP29: =-IF(AP$6="Restverdi",IF(AP16=0,0,AP16*$C16*$D16^(AO$6+1-$J$6)),IF(AP16=0,0,AP16*$C16*$D16^(AP$6-$J$6))) -> 0 | AQ29: 0 | AR29: 0 | AS29: 0 | AT29: 0 | AU29: 0 | AV29: 0 | AW29: 0 | AX29: 0 | AY29: 0 | AZ29: 0 | BA29: 0 | BB29: 0 | BC29: 0 | BD29: 0 | BE29: 0 | BF29: 0 | BG29: 0 | BH29: 0 | BI29: 0 | BJ29: 0 | BK29: 0 | BL29: 0 | BM29: 0 | BN29: 0 | BO29: 0 | BP29: 0 | BQ29: 0 | BR29: 0 | BS29: 0 | BT29: 0 | BU29: 0 | BV29: =-IF(BV$6="Restverdi",IF(BV16=0,0,BV16*$C16*$D16^(BU$6+1-$J$6)),IF(BV16=0,0,BV16*$C16*$D16^(BV$6-$J$6))) -> 0 | BW29: 0 | BX29: 0 | BY29: 0 | BZ29: 0 | CA29: 0 | CB29: 0 | CC29: 0 | CD29: 0 | CE29: 0 | CF29: 0 | CG29: 0 | CH29: 0 | CI29: 0 | CJ29: 0 | CK29: 0 | CL29: 0 | CM29: 0 | CN29: 0 | CO29: 0 | CP29: 0 | CQ29: 0 | CR29: 0 | CS29: 0 | CT29: 0 | CU29: 0 | CV29: 0 | CW29: 0 | CX29: 0 | CY29: 0 | CZ29: 0 | DA29: 0 | DB29: =-IF(DB$6="Restverdi",IF(DB16=0,0,DB16*$C16*$D16^(DA$6+1-$J$6)),IF(DB16=0,0,DB16*$C16*$D16^(DB$6-$J$6))) -> 0 | DC29: 0 | DD29: 0 | DE29: 0 | DF29: 0 | DG29: 0
A32: S | B32: Prissatte kostnadsvirkninger - Skattefinansieringskostnad | H32: Enhet | I32: Nåverdi | J32: =J19 -> 2019 | K32: 2020 | L32: 2021 | M32: 2022 | N32: 2023 | O32: 2024 | P32: 2025 | Q32: 2026 | R32: 2027 | S32: 2028 | T32: 2029 | U32: 2030 | V32: 2031 | W32: 2032 | X32: 2033 | Y32: Restverdi | BV32: =BV19 -> 
A33: 72 | B33: =VLOOKUP(A33,$A$7:$B$18,2,FALSE) -> 0 | H33: Kroner | I33: =J33+NPV(Celleref_kalkulasjonsrente,K33:DG33) -> 0 | J33: =IF(J7=0,0,J20*($E7-1)) -> 0 | K33: 0 | L33: 0 | M33: 0 | N33: 0 | O33: 0 | P33: 0 | Q33: 0 | R33: 0 | S33: 0 | T33: 0 | U33: 0 | V33: 0 | W33: 0 | X33: 0 | Y33: 0 | Z33: 0 | AA33: 0 | AB33: 0 | AC33: 0 | AD33: 0 | AE33: 0 | AF33: 0 | AG33: 0 | AH33: 0 | AI33: 0 | AJ33: 0 | AK33: 0 | AL33: 0 | AM33: 0 | AN33: 0 | AO33: 0 | AP33: =IF(AP7=0,0,AP20*($E7-1)) -> 0 | AQ33: 0 | AR33: 0 | AS33: 0 | AT33: 0 | AU33: 0 | AV33: 0 | AW33: 0 | AX33: 0 | AY33: 0 | AZ33: 0 | BA33: 0 | BB33: 0 | BC33: 0 | BD33: 0 | BE33: 0 | BF33: 0 | BG33: 0 | BH33: 0 | BI33: 0 | BJ33: 0 | BK33: 0 | BL33: 0 | BM33: 0 | BN33: 0 | BO33: 0 | BP33: 0 | BQ33: 0 | BR33: 0 | BS33: 0 | BT33: 0 | BU33: 0 | BV33: =IF(BV7=0,0,BV20*($E7-1)) -> 0 | BW33: 0 | BX33: 0 | BY33: 0 | BZ33: 0 | CA33: 0 | CB33: 0 | CC33: 0 | CD33: 0 | CE33: 0 | CF33: 0 | CG33: 0 | CH33: 0 | CI33: 0 | CJ33: 0 | CK33: 0 | CL33: 0 | CM33: 0 | CN33: 0 | CO33: 0 | CP33: 0 | CQ33: 0 | CR33: 0 | CS33: 0 | CT33: 0 | CU33: 0 | CV33: 0 | CW33: 0 | CX33: 0 | CY33: 0 | CZ33: 0 | DA33: 0 | DB33: =IF(DB7=0,0,DB20*($E7-1)) -> 0 | DC33: 0 | DD33: 0 | DE33: 0 | DF33: 0 | DG33: 0
A34: k311 | B34: Kostnader for virksomheten | H34: Kroner | I34: 0 | J34: =IF(J8=0,0,J21*($E8-1)) -> 0 | K34: 0 | L34: 0 | M34: 0 | N34: 0 | O34: 0 | P34: 0 | Q34: 0 | R34: 0 | S34: 0 | T34: 0 | U34: 0 | V34: 0 | W34: 0 | X34: 0 | Y34: 0 | Z34: 0 | AA34: 0 | AB34: 0 | AC34: 0 | AD34: 0 | AE34: 0 | AF34: 0 | AG34: 0 | AH34: 0 | AI34: 0 | AJ34: 0 | AK34: 0 | AL34: 0 | AM34: 0 | AN34: 0 | AO34: 0 | AP34: =IF(AP8=0,0,AP21*($E8-1)) -> 0 | AQ34: 0 | AR34: 0 | AS34: 0 | AT34: 0 | AU34: 0 | AV34: 0 | AW34: 0 | AX34: 0 | AY34: 0 | AZ34: 0 | BA34: 0 | BB34: 0 | BC34: 0 | BD34: 0 | BE34: 0 | BF34: 0 | BG34: 0 | BH34: 0 | BI34: 0 | BJ34: 0 | BK34: 0 | BL34: 0 | BM34: 0 | BN34: 0 | BO34: 0 | BP34: 0 | BQ34: 0 | BR34: 0 | BS34: 0 | BT34: 0 | BU34: 0 | BV34: =IF(BV8=0,0,BV21*($E8-1)) -> 0 | BW34: 0 | BX34: 0 | BY34: 0 | BZ34: 0 | CA34: 0 | CB34: 0 | CC34: 0 | CD34: 0 | CE34: 0 | CF34: 0 | CG34: 0 | CH34: 0 | CI34: 0 | CJ34: 0 | CK34: 0 | CL34: 0 | CM34: 0 | CN34: 0 | CO34: 0 | CP34: 0 | CQ34: 0 | CR34: 0 | CS34: 0 | CT34: 0 | CU34: 0 | CV34: 0 | CW34: 0 | CX34: 0 | CY34: 0 | CZ34: 0 | DA34: 0 | DB34: =IF(DB8=0,0,DB21*($E8-1)) -> 0 | DC34: 0 | DD34: 0 | DE34: 0 | DF34: 0 | DG34: 0
A35: 9 | B35: Investering i utstyr | H35: Kroner | I35: 0 | J35: =IF(J9=0,0,J22*($E9-1)) -> 0 | K35: 0 | L35: 0 | M35: 0 | N35: 0 | O35: 0 | P35: 0 | Q35: 0 | R35: 0 | S35: 0 | T35: 0 | U35: 0 | V35: 0 | W35: 0 | X35: 0 | Y35: 0 | Z35: 0 | AA35: 0 | AB35: 0 | AC35: 0 | AD35: 0 | AE35: 0 | AF35: 0 | AG35: 0 | AH35: 0 | AI35: 0 | AJ35: 0 | AK35: 0 | AL35: 0 | AM35: 0 | AN35: 0 | AO35: 0 | AP35: =IF(AP9=0,0,AP22*($E9-1)) -> 0 | AQ35: 0 | AR35: 0 | AS35: 0 | AT35: 0 | AU35: 0 | AV35: 0 | AW35: 0 | AX35: 0 | AY35: 0 | AZ35: 0 | BA35: 0 | BB35: 0 | BC35: 0 | BD35: 0 | BE35: 0 | BF35: 0 | BG35: 0 | BH35: 0 | BI35: 0 | BJ35: 0 | BK35: 0 | BL35: 0 | BM35: 0 | BN35: 0 | BO35: 0 | BP35: 0 | BQ35: 0 | BR35: 0 | BS35: 0 | BT35: 0 | BU35: 0 | BV35: =IF(BV9=0,0,BV22*($E9-1)) -> 0 | BW35: 0 | BX35: 0 | BY35: 0 | BZ35: 0 | CA35: 0 | CB35: 0 | CC35: 0 | CD35: 0 | CE35: 0 | CF35: 0 | CG35: 0 | CH35: 0 | CI35: 0 | CJ35: 0 | CK35: 0 | CL35: 0 | CM35: 0 | CN35: 0 | CO35: 0 | CP35: 0 | CQ35: 0 | CR35: 0 | CS35: 0 | CT35: 0 | CU35: 0 | CV35: 0 | CW35: 0 | CX35: 0 | CY35: 0 | CZ35: 0 | DA35: 0 | DB35: =IF(DB9=0,0,DB22*($E9-1)) -> 0 | DC35: 0 | DD35: 0 | DE35: 0 | DF35: 0 | DG35: 0
A36: 10 | B36: Årlig kostnad til utstyr, bil m.m. | H36: Kroner | I36: 0 | J36: =IF(J10=0,0,J23*($E10-1)) -> 0 | K36: 0 | L36: 0 | M36: 0 | N36: 0 | O36: 0 | P36: 0 | Q36: 0 | R36: 0 | S36: 0 | T36: 0 | U36: 0 | V36: 0 | W36: 0 | X36: 0 | Y36: 0 | Z36: 0 | AA36: 0 | AB36: 0 | AC36: 0 | AD36: 0 | AE36: 0 | AF36: 0 | AG36: 0 | AH36: 0 | AI36: 0 | AJ36: 0 | AK36: 0 | AL36: 0 | AM36: 0 | AN36: 0 | AO36: 0 | AP36: =IF(AP10=0,0,AP23*($E10-1)) -> 0 | AQ36: 0 | AR36: 0 | AS36: 0 | AT36: 0 | AU36: 0 | AV36: 0 | AW36: 0 | AX36: 0 | AY36: 0 | AZ36: 0 | BA36: 0 | BB36: 0 | BC36: 0 | BD36: 0 | BE36: 0 | BF36: 0 | BG36: 0 | BH36: 0 | BI36: 0 | BJ36: 0 | BK36: 0 | BL36: 0 | BM36: 0 | BN36: 0 | BO36: 0 | BP36: 0 | BQ36: 0 | BR36: 0 | BS36: 0 | BT36: 0 | BU36: 0 | BV36: =IF(BV10=0,0,BV23*($E10-1)) -> 0 | BW36: 0 | BX36: 0 | BY36: 0 | BZ36: 0 | CA36: 0 | CB36: 0 | CC36: 0 | CD36: 0 | CE36: 0 | CF36: 0 | CG36: 0 | CH36: 0 | CI36: 0 | CJ36: 0 | CK36: 0 | CL36: 0 | CM36: 0 | CN36: 0 | CO36: 0 | CP36: 0 | CQ36: 0 | CR36: 0 | CS36: 0 | CT36: 0 | CU36: 0 | CV36: 0 | CW36: 0 | CX36: 0 | CY36: 0 | CZ36: 0 | DA36: 0 | DB36: =IF(DB10=0,0,DB23*($E10-1)) -> 0 | DC36: 0 | DD36: 0 | DE36: 0 | DF36: 0 | DG36: 0
A37: 11 | B37: Personellkostnad til prosjektet | H37: Kroner | I37: 0 | J37: =IF(J11=0,0,J24*($E11-1)) -> 0 | K37: 0 | L37: 0 | M37: 0 | N37: 0 | O37: 0 | P37: 0 | Q37: 0 | R37: 0 | S37: 0 | T37: 0 | U37: 0 | V37: 0 | W37: 0 | X37: 0 | Y37: 0 | Z37: 0 | AA37: 0 | AB37: 0 | AC37: 0 | AD37: 0 | AE37: 0 | AF37: 0 | AG37: 0 | AH37: 0 | AI37: 0 | AJ37: 0 | AK37: 0 | AL37: 0 | AM37: 0 | AN37: 0 | AO37: 0 | AP37: =IF(AP11=0,0,AP24*($E11-1)) -> 0 | AQ37: 0 | AR37: 0 | AS37: 0 | AT37: 0 | AU37: 0 | AV37: 0 | AW37: 0 | AX37: 0 | AY37: 0 | AZ37: 0 | BA37: 0 | BB37: 0 | BC37: 0 | BD37: 0 | BE37: 0 | BF37: 0 | BG37: 0 | BH37: 0 | BI37: 0 | BJ37: 0 | BK37: 0 | BL37: 0 | BM37: 0 | BN37: 0 | BO37: 0 | BP37: 0 | BQ37: 0 | BR37: 0 | BS37: 0 | BT37: 0 | BU37: 0 | BV37: =IF(BV11=0,0,BV24*($E11-1)) -> 0 | BW37: 0 | BX37: 0 | BY37: 0 | BZ37: 0 | CA37: 0 | CB37: 0 | CC37: 0 | CD37: 0 | CE37: 0 | CF37: 0 | CG37: 0 | CH37: 0 | CI37: 0 | CJ37: 0 | CK37: 0 | CL37: 0 | CM37: 0 | CN37: 0 | CO37: 0 | CP37: 0 | CQ37: 0 | CR37: 0 | CS37: 0 | CT37: 0 | CU37: 0 | CV37: 0 | CW37: 0 | CX37: 0 | CY37: 0 | CZ37: 0 | DA37: 0 | DB37: =IF(DB11=0,0,DB24*($E11-1)) -> 0 | DC37: 0 | DD37: 0 | DE37: 0 | DF37: 0 | DG37: 0
A38: 12 | B38: Årlig oppryddingsarbeid | H38: Kroner | I38: 0 | J38: =IF(J12=0,0,J25*($E12-1)) -> 0 | K38: 0 | L38: 0 | M38: 0 | N38: 0 | O38: 0 | P38: 0 | Q38: 0 | R38: 0 | S38: 0 | T38: 0 | U38: 0 | V38: 0 | W38: 0 | X38: 0 | Y38: 0 | Z38: 0 | AA38: 0 | AB38: 0 | AC38: 0 | AD38: 0 | AE38: 0 | AF38: 0 | AG38: 0 | AH38: 0 | AI38: 0 | AJ38: 0 | AK38: 0 | AL38: 0 | AM38: 0 | AN38: 0 | AO38: 0 | AP38: =IF(AP12=0,0,AP25*($E12-1)) -> 0 | AQ38: 0 | AR38: 0 | AS38: 0 | AT38: 0 | AU38: 0 | AV38: 0 | AW38: 0 | AX38: 0 | AY38: 0 | AZ38: 0 | BA38: 0 | BB38: 0 | BC38: 0 | BD38: 0 | BE38: 0 | BF38: 0 | BG38: 0 | BH38: 0 | BI38: 0 | BJ38: 0 | BK38: 0 | BL38: 0 | BM38: 0 | BN38: 0 | BO38: 0 | BP38: 0 | BQ38: 0 | BR38: 0 | BS38: 0 | BT38: 0 | BU38: 0 | BV38: =IF(BV12=0,0,BV25*($E12-1)) -> 0 | BW38: 0 | BX38: 0 | BY38: 0 | BZ38: 0 | CA38: 0 | CB38: 0 | CC38: 0 | CD38: 0 | CE38: 0 | CF38: 0 | CG38: 0 | CH38: 0 | CI38: 0 | CJ38: 0 | CK38: 0 | CL38: 0 | CM38: 0 | CN38: 0 | CO38: 0 | CP38: 0 | CQ38: 0 | CR38: 0 | CS38: 0 | CT38: 0 | CU38: 0 | CV38: 0 | CW38: 0 | CX38: 0 | CY38: 0 | CZ38: 0 | DA38: 0 | DB38: =IF(DB12=0,0,DB25*($E12-1)) -> 0 | DC38: 0 | DD38: 0 | DE38: 0 | DF38: 0 | DG38: 0
A39: 26 | B39: Kartlegging utført av kommunensatte | H39: Kroner | I39: =J39+NPV(Celleref_kalkulasjonsrente,K39:DG39) -> 0 | J39: 0 | K39: 0 | L39: 0 | M39: 0 | N39: 0 | O39: 0 | P39: 0 | Q39: 0 | R39: 0 | S39: 0 | T39: 0 | U39: 0 | V39: 0 | W39: 0 | X39: 0 | Y39: 0 | Z39: 0 | AA39: 0 | AB39: 0 | AC39: 0 | AD39: 0 | AE39: 0 | AF39: 0 | AG39: 0 | AH39: 0 | AI39: 0 | AJ39: 0 | AK39: 0 | AL39: 0 | AM39: 0 | AN39: 0 | AO39: 0 | AP39: 0 | AQ39: 0 | AR39: 0 | AS39: 0 | AT39: 0 | AU39: 0 | AV39: 0 | AW39: 0 | AX39: 0 | AY39: 0 | AZ39: 0 | BA39: 0 | BB39: 0 | BC39: 0 | BD39: 0 | BE39: 0 | BF39: 0 | BG39: 0 | BH39: 0 | BI39: 0 | BJ39: 0 | BK39: 0 | BL39: 0 | BM39: 0 | BN39: 0 | BO39: 0 | BP39: 0 | BQ39: 0 | BR39: 0 | BS39: 0 | BT39: 0 | BU39: 0 | BV39: 0 | BW39: 0 | BX39: 0 | BY39: 0 | BZ39: 0 | CA39: 0 | CB39: 0 | CC39: 0 | CD39: 0 | CE39: 0 | CF39: 0 | CG39: 0 | CH39: 0 | CI39: 0 | CJ39: 0 | CK39: 0 | CL39: 0 | CM39: 0 | CN39: 0 | CO39: 0 | CP39: 0 | CQ39: 0 | CR39: 0 | CS39: 0 | CT39: 0 | CU39: 0 | CV39: 0 | CW39: 0 | CX39: 0 | CY39: 0 | CZ39: 0 | DA39: 0 | DB39: 0 | DC39: 0 | DD39: 0 | DE39: 0 | DF39: 0 | DG39: 0
A40: k312 | B40: Kostnader for øvrig offentlig sektor | H40: Kroner | I40: 0 | J40: =IF(J14=0,0,J27*($E14-1)) -> 0 | K40: 0 | L40: 0 | M40: 0 | N40: 0 | O40: 0 | P40: 0 | Q40: 0 | R40: 0 | S40: 0 | T40: 0 | U40: 0 | V40: 0 | W40: 0 | X40: 0 | Y40: 0 | Z40: 0 | AA40: 0 | AB40: 0 | AC40: 0 | AD40: 0 | AE40: 0 | AF40: 0 | AG40: 0 | AH40: 0 | AI40: 0 | AJ40: 0 | AK40: 0 | AL40: 0 | AM40: 0 | AN40: 0 | AO40: 0 | AP40: =IF(AP14=0,0,AP27*($E14-1)) -> 0 | AQ40: 0 | AR40: 0 | AS40: 0 | AT40: 0 | AU40: 0 | AV40: 0 | AW40: 0 | AX40: 0 | AY40: 0 | AZ40: 0 | BA40: 0 | BB40: 0 | BC40: 0 | BD40: 0 | BE40: 0 | BF40: 0 | BG40: 0 | BH40: 0 | BI40: 0 | BJ40: 0 | BK40: 0 | BL40: 0 | BM40: 0 | BN40: 0 | BO40: 0 | BP40: 0 | BQ40: 0 | BR40: 0 | BS40: 0 | BT40: 0 | BU40: 0 | BV40: =IF(BV14=0,0,BV27*($E14-1)) -> 0 | BW40: 0 | BX40: 0 | BY40: 0 | BZ40: 0 | CA40: 0 | CB40: 0 | CC40: 0 | CD40: 0 | CE40: 0 | CF40: 0 | CG40: 0 | CH40: 0 | CI40: 0 | CJ40: 0 | CK40: 0 | CL40: 0 | CM40: 0 | CN40: 0 | CO40: 0 | CP40: 0 | CQ40: 0 | CR40: 0 | CS40: 0 | CT40: 0 | CU40: 0 | CV40: 0 | CW40: 0 | CX40: 0 | CY40: 0 | CZ40: 0 | DA40: 0 | DB40: =IF(DB14=0,0,DB27*($E14-1)) -> 0 | DC40: 0 | DD40: 0 | DE40: 0 | DF40: 0 | DG40: 0
A41: k313 | B41: Kostnader for privat næringsliv | H41: Kroner | I41: 0 | J41: =IF(J15=0,0,J28*($E15-1)) -> 0 | K41: 0 | L41: 0 | M41: 0 | N41: 0 | O41: 0 | P41: 0 | Q41: 0 | R41: 0 | S41: 0 | T41: 0 | U41: 0 | V41: 0 | W41: 0 | X41: 0 | Y41: 0 | Z41: 0 | AA41: 0 | AB41: 0 | AC41: 0 | AD41: 0 | AE41: 0 | AF41: 0 | AG41: 0 | AH41: 0 | AI41: 0 | AJ41: 0 | AK41: 0 | AL41: 0 | AM41: 0 | AN41: 0 | AO41: 0 | AP41: =IF(AP15=0,0,AP28*($E15-1)) -> 0 | AQ41: 0 | AR41: 0 | AS41: 0 | AT41: 0 | AU41: 0 | AV41: 0 | AW41: 0 | AX41: 0 | AY41: 0 | AZ41: 0 | BA41: 0 | BB41: 0 | BC41: 0 | BD41: 0 | BE41: 0 | BF41: 0 | BG41: 0 | BH41: 0 | BI41: 0 | BJ41: 0 | BK41: 0 | BL41: 0 | BM41: 0 | BN41: 0 | BO41: 0 | BP41: 0 | BQ41: 0 | BR41: 0 | BS41: 0 | BT41: 0 | BU41: =IF(BU15=0,0,BU28*($E15-1)) -> 0 | BV41: =IF(BV15=0,0,BV28*($E15-1)) -> 0 | BW41: 0 | BX41: 0 | BY41: 0 | BZ41: 0 | CA41: 0 | CB41: 0 | CC41: 0 | CD41: 0 | CE41: 0 | CF41: 0 | CG41: 0 | CH41: 0 | CI41: 0 | CJ41: 0 | CK41: 0 | CL41: 0 | CM41: 0 | CN41: 0 | CO41: 0 | CP41: 0 | CQ41: 0 | CR41: 0 | CS41: 0 | CT41: 0 | CU41: 0 | CV41: 0 | CW41: 0 | CX41: 0 | CY41: 0 | CZ41: 0 | DA41: 0 | DB41: 0 | DC41: 0 | DD41: 0 | DE41: 0 | DF41: 0 | DG41: 0
A42: k434 | B42: Kostnader for privatpersoner | H42: Kroner | I42: 0 | J42: =IF(J16=0,0,J29*($E16-1)) -> 0 | K42: 0 | L42: 0 | M42: 0 | N42: 0 | O42: 0 | P42: 0 | Q42: 0 | R42: 0 | S42: 0 | T42: 0 | U42: 0 | V42: 0 | W42: 0 | X42: 0 | Y42: 0 | Z42: 0 | AA42: 0 | AB42: 0 | AC42: 0 | AD42: 0 | AE42: 0 | AF42: 0 | AG42: 0 | AH42: 0 | AI42: 0 | AJ42: 0 | AK42: 0 | AL42: 0 | AM42: 0 | AN42: 0 | AO42: 0 | AP42: 0 | AQ42: 0 | AR42: 0 | AS42: 0 | AT42: 0 | AU42: 0 | AV42: 0 | AW42: 0 | AX42: 0 | AY42: 0 | AZ42: 0 | BA42: 0 | BB42: 0 | BC42: 0 | BD42: 0 | BE42: 0 | BF42: 0 | BG42: 0 | BH42: 0 | BI42: 0 | BJ42: 0 | BK42: 0 | BL42: 0 | BM42: 0 | BN42: 0 | BO42: 0 | BP42: 0 | BQ42: 0 | BR42: 0 | BS42: 0 | BT42: 0 | BU42: 0 | BV42: =IF(BV16=0,0,BV29*($E16-1)) -> 0 | BW42: 0 | BX42: 0 | BY42: 0 | BZ42: 0 | CA42: 0 | CB42: 0 | CC42: 0 | CD42: 0 | CE42: 0 | CF42: 0 | CG42: 0 | CH42: 0 | CI42: 0 | CJ42: 0 | CK42: 0 | CL42: 0 | CM42: 0 | CN42: 0 | CO42: 0 | CP42: 0 | CQ42: 0 | CR42: 0 | CS42: 0 | CT42: 0 | CU42: 0 | CV42: 0 | CW42: 0 | CX42: 0 | CY42: 0 | CZ42: 0 | DA42: 0 | DB42: 0 | DC42: 0 | DD42: 0 | DE42: 0 | DF42: 0 | DG42: 0

Sheet Kostnad alternativ 2
A1: Kostnad alternativ 2 | B1: Alternativnavn: | C1: =VLOOKUP(RIGHT(A1,12),Alternativområde,2,FALSE) -> Nettportal
J4: 0 | K4: 1 | L4: 2 | M4: 3 | N4: 4 | O4: 5 | P4: 6 | Q4: 7 | R4: 8 | S4: 9 | T4: 10 | U4: 11 | V4: 12 | W4: 13 | X4: 14 | Y4: 15 | Z4: 16 | AA4: 17 | AB4: 18 | AC4: 19 | AD4: 20 | AE4: 21 | AF4: 22 | AG4: 23 | AH4: 24 | AI4: 25 | AJ4: 26 | AK4: 27 | AL4: 28 | AM4: 29 | AN4: 30 | AO4: 31 | AP4: 32 | AQ4: 33 | AR4: 34 | AS4: 35 | AT4: 36 | AU4: 37 | AV4: 38 | AW4: 39 | AX4: 40 | AY4: 41 | AZ4: 42 | BA4: 43 | BB4: 44 | BC4: 45 | BD4: 46 | BE4: 47 | BF4: 48 | BG4: 49 | BH4: 50 | BI4: 51 | BJ4: 52 | BK4: 53 | BL4: 54 | BM4: 55 | BN4: 56 | BO4: 57 | BP4: 58 | BQ4: 59 | BR4: 60 | BS4: 61 | BT4: 62 | BU4: 63 | BV4: 64 | BW4: 65 | BX4: 66 | BY4: 67 | BZ4: 68 | CA4: 69 | CB4: 70 | CC4: 71 | CD4: 72 | CE4: 73 | CF4: 74 | CG4: 75 | CH4: 76 | CI4: 77 | CJ4: 78 | CK4: 79 | CL4: 80 | CM4: 81 | CN4: 82 | CO4: 83 | CP4: 84 | CQ4: 85 | CR4: 86 | CS4: 87 | CT4: 88 | CU4: 89 | CV4: 90 | CW4: 91 | CX4: 92 | CY4: 93 | CZ4: 94 | DA4: 95 | DB4: 96 | DC4: 97 | DD4: 98 | DE4: 99 | DF4: 100 | DG4: 101
A6: 1 | B6: Prissatte kostnadsvirkninger | H6: Enhet | J6: ='Generelle forutsetninger'!B10 -> 2019 | K6: =IF($J$6+K4<'Generelle forutsetninger'!$B$10+'Generelle forutsetninger'!$B$11,$J$6+K4,IF(OR(J6="Restverdi",J6=""),"","Restverdi")) -> 2020 | L6: =IF($J$6+L4<'Generelle forutsetninger'!$B$10+'Generelle forutsetninger'!$B$11,$J$6+L4,IF(OR(K6="Restverdi",K6=""),"","Restverdi")) -> 2021 | M6: =IF($J$6+M4<'Generelle forutsetninger'!$B$10+'Generelle forutsetninger'!$B$11,$J$6+M4,IF(OR(L6="Restverdi",L6=""),"","Restverdi")) -> 2022 | N6: =IF($J$6+N4<'Generelle forutsetninger'!$B$10+'Generelle forutsetninger'!$B$11,$J$6+N4,IF(OR(M6="Restverdi",M6=""),"","Restverdi")) -> 2023 | O6: =IF($J$6+O4<'Generelle forutsetninger'!$B$10+'Generelle forutsetninger'!$B$11,$J$6+O4,IF(OR(N6="Restverdi",N6=""),"","Restverdi")) -> 2024 | P6: =IF($J$6+P4<'Generelle forutsetninger'!$B$10+'Generelle forutsetninger'!$B$11,$J$6+P4,IF(OR(O6="Restverdi",O6=""),"","Restverdi")) -> 2025 | Q6: =IF($J$6+Q4<'Generelle forutsetninger'!$B$10+'Generelle forutsetninger'!$B$11,$J$6+Q4,IF(OR(P6="Restverdi",P6=""),"","Restverdi")) -> 2026 | R6: =IF($J$6+R4<'Generelle forutsetninger'!$B$10+'Generelle forutsetninger'!$B$11,$J$6+R4,IF(OR(Q6="Restverdi",Q6=""),"","Restverdi")) -> 2027 | S6: =IF($J$6+S4<'Generelle forutsetninger'!$B$10+'Generelle forutsetninger'!$B$11,$J$6+S4,IF(OR(R6="Restverdi",R6=""),"","Restverdi")) -> 2028 | T6: =IF($J$6+T4<'Generelle forutsetninger'!$B$10+'Generelle forutsetninger'!$B$11,$J$6+T4,IF(OR(S6="Restverdi",S6=""),"","Restverdi")) -> 2029 | U6: =IF($J$6+U4<'Generelle forutsetninger'!$B$10+'Generelle forutsetninger'!$B$11,$J$6+U4,IF(OR(T6="Restverdi",T6=""),"","Restverdi")) -> 2030 | V6: =IF($J$6+V4<'Generelle forutsetninger'!$B$10+'Generelle forutsetninger'!$B$11,$J$6+V4,IF(OR(U6="Restverdi",U6=""),"","Restverdi")) -> 2031 | W6: =IF($J$6+W4<'Generelle forutsetninger'!$B$10+'Generelle forutsetninger'!$B$11,$J$6+W4,IF(OR(V6="Restverdi",V6=""),"","Restverdi")) -> 2032 | X6: =IF($J$6+X4<'Generelle forutsetninger'!$B$10+'Generelle forutsetninger'!$B$11,$J$6+X4,IF(OR(W6="Restverdi",W6=""),"","Restverdi")) -> 2033 | Y6: =IF($J$6+Y4<'Generelle forutsetninger'!$B$10+'Generelle forutsetninger'!$B$11,$J$6+Y4,IF(OR(X6="Restverdi",X6=""),"","Restverdi")) -> Restverdi | Z6: =IF($J$6+Z4<'Generelle forutsetninger'!$B$10+'Generelle forutsetninger'!$B$11,$J$6+Z4,IF(OR(Y6="Restverdi",Y6=""),"","Restverdi")) ->  | AA6: =IF($J$6+AA4<'Generelle forutsetninger'!$B$10+'Generelle forutsetninger'!$B$11,$J$6+AA4,IF(OR(Z6="Restverdi",Z6=""),"","Restverdi")) ->  | AB6: =IF($J$6+AB4<'Generelle forutsetninger'!$B$10+'Generelle forutsetninger'!$B$11,$J$6+AB4,IF(OR(AA6="Restverdi",AA6=""),"","Restverdi")) ->  | AC6: =IF($J$6+AC4<'Generelle forutsetninger'!$B$10+'Generelle forutsetninger'!$B$11,$J$6+AC4,IF(OR(AB6="Restverdi",AB6=""),"","Restverdi")) ->  | AD6: =IF($J$6+AD4<'Generelle forutsetninger'!$B$10+'Generelle forutsetninger'!$B$11,$J$6+AD4,IF(OR(AC6="Restverdi",AC6=""),"","Restverdi")) ->  | AE6: =IF($J$6+AE4<'Generelle forutsetninger'!$B$10+'Generelle forutsetninger'!$B$11,$J$6+AE4,IF(OR(AD6="Restverdi",AD6=""),"","Restverdi")) ->  | AF6: =IF($J$6+AF4<'Generelle forutsetninger'!$B$10+'Generelle forutsetninger'!$B$11,$J$6+AF4,IF(OR(AE6="Restverdi",AE6=""),"","Restverdi")) ->  | AG6: =IF($J$6+AG4<'Generelle forutsetninger'!$B$10+'Generelle forutsetninger'!$B$11,$J$6+AG4,IF(OR(AF6="Restverdi",AF6=""),"","Restverdi")) ->  | AH6: =IF($J$6+AH4<'Generelle forutsetninger'!$B$10+'Generelle forutsetninger'!$B$11,$J$6+AH4,IF(OR(AG6="Restverdi",AG6=""),"","Restverdi")) ->  | AI6: =IF($J$6+AI4<'Generelle forutsetninger'!$B$10+'Generelle forutsetninger'!$B$11,$J$6+AI4,IF(OR(AH6="Restverdi",AH6=""),"","Restverdi")) ->  | AJ6: =IF($J$6+AJ4<'Generelle forutsetninger'!$B$10+'Generelle forutsetninger'!$B$11,$J$6+AJ4,IF(OR(AI6="Restverdi",AI6=""),"","Restverdi")) ->  | AK6: =IF($J$6+AK4<'Generelle forutsetninger'!$B$10+'Generelle forutsetninger'!$B$11,$J$6+AK4,IF(OR(AJ6="Restverdi",AJ6=""),"","Restverdi")) ->  | AL6: =IF($J$6+AL4<'Generelle forutsetninger'!$B$10+'Generelle forutsetninger'!$B$11,$J$6+AL4,IF(OR(AK6="Restverdi",AK6=""),"","Restverdi")) ->  | AM6: =IF($J$6+AM4<'Generelle forutsetninger'!$B$10+'Generelle forutsetninger'!$B$11,$J$6+AM4,IF(OR(AL6="Restverdi",AL6=""),"","Restverdi")) ->  | AN6: =IF($J$6+AN4<'Generelle forutsetninger'!$B$10+'Generelle forutsetninger'!$B$11,$J$6+AN4,IF(OR(AM6="Restverdi",AM6=""),"","Restverdi")) ->  | AO6: =IF($J$6+AO4<'Generelle forutsetninger'!$B$10+'Generelle forutsetninger'!$B$11,$J$6+AO4,IF(OR(AN6="Restverdi",AN6=""),"","Restverdi")) ->  | AP6: =IF($J$6+AP4<'Generelle forutsetninger'!$B$10+'Generelle forutsetninger'!$B$11,$J$6+AP4,IF(OR(AO6="Restverdi",AO6=""),"","Restverdi")) ->  | AQ6: =IF($J$6+AQ4<'Generelle forutsetninger'!$B$10+'Generelle forutsetninger'!$B$11,$J$6+AQ4,IF(OR(AP6="Restverdi",AP6=""),"","Restverdi")) ->  | AR6: =IF($J$6+AR4<'Generelle forutsetninger'!$B$10+'Generelle forutsetninger'!$B$11,$J$6+AR4,IF(OR(AQ6="Restverdi",AQ6=""),"","Restverdi")) ->  | AS6: =IF($J$6+AS4<'Generelle forutsetninger'!$B$10+'Generelle forutsetninger'!$B$11,$J$6+AS4,IF(OR(AR6="Restverdi",AR6=""),"","Restverdi")) ->  | AT6: =IF($J$6+AT4<'Generelle forutsetninger'!$B$10+'Generelle forutsetninger'!$B$11,$J$6+AT4,IF(OR(AS6="Restverdi",AS6=""),"","Restverdi")) ->  | AU6: =IF($J$6+AU4<'Generelle forutsetninger'!$B$10+'Generelle forutsetninger'!$B$11,$J$6+AU4,IF(OR(AT6="Restverdi",AT6=""),"","Restverdi")) ->  | AV6: =IF($J$6+AV4<'Generelle forutsetninger'!$B$10+'Generelle forutsetninger'!$B$11,$J$6+AV4,IF(OR(AU6="Restverdi",AU6=""),"","Restverdi")) ->  | AW6: =IF($J$6+AW4<'Generelle forutsetninger'!$B$10+'Generelle forutsetninger'!$B$11,$J$6+AW4,IF(OR(AV6="Restverdi",AV6=""),"","Restverdi")) ->  | AX6: =IF($J$6+AX4<'Generelle forutsetninger'!$B$10+'Generelle forutsetninger'!$B$11,$J$6+AX4,IF(OR(AW6="Restverdi",AW6=""),"","Restverdi")) ->  | AY6: =IF($J$6+AY4<'Generelle forutsetninger'!$B$10+'Generelle forutsetninger'!$B$11,$J$6+AY4,IF(OR(AX6="Restverdi",AX6=""),"","Restverdi")) ->  | AZ6: =IF($J$6+AZ4<'Generelle forutsetninger'!$B$10+'Generelle forutsetninger'!$B$11,$J$6+AZ4,IF(OR(AY6="Restverdi",AY6=""),"","Restverdi")) ->  | BA6: =IF($J$6+BA4<'Generelle forutsetninger'!$B$10+'Generelle forutsetninger'!$B$11,$J$6+BA4,IF(OR(AZ6="Restverdi",AZ6=""),"","Restverdi")) ->  | BB6: =IF($J$6+BB4<'Generelle forutsetninger'!$B$10+'Generelle forutsetninger'!$B$11,$J$6+BB4,IF(OR(BA6="Restverdi",BA6=""),"","Restverdi")) ->  | BC6: =IF($J$6+BC4<'Generelle forutsetninger'!$B$10+'Generelle forutsetninger'!$B$11,$J$6+BC4,IF(OR(BB6="Restverdi",BB6=""),"","Restverdi")) ->  | BD6: =IF($J$6+BD4<'Generelle forutsetninger'!$B$10+'Generelle forutsetninger'!$B$11,$J$6+BD4,IF(OR(BC6="Restverdi",BC6=""),"","Restverdi")) ->  | BE6: =IF($J$6+BE4<'Generelle forutsetninger'!$B$10+'Generelle forutsetninger'!$B$11,$J$6+BE4,IF(OR(BD6="Restverdi",BD6=""),"","Restverdi")) ->  | BF6: =IF($J$6+BF4<'Generelle forutsetninger'!$B$10+'Generelle forutsetninger'!$B$11,$J$6+BF4,IF(OR(BE6="Restverdi",BE6=""),"","Restverdi")) ->  | BG6: =IF($J$6+BG4<'Generelle forutsetninger'!$B$10+'Generelle forutsetninger'!$B$11,$J$6+BG4,IF(OR(BF6="Restverdi",BF6=""),"","Restverdi")) ->  | BH6: =IF($J$6+BH4<'Generelle forutsetninger'!$B$10+'Generelle forutsetninger'!$B$11,$J$6+BH4,IF(OR(BG6="Restverdi",BG6=""),"","Restverdi")) ->  | BI6: =IF($J$6+BI4<'Generelle forutsetninger'!$B$10+'Generelle forutsetninger'!$B$11,$J$6+BI4,IF(OR(BH6="Restverdi",BH6=""),"","Restverdi")) ->  | BJ6: =IF($J$6+BJ4<'Generelle forutsetninger'!$B$10+'Generelle forutsetninger'!$B$11,$J$6+BJ4,IF(OR(BI6="Restverdi",BI6=""),"","Restverdi")) ->  | BK6: =IF($J$6+BK4<'Generelle forutsetninger'!$B$10+'Generelle forutsetninger'!$B$11,$J$6+BK4,IF(OR(BJ6="Restverdi",BJ6=""),"","Restverdi")) ->  | BL6: =IF($J$6+BL4<'Generelle forutsetninger'!$B$10+'Generelle forutsetninger'!$B$11,$J$6+BL4,IF(OR(BK6="Restverdi",BK6=""),"","Restverdi")) ->  | BM6: =IF($J$6+BM4<'Generelle forutsetninger'!$B$10+'Generelle forutsetninger'!$B$11,$J$6+BM4,IF(OR(BL6="Restverdi",BL6=""),"","Restverdi")) ->  | BN6: =IF($J$6+BN4<'Generelle forutsetninger'!$B$10+'Generelle forutsetninger'!$B$11,$J$6+BN4,IF(OR(BM6="Restverdi",BM6=""),"","Restverdi")) ->  | BO6: =IF($J$6+BO4<'Generelle forutsetninger'!$B$10+'Generelle forutsetninger'!$B$11,$J$6+BO4,IF(OR(BN6="Restverdi",BN6=""),"","Restverdi")) ->  | BP6: =IF($J$6+BP4<'Generelle forutsetninger'!$B$10+'Generelle forutsetninger'!$B$11,$J$6+BP4,IF(OR(BO6="Restverdi",BO6=""),"","Restverdi")) ->  | BQ6: =IF($J$6+BQ4<'Generelle forutsetninger'!$B$10+'Generelle forutsetninger'!$B$11,$J$6+BQ4,IF(OR(BP6="Restverdi",BP6=""),"","Restverdi")) ->  | BR6: =IF($J$6+BR4<'Generelle forutsetninger'!$B$10+'Generelle forutsetninger'!$B$11,$J$6+BR4,IF(OR(BQ6="Restverdi",BQ6=""),"","Restverdi")) ->  | BS6: =IF($J$6+BS4<'Generelle forutsetninger'!$B$10+'Generelle forutsetninger'!$B$11,$J$6+BS4,IF(OR(BR6="Restverdi",BR6=""),"","Restverdi")) ->  | BT6: =IF($J$6+BT4<'Generelle forutsetninger'!$B$10+'Generelle forutsetninger'!$B$11,$J$6+BT4,IF(OR(BS6="Restverdi",BS6=""),"","Restverdi")) ->  | BU6: =IF($J$6+BU4<'Generelle forutsetninger'!$B$10+'Generelle forutsetninger'!$B$11,$J$6+BU4,IF(OR(BT6="Restverdi",BT6=""),"","Restverdi")) ->  | BV6: =IF($J$6+BV4<'Generelle forutsetninger'!$B$10+'Generelle forutsetninger'!$B$11,$J$6+BV4,IF(OR(BU6="Restverdi",BU6=""),"","Restverdi")) ->  | BW6: =IF($J$6+BW4<'Generelle forutsetninger'!$B$10+'Generelle forutsetninger'!$B$11,$J$6+BW4,IF(OR(BV6="Restverdi",BV6=""),"","Restverdi")) ->  | BX6: =IF($J$6+BX4<'Generelle forutsetninger'!$B$10+'Generelle forutsetninger'!$B$11,$J$6+BX4,IF(OR(BW6="Restverdi",BW6=""),"","Restverdi")) ->  | BY6: =IF($J$6+BY4<'Generelle forutsetninger'!$B$10+'Generelle forutsetninger'!$B$11,$J$6+BY4,IF(OR(BX6="Restverdi",BX6=""),"","Restverdi")) ->  | BZ6: =IF($J$6+BZ4<'Generelle forutsetninger'!$B$10+'Generelle forutsetninger'!$B$11,$J$6+BZ4,IF(OR(BY6="Restverdi",BY6=""),"","Restverdi")) ->  | CA6: =IF($J$6+CA4<'Generelle forutsetninger'!$B$10+'Generelle forutsetninger'!$B$11,$J$6+CA4,IF(OR(BZ6="Restverdi",BZ6=""),"","Restverdi")) ->  | CB6: =IF($J$6+CB4<'Generelle forutsetninger'!$B$10+'Generelle forutsetninger'!$B$11,$J$6+CB4,IF(OR(CA6="Restverdi",CA6=""),"","Restverdi")) ->  | CC6: =IF($J$6+CC4<'Generelle forutsetninger'!$B$10+'Generelle forutsetninger'!$B$11,$J$6+CC4,IF(OR(CB6="Restverdi",CB6=""),"","Restverdi")) ->  | CD6: =IF($J$6+CD4<'Generelle forutsetninger'!$B$10+'Generelle forutsetninger'!$B$11,$J$6+CD4,IF(OR(CC6="Restverdi",CC6=""),"","Restverdi")) ->  | CE6: =IF($J$6+CE4<'Generelle forutsetninger'!$B$10+'Generelle forutsetninger'!$B$11,$J$6+CE4,IF(OR(CD6="Restverdi",CD6=""),"","Restverdi")) ->  | CF6: =IF($J$6+CF4<'Generelle forutsetninger'!$B$10+'Generelle forutsetninger'!$B$11,$J$6+CF4,IF(OR(CE6="Restverdi",CE6=""),"","Restverdi")) ->  | CG6: =IF($J$6+CG4<'Generelle forutsetninger'!$B$10+'Generelle forutsetninger'!$B$11,$J$6+CG4,IF(OR(CF6="Restverdi",CF6=""),"","Restverdi")) ->  | CH6: =IF($J$6+CH4<'Generelle forutsetninger'!$B$10+'Generelle forutsetninger'!$B$11,$J$6+CH4,IF(OR(CG6="Restverdi",CG6=""),"","Restverdi")) ->  | CI6: =IF($J$6+CI4<'Generelle forutsetninger'!$B$10+'Generelle forutsetninger'!$B$11,$J$6+CI4,IF(OR(CH6="Restverdi",CH6=""),"","Restverdi")) ->  | CJ6: =IF($J$6+CJ4<'Generelle forutsetninger'!$B$10+'Generelle forutsetninger'!$B$11,$J$6+CJ4,IF(OR(CI6="Restverdi",CI6=""),"","Restverdi")) ->  | CK6: =IF($J$6+CK4<'Generelle forutsetninger'!$B$10+'Generelle forutsetninger'!$B$11,$J$6+CK4,IF(OR(CJ6="Restverdi",CJ6=""),"","Restverdi")) ->  | CL6: =IF($J$6+CL4<'Generelle forutsetninger'!$B$10+'Generelle forutsetninger'!$B$11,$J$6+CL4,IF(OR(CK6="Restverdi",CK6=""),"","Restverdi")) ->  | CM6: =IF($J$6+CM4<'Generelle forutsetninger'!$B$10+'Generelle forutsetninger'!$B$11,$J$6+CM4,IF(OR(CL6="Restverdi",CL6=""),"","Restverdi")) ->  | CN6: =IF($J$6+CN4<'Generelle forutsetninger'!$B$10+'Generelle forutsetninger'!$B$11,$J$6+CN4,IF(OR(CM6="Restverdi",CM6=""),"","Restverdi")) ->  | CO6: =IF($J$6+CO4<'Generelle forutsetninger'!$B$10+'Generelle forutsetninger'!$B$11,$J$6+CO4,IF(OR(CN6="Restverdi",CN6=""),"","Restverdi")) ->  | CP6: =IF($J$6+CP4<'Generelle forutsetninger'!$B$10+'Generelle forutsetninger'!$B$11,$J$6+CP4,IF(OR(CO6="Restverdi",CO6=""),"","Restverdi")) ->  | CQ6: =IF($J$6+CQ4<'Generelle forutsetninger'!$B$10+'Generelle forutsetninger'!$B$11,$J$6+CQ4,IF(OR(CP6="Restverdi",CP6=""),"","Restverdi")) ->  | CR6: =IF($J$6+CR4<'Generelle forutsetninger'!$B$10+'Generelle forutsetninger'!$B$11,$J$6+CR4,IF(OR(CQ6="Restverdi",CQ6=""),"","Restverdi")) ->  | CS6: =IF($J$6+CS4<'Generelle forutsetninger'!$B$10+'Generelle forutsetninger'!$B$11,$J$6+CS4,IF(OR(CR6="Restverdi",CR6=""),"","Restverdi")) ->  | CT6: =IF($J$6+CT4<'Generelle forutsetninger'!$B$10+'Generelle forutsetninger'!$B$11,$J$6+CT4,IF(OR(CS6="Restverdi",CS6=""),"","Restverdi")) ->  | CU6: =IF($J$6+CU4<'Generelle forutsetninger'!$B$10+'Generelle forutsetninger'!$B$11,$J$6+CU4,IF(OR(CT6="Restverdi",CT6=""),"","Restverdi")) ->  | CV6: =IF($J$6+CV4<'Generelle forutsetninger'!$B$10+'Generelle forutsetninger'!$B$11,$J$6+CV4,IF(OR(CU6="Restverdi",CU6=""),"","Restverdi")) ->  | CW6: =IF($J$6+CW4<'Generelle forutsetninger'!$B$10+'Generelle forutsetninger'!$B$11,$J$6+CW4,IF(OR(CV6="Restverdi",CV6=""),"","Restverdi")) ->  | CX6: =IF($J$6+CX4<'Generelle forutsetninger'!$B$10+'Generelle forutsetninger'!$B$11,$J$6+CX4,IF(OR(CW6="Restverdi",CW6=""),"","Restverdi")) ->  | CY6: =IF($J$6+CY4<'Generelle forutsetninger'!$B$10+'Generelle forutsetninger'!$B$11,$J$6+CY4,IF(OR(CX6="Restverdi",CX6=""),"","Restverdi")) ->  | CZ6: =IF($J$6+CZ4<'Generelle forutsetninger'!$B$10+'Generelle forutsetninger'!$B$11,$J$6+CZ4,IF(OR(CY6="Restverdi",CY6=""),"","Restverdi")) ->  | DA6: =IF($J$6+DA4<'Generelle forutsetninger'!$B$10+'Generelle forutsetninger'!$B$11,$J$6+DA4,IF(OR(CZ6="Restverdi",CZ6=""),"","Restverdi")) ->  | DB6: =IF($J$6+DB4<'Generelle forutsetninger'!$B$10+'Generelle forutsetninger'!$B$11,$J$6+DB4,IF(OR(DA6="Restverdi",DA6=""),"","Restverdi")) ->  | DC6: =IF($J$6+DC4<'Generelle forutsetninger'!$B$10+'Generelle forutsetninger'!$B$11,$J$6+DC4,IF(OR(DB6="Restverdi",DB6=""),"","Restverdi")) ->  | DD6: =IF($J$6+DD4<'Generelle forutsetninger'!$B$10+'Generelle forutsetninger'!$B$11,$J$6+DD4,IF(OR(DC6="Restverdi",DC6=""),"","Restverdi")) ->  | DE6: =IF($J$6+DE4<'Generelle forutsetninger'!$B$10+'Generelle forutsetninger'!$B$11,$J$6+DE4,IF(OR(DD6="Restverdi",DD6=""),"","Restverdi")) ->  | DF6: =IF($J$6+DF4<'Generelle forutsetninger'!$B$10+'Generelle forutsetninger'!$B$11,$J$6+DF4,IF(OR(DE6="Restverdi",DE6=""),"","Restverdi")) ->  | DG6: =IF($J$6+DG4<'Generelle forutsetninger'!$B$10+'Generelle forutsetninger'!$B$11,$J$6+DG4,IF(OR(DF6="Restverdi",DF6=""),"","Restverdi")) -> 
A7: 72 | C7: 1 | D7: =1 -> 1 | E7: =1 + Celleref_Skattekostnad -> 1.2 | F7: =0 -> 0 | H7: Kroner
A8: k311 | B8: Kostnader for virksomheten
A9: 15 | B9: Investering nettportal | C9: 1 | D9: =1 -> 1 | E9: =1 -> 1 | F9: =0 -> 0 | H9: Kroner | J9: 2000000 | K9: 0 | L9: 0 | M9: 0 | N9: 0 | O9: 0 | P9: 0 | Q9: 0 | R9: 0 | S9: 0 | T9: 0 | U9: 0 | V9: 0 | W9: 0 | X9: 0 | Y9: 0
A10: 16 | B10: Årlig driftskostnad | C10: 1 | D10: =1 -> 1 | E10: =1 -> 1 | F10: =1 -> 1 | G10: 200000 | H10: Kroner | J10: 200000 | K10: 200000 | L10: 200000 | M10: 200000 | N10: 200000 | O10: 200000 | P10: 200000 | Q10: 200000 | R10: 200000 | S10: 200000 | T10: 200000 | U10: 200000 | V10: 200000 | W10: 200000 | X10: 200000
A11: 17 | B11: Årlig markedsføringskostnad | C11: 1 | D11: =1 -> 1 | E11: =1 -> 1 | F11: =1 -> 1 | G11: 300000 | H11: Kroner | J11: 300000 | K11: 300000 | L11: 300000 | M11: 300000 | N11: 300000 | O11: 300000 | P11: 300000 | Q11: 300000 | R11: 300000 | S11: 300000 | T11: 300000 | U11: 300000 | V11: 300000 | W11: 300000 | X11: 300000
A12: 18 | B12: Personellkostnad til nettportalen | C12: =Celleref_arsverk -> 770000 | D12: =1 -> 1 | E12: =1 -> 1 | F12: =1 -> 1 | G12: 0.5 | H12: Årsverk | J12: 0.5 | K12: 0.5 | L12: 0.5 | M12: 0.5 | N12: 0.5 | O12: 0.5 | P12: 0.5 | Q12: 0.5 | R12: 0.5 | S12: 0.5 | T12: 0.5 | U12: 0.5 | V12: 0.5 | W12: 0.5 | X12: 0.5
A13: 27 | B13: Kartlegging utført av kommuneansatte | C13: =Celleref_arsverk -> 770000 | D13: =1 -> 1 | E13: =1 -> 1 | F13: =1 -> 1 | G13: 2 | H13: Årsverk | J13: 2 | K13: 2 | L13: 2 | M13: 2 | N13: 2 | O13: 2 | P13: 2 | Q13: 2 | R13: 2 | S13: 2 | T13: 2 | U13: 2 | V13: 2 | W13: 2 | X13: 2
A14: 28 | B14: Årlig oppryddingsarbeid | C14: =Celleref_arsverk -> 770000 | D14: =1 -> 1 | E14: =1 -> 1 | F14: =1 -> 1 | G14: 7 | H14: Årsverk | J14: 7 | K14: 7 | L14: 7 | M14: 7 | N14: 7 | O14: 7 | P14: 7 | Q14: 7 | R14: 7 | S14: 7 | T14: 7 | U14: 7 | V14: 7 | W14: 7 | X14: 7
A15: k312 | B15: Kostnader for øvrig offentlig sektor
A16: k313 | B16: Kostnader for privat næringsliv
A17: k434 | B17: Kostnader for privatpersoner
A20: B | B20: Prissatte kostnadsvirkninger - direkte virkning | H20: Enhet | I20: Nåverdi | J20: =J6 -> 2019 | K20: 2020 | L20: 2021 | M20: 2022 | N20: 2023 | O20: 2024 | P20: 2025 | Q20: 2026 | R20: 2027 | S20: 2028 | T20: 2029 | U20: 2030 | V20: 2031 | W20: 2032 | X20: 2033 | Y20: Restverdi | BV20: =BV6 -> 
A21: 72 | B21: =VLOOKUP(A21,$A$7:$B$19,2,FALSE) -> 0 | C21: =C7 -> 1 | D21: 1 | E21: 1.2 | F21: 0 | G21: 0 | H21: Kroner | I21: =J21+NPV(Celleref_kalkulasjonsrente,K21:DG21) -> 0 | J21: =-IF(J$6="Restverdi",IF(J7=0,0,J7*$C7*$D7^(I$6+1-$J$6)),IF(J7=0,0,J7*$C7*$D7^(J$6-$J$6))) -> 0 | K21: 0 | L21: 0 | M21: 0 | N21: 0 | O21: 0 | P21: 0 | Q21: 0 | R21: 0 | S21: 0 | T21: 0 | U21: 0 | V21: 0 | W21: 0 | X21: 0 | Y21: 0 | Z21: 0 | AA21: 0 | AB21: 0 | AC21: 0 | AD21: 0 | AE21: 0 | AF21: 0 | AG21: 0 | AH21: 0 | AI21: 0 | AJ21: 0 | AK21: 0 | AL21: 0 | AM21: 0 | AN21: 0 | AO21: 0 | AP21: =-IF(AP$6="Restverdi",IF(AP7=0,0,AP7*$C7*$D7^(AO$6+1-$J$6)),IF(AP7=0,0,AP7*$C7*$D7^(AP$6-$J$6))) -> 0 | AQ21: 0 | AR21: 0 | AS21: 0 | AT21: 0 | AU21: 0 | AV21: 0 | AW21: 0 | AX21: 0 | AY21: 0 | AZ21: 0 | BA21: 0 | BB21: 0 | BC21: 0 | BD21: 0 | BE21: 0 | BF21: 0 | BG21: 0 | BH21: 0 | BI21: 0 | BJ21: 0 | BK21: 0 | BL21: 0 | BM21: 0 | BN21: 0 | BO21: 0 | BP21: 0 | BQ21: 0 | BR21: 0 | BS21: 0 | BT21: 0 | BU21: 0 | BV21: =-IF(BV$6="Restverdi",IF(BV7=0,0,BV7*$C7*$D7^(BU$6+1-$J$6)),IF(BV7=0,0,BV7*$C7*$D7^(BV$6-$J$6))) -> 0 | BW21: 0 | BX21: 0 | BY21: 0 | BZ21: 0 | CA21: 0 | CB21: 0 | CC21: 0 | CD21: 0 | CE21: 0 | CF21: 0 | CG21: 0 | CH21: 0 | CI21: 0 | CJ21: 0 | CK21: 0 | CL21: 0 | CM21: 0 | CN21: 0 | CO21: 0 | CP21: 0 | CQ21: 0 | CR21: 0 | CS21: 0 | CT21: 0 | CU21: 0 | CV21: 0 | CW21: 0 | CX21: 0 | CY21: 0 | CZ21: 0 | DA21: 0 | DB21: =-IF(DB$6="Restverdi",IF(DB7=0,0,DB7*$C7*$D7^(DA$6+1-$J$6)),IF(DB7=0,0,DB7*$C7*$D7^(DB$6-$J$6))) -> 0 | DC21: 0 | DD21: 0 | DE21: 0 | DF21: 0 | DG21: 0
A22: k311 | B22: Kostnader for virksomheten | C22: 0 | D22: 0 | E22: 0 | F22: 0 | G22: 0 | H22: Kroner | I22: 0 | J22: =-IF(J$6="Restverdi",IF(J8=0,0,J8*$C8*$D8^(I$6+1-$J$6)),IF(J8=0,0,J8*$C8*$D8^(J$6-$J$6))) -> 0 | K22: 0 | L22: 0 | M22: 0 | N22: 0 | O22: 0 | P22: 0 | Q22: 0 | R22: 0 | S22: 0 | T22: 0 | U22: 0 | V22: 0 | W22: 0 | X22: 0 | Y22: 0 | Z22: 0 | AA22: 0 | AB22: 0 | AC22: 0 | AD22: 0 | AE22: 0 | AF22: 0 | AG22: 0 | AH22: 0 | AI22: 0 | AJ22: 0 | AK22: 0 | AL22: 0 | AM22: 0 | AN22: 0 | AO22: 0 | AP22: =-IF(AP$6="Restverdi",IF(AP8=0,0,AP8*$C8*$D8^(AO$6+1-$J$6)),IF(AP8=0,0,AP8*$C8*$D8^(AP$6-$J$6))) -> 0 | AQ22: 0 | AR22: 0 | AS22: 0 | AT22: 0 | AU22: 0 | AV22: 0 | AW22: 0 | AX22: 0 | AY22: 0 | AZ22: 0 | BA22: 0 | BB22: 0 | BC22: 0 | BD22: 0 | BE22: 0 | BF22: 0 | BG22: 0 | BH22: 0 | BI22: 0 | BJ22: 0 | BK22: 0 | BL22: 0 | BM22: 0 | BN22: 0 | BO22: 0 | BP22: 0 | BQ22: 0 | BR22: 0 | BS22: 0 | BT22: 0 | BU22: 0 | BV22: =-IF(BV$6="Restverdi",IF(BV8=0,0,BV8*$C8*$D8^(BU$6+1-$J$6)),IF(BV8=0,0,BV8*$C8*$D8^(BV$6-$J$6))) -> 0 | BW22: 0 | BX22: 0 | BY22: 0 | BZ22: 0 | CA22: 0 | CB22: 0 | CC22: 0 | CD22: 0 | CE22: 0 | CF22: 0 | CG22: 0 | CH22: 0 | CI22: 0 | CJ22: 0 | CK22: 0 | CL22: 0 | CM22: 0 | CN22: 0 | CO22: 0 | CP22: 0 | CQ22: 0 | CR22: 0 | CS22: 0 | CT22: 0 | CU22: 0 | CV22: 0 | CW22: 0 | CX22: 0 | CY22: 0 | CZ22: 0 | DA22: 0 | DB22: =-IF(DB$6="Restverdi",IF(DB8=0,0,DB8*$C8*$D8^(DA$6+1-$J$6)),IF(DB8=0,0,DB8*$C8*$D8^(DB$6-$J$6))) -> 0 | DC22: 0 | DD22: 0 | DE22: 0 | DF22: 0 | DG22: 0
A23: 15 | B23: Investering nettportal | C23: 1 | D23: 1 | E23: 1 | F23: 0 | G23: 0 | H23: Kroner | I23: -2000000 | J23: =-IF(J$6="Restverdi",IF(J9=0,0,J9*$C9*$D9^(I$6+1-$J$6)),IF(J9=0,0,J9*$C9*$D9^(J$6-$J$6))) -> -2000000 | K23: 0 | L23: 0 | M23: 0 | N23: 0 | O23: 0 | P23: 0 | Q23: 0 | R23: 0 | S23: 0 | T23: 0 | U23: 0 | V23: 0 | W23: 0 | X23: 0 | Y23: 0 | Z23: 0 | AA23: 0 | AB23: 0 | AC23: 0 | AD23: 0 | AE23: 0 | AF23: 0 | AG23: 0 | AH23: 0 | AI23: 0 | AJ23: 0 | AK23: 0 | AL23: 0 | AM23: 0 | AN23: 0 | AO23: 0 | AP23: =-IF(AP$6="Restverdi",IF(AP9=0,0,AP9*$C9*$D9^(AO$6+1-$J$6)),IF(AP9=0,0,AP9*$C9*$D9^(AP$6-$J$6))) -> 0 | AQ23: 0 | AR23: 0 | AS23: 0 | AT23: 0 | AU23: 0 | AV23: 0 | AW23: 0 | AX23: 0 | AY23: 0 | AZ23: 0 | BA23: 0 | BB23: 0 | BC23: 0 | BD23: 0 | BE23: 0 | BF23: 0 | BG23: 0 | BH23: 0 | BI23: 0 | BJ23: 0 | BK23: 0 | BL23: 0 | BM23: 0 | BN23: 0 | BO23: 0 | BP23: 0 | BQ23: 0 | BR23: 0 | BS23: 0 | BT23: 0 | BU23: 0 | BV23: =-IF(BV$6="Restverdi",IF(BV9=0,0,BV9*$C9*$D9^(BU$6+1-$J$6)),IF(BV9=0,0,BV9*$C9*$D9^(BV$6-$J$6))) -> 0 | BW23: 0 | BX23: 0 | BY23: 0 | BZ23: 0 | CA23: 0 | CB23: 0 | CC23: 0 | CD23: 0 | CE23: 0 | CF23: 0 | CG23: 0 | CH23: 0 | CI23: 0 | CJ23: 0 | CK23: 0 | CL23: 0 | CM23: 0 | CN23: 0 | CO23: 0 | CP23: 0 | CQ23: 0 | CR23: 0 | CS23: 0 | CT23: 0 | CU23: 0 | CV23: 0 | CW23: 0 | CX23: 0 | CY23: 0 | CZ23: 0 | DA23: 0 | DB23: =-IF(DB$6="Restverdi",IF(DB9=0,0,DB9*$C9*$D9^(DA$6+1-$J$6)),IF(DB9=0,0,DB9*$C9*$D9^(DB$6-$J$6))) -> 0 | DC23: 0 | DD23: 0 | DE23: 0 | DF23: 0 | DG23: 0
A24: 16 | B24: Årlig driftskostnad | C24: 1 | D24: 1 | E24: 1 | F24: 1 | G24: 200000 | H24: Kroner | I24: -2312624.586 | J24: =-IF(J$6="Restverdi",IF(J10=0,0,J10*$C10*$D10^(I$6+1-$J$6)),IF(J10=0,0,J10*$C10*$D10^(J$6-$J$6))) -> -200000 | K24: -200000 | L24: -200000 | M24: -200000 | N24: -200000 | O24: -200000 | P24: -200000 | Q24: -200000 | R24: -200000 | S24: -200000 | T24: -200000 | U24: -200000 | V24: -200000 | W24: -200000 | X24: -200000 | Y24: 0 | Z24: 0 | AA24: 0 | AB24: 0 | AC24: 0 | AD24: 0 | AE24: 0 | AF24: 0 | AG24: 0 | AH24: 0 | AI24: 0 | AJ24: 0 | AK24: 0 | AL24: 0 | AM24: 0 | AN24: 0 | AO24: 0 | AP24: =-IF(AP$6="Restverdi",IF(AP10=0,0,AP10*$C10*$D10^(AO$6+1-$J$6)),IF(AP10=0,0,AP10*$C10*$D10^(AP$6-$J$6))) -> 0 | AQ24: 0 | AR24: 0 | AS24: 0 | AT24: 0 | AU24: 0 | AV24: 0 | AW24: 0 | AX24: 0 | AY24: 0 | AZ24: 0 | BA24: 0 | BB24: 0 | BC24: 0 | BD24: 0 | BE24: 0 | BF24: 0 | BG24: 0 | BH24: 0 | BI24: 0 | BJ24: 0 | BK24: 0 | BL24: 0 | BM24: 0 | BN24: 0 | BO24: 0 | BP24: 0 | BQ24: 0 | BR24: 0 | BS24: 0 | BT24: 0 | BU24: 0 | BV24: =-IF(BV$6="Restverdi",IF(BV10=0,0,BV10*$C10*$D10^(BU$6+1-$J$6)),IF(BV10=0,0,BV10*$C10*$D10^(BV$6-$J$6))) -> 0 | BW24: 0 | BX24: 0 | BY24: 0 | BZ24: 0 | CA24: 0 | CB24: 0 | CC24: 0 | CD24: 0 | CE24: 0 | CF24: 0 | CG24: 0 | CH24: 0 | CI24: 0 | CJ24: 0 | CK24: 0 | CL24: 0 | CM24: 0 | CN24: 0 | CO24: 0 | CP24: 0 | CQ24: 0 | CR24: 0 | CS24: 0 | CT24: 0 | CU24: 0 | CV24: 0 | CW24: 0 | CX24: 0 | CY24: 0 | CZ24: 0 | DA24: 0 | DB24: =-IF(DB$6="Restverdi",IF(DB10=0,0,DB10*$C10*$D10^(DA$6+1-$J$6)),IF(DB10=0,0,DB10*$C10*$D10^(DB$6-$J$6))) -> 0 | DC24: 0 | DD24: 0 | DE24: 0 | DF24: 0 | DG24: 0
A25: 17 | B25: Årlig markedsføringskostnad | C25: 1 | D25: 1 | E25: 1 | F25: 1 | G25: 300000 | H25: Kroner | I25: -3468936.879 | J25: =-IF(J$6="Restverdi",IF(J11=0,0,J11*$C11*$D11^(I$6+1-$J$6)),IF(J11=0,0,J11*$C11*$D11^(J$6-$J$6))) -> -300000 | K25: -300000 | L25: -300000 | M25: -300000 | N25: -300000 | O25: -300000 | P25: -300000 | Q25: -300000 | R25: -300000 | S25: -300000 | T25: -300000 | U25: -300000 | V25: -300000 | W25: -300000 | X25: -300000 | Y25: 0 | Z25: 0 | AA25: 0 | AB25: 0 | AC25: 0 | AD25: 0 | AE25: 0 | AF25: 0 | AG25: 0 | AH25: 0 | AI25: 0 | AJ25: 0 | AK25: 0 | AL25: 0 | AM25: 0 | AN25: 0 | AO25: 0 | AP25: =-IF(AP$6="Restverdi",IF(AP11=0,0,AP11*$C11*$D11^(AO$6+1-$J$6)),IF(AP11=0,0,AP11*$C11*$D11^(AP$6-$J$6))) -> 0 | AQ25: 0 | AR25: 0 | AS25: 0 | AT25: 0 | AU25: 0 | AV25: 0 | AW25: 0 | AX25: 0 | AY25: 0 | AZ25: 0 | BA25: 0 | BB25: 0 | BC25: 0 | BD25: 0 | BE25: 0 | BF25: 0 | BG25: 0 | BH25: 0 | BI25: 0 | BJ25: 0 | BK25: 0 | BL25: 0 | BM25: 0 | BN25: 0 | BO25: 0 | BP25: 0 | BQ25: 0 | BR25: 0 | BS25: 0 | BT25: 0 | BU25: 0 | BV25: =-IF(BV$6="Restverdi",IF(BV11=0,0,BV11*$C11*$D11^(BU$6+1-$J$6)),IF(BV11=0,0,BV11*$C11*$D11^(BV$6-$J$6))) -> 0 | BW25: 0 | BX25: 0 | BY25: 0 | BZ25: 0 | CA25: 0 | CB25: 0 | CC25: 0 | CD25: 0 | CE25: 0 | CF25: 0 | CG25: 0 | CH25: 0 | CI25: 0 | CJ25: 0 | CK25: 0 | CL25: 0 | CM25: 0 | CN25: 0 | CO25: 0 | CP25: 0 | CQ25: 0 | CR25: 0 | CS25: 0 | CT25: 0 | CU25: 0 | CV25: 0 | CW25: 0 | CX25: 0 | CY25: 0 | CZ25: 0 | DA25: 0 | DB25: =-IF(DB$6="Restverdi",IF(DB11=0,0,DB11*$C11*$D11^(DA$6+1-$J$6)),IF(DB11=0,0,DB11*$C11*$D11^(DB$6-$J$6))) -> 0 | DC25: 0 | DD25: 0 | DE25: 0 | DF25: 0 | DG25: 0
A26: 18 | B26: Personellkostnad til nettportalen | C26: 770000 | D26: 1 | E26: 1 | F26: 1 | G26: 0.5 | H26: Kroner | I26: -4451802.328 | J26: =-IF(J$6="Restverdi",IF(J12=0,0,J12*$C12*$D12^(I$6+1-$J$6)),IF(J12=0,0,J12*$C12*$D12^(J$6-$J$6))) -> -385000 | K26: -385000 | L26: -385000 | M26: -385000 | N26: -385000 | O26: -385000 | P26: -385000 | Q26: -385000 | R26: -385000 | S26: -385000 | T26: -385000 | U26: -385000 | V26: -385000 | W26: -385000 | X26: -385000 | Y26: 0 | Z26: 0 | AA26: 0 | AB26: 0 | AC26: 0 | AD26: 0 | AE26: 0 | AF26: 0 | AG26: 0 | AH26: 0 | AI26: 0 | AJ26: 0 | AK26: 0 | AL26: 0 | AM26: 0 | AN26: 0 | AO26: 0 | AP26: =-IF(AP$6="Restverdi",IF(AP12=0,0,AP12*$C12*$D12^(AO$6+1-$J$6)),IF(AP12=0,0,AP12*$C12*$D12^(AP$6-$J$6))) -> 0 | AQ26: 0 | AR26: 0 | AS26: 0 | AT26: 0 | AU26: 0 | AV26: 0 | AW26: 0 | AX26: 0 | AY26: 0 | AZ26: 0 | BA26: 0 | BB26: 0 | BC26: 0 | BD26: 0 | BE26: 0 | BF26: 0 | BG26: 0 | BH26: 0 | BI26: 0 | BJ26: 0 | BK26: 0 | BL26: 0 | BM26: 0 | BN26: 0 | BO26: 0 | BP26: 0 | BQ26: 0 | BR26: 0 | BS26: 0 | BT26: 0 | BU26: 0 | BV26: =-IF(BV$6="Restverdi",IF(BV12=0,0,BV12*$C12*$D12^(BU$6+1-$J$6)),IF(BV12=0,0,BV12*$C12*$D12^(BV$6-$J$6))) -> 0 | BW26: 0 | BX26: 0 | BY26: 0 | BZ26: 0 | CA26: 0 | CB26: 0 | CC26: 0 | CD26: 0 | CE26: 0 | CF26: 0 | CG26: 0 | CH26: 0 | CI26: 0 | CJ26: 0 | CK26: 0 | CL26: 0 | CM26: 0 | CN26: 0 | CO26: 0 | CP26: 0 | CQ26: 0 | CR26: 0 | CS26: 0 | CT26: 0 | CU26: 0 | CV26: 0 | CW26: 0 | CX26: 0 | CY26: 0 | CZ26: 0 | DA26: 0 | DB26: =-IF(DB$6="Restverdi",IF(DB12=0,0,DB12*$C12*$D12^(DA$6+1-$J$6)),IF(DB12=0,0,DB12*$C12*$D12^(DB$6-$J$6))) -> 0 | DC26: 0 | DD26: 0 | DE26: 0 | DF26: 0 | DG26: 0
A27: 27 | B27: Kartlegging utført av kommuneansatte | C27: 770000 | D27: 1 | E27: 1 | F27: 1 | G27: 2 | H27: Kroner | I27: =J27+NPV(Celleref_kalkulasjonsrente,K27:DG27) -> -17807209.31 | J27: =-IF(J$6="Restverdi",IF(J13=0,0,J13*$C13*$D13^(I$6+1-$J$6)),IF(J13=0,0,J13*$C13*$D13^(J$6-$J$6))) -> -1540000 | K27: -1540000 | L27: -1540000 | M27: -1540000 | N27: -1540000 | O27: -1540000 | P27: -1540000 | Q27: -1540000 | R27: -1540000 | S27: -1540000 | T27: -1540000 | U27: -1540000 | V27: -1540000 | W27: -1540000 | X27: -1540000 | Y27: 0 | Z27: 0 | AA27: 0 | AB27: 0 | AC27: 0 | AD27: 0 | AE27: 0 | AF27: 0 | AG27: 0 | AH27: 0 | AI27: 0 | AJ27: 0 | AK27: 0 | AL27: 0 | AM27: 0 | AN27: 0 | AO27: 0 | AP27: =-IF(AP$6="Restverdi",IF(AP13=0,0,AP13*$C13*$D13^(AO$6+1-$J$6)),IF(AP13=0,0,AP13*$C13*$D13^(AP$6-$J$6))) -> 0 | AQ27: 0 | AR27: 0 | AS27: 0 | AT27: 0 | AU27: 0 | AV27: 0 | AW27: 0 | AX27: 0 | AY27: 0 | AZ27: 0 | BA27: 0 | BB27: 0 | BC27: 0 | BD27: 0 | BE27: 0 | BF27: 0 | BG27: 0 | BH27: 0 | BI27: 0 | BJ27: 0 | BK27: 0 | BL27: 0 | BM27: 0 | BN27: 0 | BO27: 0 | BP27: 0 | BQ27: 0 | BR27: 0 | BS27: 0 | BT27: 0 | BU27: 0 | BV27: =-IF(BV$6="Restverdi",IF(BV13=0,0,BV13*$C13*$D13^(BU$6+1-$J$6)),IF(BV13=0,0,BV13*$C13*$D13^(BV$6-$J$6))) -> 0 | BW27: 0 | BX27: 0 | BY27: 0 | BZ27: 0 | CA27: 0 | CB27: 0 | CC27: 0 | CD27: 0 | CE27: 0 | CF27: 0 | CG27: 0 | CH27: 0 | CI27: 0 | CJ27: 0 | CK27: 0 | CL27: 0 | CM27: 0 | CN27: 0 | CO27: 0 | CP27: 0 | CQ27: 0 | CR27: 0 | CS27: 0 | CT27: 0 | CU27: 0 | CV27: 0 | CW27: 0 | CX27: 0 | CY27: 0 | CZ27: 0 | DA27: 0 | DB27: =-IF(DB$6="Restverdi",IF(DB13=0,0,DB13*$C13*$D13^(DA$6+1-$J$6)),IF(DB13=0,0,DB13*$C13*$D13^(DB$6-$J$6))) -> 0 | DC27: 0 | DD27: 0 | DE27: 0 | DF27: 0 | DG27: 0
A28: 28 | B28: Årlig oppryddingsarbeid | C28: 770000 | D28: 1 | E28: 1 | F28: 1 | G28: 7 | H28: Kroner | I28: =J28+NPV(Celleref_kalkulasjonsrente,K28:DG28) -> -62325232.59 | J28: =-IF(J$6="Restverdi",IF(J14=0,0,J14*$C14*$D14^(I$6+1-$J$6)),IF(J14=0,0,J14*$C14*$D14^(J$6-$J$6))) -> -5390000 | K28: -5390000 | L28: -5390000 | M28: -5390000 | N28: -5390000 | O28: -5390000 | P28: -5390000 | Q28: -5390000 | R28: -5390000 | S28: -5390000 | T28: -5390000 | U28: -5390000 | V28: -5390000 | W28: -5390000 | X28: -5390000 | Y28: 0 | Z28: 0 | AA28: 0 | AB28: 0 | AC28: 0 | AD28: 0 | AE28: 0 | AF28: 0 | AG28: 0 | AH28: 0 | AI28: 0 | AJ28: 0 | AK28: 0 | AL28: 0 | AM28: 0 | AN28: 0 | AO28: 0 | AP28: =-IF(AP$6="Restverdi",IF(AP14=0,0,AP14*$C14*$D14^(AO$6+1-$J$6)),IF(AP14=0,0,AP14*$C14*$D14^(AP$6-$J$6))) -> 0 | AQ28: 0 | AR28: 0 | AS28: 0 | AT28: 0 | AU28: 0 | AV28: 0 | AW28: 0 | AX28: 0 | AY28: 0 | AZ28: 0 | BA28: 0 | BB28: 0 | BC28: 0 | BD28: 0 | BE28: 0 | BF28: 0 | BG28: 0 | BH28: 0 | BI28: 0 | BJ28: 0 | BK28: 0 | BL28: 0 | BM28: 0 | BN28: 0 | BO28: 0 | BP28: 0 | BQ28: 0 | BR28: 0 | BS28: 0 | BT28: 0 | BU28: 0 | BV28: =-IF(BV$6="Restverdi",IF(BV14=0,0,BV14*$C14*$D14^(BU$6+1-$J$6)),IF(BV14=0,0,BV14*$C14*$D14^(BV$6-$J$6))) -> 0 | BW28: 0 | BX28: 0 | BY28: 0 | BZ28: 0 | CA28: 0 | CB28: 0 | CC28: 0 | CD28: 0 | CE28: 0 | CF28: 0 | CG28: 0 | CH28: 0 | CI28: 0 | CJ28: 0 | CK28: 0 | CL28: 0 | CM28: 0 | CN28: 0 | CO28: 0 | CP28: 0 | CQ28: 0 | CR28: 0 | CS28: 0 | CT28: 0 | CU28: 0 | CV28: 0 | CW28: 0 | CX28: 0 | CY28: 0 | CZ28: 0 | DA28: 0 | DB28: =-IF(DB$6="Restverdi",IF(DB14=0,0,DB14*$C14*$D14^(DA$6+1-$J$6)),IF(DB14=0,0,DB14*$C14*$D14^(DB$6-$J$6))) -> 0 | DC28: 0 | DD28: 0 | DE28: 0 | DF28: 0 | DG28: 0
A29: k312 | B29: Kostnader for øvrig offentlig sektor | C29: =C15 -> 0 | D29: 0 | E29: 0 | F29: 0 | G29: 0 | H29: Kroner | I29: 0 | J29: =-IF(J$6="Restverdi",IF(J15=0,0,J15*$C15*$D15^(I$6+1-$J$6)),IF(J15=0,0,J15*$C15*$D15^(J$6-$J$6))) -> 0 | K29: 0 | L29: 0 | M29: 0 | N29: 0 | O29: 0 | P29: 0 | Q29: 0 | R29: 0 | S29: 0 | T29: 0 | U29: 0 | V29: 0 | W29: 0 | X29: 0 | Y29: 0 | Z29: 0 | AA29: 0 | AB29: 0 | AC29: 0 | AD29: 0 | AE29: 0 | AF29: 0 | AG29: 0 | AH29: 0 | AI29: 0 | AJ29: 0 | AK29: 0 | AL29: 0 | AM29: 0 | AN29: 0 | AO29: 0 | AP29: =-IF(AP$6="Restverdi",IF(AP15=0,0,AP15*$C15*$D15^(AO$6+1-$J$6)),IF(AP15=0,0,AP15*$C15*$D15^(AP$6-$J$6))) -> 0 | AQ29: 0 | AR29: 0 | AS29: 0 | AT29: 0 | AU29: 0 | AV29: 0 | AW29: 0 | AX29: 0 | AY29: 0 | AZ29: 0 | BA29: 0 | BB29: 0 | BC29: 0 | BD29: 0 | BE29: 0 | BF29: 0 | BG29: 0 | BH29: 0 | BI29: 0 | BJ29: 0 | BK29: 0 | BL29: 0 | BM29: 0 | BN29: 0 | BO29: 0 | BP29: 0 | BQ29: 0 | BR29: 0 | BS29: 0 | BT29: 0 | BU29: 0 | BV29: =-IF(BV$6="Restverdi",IF(BV15=0,0,BV15*$C15*$D15^(BU$6+1-$J$6)),IF(BV15=0,0,BV15*$C15*$D15^(BV$6-$J$6))) -> 0 | BW29: 0 | BX29: 0 | BY29: 0 | BZ29: 0 | CA29: 0 | CB29: 0 | CC29: 0 | CD29: 0 | CE29: 0 | CF29: 0 | CG29: 0 | CH29: 0 | CI29: 0 | CJ29: 0 | CK29: 0 | CL29: 0 | CM29: 0 | CN29: 0 | CO29: 0 | CP29: 0 | CQ29: 0 | CR29: 0 | CS29: 0 | CT29: 0 | CU29: 0 | CV29: 0 | CW29: 0 | CX29: 0 | CY29: 0 | CZ29: 0 | DA29: 0 | DB29: =-IF(DB$6="Restverdi",IF(DB15=0,0,DB15*$C15*$D15^(DA$6+1-$J$6)),IF(DB15=0,0,DB15*$C15*$D15^(DB$6-$J$6))) -> 0 | DC29: 0 | DD29: 0 | DE29: 0 | DF29: 0 | DG29: 0
A30: k313 | B30: Kostnader for privat næringsliv | C30: 0 | D30: 0 | E30: 0 | F30: 0 | G30: 0 | H30: Kroner | I30: 0 | J30: =-IF(J$6="Restverdi",IF(J16=0,0,J16*$C16*$D16^(I$6+1-$J$6)),IF(J16=0,0,J16*$C16*$D16^(J$6-$J$6))) -> 0 | K30: 0 | L30: 0 | M30: 0 | N30: 0 | O30: 0 | P30: 0 | Q30: 0 | R30: 0 | S30: 0 | T30: 0 | U30: 0 | V30: 0 | W30: 0 | X30: 0 | Y30: 0 | Z30: 0 | AA30: 0 | AB30: 0 | AC30: 0 | AD30: 0 | AE30: 0 | AF30: 0 | AG30: 0 | AH30: 0 | AI30: 0 | AJ30: 0 | AK30: 0 | AL30: 0 | AM30: 0 | AN30: 0 | AO30: 0 | AP30: =-IF(AP$6="Restverdi",IF(AP16=0,0,AP16*$C16*$D16^(AO$6+1-$J$6)),IF(AP16=0,0,AP16*$C16*$D16^(AP$6-$J$6))) -> 0 | AQ30: 0 | AR30: 0 | AS30: 0 | AT30: 0 | AU30: 0 | AV30: 0 | AW30: 0 | AX30: 0 | AY30: 0 | AZ30: 0 | BA30: 0 | BB30: 0 | BC30: 0 | BD30: 0 | BE30: 0 | BF30: 0 | BG30: 0 | BH30: 0 | BI30: 0 | BJ30: 0 | BK30: 0 | BL30: 0 | BM30: 0 | BN30: 0 | BO30: 0 | BP30: 0 | BQ30: 0 | BR30: 0 | BS30: 0 | BT30: 0 | BU30: 0 | BV30: =-IF(BV$6="Restverdi",IF(BV16=0,0,BV16*$C16*$D16^(BU$6+1-$J$6)),IF(BV16=0,0,BV16*$C16*$D16^(BV$6-$J$6))) -> 0 | BW30: 0 | BX30: 0 | BY30: 0 | BZ30: 0 | CA30: 0 | CB30: 0 | CC30: 0 | CD30: 0 | CE30: 0 | CF30: 0 | CG30: 0 | CH30: 0 | CI30: 0 | CJ30: 0 | CK30: 0 | CL30: 0 | CM30: 0 | CN30: 0 | CO30: 0 | CP30: 0 | CQ30: 0 | CR30: 0 | CS30: 0 | CT30: 0 | CU30: 0 | CV30: 0 | CW30: 0 | CX30: 0 | CY30: 0 | CZ30: 0 | DA30: 0 | DB30: =-IF(DB$6="Restverdi",IF(DB16=0,0,DB16*$C16*$D16^(DA$6+1-$J$6)),IF(DB16=0,0,DB16*$C16*$D16^(DB$6-$J$6))) -> 0 | DC30: 0 | DD30: 0 | DE30: 0 | DF30: 0 | DG30: 0
A31: k434 | B31: Kostnader for privatpersoner | C31: 0 | D31: 0 | E31: 0 | F31: 0 | G31: 0 | H31: Kroner | I31: 0 | J31: =-IF(J$6="Restverdi",IF(J17=0,0,J17*$C17*$D17^(I$6+1-$J$6)),IF(J17=0,0,J17*$C17*$D17^(J$6-$J$6))) -> 0 | K31: 0 | L31: 0 | M31: 0 | N31: 0 | O31: 0 | P31: 0 | Q31: 0 | R31: 0 | S31: 0 | T31: 0 | U31: 0 | V31: 0 | W31: 0 | X31: 0 | Y31: 0 | Z31: 0 | AA31: 0 | AB31: 0 | AC31: 0 | AD31: 0 | AE31: 0 | AF31: 0 | AG31: 0 | AH31: 0 | AI31: 0 | AJ31: 0 | AK31: 0 | AL31: 0 | AM31: 0 | AN31: 0 | AO31: 0 | AP31: =-IF(AP$6="Restverdi",IF(AP17=0,0,AP17*$C17*$D17^(AO$6+1-$J$6)),IF(AP17=0,0,AP17*$C17*$D17^(AP$6-$J$6))) -> 0 | AQ31: 0 | AR31: 0 | AS31: 0 | AT31: 0 | AU31: 0 | AV31: 0 | AW31: 0 | AX31: 0 | AY31: 0 | AZ31: 0 | BA31: 0 | BB31: 0 | BC31: 0 | BD31: 0 | BE31: 0 | BF31: 0 | BG31: 0 | BH31: 0 | BI31: 0 | BJ31: 0 | BK31: 0 | BL31: 0 | BM31: 0 | BN31: 0 | BO31: 0 | BP31: 0 | BQ31: 0 | BR31: 0 | BS31: 0 | BT31: 0 | BU31: 0 | BV31: =-IF(BV$6="Restverdi",IF(BV17=0,0,BV17*$C17*$D17^(BU$6+1-$J$6)),IF(BV17=0,0,BV17*$C17*$D17^(BV$6-$J$6))) -> 0 | BW31: 0 | BX31: 0 | BY31: 0 | BZ31: 0 | CA31: 0 | CB31: 0 | CC31: 0 | CD31: 0 | CE31: 0 | CF31: 0 | CG31: 0 | CH31: 0 | CI31: 0 | CJ31: 0 | CK31: 0 | CL31: 0 | CM31: 0 | CN31: 0 | CO31: 0 | CP31: 0 | CQ31: 0 | CR31: 0 | CS31: 0 | CT31: 0 | CU31: 0 | CV31: 0 | CW31: 0 | CX31: 0 | CY31: 0 | CZ31: 0 | DA31: 0 | DB31: =-IF(DB$6="Restverdi",IF(DB17=0,0,DB17*$C17*$D17^(DA$6+1-$J$6)),IF(DB17=0,0,DB17*$C17*$D17^(DB$6-$J$6))) -> 0 | DC31: 0 | DD31: 0 | DE31: 0 | DF31: 0 | DG31: 0
A34: S | B34: Prissatte kostnadsvirkninger - Skattefinansieringskostnad | H34: Enhet | I34: Nåverdi | J34: =J20 -> 2019 | K34: 2020 | L34: 2021 | M34: 2022 | N34: 2023 | O34: 2024 | P34: 2025 | Q34: 2026 | R34: 2027 | S34: 2028 | T34: 2029 | U34: 2030 | V34: 2031 | W34: 2032 | X34: 2033 | Y34: Restverdi | BV34: =BV20 -> 
A35: 72 | B35: =VLOOKUP(A35,$A$7:$B$19,2,FALSE) -> 0 | H35: Kroner | I35: =J35+NPV(Celleref_kalkulasjonsrente,K35:DG35) -> 0 | J35: =IF(J7=0,0,J21*($E7-1)) -> 0 | K35: 0 | L35: 0 | M35: 0 | N35: 0 | O35: 0 | P35: 0 | Q35: 0 | R35: 0 | S35: 0 | T35: 0 | U35: 0 | V35: 0 | W35: 0 | X35: 0 | Y35: 0 | Z35: 0 | AA35: 0 | AB35: 0 | AC35: 0 | AD35: 0 | AE35: 0 | AF35: 0 | AG35: 0 | AH35: 0 | AI35: 0 | AJ35: 0 | AK35: 0 | AL35: 0 | AM35: 0 | AN35: 0 | AO35: 0 | AP35: =IF(AP7=0,0,AP21*($E7-1)) -> 0 | AQ35: 0 | AR35: 0 | AS35: 0 | AT35: 0 | AU35: 0 | AV35: 0 | AW35: 0 | AX35: 0 | AY35: 0 | AZ35: 0 | BA35: 0 | BB35: 0 | BC35: 0 | BD35: 0 | BE35: 0 | BF35: 0 | BG35: 0 | BH35: 0 | BI35: 0 | BJ35: 0 | BK35: 0 | BL35: 0 | BM35: 0 | BN35: 0 | BO35: 0 | BP35: 0 | BQ35: 0 | BR35: 0 | BS35: 0 | BT35: 0 | BU35: 0 | BV35: =IF(BV7=0,0,BV21*($E7-1)) -> 0 | BW35: 0 | BX35: 0 | BY35: 0 | BZ35: 0 | CA35: 0 | CB35: 0 | CC35: 0 | CD35: 0 | CE35: 0 | CF35: 0 | CG35: 0 | CH35: 0 | CI35: 0 | CJ35: 0 | CK35: 0 | CL35: 0 | CM35: 0 | CN35: 0 | CO35: 0 | CP35: 0 | CQ35: 0 | CR35: 0 | CS35: 0 | CT35: 0 | CU35: 0 | CV35: 0 | CW35: 0 | CX35: 0 | CY35: 0 | CZ35: 0 | DA35: 0 | DB35: =IF(DB7=0,0,DB21*($E7-1)) -> 0 | DC35: 0 | DD35: 0 | DE35: 0 | DF35: 0 | DG35: 0
A36: k311 | B36: Kostnader for virksomheten | H36: Kroner | I36: 0 | J36: =IF(J8=0,0,J22*($E8-1)) -> 0 | K36: 0 | L36: 0 | M36: 0 | N36: 0 | O36: 0 | P36: 0 | Q36: 0 | R36: 0 | S36: 0 | T36: 0 | U36: 0 | V36: 0 | W36: 0 | X36: 0 | Y36: 0 | Z36: 0 | AA36: 0 | AB36: 0 | AC36: 0 | AD36: 0 | AE36: 0 | AF36: 0 | AG36: 0 | AH36: 0 | AI36: 0 | AJ36: 0 | AK36: 0 | AL36: 0 | AM36: 0 | AN36: 0 | AO36: 0 | AP36: =IF(AP8=0,0,AP22*($E8-1)) -> 0 | AQ36: 0 | AR36: 0 | AS36: 0 | AT36: 0 | AU36: 0 | AV36: 0 | AW36: 0 | AX36: 0 | AY36: 0 | AZ36: 0 | BA36: 0 | BB36: 0 | BC36: 0 | BD36: 0 | BE36: 0 | BF36: 0 | BG36: 0 | BH36: 0 | BI36: 0 | BJ36: 0 | BK36: 0 | BL36: 0 | BM36: 0 | BN36: 0 | BO36: 0 | BP36: 0 | BQ36: 0 | BR36: 0 | BS36: 0 | BT36: 0 | BU36: 0 | BV36: =IF(BV8=0,0,BV22*($E8-1)) -> 0 | BW36: 0 | BX36: 0 | BY36: 0 | BZ36: 0 | CA36: 0 | CB36: 0 | CC36: 0 | CD36: 0 | CE36: 0 | CF36: 0 | CG36: 0 | CH36: 0 | CI36: 0 | CJ36: 0 | CK36: 0 | CL36: 0 | CM36: 0 | CN36: 0 | CO36: 0 | CP36: 0 | CQ36: 0 | CR36: 0 | CS36: 0 | CT36: 0 | CU36: 0 | CV36: 0 | CW36: 0 | CX36: 0 | CY36: 0 | CZ36: 0 | DA36: 0 | DB36: =IF(DB8=0,0,DB22*($E8-1)) -> 0 | DC36: 0 | DD36: 0 | DE36: 0 | DF36: 0 | DG36: 0
A37: 15 | B37: Investering nettportal | H37: Kroner | I37: 0 | J37: =IF(J9=0,0,J23*($E9-1)) -> 0 | K37: 0 | L37: 0 | M37: 0 | N37: 0 | O37: 0 | P37: 0 | Q37: 0 | R37: 0 | S37: 0 | T37: 0 | U37: 0 | V37: 0 | W37: 0 | X37: 0 | Y37: 0 | Z37: 0 | AA37: 0 | AB37: 0 | AC37: 0 | AD37: 0 | AE37: 0 | AF37: 0 | AG37: 0 | AH37: 0 | AI37: 0 | AJ37: 0 | AK37: 0 | AL37: 0 | AM37: 0 | AN37: 0 | AO37: 0 | AP37: =IF(AP9=0,0,AP23*($E9-1)) -> 0 | AQ37: 0 | AR37: 0 | AS37: 0 | AT37: 0 | AU37: 0 | AV37: 0 | AW37: 0 | AX37: 0 | AY37: 0 | AZ37: 0 | BA37: 0 | BB37: 0 | BC37: 0 | BD37: 0 | BE37: 0 | BF37: 0 | BG37: 0 | BH37: 0 | BI37: 0 | BJ37: 0 | BK37: 0 | BL37: 0 | BM37: 0 | BN37: 0 | BO37: 0 | BP37: 0 | BQ37: 0 | BR37: 0 | BS37: 0 | BT37: 0 | BU37: 0 | BV37: =IF(BV9=0,0,BV23*($E9-1)) -> 0 | BW37: 0 | BX37: 0 | BY37: 0 | BZ37: 0 | CA37: 0 | CB37: 0 | CC37: 0 | CD37: 0 | CE37: 0 | CF37: 0 | CG37: 0 | CH37: 0 | CI37: 0 | CJ37: 0 | CK37: 0 | CL37: 0 | CM37: 0 | CN37: 0 | CO37: 0 | CP37: 0 | CQ37: 0 | CR37: 0 | CS37: 0 | CT37: 0 | CU37: 0 | CV37: 0 | CW37: 0 | CX37: 0 | CY37: 0 | CZ37: 0 | DA37: 0 | DB37: =IF(DB9=0,0,DB23*($E9-1)) -> 0 | DC37: 0 | DD37: 0 | DE37: 0 | DF37: 0 | DG37: 0
A38: 16 | B38: Årlig driftskostnad | H38: Kroner | I38: 0 | J38: =IF(J10=0,0,J24*($E10-1)) -> 0 | K38: 0 | L38: 0 | M38: 0 | N38: 0 | O38: 0 | P38: 0 | Q38: 0 | R38: 0 | S38: 0 | T38: 0 | U38: 0 | V38: 0 | W38: 0 | X38: 0 | Y38: 0 | Z38: 0 | AA38: 0 | AB38: 0 | AC38: 0 | AD38: 0 | AE38: 0 | AF38: 0 | AG38: 0 | AH38: 0 | AI38: 0 | AJ38: 0 | AK38: 0 | AL38: 0 | AM38: 0 | AN38: 0 | AO38: 0 | AP38: =IF(AP10=0,0,AP24*($E10-1)) -> 0 | AQ38: 0 | AR38: 0 | AS38: 0 | AT38: 0 | AU38: 0 | AV38: 0 | AW38: 0 | AX38: 0 | AY38: 0 | AZ38: 0 | BA38: 0 | BB38: 0 | BC38: 0 | BD38: 0 | BE38: 0 | BF38: 0 | BG38: 0 | BH38: 0 | BI38: 0 | BJ38: 0 | BK38: 0 | BL38: 0 | BM38: 0 | BN38: 0 | BO38: 0 | BP38: 0 | BQ38: 0 | BR38: 0 | BS38: 0 | BT38: 0 | BU38: 0 | BV38: =IF(BV10=0,0,BV24*($E10-1)) -> 0 | BW38: 0 | BX38: 0 | BY38: 0 | BZ38: 0 | CA38: 0 | CB38: 0 | CC38: 0 | CD38: 0 | CE38: 0 | CF38: 0 | CG38: 0 | CH38: 0 | CI38: 0 | CJ38: 0 | CK38: 0 | CL38: 0 | CM38: 0 | CN38: 0 | CO38: 0 | CP38: 0 | CQ38: 0 | CR38: 0 | CS38: 0 | CT38: 0 | CU38: 0 | CV38: 0 | CW38: 0 | CX38: 0 | CY38: 0 | CZ38: 0 | DA38: 0 | DB38: =IF(DB10=0,0,DB24*($E10-1)) -> 0 | DC38: 0 | DD38: 0 | DE38: 0 | DF38: 0 | DG38: 0
A39: 17 | B39: Årlig markedsføringskostnad | H39: Kroner | I39: 0 | J39: =IF(J11=0,0,J25*($E11-1)) -> 0 | K39: 0 | L39: 0 | M39: 0 | N39: 0 | O39: 0 | P39: 0 | Q39: 0 | R39: 0 | S39: 0 | T39: 0 | U39: 0 | V39: 0 | W39: 0 | X39: 0 | Y39: 0 | Z39: 0 | AA39: 0 | AB39: 0 | AC39: 0 | AD39: 0 | AE39: 0 | AF39: 0 | AG39: 0 | AH39: 0 | AI39: 0 | AJ39: 0 | AK39: 0 | AL39: 0 | AM39: 0 | AN39: 0 | AO39: 0 | AP39: =IF(AP11=0,0,AP25*($E11-1)) -> 0 | AQ39: 0 | AR39: 0 | AS39: 0 | AT39: 0 | AU39: 0 | AV39: 0 | AW39: 0 | AX39: 0 | AY39: 0 | AZ39: 0 | BA39: 0 | BB39: 0 | BC39: 0 | BD39: 0 | BE39: 0 | BF39: 0 | BG39: 0 | BH39: 0 | BI39: 0 | BJ39: 0 | BK39: 0 | BL39: 0 | BM39: 0 | BN39: 0 | BO39: 0 | BP39: 0 | BQ39: 0 | BR39: 0 | BS39: 0 | BT39: 0 | BU39: 0 | BV39: =IF(BV11=0,0,BV25*($E11-1)) -> 0 | BW39: 0 | BX39: 0 | BY39: 0 | BZ39: 0 | CA39: 0 | CB39: 0 | CC39: 0 | CD39: 0 | CE39: 0 | CF39: 0 | CG39: 0 | CH39: 0 | CI39: 0 | CJ39: 0 | CK39: 0 | CL39: 0 | CM39: 0 | CN39: 0 | CO39: 0 | CP39: 0 | CQ39: 0 | CR39: 0 | CS39: 0 | CT39: 0 | CU39: 0 | CV39: 0 | CW39: 0 | CX39: 0 | CY39: 0 | CZ39: 0 | DA39: 0 | DB39: =IF(DB11=0,0,DB25*($E11-1)) -> 0 | DC39: 0 | DD39: 0 | DE39: 0 | DF39: 0 | DG39: 0
A40: 18 | B40: Personellkostnad til nettportalen | H40: Kroner | I40: 0 | J40: =IF(J12=0,0,J26*($E12-1)) -> 0 | K40: 0 | L40: 0 | M40: 0 | N40: 0 | O40: 0 | P40: 0 | Q40: 0 | R40: 0 | S40: 0 | T40: 0 | U40: 0 | V40: 0 | W40: 0 | X40: 0 | Y40: 0 | Z40: 0 | AA40: 0 | AB40: 0 | AC40: 0 | AD40: 0 | AE40: 0 | AF40: 0 | AG40: 0 | AH40: 0 | AI40: 0 | AJ40: 0 | AK40: 0 | AL40: 0 | AM40: 0 | AN40: 0 | AO40: 0 | AP40: =IF(AP12=0,0,AP26*($E12-1)) -> 0 | AQ40: 0 | AR40: 0 | AS40: 0 | AT40: 0 | AU40: 0 | AV40: 0 | AW40: 0 | AX40: 0 | AY40: 0 | AZ40: 0 | BA40: 0 | BB40: 0 | BC40: 0 | BD40: 0 | BE40: 0 | BF40: 0 | BG40: 0 | BH40: 0 | BI40: 0 | BJ40: 0 | BK40: 0 | BL40: 0 | BM40: 0 | BN40: 0 | BO40: 0 | BP40: 0 | BQ40: 0 | BR40: 0 | BS40: 0 | BT40: 0 | BU40: 0 | BV40: =IF(BV12=0,0,BV26*($E12-1)) -> 0 | BW40: 0 | BX40: 0 | BY40: 0 | BZ40: 0 | CA40: 0 | CB40: 0 | CC40: 0 | CD40: 0 | CE40: 0 | CF40: 0 | CG40: 0 | CH40: 0 | CI40: 0 | CJ40: 0 | CK40: 0 | CL40: 0 | CM40: 0 | CN40: 0 | CO40: 0 | CP40: 0 | CQ40: 0 | CR40: 0 | CS40: 0 | CT40: 0 | CU40: 0 | CV40: 0 | CW40: 0 | CX40: 0 | CY40: 0 | CZ40: 0 | DA40: 0 | DB40: =IF(DB12=0,0,DB26*($E12-1)) -> 0 | DC40: 0 | DD40: 0 | DE40: 0 | DF40: 0 | DG40: 0
A41: 27 | B41: Kartlegging utført av kommuneansatte | H41: Kroner | I41: =J41+NPV(Celleref_kalkulasjonsrente,K41:DG41) -> 0 | J41: =IF(J13=0,0,J27*($E13-1)) -> 0 | K41: 0 | L41: 0 | M41: 0 | N41: 0 | O41: 0 | P41: 0 | Q41: 0 | R41: 0 | S41: 0 | T41: 0 | U41: 0 | V41: 0 | W41: 0 | X41: 0 | Y41: 0 | Z41: 0 | AA41: 0 | AB41: 0 | AC41: 0 | AD41: 0 | AE41: 0 | AF41: 0 | AG41: 0 | AH41: 0 | AI41: 0 | AJ41: 0 | AK41: 0 | AL41: 0 | AM41: 0 | AN41: 0 | AO41: 0 | AP41: =IF(AP13=0,0,AP27*($E13-1)) -> 0 | AQ41: 0 | AR41: 0 | AS41: 0 | AT41: 0 | AU41: 0 | AV41: 0 | AW41: 0 | AX41: 0 | AY41: 0 | AZ41: 0 | BA41: 0 | BB41: 0 | BC41: 0 | BD41: 0 | BE41: 0 | BF41: 0 | BG41: 0 | BH41: 0 | BI41: 0 | BJ41: 0 | BK41: 0 | BL41: 0 | BM41: 0 | BN41: 0 | BO41: 0 | BP41: 0 | BQ41: 0 | BR41: 0 | BS41: 0 | BT41: 0 | BU41: 0 | BV41: =IF(BV13=0,0,BV27*($E13-1)) -> 0 | BW41: 0 | BX41: 0 | BY41: 0 | BZ41: 0 | CA41: 0 | CB41: 0 | CC41: 0 | CD41: 0 | CE41: 0 | CF41: 0 | CG41: 0 | CH41: 0 | CI41: 0 | CJ41: 0 | CK41: 0 | CL41: 0 | CM41: 0 | CN41: 0 | CO41: 0 | CP41: 0 | CQ41: 0 | CR41: 0 | CS41: 0 | CT41: 0 | CU41: 0 | CV41: 0 | CW41: 0 | CX41: 0 | CY41: 0 | CZ41: 0 | DA41: 0 | DB41: =IF(DB13=0,0,DB27*($E13-1)) -> 0 | DC41: 0 | DD41: 0 | DE41: 0 | DF41: 0 | DG41: 0
A42: 28 | B42: Årlig oppryddingsarbeid | H42: Kroner | I42: =J42+NPV(Celleref_kalkulasjonsrente,K42:DG42) -> 0 | J42: =IF(J14=0,0,J28*($E14-1)) -> 0 | K42: 0 | L42: 0 | M42: 0 | N42: 0 | O42: 0 | P42: 0 | Q42: 0 | R42: 0 | S42: 0 | T42: 0 | U42: 0 | V42: 0 | W42: 0 | X42: 0 | Y42: 0 | Z42: 0 | AA42: 0 | AB42: 0 | AC42: 0 | AD42: 0 | AE42: 0 | AF42: 0 | AG42: 0 | AH42: 0 | AI42: 0 | AJ42: 0 | AK42: 0 | AL42: 0 | AM42: 0 | AN42: 0 | AO42: 0 | AP42: =IF(AP14=0,0,AP28*($E14-1)) -> 0 | AQ42: 0 | AR42: 0 | AS42: 0 | AT42: 0 | AU42: 0 | AV42: 0 | AW42: 0 | AX42: 0 | AY42: 0 | AZ42: 0 | BA42: 0 | BB42: 0 | BC42: 0 | BD42: 0 | BE42: 0 | BF42: 0 | BG42: 0 | BH42: 0 | BI42: 0 | BJ42: 0 | BK42: 0 | BL42: 0 | BM42: 0 | BN42: 0 | BO42: 0 | BP42: 0 | BQ42: 0 | BR42: 0 | BS42: 0 | BT42: 0 | BU42: 0 | BV42: =IF(BV14=0,0,BV28*($E14-1)) -> 0 | BW42: 0 | BX42: 0 | BY42: 0 | BZ42: 0 | CA42: 0 | CB42: 0 | CC42: 0 | CD42: 0 | CE42: 0 | CF42: 0 | CG42: 0 | CH42: 0 | CI42: 0 | CJ42: 0 | CK42: 0 | CL42: 0 | CM42: 0 | CN42: 0 | CO42: 0 | CP42: 0 | CQ42: 0 | CR42: 0 | CS42: 0 | CT42: 0 | CU42: 0 | CV42: 0 | CW42: 0 | CX42: 0 | CY42: 0 | CZ42: 0 | DA42: 0 | DB42: =IF(DB14=0,0,DB28*($E14-1)) -> 0 | DC42: 0 | DD42: 0 | DE42: 0 | DF42: 0 | DG42: 0
A43: k312 | B43: Kostnader for øvrig offentlig sektor | H43: Kroner | I43: 0 | J43: =IF(J15=0,0,J29*($E15-1)) -> 0 | K43: 0 | L43: 0 | M43: 0 | N43: 0 | O43: 0 | P43: 0 | Q43: 0 | R43: 0 | S43: 0 | T43: 0 | U43: 0 | V43: 0 | W43: 0 | X43: 0 | Y43: 0 | Z43: 0 | AA43: 0 | AB43: 0 | AC43: 0 | AD43: 0 | AE43: 0 | AF43: 0 | AG43: 0 | AH43: 0 | AI43: 0 | AJ43: 0 | AK43: 0 | AL43: 0 | AM43: 0 | AN43: 0 | AO43: 0 | AP43: =IF(AP15=0,0,AP29*($E15-1)) -> 0 | AQ43: 0 | AR43: 0 | AS43: 0 | AT43: 0 | AU43: 0 | AV43: 0 | AW43: 0 | AX43: 0 | AY43: 0 | AZ43: 0 | BA43: 0 | BB43: 0 | BC43: 0 | BD43: 0 | BE43: 0 | BF43: 0 | BG43: 0 | BH43: 0 | BI43: 0 | BJ43: 0 | BK43: 0 | BL43: 0 | BM43: 0 | BN43: 0 | BO43: 0 | BP43: 0 | BQ43: 0 | BR43: 0 | BS43: 0 | BT43: 0 | BU43: 0 | BV43: =IF(BV15=0,0,BV29*($E15-1)) -> 0 | BW43: 0 | BX43: 0 | BY43: 0 | BZ43: 0 | CA43: 0 | CB43: 0 | CC43: 0 | CD43: 0 | CE43: 0 | CF43: 0 | CG43: 0 | CH43: 0 | CI43: 0 | CJ43: 0 | CK43: 0 | CL43: 0 | CM43: 0 | CN43: 0 | CO43: 0 | CP43: 0 | CQ43: 0 | CR43: 0 | CS43: 0 | CT43: 0 | CU43: 0 | CV43: 0 | CW43: 0 | CX43: 0 | CY43: 0 | CZ43: 0 | DA43: 0 | DB43: =IF(DB15=0,0,DB29*($E15-1)) -> 0 | DC43: 0 | DD43: 0 | DE43: 0 | DF43: 0 | DG43: 0
A44: k313 | B44: Kostnader for privat næringsliv | H44: Kroner | I44: 0 | J44: =IF(J16=0,0,J30*($E16-1)) -> 0 | K44: 0 | L44: 0 | M44: 0 | N44: 0 | O44: 0 | P44: 0 | Q44: 0 | R44: 0 | S44: 0 | T44: 0 | U44: 0 | V44: 0 | W44: 0 | X44: 0 | Y44: 0 | Z44: 0 | AA44: 0 | AB44: 0 | AC44: 0 | AD44: 0 | AE44: 0 | AF44: 0 | AG44: 0 | AH44: 0 | AI44: 0 | AJ44: 0 | AK44: 0 | AL44: 0 | AM44: 0 | AN44: 0 | AO44: 0 | AP44: =IF(AP16=0,0,AP30*($E16-1)) -> 0 | AQ44: 0 | AR44: 0 | AS44: 0 | AT44: 0 | AU44: 0 | AV44: 0 | AW44: 0 | AX44: 0 | AY44: 0 | AZ44: 0 | BA44: 0 | BB44: 0 | BC44: 0 | BD44: 0 | BE44: 0 | BF44: 0 | BG44: 0 | BH44: 0 | BI44: 0 | BJ44: 0 | BK44: 0 | BL44: 0 | BM44: 0 | BN44: 0 | BO44: 0 | BP44: 0 | BQ44: 0 | BR44: 0 | BS44: 0 | BT44: 0 | BU44: =IF(BU16=0,0,BU30*($E16-1)) -> 0 | BV44: =IF(BV16=0,0,BV30*($E16-1)) -> 0 | BW44: 0 | BX44: 0 | BY44: 0 | BZ44: 0 | CA44: 0 | CB44: 0 | CC44: 0 | CD44: 0 | CE44: 0 | CF44: 0 | CG44: 0 | CH44: 0 | CI44: 0 | CJ44: 0 | CK44: 0 | CL44: 0 | CM44: 0 | CN44: 0 | CO44: 0 | CP44: 0 | CQ44: 0 | CR44: 0 | CS44: 0 | CT44: 0 | CU44: 0 | CV44: 0 | CW44: 0 | CX44: 0 | CY44: 0 | CZ44: 0 | DA44: 0 | DB44: 0 | DC44: 0 | DD44: 0 | DE44: 0 | DF44: 0 | DG44: 0
A45: k434 | B45: Kostnader for privatpersoner | H45: Kroner | I45: 0 | J45: =IF(J17=0,0,J31*($E17-1)) -> 0 | K45: 0 | L45: 0 | M45: 0 | N45: 0 | O45: 0 | P45: 0 | Q45: 0 | R45: 0 | S45: 0 | T45: 0 | U45: 0 | V45: 0 | W45: 0 | X45: 0 | Y45: 0 | Z45: 0 | AA45: 0 | AB45: 0 | AC45: 0 | AD45: 0 | AE45: 0 | AF45: 0 | AG45: 0 | AH45: 0 | AI45: 0 | AJ45: 0 | AK45: 0 | AL45: 0 | AM45: 0 | AN45: 0 | AO45: 0 | AP45: 0 | AQ45: 0 | AR45: 0 | AS45: 0 | AT45: 0 | AU45: 0 | AV45: 0 | AW45: 0 | AX45: 0 | AY45: 0 | AZ45: 0 | BA45: 0 | BB45: 0 | BC45: 0 | BD45: 0 | BE45: 0 | BF45: 0 | BG45: 0 | BH45: 0 | BI45: 0 | BJ45: 0 | BK45: 0 | BL45: 0 | BM45: 0 | BN45: 0 | BO45: 0 | BP45: 0 | BQ45: 0 | BR45: 0 | BS45: 0 | BT45: 0 | BU45: 0 | BV45: =IF(BV17=0,0,BV31*($E17-1)) -> 0 | BW45: 0 | BX45: 0 | BY45: 0 | BZ45: 0 | CA45: 0 | CB45: 0 | CC45: 0 | CD45: 0 | CE45: 0 | CF45: 0 | CG45: 0 | CH45: 0 | CI45: 0 | CJ45: 0 | CK45: 0 | CL45: 0 | CM45: 0 | CN45: 0 | CO45: 0 | CP45: 0 | CQ45: 0 | CR45: 0 | CS45: 0 | CT45: 0 | CU45: 0 | CV45: 0 | CW45: 0 | CX45: 0 | CY45: 0 | CZ45: 0 | DA45: 0 | DB45: 0 | DC45: 0 | DD45: 0 | DE45: 0 | DF45: 0 | DG45: 0

Sheet Nytte alternativ -1 (hidden)
A1: Kostnad alternativ 3 | B1: Alternativnavn: | C1: =VLOOKUP(RIGHT(A1,12),Alternativområde,2,FALSE) -> 
J4: 0 | K4: 1 | L4: 2 | M4: 3 | N4: 4 | O4: 5 | P4: 6 | Q4: 7 | R4: 8 | S4: 9 | T4: 10 | U4: 11 | V4: 12 | W4: 13 | X4: 14 | Y4: 15 | Z4: 16 | AA4: 17 | AB4: 18 | AC4: 19 | AD4: 20 | AE4: 21 | AF4: 22 | AG4: 23 | AH4: 24 | AI4: 25 | AJ4: 26 | AK4: 27 | AL4: 28 | AM4: 29 | AN4: 30 | AO4: 31 | AP4: 32 | AQ4: 33 | AR4: 34 | AS4: 35 | AT4: 36 | AU4: 37 | AV4: 38 | AW4: 39 | AX4: 40 | AY4: 41 | AZ4: 42 | BA4: 43 | BB4: 44 | BC4: 45 | BD4: 46 | BE4: 47 | BF4: 48 | BG4: 49 | BH4: 50 | BI4: 51 | BJ4: 52 | BK4: 53 | BL4: 54 | BM4: 55 | BN4: 56 | BO4: 57 | BP4: 58 | BQ4: 59 | BR4: 60 | BS4: 61 | BT4: 62 | BU4: 63 | BV4: 64 | BW4: 65 | BX4: 66 | BY4: 67 | BZ4: 68 | CA4: 69 | CB4: 70 | CC4: 71 | CD4: 72 | CE4: 73 | CF4: 74 | CG4: 75 | CH4: 76 | CI4: 77 | CJ4: 78 | CK4: 79 | CL4: 80 | CM4: 81 | CN4: 82 | CO4: 83 | CP4: 84 | CQ4: 85 | CR4: 86 | CS4: 87 | CT4: 88 | CU4: 89 | CV4: 90 | CW4: 91 | CX4: 92 | CY4: 93 | CZ4: 94 | DA4: 95 | DB4: 96 | DC4: 97 | DD4: 98 | DE4: 99 | DF4: 100 | DG4: 101
A6: 1 | B6: Prissatte nyttevirkninger | H6: Enhet | J6: ='Generelle forutsetninger'!B10 -> 2019 | K6: =IF($J$6+K4<'Generelle forutsetninger'!$B$10+'Generelle forutsetninger'!$B$11,$J$6+K4,IF(OR(J6="Restverdi",J6=""),"","Restverdi")) -> 2020 | L6: =IF($J$6+L4<'Generelle forutsetninger'!$B$10+'Generelle forutsetninger'!$B$11,$J$6+L4,IF(OR(K6="Restverdi",K6=""),"","Restverdi")) -> 2021 | M6: =IF($J$6+M4<'Generelle forutsetninger'!$B$10+'Generelle forutsetninger'!$B$11,$J$6+M4,IF(OR(L6="Restverdi",L6=""),"","Restverdi")) -> 2022 | N6: =IF($J$6+N4<'Generelle forutsetninger'!$B$10+'Generelle forutsetninger'!$B$11,$J$6+N4,IF(OR(M6="Restverdi",M6=""),"","Restverdi")) -> 2023 | O6: =IF($J$6+O4<'Generelle forutsetninger'!$B$10+'Generelle forutsetninger'!$B$11,$J$6+O4,IF(OR(N6="Restverdi",N6=""),"","Restverdi")) -> 2024 | P6: =IF($J$6+P4<'Generelle forutsetninger'!$B$10+'Generelle forutsetninger'!$B$11,$J$6+P4,IF(OR(O6="Restverdi",O6=""),"","Restverdi")) -> 2025 | Q6: =IF($J$6+Q4<'Generelle forutsetninger'!$B$10+'Generelle forutsetninger'!$B$11,$J$6+Q4,IF(OR(P6="Restverdi",P6=""),"","Restverdi")) -> 2026 | R6: =IF($J$6+R4<'Generelle forutsetninger'!$B$10+'Generelle forutsetninger'!$B$11,$J$6+R4,IF(OR(Q6="Restverdi",Q6=""),"","Restverdi")) -> 2027 | S6: =IF($J$6+S4<'Generelle forutsetninger'!$B$10+'Generelle forutsetninger'!$B$11,$J$6+S4,IF(OR(R6="Restverdi",R6=""),"","Restverdi")) -> 2028 | T6: =IF($J$6+T4<'Generelle forutsetninger'!$B$10+'Generelle forutsetninger'!$B$11,$J$6+T4,IF(OR(S6="Restverdi",S6=""),"","Restverdi")) -> 2029 | U6: =IF($J$6+U4<'Generelle forutsetninger'!$B$10+'Generelle forutsetninger'!$B$11,$J$6+U4,IF(OR(T6="Restverdi",T6=""),"","Restverdi")) -> 2030 | V6: =IF($J$6+V4<'Generelle forutsetninger'!$B$10+'Generelle forutsetninger'!$B$11,$J$6+V4,IF(OR(U6="Restverdi",U6=""),"","Restverdi")) -> 2031 | W6: =IF($J$6+W4<'Generelle forutsetninger'!$B$10+'Generelle forutsetninger'!$B$11,$J$6+W4,IF(OR(V6="Restverdi",V6=""),"","Restverdi")) -> 2032 | X6: =IF($J$6+X4<'Generelle forutsetninger'!$B$10+'Generelle forutsetninger'!$B$11,$J$6+X4,IF(OR(W6="Restverdi",W6=""),"","Restverdi")) -> 2033 | Y6: =IF($J$6+Y4<'Generelle forutsetninger'!$B$10+'Generelle forutsetninger'!$B$11,$J$6+Y4,IF(OR(X6="Restverdi",X6=""),"","Restverdi")) -> Restverdi | Z6: =IF($J$6+Z4<'Generelle forutsetninger'!$B$10+'Generelle forutsetninger'!$B$11,$J$6+Z4,IF(OR(Y6="Restverdi",Y6=""),"","Restverdi")) ->  | AA6: =IF($J$6+AA4<'Generelle forutsetninger'!$B$10+'Generelle forutsetninger'!$B$11,$J$6+AA4,IF(OR(Z6="Restverdi",Z6=""),"","Restverdi")) ->  | AB6: =IF($J$6+AB4<'Generelle forutsetninger'!$B$10+'Generelle forutsetninger'!$B$11,$J$6+AB4,IF(OR(AA6="Restverdi",AA6=""),"","Restverdi")) ->  | AC6: =IF($J$6+AC4<'Generelle forutsetninger'!$B$10+'Generelle forutsetninger'!$B$11,$J$6+AC4,IF(OR(AB6="Restverdi",AB6=""),"","Restverdi")) ->  | AD6: =IF($J$6+AD4<'Generelle forutsetninger'!$B$10+'Generelle forutsetninger'!$B$11,$J$6+AD4,IF(OR(AC6="Restverdi",AC6=""),"","Restverdi")) ->  | AE6: =IF($J$6+AE4<'Generelle forutsetninger'!$B$10+'Generelle forutsetninger'!$B$11,$J$6+AE4,IF(OR(AD6="Restverdi",AD6=""),"","Restverdi")) ->  | AF6: =IF($J$6+AF4<'Generelle forutsetninger'!$B$10+'Generelle forutsetninger'!$B$11,$J$6+AF4,IF(OR(AE6="Restverdi",AE6=""),"","Restverdi")) ->  | AG6: =IF($J$6+AG4<'Generelle forutsetninger'!$B$10+'Generelle forutsetninger'!$B$11,$J$6+AG4,IF(OR(AF6="Restverdi",AF6=""),"","Restverdi")) ->  | AH6: =IF($J$6+AH4<'Generelle forutsetninger'!$B$10+'Generelle forutsetninger'!$B$11,$J$6+AH4,IF(OR(AG6="Restverdi",AG6=""),"","Restverdi")) ->  | AI6: =IF($J$6+AI4<'Generelle forutsetninger'!$B$10+'Generelle forutsetninger'!$B$11,$J$6+AI4,IF(OR(AH6="Restverdi",AH6=""),"","Restverdi")) ->  | AJ6: =IF($J$6+AJ4<'Generelle forutsetninger'!$B$10+'Generelle forutsetninger'!$B$11,$J$6+AJ4,IF(OR(AI6="Restverdi",AI6=""),"","Restverdi")) ->  | AK6: =IF($J$6+AK4<'Generelle forutsetninger'!$B$10+'Generelle forutsetninger'!$B$11,$J$6+AK4,IF(OR(AJ6="Restverdi",AJ6=""),"","Restverdi")) ->  | AL6: =IF($J$6+AL4<'Generelle forutsetninger'!$B$10+'Generelle forutsetninger'!$B$11,$J$6+AL4,IF(OR(AK6="Restverdi",AK6=""),"","Restverdi")) ->  | AM6: =IF($J$6+AM4<'Generelle forutsetninger'!$B$10+'Generelle forutsetninger'!$B$11,$J$6+AM4,IF(OR(AL6="Restverdi",AL6=""),"","Restverdi")) ->  | AN6: =IF($J$6+AN4<'Generelle forutsetninger'!$B$10+'Generelle forutsetninger'!$B$11,$J$6+AN4,IF(OR(AM6="Restverdi",AM6=""),"","Restverdi")) ->  | AO6: =IF($J$6+AO4<'Generelle forutsetninger'!$B$10+'Generelle forutsetninger'!$B$11,$J$6+AO4,IF(OR(AN6="Restverdi",AN6=""),"","Restverdi")) ->  | AP6: =IF($J$6+AP4<'Generelle forutsetninger'!$B$10+'Generelle forutsetninger'!$B$11,$J$6+AP4,IF(OR(AO6="Restverdi",AO6=""),"","Restverdi")) ->  | AQ6: =IF($J$6+AQ4<'Generelle forutsetninger'!$B$10+'Generelle forutsetninger'!$B$11,$J$6+AQ4,IF(OR(AP6="Restverdi",AP6=""),"","Restverdi")) ->  | AR6: =IF($J$6+AR4<'Generelle forutsetninger'!$B$10+'Generelle forutsetninger'!$B$11,$J$6+AR4,IF(OR(AQ6="Restverdi",AQ6=""),"","Restverdi")) ->  | AS6: =IF($J$6+AS4<'Generelle forutsetninger'!$B$10+'Generelle forutsetninger'!$B$11,$J$6+AS4,IF(OR(AR6="Restverdi",AR6=""),"","Restverdi")) ->  | AT6: =IF($J$6+AT4<'Generelle forutsetninger'!$B$10+'Generelle forutsetninger'!$B$11,$J$6+AT4,IF(OR(AS6="Restverdi",AS6=""),"","Restverdi")) ->  | AU6: =IF($J$6+AU4<'Generelle forutsetninger'!$B$10+'Generelle forutsetninger'!$B$11,$J$6+AU4,IF(OR(AT6="Restverdi",AT6=""),"","Restverdi")) ->  | AV6: =IF($J$6+AV4<'Generelle forutsetninger'!$B$10+'Generelle forutsetninger'!$B$11,$J$6+AV4,IF(OR(AU6="Restverdi",AU6=""),"","Restverdi")) ->  | AW6: =IF($J$6+AW4<'Generelle forutsetninger'!$B$10+'Generelle forutsetninger'!$B$11,$J$6+AW4,IF(OR(AV6="Restverdi",AV6=""),"","Restverdi")) ->  | AX6: =IF($J$6+AX4<'Generelle forutsetninger'!$B$10+'Generelle forutsetninger'!$B$11,$J$6+AX4,IF(OR(AW6="Restverdi",AW6=""),"","Restverdi")) ->  | AY6: =IF($J$6+AY4<'Generelle forutsetninger'!$B$10+'Generelle forutsetninger'!$B$11,$J$6+AY4,IF(OR(AX6="Restverdi",AX6=""),"","Restverdi")) ->  | AZ6: =IF($J$6+AZ4<'Generelle forutsetninger'!$B$10+'Generelle forutsetninger'!$B$11,$J$6+AZ4,IF(OR(AY6="Restverdi",AY6=""),"","Restverdi")) ->  | BA6: =IF($J$6+BA4<'Generelle forutsetninger'!$B$10+'Generelle forutsetninger'!$B$11,$J$6+BA4,IF(OR(AZ6="Restverdi",AZ6=""),"","Restverdi")) ->  | BB6: =IF($J$6+BB4<'Generelle forutsetninger'!$B$10+'Generelle forutsetninger'!$B$11,$J$6+BB4,IF(OR(BA6="Restverdi",BA6=""),"","Restverdi")) ->  | BC6: =IF($J$6+BC4<'Generelle forutsetninger'!$B$10+'Generelle forutsetninger'!$B$11,$J$6+BC4,IF(OR(BB6="Restverdi",BB6=""),"","Restverdi")) ->  | BD6: =IF($J$6+BD4<'Generelle forutsetninger'!$B$10+'Generelle forutsetninger'!$B$11,$J$6+BD4,IF(OR(BC6="Restverdi",BC6=""),"","Restverdi")) ->  | BE6: =IF($J$6+BE4<'Generelle forutsetninger'!$B$10+'Generelle forutsetninger'!$B$11,$J$6+BE4,IF(OR(BD6="Restverdi",BD6=""),"","Restverdi")) ->  | BF6: =IF($J$6+BF4<'Generelle forutsetninger'!$B$10+'Generelle forutsetninger'!$B$11,$J$6+BF4,IF(OR(BE6="Restverdi",BE6=""),"","Restverdi")) ->  | BG6: =IF($J$6+BG4<'Generelle forutsetninger'!$B$10+'Generelle forutsetninger'!$B$11,$J$6+BG4,IF(OR(BF6="Restverdi",BF6=""),"","Restverdi")) ->  | BH6: =IF($J$6+BH4<'Generelle forutsetninger'!$B$10+'Generelle forutsetninger'!$B$11,$J$6+BH4,IF(OR(BG6="Restverdi",BG6=""),"","Restverdi")) ->  | BI6: =IF($J$6+BI4<'Generelle forutsetninger'!$B$10+'Generelle forutsetninger'!$B$11,$J$6+BI4,IF(OR(BH6="Restverdi",BH6=""),"","Restverdi")) ->  | BJ6: =IF($J$6+BJ4<'Generelle forutsetninger'!$B$10+'Generelle forutsetninger'!$B$11,$J$6+BJ4,IF(OR(BI6="Restverdi",BI6=""),"","Restverdi")) ->  | BK6: =IF($J$6+BK4<'Generelle forutsetninger'!$B$10+'Generelle forutsetninger'!$B$11,$J$6+BK4,IF(OR(BJ6="Restverdi",BJ6=""),"","Restverdi")) ->  | BL6: =IF($J$6+BL4<'Generelle forutsetninger'!$B$10+'Generelle forutsetninger'!$B$11,$J$6+BL4,IF(OR(BK6="Restverdi",BK6=""),"","Restverdi")) ->  | BM6: =IF($J$6+BM4<'Generelle forutsetninger'!$B$10+'Generelle forutsetninger'!$B$11,$J$6+BM4,IF(OR(BL6="Restverdi",BL6=""),"","Restverdi")) ->  | BN6: =IF($J$6+BN4<'Generelle forutsetninger'!$B$10+'Generelle forutsetninger'!$B$11,$J$6+BN4,IF(OR(BM6="Restverdi",BM6=""),"","Restverdi")) ->  | BO6: =IF($J$6+BO4<'Generelle forutsetninger'!$B$10+'Generelle forutsetninger'!$B$11,$J$6+BO4,IF(OR(BN6="Restverdi",BN6=""),"","Restverdi")) ->  | BP6: =IF($J$6+BP4<'Generelle forutsetninger'!$B$10+'Generelle forutsetninger'!$B$11,$J$6+BP4,IF(OR(BO6="Restverdi",BO6=""),"","Restverdi")) ->  | BQ6: =IF($J$6+BQ4<'Generelle forutsetninger'!$B$10+'Generelle forutsetninger'!$B$11,$J$6+BQ4,IF(OR(BP6="Restverdi",BP6=""),"","Restverdi")) ->  | BR6: =IF($J$6+BR4<'Generelle forutsetninger'!$B$10+'Generelle forutsetninger'!$B$11,$J$6+BR4,IF(OR(BQ6="Restverdi",BQ6=""),"","Restverdi")) ->  | BS6: =IF($J$6+BS4<'Generelle forutsetninger'!$B$10+'Generelle forutsetninger'!$B$11,$J$6+BS4,IF(OR(BR6="Restverdi",BR6=""),"","Restverdi")) ->  | BT6: =IF($J$6+BT4<'Generelle forutsetninger'!$B$10+'Generelle forutsetninger'!$B$11,$J$6+BT4,IF(OR(BS6="Restverdi",BS6=""),"","Restverdi")) ->  | BU6: =IF($J$6+BU4<'Generelle forutsetninger'!$B$10+'Generelle forutsetninger'!$B$11,$J$6+BU4,IF(OR(BT6="Restverdi",BT6=""),"","Restverdi")) ->  | BV6: =IF($J$6+BV4<'Generelle forutsetninger'!$B$10+'Generelle forutsetninger'!$B$11,$J$6+BV4,IF(OR(BU6="Restverdi",BU6=""),"","Restverdi")) ->  | BW6: =IF($J$6+BW4<'Generelle forutsetninger'!$B$10+'Generelle forutsetninger'!$B$11,$J$6+BW4,IF(OR(BV6="Restverdi",BV6=""),"","Restverdi")) ->  | BX6: =IF($J$6+BX4<'Generelle forutsetninger'!$B$10+'Generelle forutsetninger'!$B$11,$J$6+BX4,IF(OR(BW6="Restverdi",BW6=""),"","Restverdi")) ->  | BY6: =IF($J$6+BY4<'Generelle forutsetninger'!$B$10+'Generelle forutsetninger'!$B$11,$J$6+BY4,IF(OR(BX6="Restverdi",BX6=""),"","Restverdi")) ->  | BZ6: =IF($J$6+BZ4<'Generelle forutsetninger'!$B$10+'Generelle forutsetninger'!$B$11,$J$6+BZ4,IF(OR(BY6="Restverdi",BY6=""),"","Restverdi")) ->  | CA6: =IF($J$6+CA4<'Generelle forutsetninger'!$B$10+'Generelle forutsetninger'!$B$11,$J$6+CA4,IF(OR(BZ6="Restverdi",BZ6=""),"","Restverdi")) ->  | CB6: =IF($J$6+CB4<'Generelle forutsetninger'!$B$10+'Generelle forutsetninger'!$B$11,$J$6+CB4,IF(OR(CA6="Restverdi",CA6=""),"","Restverdi")) ->  | CC6: =IF($J$6+CC4<'Generelle forutsetninger'!$B$10+'Generelle forutsetninger'!$B$11,$J$6+CC4,IF(OR(CB6="Restverdi",CB6=""),"","Restverdi")) ->  | CD6: =IF($J$6+CD4<'Generelle forutsetninger'!$B$10+'Generelle forutsetninger'!$B$11,$J$6+CD4,IF(OR(CC6="Restverdi",CC6=""),"","Restverdi")) ->  | CE6: =IF($J$6+CE4<'Generelle forutsetninger'!$B$10+'Generelle forutsetninger'!$B$11,$J$6+CE4,IF(OR(CD6="Restverdi",CD6=""),"","Restverdi")) ->  | CF6: =IF($J$6+CF4<'Generelle forutsetninger'!$B$10+'Generelle forutsetninger'!$B$11,$J$6+CF4,IF(OR(CE6="Restverdi",CE6=""),"","Restverdi")) ->  | CG6: =IF($J$6+CG4<'Generelle forutsetninger'!$B$10+'Generelle forutsetninger'!$B$11,$J$6+CG4,IF(OR(CF6="Restverdi",CF6=""),"","Restverdi")) ->  | CH6: =IF($J$6+CH4<'Generelle forutsetninger'!$B$10+'Generelle forutsetninger'!$B$11,$J$6+CH4,IF(OR(CG6="Restverdi",CG6=""),"","Restverdi")) ->  | CI6: =IF($J$6+CI4<'Generelle forutsetninger'!$B$10+'Generelle forutsetninger'!$B$11,$J$6+CI4,IF(OR(CH6="Restverdi",CH6=""),"","Restverdi")) ->  | CJ6: =IF($J$6+CJ4<'Generelle forutsetninger'!$B$10+'Generelle forutsetninger'!$B$11,$J$6+CJ4,IF(OR(CI6="Restverdi",CI6=""),"","Restverdi")) ->  | CK6: =IF($J$6+CK4<'Generelle forutsetninger'!$B$10+'Generelle forutsetninger'!$B$11,$J$6+CK4,IF(OR(CJ6="Restverdi",CJ6=""),"","Restverdi")) ->  | CL6: =IF($J$6+CL4<'Generelle forutsetninger'!$B$10+'Generelle forutsetninger'!$B$11,$J$6+CL4,IF(OR(CK6="Restverdi",CK6=""),"","Restverdi")) ->  | CM6: =IF($J$6+CM4<'Generelle forutsetninger'!$B$10+'Generelle forutsetninger'!$B$11,$J$6+CM4,IF(OR(CL6="Restverdi",CL6=""),"","Restverdi")) ->  | CN6: =IF($J$6+CN4<'Generelle forutsetninger'!$B$10+'Generelle forutsetninger'!$B$11,$J$6+CN4,IF(OR(CM6="Restverdi",CM6=""),"","Restverdi")) ->  | CO6: =IF($J$6+CO4<'Generelle forutsetninger'!$B$10+'Generelle forutsetninger'!$B$11,$J$6+CO4,IF(OR(CN6="Restverdi",CN6=""),"","Restverdi")) ->  | CP6: =IF($J$6+CP4<'Generelle forutsetninger'!$B$10+'Generelle forutsetninger'!$B$11,$J$6+CP4,IF(OR(CO6="Restverdi",CO6=""),"","Restverdi")) ->  | CQ6: =IF($J$6+CQ4<'Generelle forutsetninger'!$B$10+'Generelle forutsetninger'!$B$11,$J$6+CQ4,IF(OR(CP6="Restverdi",CP6=""),"","Restverdi")) ->  | CR6: =IF($J$6+CR4<'Generelle forutsetninger'!$B$10+'Generelle forutsetninger'!$B$11,$J$6+CR4,IF(OR(CQ6="Restverdi",CQ6=""),"","Restverdi")) ->  | CS6: =IF($J$6+CS4<'Generelle forutsetninger'!$B$10+'Generelle forutsetninger'!$B$11,$J$6+CS4,IF(OR(CR6="Restverdi",CR6=""),"","Restverdi")) ->  | CT6: =IF($J$6+CT4<'Generelle forutsetninger'!$B$10+'Generelle forutsetninger'!$B$11,$J$6+CT4,IF(OR(CS6="Restverdi",CS6=""),"","Restverdi")) ->  | CU6: =IF($J$6+CU4<'Generelle forutsetninger'!$B$10+'Generelle forutsetninger'!$B$11,$J$6+CU4,IF(OR(CT6="Restverdi",CT6=""),"","Restverdi")) ->  | CV6: =IF($J$6+CV4<'Generelle forutsetninger'!$B$10+'Generelle forutsetninger'!$B$11,$J$6+CV4,IF(OR(CU6="Restverdi",CU6=""),"","Restverdi")) ->  | CW6: =IF($J$6+CW4<'Generelle forutsetninger'!$B$10+'Generelle forutsetninger'!$B$11,$J$6+CW4,IF(OR(CV6="Restverdi",CV6=""),"","Restverdi")) ->  | CX6: =IF($J$6+CX4<'Generelle forutsetninger'!$B$10+'Generelle forutsetninger'!$B$11,$J$6+CX4,IF(OR(CW6="Restverdi",CW6=""),"","Restverdi")) ->  | CY6: =IF($J$6+CY4<'Generelle forutsetninger'!$B$10+'Generelle forutsetninger'!$B$11,$J$6+CY4,IF(OR(CX6="Restverdi",CX6=""),"","Restverdi")) ->  | CZ6: =IF($J$6+CZ4<'Generelle forutsetninger'!$B$10+'Generelle forutsetninger'!$B$11,$J$6+CZ4,IF(OR(CY6="Restverdi",CY6=""),"","Restverdi")) ->  | DA6: =IF($J$6+DA4<'Generelle forutsetninger'!$B$10+'Generelle forutsetninger'!$B$11,$J$6+DA4,IF(OR(CZ6="Restverdi",CZ6=""),"","Restverdi")) ->  | DB6: =IF($J$6+DB4<'Generelle forutsetninger'!$B$10+'Generelle forutsetninger'!$B$11,$J$6+DB4,IF(OR(DA6="Restverdi",DA6=""),"","Restverdi")) ->  | DC6: =IF($J$6+DC4<'Generelle forutsetninger'!$B$10+'Generelle forutsetninger'!$B$11,$J$6+DC4,IF(OR(DB6="Restverdi",DB6=""),"","Restverdi")) ->  | DD6: =IF($J$6+DD4<'Generelle forutsetninger'!$B$10+'Generelle forutsetninger'!$B$11,$J$6+DD4,IF(OR(DC6="Restverdi",DC6=""),"","Restverdi")) ->  | DE6: =IF($J$6+DE4<'Generelle forutsetninger'!$B$10+'Generelle forutsetninger'!$B$11,$J$6+DE4,IF(OR(DD6="Restverdi",DD6=""),"","Restverdi")) ->  | DF6: =IF($J$6+DF4<'Generelle forutsetninger'!$B$10+'Generelle forutsetninger'!$B$11,$J$6+DF4,IF(OR(DE6="Restverdi",DE6=""),"","Restverdi")) ->  | DG6: =IF($J$6+DG4<'Generelle forutsetninger'!$B$10+'Generelle forutsetninger'!$B$11,$J$6+DG4,IF(OR(DF6="Restverdi",DF6=""),"","Restverdi")) -> 
A7: 72 | C7: 1 | D7: =1 -> 1 | E7: =1 + Celleref_Skattekostnad -> 1.2 | F7: =0 -> 0 | H7: Kroner
A8: k404 | B8: Nytte for virksomheten
A9: k405 | B9: Nytte for øvrig offentlig sektor
A10: k406 | B10: Nytte for privat næringsliv
A11: k408 | B11: Nytte for privatpersoner
A14: B | B14: Prissatte nyttevirkninger - direkte virkning | H14: Enhet | I14: Nåverdi | J14: =J6 -> 2019 | K14: 2020 | L14: 2021 | M14: 2022 | N14: 2023 | O14: 2024 | P14: 2025 | Q14: 2026 | R14: 2027 | S14: 2028 | T14: 2029 | U14: 2030 | V14: 2031 | W14: 2032 | X14: 2033 | Y14: Restverdi | AP14: =AP6 ->  | BV14: =BV6 -> 
A15: 72 | B15: =VLOOKUP(A15,$A$7:$B$13,2,FALSE) -> 0 | C15: =C7 -> 1 | D15: 1 | E15: 1.2 | F15: 0 | G15: 0 | H15: Kroner | I15: =J15+NPV(Celleref_kalkulasjonsrente,K15:DG15) -> 0 | J15: =IF(J$6="Restverdi",IF(J7=0,0,J7*$C7*$D7^(I$6+1-$J$6)),IF(J7=0,0,J7*$C7*$D7^(J$6-$J$6))) -> 0 | K15: =IF(K$6="Restverdi",IF(K7=0,0,K7*$C7*$D7^(J$6+1-$J$6)),IF(K7=0,0,K7*$C7*$D7^(K$6-$J$6))) -> 0 | L15: 0 | M15: 0 | N15: 0 | O15: 0 | P15: 0 | Q15: 0 | R15: 0 | S15: 0 | T15: 0 | U15: 0 | V15: 0 | W15: 0 | X15: 0 | Y15: 0 | Z15: 0 | AA15: 0 | AB15: 0 | AC15: 0 | AD15: 0 | AE15: 0 | AF15: 0 | AG15: 0 | AH15: 0 | AI15: 0 | AJ15: 0 | AK15: 0 | AL15: 0 | AM15: 0 | AN15: 0 | AO15: 0 | AP15: 0 | AQ15: 0 | AR15: 0 | AS15: 0 | AT15: 0 | AU15: 0 | AV15: 0 | AW15: 0 | AX15: 0 | AY15: 0 | AZ15: 0 | BA15: 0 | BB15: 0 | BC15: 0 | BD15: 0 | BE15: 0 | BF15: 0 | BG15: 0 | BH15: 0 | BI15: 0 | BJ15: 0 | BK15: 0 | BL15: 0 | BM15: 0 | BN15: 0 | BO15: 0 | BP15: 0 | BQ15: 0 | BR15: 0 | BS15: 0 | BT15: 0 | BU15: 0 | BV15: 0 | BW15: =IF(BW$6="Restverdi",IF(BW7=0,0,BW7*$C7*$D7^(BV$6+1-$J$6)),IF(BW7=0,0,BW7*$C7*$D7^(BW$6-$J$6))) -> 0 | BX15: 0 | BY15: 0 | BZ15: 0 | CA15: 0 | CB15: 0 | CC15: 0 | CD15: 0 | CE15: 0 | CF15: 0 | CG15: 0 | CH15: 0 | CI15: 0 | CJ15: 0 | CK15: 0 | CL15: 0 | CM15: 0 | CN15: 0 | CO15: 0 | CP15: 0 | CQ15: 0 | CR15: 0 | CS15: 0 | CT15: 0 | CU15: 0 | CV15: 0 | CW15: 0 | CX15: 0 | CY15: 0 | CZ15: 0 | DA15: 0 | DB15: 0 | DC15: 0 | DD15: 0 | DE15: 0 | DF15: 0 | DG15: 0
A16: k404 | B16: =VLOOKUP(A16,$A$7:$B$13,2,FALSE) -> Nytte for virksomheten | C16: 0 | D16: 0 | E16: 0 | F16: 0 | G16: 0 | H16: Kroner | I16: =J16+NPV(Celleref_kalkulasjonsrente,K16:DG16) -> 0 | J16: =IF(J$6="Restverdi",IF(J8=0,0,J8*$C8*$D8^(I$6+1-$J$6)),IF(J8=0,0,J8*$C8*$D8^(J$6-$J$6))) -> 0 | K16: =IF(K$6="Restverdi",IF(K8=0,0,K8*$C8*$D8^(J$6+1-$J$6)),IF(K8=0,0,K8*$C8*$D8^(K$6-$J$6))) -> 0 | L16: 0 | M16: 0 | N16: 0 | O16: 0 | P16: 0 | Q16: 0 | R16: 0 | S16: 0 | T16: 0 | U16: 0 | V16: 0 | W16: 0 | X16: 0 | Y16: 0 | Z16: 0 | AA16: 0 | AB16: 0 | AC16: 0 | AD16: 0 | AE16: 0 | AF16: 0 | AG16: 0 | AH16: 0 | AI16: 0 | AJ16: 0 | AK16: 0 | AL16: 0 | AM16: 0 | AN16: 0 | AO16: 0 | AP16: 0 | AQ16: 0 | AR16: 0 | AS16: 0 | AT16: 0 | AU16: 0 | AV16: 0 | AW16: 0 | AX16: 0 | AY16: 0 | AZ16: 0 | BA16: 0 | BB16: 0 | BC16: 0 | BD16: 0 | BE16: 0 | BF16: 0 | BG16: 0 | BH16: 0 | BI16: 0 | BJ16: 0 | BK16: 0 | BL16: 0 | BM16: 0 | BN16: 0 | BO16: 0 | BP16: 0 | BQ16: 0 | BR16: 0 | BS16: 0 | BT16: 0 | BU16: 0 | BV16: 0 | BW16: 0 | BX16: 0 | BY16: 0 | BZ16: 0 | CA16: 0 | CB16: 0 | CC16: 0 | CD16: 0 | CE16: 0 | CF16: 0 | CG16: 0 | CH16: 0 | CI16: 0 | CJ16: 0 | CK16: 0 | CL16: 0 | CM16: 0 | CN16: 0 | CO16: 0 | CP16: 0 | CQ16: 0 | CR16: 0 | CS16: 0 | CT16: 0 | CU16: 0 | CV16: 0 | CW16: 0 | CX16: 0 | CY16: 0 | CZ16: 0 | DA16: 0 | DB16: 0 | DC16: 0 | DD16: 0 | DE16: 0 | DF16: 0 | DG16: 0
A17: k405 | B17: =VLOOKUP(A17,$A$7:$B$13,2,FALSE) -> Nytte for øvrig offentlig sektor | C17: 0 | D17: 0 | E17: 0 | F17: 0 | G17: 0 | H17: Kroner | I17: =J17+NPV(Celleref_kalkulasjonsrente,K17:DG17) -> 0 | J17: =IF(J$6="Restverdi",IF(J9=0,0,J9*$C9*$D9^(I$6+1-$J$6)),IF(J9=0,0,J9*$C9*$D9^(J$6-$J$6))) -> 0 | K17: =IF(K$6="Restverdi",IF(K9=0,0,K9*$C9*$D9^(J$6+1-$J$6)),IF(K9=0,0,K9*$C9*$D9^(K$6-$J$6))) -> 0 | L17: 0 | M17: 0 | N17: 0 | O17: 0 | P17: 0 | Q17: 0 | R17: 0 | S17: 0 | T17: 0 | U17: 0 | V17: 0 | W17: 0 | X17: 0 | Y17: 0 | Z17: 0 | AA17: 0 | AB17: 0 | AC17: 0 | AD17: 0 | AE17: 0 | AF17: 0 | AG17: 0 | AH17: 0 | AI17: 0 | AJ17: 0 | AK17: 0 | AL17: 0 | AM17: 0 | AN17: 0 | AO17: 0 | AP17: 0 | AQ17: 0 | AR17: 0 | AS17: 0 | AT17: 0 | AU17: 0 | AV17: 0 | AW17: 0 | AX17: 0 | AY17: 0 | AZ17: 0 | BA17: 0 | BB17: 0 | BC17: 0 | BD17: 0 | BE17: 0 | BF17: 0 | BG17: 0 | BH17: 0 | BI17: 0 | BJ17: 0 | BK17: 0 | BL17: 0 | BM17: 0 | BN17: 0 | BO17: 0 | BP17: 0 | BQ17: 0 | BR17: 0 | BS17: 0 | BT17: 0 | BU17: 0 | BV17: 0 | BW17: 0 | BX17: 0 | BY17: 0 | BZ17: 0 | CA17: 0 | CB17: 0 | CC17: 0 | CD17: 0 | CE17: 0 | CF17: 0 | CG17: 0 | CH17: 0 | CI17: 0 | CJ17: 0 | CK17: 0 | CL17: 0 | CM17: 0 | CN17: 0 | CO17: 0 | CP17: 0 | CQ17: 0 | CR17: 0 | CS17: 0 | CT17: 0 | CU17: 0 | CV17: 0 | CW17: 0 | CX17: 0 | CY17: 0 | CZ17: 0 | DA17: 0 | DB17: 0 | DC17: 0 | DD17: 0 | DE17: 0 | DF17: 0 | DG17: 0
A18: k406 | B18: =VLOOKUP(A18,$A$7:$B$13,2,FALSE) -> Nytte for privat næringsliv | C18: 0 | D18: 0 | E18: 0 | F18: 0 | G18: 0 | H18: Kroner | I18: =J18+NPV(Celleref_kalkulasjonsrente,K18:DG18) -> 0 | J18: =IF(J$6="Restverdi",IF(J10=0,0,J10*$C10*$D10^(I$6+1-$J$6)),IF(J10=0,0,J10*$C10*$D10^(J$6-$J$6))) -> 0 | K18: 0 | L18: 0 | M18: 0 | N18: 0 | O18: 0 | P18: 0 | Q18: 0 | R18: 0 | S18: 0 | T18: 0 | U18: 0 | V18: 0 | W18: 0 | X18: 0 | Y18: 0 | Z18: 0 | AA18: 0 | AB18: 0 | AC18: 0 | AD18: 0 | AE18: 0 | AF18: 0 | AG18: 0 | AH18: 0 | AI18: 0 | AJ18: 0 | AK18: 0 | AL18: 0 | AM18: 0 | AN18: 0 | AO18: 0 | AP18: 0 | AQ18: 0 | AR18: 0 | AS18: 0 | AT18: 0 | AU18: 0 | AV18: 0 | AW18: 0 | AX18: 0 | AY18: 0 | AZ18: 0 | BA18: 0 | BB18: 0 | BC18: 0 | BD18: 0 | BE18: 0 | BF18: 0 | BG18: 0 | BH18: 0 | BI18: 0 | BJ18: 0 | BK18: 0 | BL18: 0 | BM18: 0 | BN18: 0 | BO18: 0 | BP18: 0 | BQ18: 0 | BR18: 0 | BS18: 0 | BT18: 0 | BU18: 0 | BV18: 0 | BW18: 0 | BX18: 0 | BY18: 0 | BZ18: 0 | CA18: 0 | CB18: 0 | CC18: 0 | CD18: 0 | CE18: 0 | CF18: 0 | CG18: 0 | CH18: 0 | CI18: 0 | CJ18: 0 | CK18: 0 | CL18: 0 | CM18: 0 | CN18: 0 | CO18: 0 | CP18: 0 | CQ18: 0 | CR18: 0 | CS18: 0 | CT18: 0 | CU18: 0 | CV18: 0 | CW18: 0 | CX18: 0 | CY18: 0 | CZ18: 0 | DA18: 0 | DB18: 0 | DC18: 0 | DD18: 0 | DE18: 0 | DF18: 0 | DG18: 0
A19: k408 | B19: =VLOOKUP(A19,$A$7:$B$13,2,FALSE) -> Nytte for privatpersoner | C19: 0 | D19: 0 | E19: 0 | F19: 0 | G19: 0 | H19: Kroner | I19: =J19+NPV(Celleref_kalkulasjonsrente,K19:DG19) -> 0 | J19: =IF(J$6="Restverdi",IF(J11=0,0,J11*$C11*$D11^(I$6+1-$J$6)),IF(J11=0,0,J11*$C11*$D11^(J$6-$J$6))) -> 0 | K19: 0 | L19: 0 | M19: 0 | N19: 0 | O19: 0 | P19: 0 | Q19: 0 | R19: 0 | S19: 0 | T19: 0 | U19: 0 | V19: 0 | W19: 0 | X19: 0 | Y19: 0 | Z19: 0 | AA19: 0 | AB19: 0 | AC19: 0 | AD19: 0 | AE19: 0 | AF19: 0 | AG19: 0 | AH19: 0 | AI19: 0 | AJ19: 0 | AK19: 0 | AL19: 0 | AM19: 0 | AN19: 0 | AO19: 0 | AP19: 0 | AQ19: 0 | AR19: 0 | AS19: 0 | AT19: 0 | AU19: 0 | AV19: 0 | AW19: 0 | AX19: 0 | AY19: 0 | AZ19: 0 | BA19: 0 | BB19: 0 | BC19: 0 | BD19: 0 | BE19: 0 | BF19: 0 | BG19: 0 | BH19: 0 | BI19: 0 | BJ19: 0 | BK19: 0 | BL19: 0 | BM19: 0 | BN19: 0 | BO19: 0 | BP19: 0 | BQ19: 0 | BR19: 0 | BS19: 0 | BT19: 0 | BU19: 0 | BV19: 0 | BW19: 0 | BX19: 0 | BY19: 0 | BZ19: 0 | CA19: 0 | CB19: 0 | CC19: 0 | CD19: 0 | CE19: 0 | CF19: 0 | CG19: 0 | CH19: 0 | CI19: 0 | CJ19: 0 | CK19: 0 | CL19: 0 | CM19: 0 | CN19: 0 | CO19: 0 | CP19: 0 | CQ19: 0 | CR19: 0 | CS19: 0 | CT19: 0 | CU19: 0 | CV19: 0 | CW19: 0 | CX19: 0 | CY19: 0 | CZ19: 0 | DA19: 0 | DB19: 0 | DC19: 0 | DD19: 0 | DE19: 0 | DF19: 0 | DG19: 0
A22: S | B22: Prissatte nyttevirkninger - Skattefinansieringskostnad | H22: Enhet | I22: Nåverdi | J22: =J14 -> 2019 | K22: 2020 | L22: 2021 | M22: 2022 | N22: 2023 | O22: 2024 | P22: 2025 | Q22: 2026 | R22: 2027 | S22: 2028 | T22: 2029 | U22: 2030 | V22: 2031 | W22: 2032 | X22: 2033 | Y22: Restverdi | BV22: =BV14 -> 
A23: 72 | B23: =VLOOKUP(A23,$A$7:$B$13,2,FALSE) -> 0 | H23: Kroner | I23: =J23+NPV(Celleref_kalkulasjonsrente,K23:DG23) -> 0 | J23: =IF(J7=0,0,J15*($E7-1)) -> 0 | K23: 0 | L23: 0 | M23: 0 | N23: 0 | O23: 0 | P23: 0 | Q23: 0 | R23: 0 | S23: 0 | T23: 0 | U23: 0 | V23: 0 | W23: 0 | X23: 0 | Y23: 0 | Z23: 0 | AA23: 0 | AB23: 0 | AC23: 0 | AD23: 0 | AE23: 0 | AF23: 0 | AG23: 0 | AH23: 0 | AI23: 0 | AJ23: 0 | AK23: 0 | AL23: 0 | AM23: 0 | AN23: 0 | AO23: 0 | AP23: =IF(AP7=0,0,AP15*($E7-1)) -> 0 | AQ23: 0 | AR23: 0 | AS23: 0 | AT23: 0 | AU23: 0 | AV23: 0 | AW23: 0 | AX23: 0 | AY23: 0 | AZ23: 0 | BA23: 0 | BB23: 0 | BC23: 0 | BD23: 0 | BE23: 0 | BF23: 0 | BG23: 0 | BH23: 0 | BI23: 0 | BJ23: 0 | BK23: 0 | BL23: 0 | BM23: 0 | BN23: 0 | BO23: 0 | BP23: 0 | BQ23: 0 | BR23: 0 | BS23: 0 | BT23: 0 | BU23: 0 | BV23: =IF(BV7=0,0,BV15*($E7-1)) -> 0 | BW23: 0 | BX23: 0 | BY23: 0 | BZ23: 0 | CA23: 0 | CB23: 0 | CC23: 0 | CD23: 0 | CE23: 0 | CF23: 0 | CG23: 0 | CH23: 0 | CI23: 0 | CJ23: 0 | CK23: 0 | CL23: 0 | CM23: 0 | CN23: 0 | CO23: 0 | CP23: 0 | CQ23: 0 | CR23: 0 | CS23: 0 | CT23: 0 | CU23: 0 | CV23: 0 | CW23: 0 | CX23: 0 | CY23: 0 | CZ23: 0 | DA23: 0 | DB23: =IF(DB7=0,0,DB15*($E7-1)) -> 0 | DC23: 0 | DD23: 0 | DE23: 0 | DF23: 0 | DG23: 0
A24: k404 | B24: =VLOOKUP(A24,$A$7:$B$13,2,FALSE) -> Nytte for virksomheten | H24: Kroner | I24: =J24+NPV(Celleref_kalkulasjonsrente,K24:DG24) -> 0 | J24: =IF(J8=0,0,J16*($E8-1)) -> 0 | K24: 0 | L24: 0 | M24: 0 | N24: 0 | O24: 0 | P24: 0 | Q24: 0 | R24: 0 | S24: 0 | T24: 0 | U24: 0 | V24: 0 | W24: 0 | X24: 0 | Y24: 0 | Z24: 0 | AA24: 0 | AB24: 0 | AC24: 0 | AD24: 0 | AE24: 0 | AF24: 0 | AG24: 0 | AH24: 0 | AI24: 0 | AJ24: 0 | AK24: 0 | AL24: 0 | AM24: 0 | AN24: 0 | AO24: 0 | AP24: =IF(AP8=0,0,AP16*($E8-1)) -> 0 | AQ24: 0 | AR24: 0 | AS24: 0 | AT24: 0 | AU24: 0 | AV24: 0 | AW24: 0 | AX24: 0 | AY24: 0 | AZ24: 0 | BA24: 0 | BB24: 0 | BC24: 0 | BD24: 0 | BE24: 0 | BF24: 0 | BG24: 0 | BH24: 0 | BI24: 0 | BJ24: 0 | BK24: 0 | BL24: 0 | BM24: 0 | BN24: 0 | BO24: 0 | BP24: 0 | BQ24: 0 | BR24: 0 | BS24: 0 | BT24: 0 | BU24: 0 | BV24: =IF(BV8=0,0,BV16*($E8-1)) -> 0 | BW24: 0 | BX24: 0 | BY24: 0 | BZ24: 0 | CA24: 0 | CB24: 0 | CC24: 0 | CD24: 0 | CE24: 0 | CF24: 0 | CG24: 0 | CH24: 0 | CI24: 0 | CJ24: 0 | CK24: 0 | CL24: 0 | CM24: 0 | CN24: 0 | CO24: 0 | CP24: 0 | CQ24: 0 | CR24: 0 | CS24: 0 | CT24: 0 | CU24: 0 | CV24: 0 | CW24: 0 | CX24: 0 | CY24: 0 | CZ24: 0 | DA24: 0 | DB24: =IF(DB8=0,0,DB16*($E8-1)) -> 0 | DC24: 0 | DD24: 0 | DE24: 0 | DF24: 0 | DG24: 0
A25: k405 | B25: =VLOOKUP(A25,$A$7:$B$13,2,FALSE) -> Nytte for øvrig offentlig sektor | H25: Kroner | I25: =J25+NPV(Celleref_kalkulasjonsrente,K25:DG25) -> 0 | J25: =IF(J9=0,0,J17*($E9-1)) -> 0 | K25: 0 | L25: 0 | M25: 0 | N25: 0 | O25: 0 | P25: 0 | Q25: 0 | R25: 0 | S25: 0 | T25: 0 | U25: 0 | V25: 0 | W25: 0 | X25: 0 | Y25: 0 | Z25: 0 | AA25: 0 | AB25: 0 | AC25: 0 | AD25: 0 | AE25: 0 | AF25: 0 | AG25: 0 | AH25: 0 | AI25: 0 | AJ25: 0 | AK25: 0 | AL25: 0 | AM25: 0 | AN25: 0 | AO25: 0 | AP25: =IF(AP9=0,0,AP17*($E9-1)) -> 0 | AQ25: 0 | AR25: 0 | AS25: 0 | AT25: 0 | AU25: 0 | AV25: 0 | AW25: 0 | AX25: 0 | AY25: 0 | AZ25: 0 | BA25: 0 | BB25: 0 | BC25: 0 | BD25: 0 | BE25: 0 | BF25: 0 | BG25: 0 | BH25: 0 | BI25: 0 | BJ25: 0 | BK25: 0 | BL25: 0 | BM25: 0 | BN25: 0 | BO25: 0 | BP25: 0 | BQ25: 0 | BR25: 0 | BS25: 0 | BT25: 0 | BU25: 0 | BV25: =IF(BV9=0,0,BV17*($E9-1)) -> 0 | BW25: 0 | BX25: 0 | BY25: 0 | BZ25: 0 | CA25: 0 | CB25: 0 | CC25: 0 | CD25: 0 | CE25: 0 | CF25: 0 | CG25: 0 | CH25: 0 | CI25: 0 | CJ25: 0 | CK25: 0 | CL25: 0 | CM25: 0 | CN25: 0 | CO25: 0 | CP25: 0 | CQ25: 0 | CR25: 0 | CS25: 0 | CT25: 0 | CU25: 0 | CV25: 0 | CW25: 0 | CX25: 0 | CY25: 0 | CZ25: 0 | DA25: 0 | DB25: =IF(DB9=0,0,DB17*($E9-1)) -> 0 | DC25: 0 | DD25: 0 | DE25: 0 | DF25: 0 | DG25: 0
A26: k406 | B26: =VLOOKUP(A26,$A$7:$B$13,2,FALSE) -> Nytte for privat næringsliv | H26: Kroner | I26: =J26+NPV(Celleref_kalkulasjonsrente,K26:DG26) -> 0 | J26: =IF(J10=0,0,J18*($E10-1)) -> 0 | K26: 0 | L26: 0 | M26: 0 | N26: 0 | O26: 0 | P26: 0 | Q26: 0 | R26: 0 | S26: 0 | T26: 0 | U26: 0 | V26: 0 | W26: 0 | X26: 0 | Y26: 0 | Z26: 0 | AA26: 0 | AB26: 0 | AC26: 0 | AD26: 0 | AE26: 0 | AF26: 0 | AG26: 0 | AH26: 0 | AI26: 0 | AJ26: 0 | AK26: 0 | AL26: 0 | AM26: 0 | AN26: 0 | AO26: 0 | AP26: =IF(AP10=0,0,AP18*($E10-1)) -> 0 | AQ26: 0 | AR26: 0 | AS26: 0 | AT26: 0 | AU26: 0 | AV26: 0 | AW26: 0 | AX26: 0 | AY26: 0 | AZ26: 0 | BA26: 0 | BB26: 0 | BC26: 0 | BD26: 0 | BE26: 0 | BF26: 0 | BG26: 0 | BH26: 0 | BI26: 0 | BJ26: 0 | BK26: 0 | BL26: 0 | BM26: 0 | BN26: 0 | BO26: 0 | BP26: 0 | BQ26: 0 | BR26: 0 | BS26: 0 | BT26: 0 | BU26: 0 | BV26: =IF(BV10=0,0,BV18*($E10-1)) -> 0 | BW26: 0 | BX26: 0 | BY26: 0 | BZ26: 0 | CA26: 0 | CB26: 0 | CC26: 0 | CD26: 0 | CE26: 0 | CF26: 0 | CG26: 0 | CH26: 0 | CI26: 0 | CJ26: 0 | CK26: 0 | CL26: 0 | CM26: 0 | CN26: 0 | CO26: 0 | CP26: 0 | CQ26: 0 | CR26: 0 | CS26: 0 | CT26: 0 | CU26: 0 | CV26: 0 | CW26: 0 | CX26: 0 | CY26: 0 | CZ26: 0 | DA26: 0 | DB26: =IF(DB10=0,0,DB18*($E10-1)) -> 0 | DC26: 0 | DD26: 0 | DE26: 0 | DF26: 0 | DG26: 0
A27: k408 | B27: =VLOOKUP(A27,$A$7:$B$13,2,FALSE) -> Nytte for privatpersoner | H27: Kroner | I27: =J27+NPV(Celleref_kalkulasjonsrente,K27:DG27) -> 0 | J27: =IF(J11=0,0,J19*($E11-1)) -> 0 | K27: 0 | L27: 0 | M27: 0 | N27: 0 | O27: 0 | P27: 0 | Q27: 0 | R27: 0 | S27: 0 | T27: 0 | U27: 0 | V27: 0 | W27: 0 | X27: 0 | Y27: 0 | Z27: 0 | AA27: 0 | AB27: 0 | AC27: 0 | AD27: 0 | AE27: 0 | AF27: 0 | AG27: 0 | AH27: 0 | AI27: 0 | AJ27: 0 | AK27: 0 | AL27: 0 | AM27: 0 | AN27: 0 | AO27: 0 | AP27: =IF(AP11=0,0,AP19*($E11-1)) -> 0 | AQ27: 0 | AR27: 0 | AS27: 0 | AT27: 0 | AU27: 0 | AV27: 0 | AW27: 0 | AX27: 0 | AY27: 0 | AZ27: 0 | BA27: 0 | BB27: 0 | BC27: 0 | BD27: 0 | BE27: 0 | BF27: 0 | BG27: 0 | BH27: 0 | BI27: 0 | BJ27: 0 | BK27: 0 | BL27: 0 | BM27: 0 | BN27: 0 | BO27: 0 | BP27: 0 | BQ27: 0 | BR27: 0 | BS27: 0 | BT27: 0 | BU27: 0 | BV27: =IF(BV11=0,0,BV19*($E11-1)) -> 0 | BW27: 0 | BX27: 0 | BY27: 0 | BZ27: 0 | CA27: 0 | CB27: 0 | CC27: 0 | CD27: 0 | CE27: 0 | CF27: 0 | CG27: 0 | CH27: 0 | CI27: 0 | CJ27: 0 | CK27: 0 | CL27: 0 | CM27: 0 | CN27: 0 | CO27: 0 | CP27: 0 | CQ27: 0 | CR27: 0 | CS27: 0 | CT27: 0 | CU27: 0 | CV27: 0 | CW27: 0 | CX27: 0 | CY27: 0 | CZ27: 0 | DA27: 0 | DB27: =IF(DB11=0,0,DB19*($E11-1)) -> 0 | DC27: 0 | DD27: 0 | DE27: 0 | DF27: 0 | DG27: 0

Sheet Nytte alternativ 0
A1: Nytte alternativ 0 | B1: Alternativnavn: | C1: =VLOOKUP(RIGHT(A1,12),Alternativområde,2,FALSE) -> Nullalternativet
J4: 0 | K4: 1 | L4: 2 | M4: 3 | N4: 4 | O4: 5 | P4: 6 | Q4: 7 | R4: 8 | S4: 9 | T4: 10 | U4: 11 | V4: 12 | W4: 13 | X4: 14 | Y4: 15 | Z4: 16 | AA4: 17 | AB4: 18 | AC4: 19 | AD4: 20 | AE4: 21 | AF4: 22 | AG4: 23 | AH4: 24 | AI4: 25 | AJ4: 26 | AK4: 27 | AL4: 28 | AM4: 29 | AN4: 30 | AO4: 31 | AP4: 32 | AQ4: 33 | AR4: 34 | AS4: 35 | AT4: 36 | AU4: 37 | AV4: 38 | AW4: 39 | AX4: 40 | AY4: 41 | AZ4: 42 | BA4: 43 | BB4: 44 | BC4: 45 | BD4: 46 | BE4: 47 | BF4: 48 | BG4: 49 | BH4: 50 | BI4: 51 | BJ4: 52 | BK4: 53 | BL4: 54 | BM4: 55 | BN4: 56 | BO4: 57 | BP4: 58 | BQ4: 59 | BR4: 60 | BS4: 61 | BT4: 62 | BU4: 63 | BV4: 64 | BW4: 65 | BX4: 66 | BY4: 67 | BZ4: 68 | CA4: 69 | CB4: 70 | CC4: 71 | CD4: 72 | CE4: 73 | CF4: 74 | CG4: 75 | CH4: 76 | CI4: 77 | CJ4: 78 | CK4: 79 | CL4: 80 | CM4: 81 | CN4: 82 | CO4: 83 | CP4: 84 | CQ4: 85 | CR4: 86 | CS4: 87 | CT4: 88 | CU4: 89 | CV4: 90 | CW4: 91 | CX4: 92 | CY4: 93 | CZ4: 94 | DA4: 95 | DB4: 96 | DC4: 97 | DD4: 98 | DE4: 99 | DF4: 100 | DG4: 101
A6: 1 | B6: Prissatte nyttevirkninger | H6: Enhet | J6: ='Generelle forutsetninger'!B10 -> 2019 | K6: =IF($J$6+K4<'Generelle forutsetninger'!$B$10+'Generelle forutsetninger'!$B$11,$J$6+K4,IF(OR(J6="Restverdi",J6=""),"","Restverdi")) -> 2020 | L6: =IF($J$6+L4<'Generelle forutsetninger'!$B$10+'Generelle forutsetninger'!$B$11,$J$6+L4,IF(OR(K6="Restverdi",K6=""),"","Restverdi")) -> 2021 | M6: =IF($J$6+M4<'Generelle forutsetninger'!$B$10+'Generelle forutsetninger'!$B$11,$J$6+M4,IF(OR(L6="Restverdi",L6=""),"","Restverdi")) -> 2022 | N6: =IF($J$6+N4<'Generelle forutsetninger'!$B$10+'Generelle forutsetninger'!$B$11,$J$6+N4,IF(OR(M6="Restverdi",M6=""),"","Restverdi")) -> 2023 | O6: =IF($J$6+O4<'Generelle forutsetninger'!$B$10+'Generelle forutsetninger'!$B$11,$J$6+O4,IF(OR(N6="Restverdi",N6=""),"","Restverdi")) -> 2024 | P6: =IF($J$6+P4<'Generelle forutsetninger'!$B$10+'Generelle forutsetninger'!$B$11,$J$6+P4,IF(OR(O6="Restverdi",O6=""),"","Restverdi")) -> 2025 | Q6: =IF($J$6+Q4<'Generelle forutsetninger'!$B$10+'Generelle forutsetninger'!$B$11,$J$6+Q4,IF(OR(P6="Restverdi",P6=""),"","Restverdi")) -> 2026 | R6: =IF($J$6+R4<'Generelle forutsetninger'!$B$10+'Generelle forutsetninger'!$B$11,$J$6+R4,IF(OR(Q6="Restverdi",Q6=""),"","Restverdi")) -> 2027 | S6: =IF($J$6+S4<'Generelle forutsetninger'!$B$10+'Generelle forutsetninger'!$B$11,$J$6+S4,IF(OR(R6="Restverdi",R6=""),"","Restverdi")) -> 2028 | T6: =IF($J$6+T4<'Generelle forutsetninger'!$B$10+'Generelle forutsetninger'!$B$11,$J$6+T4,IF(OR(S6="Restverdi",S6=""),"","Restverdi")) -> 2029 | U6: =IF($J$6+U4<'Generelle forutsetninger'!$B$10+'Generelle forutsetninger'!$B$11,$J$6+U4,IF(OR(T6="Restverdi",T6=""),"","Restverdi")) -> 2030 | V6: =IF($J$6+V4<'Generelle forutsetninger'!$B$10+'Generelle forutsetninger'!$B$11,$J$6+V4,IF(OR(U6="Restverdi",U6=""),"","Restverdi")) -> 2031 | W6: =IF($J$6+W4<'Generelle forutsetninger'!$B$10+'Generelle forutsetninger'!$B$11,$J$6+W4,IF(OR(V6="Restverdi",V6=""),"","Restverdi")) -> 2032 | X6: =IF($J$6+X4<'Generelle forutsetninger'!$B$10+'Generelle forutsetninger'!$B$11,$J$6+X4,IF(OR(W6="Restverdi",W6=""),"","Restverdi")) -> 2033 | Y6: =IF($J$6+Y4<'Generelle forutsetninger'!$B$10+'Generelle forutsetninger'!$B$11,$J$6+Y4,IF(OR(X6="Restverdi",X6=""),"","Restverdi")) -> Restverdi | Z6: =IF($J$6+Z4<'Generelle forutsetninger'!$B$10+'Generelle forutsetninger'!$B$11,$J$6+Z4,IF(OR(Y6="Restverdi",Y6=""),"","Restverdi")) ->  | AA6: =IF($J$6+AA4<'Generelle forutsetninger'!$B$10+'Generelle forutsetninger'!$B$11,$J$6+AA4,IF(OR(Z6="Restverdi",Z6=""),"","Restverdi")) ->  | AB6: =IF($J$6+AB4<'Generelle forutsetninger'!$B$10+'Generelle forutsetninger'!$B$11,$J$6+AB4,IF(OR(AA6="Restverdi",AA6=""),"","Restverdi")) ->  | AC6: =IF($J$6+AC4<'Generelle forutsetninger'!$B$10+'Generelle forutsetninger'!$B$11,$J$6+AC4,IF(OR(AB6="Restverdi",AB6=""),"","Restverdi")) ->  | AD6: =IF($J$6+AD4<'Generelle forutsetninger'!$B$10+'Generelle forutsetninger'!$B$11,$J$6+AD4,IF(OR(AC6="Restverdi",AC6=""),"","Restverdi")) ->  | AE6: =IF($J$6+AE4<'Generelle forutsetninger'!$B$10+'Generelle forutsetninger'!$B$11,$J$6+AE4,IF(OR(AD6="Restverdi",AD6=""),"","Restverdi")) ->  | AF6: =IF($J$6+AF4<'Generelle forutsetninger'!$B$10+'Generelle forutsetninger'!$B$11,$J$6+AF4,IF(OR(AE6="Restverdi",AE6=""),"","Restverdi")) ->  | AG6: =IF($J$6+AG4<'Generelle forutsetninger'!$B$10+'Generelle forutsetninger'!$B$11,$J$6+AG4,IF(OR(AF6="Restverdi",AF6=""),"","Restverdi")) ->  | AH6: =IF($J$6+AH4<'Generelle forutsetninger'!$B$10+'Generelle forutsetninger'!$B$11,$J$6+AH4,IF(OR(AG6="Restverdi",AG6=""),"","Restverdi")) ->  | AI6: =IF($J$6+AI4<'Generelle forutsetninger'!$B$10+'Generelle forutsetninger'!$B$11,$J$6+AI4,IF(OR(AH6="Restverdi",AH6=""),"","Restverdi")) ->  | AJ6: =IF($J$6+AJ4<'Generelle forutsetninger'!$B$10+'Generelle forutsetninger'!$B$11,$J$6+AJ4,IF(OR(AI6="Restverdi",AI6=""),"","Restverdi")) ->  | AK6: =IF($J$6+AK4<'Generelle forutsetninger'!$B$10+'Generelle forutsetninger'!$B$11,$J$6+AK4,IF(OR(AJ6="Restverdi",AJ6=""),"","Restverdi")) ->  | AL6: =IF($J$6+AL4<'Generelle forutsetninger'!$B$10+'Generelle forutsetninger'!$B$11,$J$6+AL4,IF(OR(AK6="Restverdi",AK6=""),"","Restverdi")) ->  | AM6: =IF($J$6+AM4<'Generelle forutsetninger'!$B$10+'Generelle forutsetninger'!$B$11,$J$6+AM4,IF(OR(AL6="Restverdi",AL6=""),"","Restverdi")) ->  | AN6: =IF($J$6+AN4<'Generelle forutsetninger'!$B$10+'Generelle forutsetninger'!$B$11,$J$6+AN4,IF(OR(AM6="Restverdi",AM6=""),"","Restverdi")) ->  | AO6: =IF($J$6+AO4<'Generelle forutsetninger'!$B$10+'Generelle forutsetninger'!$B$11,$J$6+AO4,IF(OR(AN6="Restverdi",AN6=""),"","Restverdi")) ->  | AP6: =IF($J$6+AP4<'Generelle forutsetninger'!$B$10+'Generelle forutsetninger'!$B$11,$J$6+AP4,IF(OR(AO6="Restverdi",AO6=""),"","Restverdi")) ->  | AQ6: =IF($J$6+AQ4<'Generelle forutsetninger'!$B$10+'Generelle forutsetninger'!$B$11,$J$6+AQ4,IF(OR(AP6="Restverdi",AP6=""),"","Restverdi")) ->  | AR6: =IF($J$6+AR4<'Generelle forutsetninger'!$B$10+'Generelle forutsetninger'!$B$11,$J$6+AR4,IF(OR(AQ6="Restverdi",AQ6=""),"","Restverdi")) ->  | AS6: =IF($J$6+AS4<'Generelle forutsetninger'!$B$10+'Generelle forutsetninger'!$B$11,$J$6+AS4,IF(OR(AR6="Restverdi",AR6=""),"","Restverdi")) ->  | AT6: =IF($J$6+AT4<'Generelle forutsetninger'!$B$10+'Generelle forutsetninger'!$B$11,$J$6+AT4,IF(OR(AS6="Restverdi",AS6=""),"","Restverdi")) ->  | AU6: =IF($J$6+AU4<'Generelle forutsetninger'!$B$10+'Generelle forutsetninger'!$B$11,$J$6+AU4,IF(OR(AT6="Restverdi",AT6=""),"","Restverdi")) ->  | AV6: =IF($J$6+AV4<'Generelle forutsetninger'!$B$10+'Generelle forutsetninger'!$B$11,$J$6+AV4,IF(OR(AU6="Restverdi",AU6=""),"","Restverdi")) ->  | AW6: =IF($J$6+AW4<'Generelle forutsetninger'!$B$10+'Generelle forutsetninger'!$B$11,$J$6+AW4,IF(OR(AV6="Restverdi",AV6=""),"","Restverdi")) ->  | AX6: =IF($J$6+AX4<'Generelle forutsetninger'!$B$10+'Generelle forutsetninger'!$B$11,$J$6+AX4,IF(OR(AW6="Restverdi",AW6=""),"","Restverdi")) ->  | AY6: =IF($J$6+AY4<'Generelle forutsetninger'!$B$10+'Generelle forutsetninger'!$B$11,$J$6+AY4,IF(OR(AX6="Restverdi",AX6=""),"","Restverdi")) ->  | AZ6: =IF($J$6+AZ4<'Generelle forutsetninger'!$B$10+'Generelle forutsetninger'!$B$11,$J$6+AZ4,IF(OR(AY6="Restverdi",AY6=""),"","Restverdi")) ->  | BA6: =IF($J$6+BA4<'Generelle forutsetninger'!$B$10+'Generelle forutsetninger'!$B$11,$J$6+BA4,IF(OR(AZ6="Restverdi",AZ6=""),"","Restverdi")) ->  | BB6: =IF($J$6+BB4<'Generelle forutsetninger'!$B$10+'Generelle forutsetninger'!$B$11,$J$6+BB4,IF(OR(BA6="Restverdi",BA6=""),"","Restverdi")) ->  | BC6: =IF($J$6+BC4<'Generelle forutsetninger'!$B$10+'Generelle forutsetninger'!$B$11,$J$6+BC4,IF(OR(BB6="Restverdi",BB6=""),"","Restverdi")) ->  | BD6: =IF($J$6+BD4<'Generelle forutsetninger'!$B$10+'Generelle forutsetninger'!$B$11,$J$6+BD4,IF(OR(BC6="Restverdi",BC6=""),"","Restverdi")) ->  | BE6: =IF($J$6+BE4<'Generelle forutsetninger'!$B$10+'Generelle forutsetninger'!$B$11,$J$6+BE4,IF(OR(BD6="Restverdi",BD6=""),"","Restverdi")) ->  | BF6: =IF($J$6+BF4<'Generelle forutsetninger'!$B$10+'Generelle forutsetninger'!$B$11,$J$6+BF4,IF(OR(BE6="Restverdi",BE6=""),"","Restverdi")) ->  | BG6: =IF($J$6+BG4<'Generelle forutsetninger'!$B$10+'Generelle forutsetninger'!$B$11,$J$6+BG4,IF(OR(BF6="Restverdi",BF6=""),"","Restverdi")) ->  | BH6: =IF($J$6+BH4<'Generelle forutsetninger'!$B$10+'Generelle forutsetninger'!$B$11,$J$6+BH4,IF(OR(BG6="Restverdi",BG6=""),"","Restverdi")) ->  | BI6: =IF($J$6+BI4<'Generelle forutsetninger'!$B$10+'Generelle forutsetninger'!$B$11,$J$6+BI4,IF(OR(BH6="Restverdi",BH6=""),"","Restverdi")) ->  | BJ6: =IF($J$6+BJ4<'Generelle forutsetninger'!$B$10+'Generelle forutsetninger'!$B$11,$J$6+BJ4,IF(OR(BI6="Restverdi",BI6=""),"","Restverdi")) ->  | BK6: =IF($J$6+BK4<'Generelle forutsetninger'!$B$10+'Generelle forutsetninger'!$B$11,$J$6+BK4,IF(OR(BJ6="Restverdi",BJ6=""),"","Restverdi")) ->  | BL6: =IF($J$6+BL4<'Generelle forutsetninger'!$B$10+'Generelle forutsetninger'!$B$11,$J$6+BL4,IF(OR(BK6="Restverdi",BK6=""),"","Restverdi")) ->  | BM6: =IF($J$6+BM4<'Generelle forutsetninger'!$B$10+'Generelle forutsetninger'!$B$11,$J$6+BM4,IF(OR(BL6="Restverdi",BL6=""),"","Restverdi")) ->  | BN6: =IF($J$6+BN4<'Generelle forutsetninger'!$B$10+'Generelle forutsetninger'!$B$11,$J$6+BN4,IF(OR(BM6="Restverdi",BM6=""),"","Restverdi")) ->  | BO6: =IF($J$6+BO4<'Generelle forutsetninger'!$B$10+'Generelle forutsetninger'!$B$11,$J$6+BO4,IF(OR(BN6="Restverdi",BN6=""),"","Restverdi")) ->  | BP6: =IF($J$6+BP4<'Generelle forutsetninger'!$B$10+'Generelle forutsetninger'!$B$11,$J$6+BP4,IF(OR(BO6="Restverdi",BO6=""),"","Restverdi")) ->  | BQ6: =IF($J$6+BQ4<'Generelle forutsetninger'!$B$10+'Generelle forutsetninger'!$B$11,$J$6+BQ4,IF(OR(BP6="Restverdi",BP6=""),"","Restverdi")) ->  | BR6: =IF($J$6+BR4<'Generelle forutsetninger'!$B$10+'Generelle forutsetninger'!$B$11,$J$6+BR4,IF(OR(BQ6="Restverdi",BQ6=""),"","Restverdi")) ->  | BS6: =IF($J$6+BS4<'Generelle forutsetninger'!$B$10+'Generelle forutsetninger'!$B$11,$J$6+BS4,IF(OR(BR6="Restverdi",BR6=""),"","Restverdi")) ->  | BT6: =IF($J$6+BT4<'Generelle forutsetninger'!$B$10+'Generelle forutsetninger'!$B$11,$J$6+BT4,IF(OR(BS6="Restverdi",BS6=""),"","Restverdi")) ->  | BU6: =IF($J$6+BU4<'Generelle forutsetninger'!$B$10+'Generelle forutsetninger'!$B$11,$J$6+BU4,IF(OR(BT6="Restverdi",BT6=""),"","Restverdi")) ->  | BV6: =IF($J$6+BV4<'Generelle forutsetninger'!$B$10+'Generelle forutsetninger'!$B$11,$J$6+BV4,IF(OR(BU6="Restverdi",BU6=""),"","Restverdi")) ->  | BW6: =IF($J$6+BW4<'Generelle forutsetninger'!$B$10+'Generelle forutsetninger'!$B$11,$J$6+BW4,IF(OR(BV6="Restverdi",BV6=""),"","Restverdi")) ->  | BX6: =IF($J$6+BX4<'Generelle forutsetninger'!$B$10+'Generelle forutsetninger'!$B$11,$J$6+BX4,IF(OR(BW6="Restverdi",BW6=""),"","Restverdi")) ->  | BY6: =IF($J$6+BY4<'Generelle forutsetninger'!$B$10+'Generelle forutsetninger'!$B$11,$J$6+BY4,IF(OR(BX6="Restverdi",BX6=""),"","Restverdi")) ->  | BZ6: =IF($J$6+BZ4<'Generelle forutsetninger'!$B$10+'Generelle forutsetninger'!$B$11,$J$6+BZ4,IF(OR(BY6="Restverdi",BY6=""),"","Restverdi")) ->  | CA6: =IF($J$6+CA4<'Generelle forutsetninger'!$B$10+'Generelle forutsetninger'!$B$11,$J$6+CA4,IF(OR(BZ6="Restverdi",BZ6=""),"","Restverdi")) ->  | CB6: =IF($J$6+CB4<'Generelle forutsetninger'!$B$10+'Generelle forutsetninger'!$B$11,$J$6+CB4,IF(OR(CA6="Restverdi",CA6=""),"","Restverdi")) ->  | CC6: =IF($J$6+CC4<'Generelle forutsetninger'!$B$10+'Generelle forutsetninger'!$B$11,$J$6+CC4,IF(OR(CB6="Restverdi",CB6=""),"","Restverdi")) ->  | CD6: =IF($J$6+CD4<'Generelle forutsetninger'!$B$10+'Generelle forutsetninger'!$B$11,$J$6+CD4,IF(OR(CC6="Restverdi",CC6=""),"","Restverdi")) ->  | CE6: =IF($J$6+CE4<'Generelle forutsetninger'!$B$10+'Generelle forutsetninger'!$B$11,$J$6+CE4,IF(OR(CD6="Restverdi",CD6=""),"","Restverdi")) ->  | CF6: =IF($J$6+CF4<'Generelle forutsetninger'!$B$10+'Generelle forutsetninger'!$B$11,$J$6+CF4,IF(OR(CE6="Restverdi",CE6=""),"","Restverdi")) ->  | CG6: =IF($J$6+CG4<'Generelle forutsetninger'!$B$10+'Generelle forutsetninger'!$B$11,$J$6+CG4,IF(OR(CF6="Restverdi",CF6=""),"","Restverdi")) ->  | CH6: =IF($J$6+CH4<'Generelle forutsetninger'!$B$10+'Generelle forutsetninger'!$B$11,$J$6+CH4,IF(OR(CG6="Restverdi",CG6=""),"","Restverdi")) ->  | CI6: =IF($J$6+CI4<'Generelle forutsetninger'!$B$10+'Generelle forutsetninger'!$B$11,$J$6+CI4,IF(OR(CH6="Restverdi",CH6=""),"","Restverdi")) ->  | CJ6: =IF($J$6+CJ4<'Generelle forutsetninger'!$B$10+'Generelle forutsetninger'!$B$11,$J$6+CJ4,IF(OR(CI6="Restverdi",CI6=""),"","Restverdi")) ->  | CK6: =IF($J$6+CK4<'Generelle forutsetninger'!$B$10+'Generelle forutsetninger'!$B$11,$J$6+CK4,IF(OR(CJ6="Restverdi",CJ6=""),"","Restverdi")) ->  | CL6: =IF($J$6+CL4<'Generelle forutsetninger'!$B$10+'Generelle forutsetninger'!$B$11,$J$6+CL4,IF(OR(CK6="Restverdi",CK6=""),"","Restverdi")) ->  | CM6: =IF($J$6+CM4<'Generelle forutsetninger'!$B$10+'Generelle forutsetninger'!$B$11,$J$6+CM4,IF(OR(CL6="Restverdi",CL6=""),"","Restverdi")) ->  | CN6: =IF($J$6+CN4<'Generelle forutsetninger'!$B$10+'Generelle forutsetninger'!$B$11,$J$6+CN4,IF(OR(CM6="Restverdi",CM6=""),"","Restverdi")) ->  | CO6: =IF($J$6+CO4<'Generelle forutsetninger'!$B$10+'Generelle forutsetninger'!$B$11,$J$6+CO4,IF(OR(CN6="Restverdi",CN6=""),"","Restverdi")) ->  | CP6: =IF($J$6+CP4<'Generelle forutsetninger'!$B$10+'Generelle forutsetninger'!$B$11,$J$6+CP4,IF(OR(CO6="Restverdi",CO6=""),"","Restverdi")) ->  | CQ6: =IF($J$6+CQ4<'Generelle forutsetninger'!$B$10+'Generelle forutsetninger'!$B$11,$J$6+CQ4,IF(OR(CP6="Restverdi",CP6=""),"","Restverdi")) ->  | CR6: =IF($J$6+CR4<'Generelle forutsetninger'!$B$10+'Generelle forutsetninger'!$B$11,$J$6+CR4,IF(OR(CQ6="Restverdi",CQ6=""),"","Restverdi")) ->  | CS6: =IF($J$6+CS4<'Generelle forutsetninger'!$B$10+'Generelle forutsetninger'!$B$11,$J$6+CS4,IF(OR(CR6="Restverdi",CR6=""),"","Restverdi")) ->  | CT6: =IF($J$6+CT4<'Generelle forutsetninger'!$B$10+'Generelle forutsetninger'!$B$11,$J$6+CT4,IF(OR(CS6="Restverdi",CS6=""),"","Restverdi")) ->  | CU6: =IF($J$6+CU4<'Generelle forutsetninger'!$B$10+'Generelle forutsetninger'!$B$11,$J$6+CU4,IF(OR(CT6="Restverdi",CT6=""),"","Restverdi")) ->  | CV6: =IF($J$6+CV4<'Generelle forutsetninger'!$B$10+'Generelle forutsetninger'!$B$11,$J$6+CV4,IF(OR(CU6="Restverdi",CU6=""),"","Restverdi")) ->  | CW6: =IF($J$6+CW4<'Generelle forutsetninger'!$B$10+'Generelle forutsetninger'!$B$11,$J$6+CW4,IF(OR(CV6="Restverdi",CV6=""),"","Restverdi")) ->  | CX6: =IF($J$6+CX4<'Generelle forutsetninger'!$B$10+'Generelle forutsetninger'!$B$11,$J$6+CX4,IF(OR(CW6="Restverdi",CW6=""),"","Restverdi")) ->  | CY6: =IF($J$6+CY4<'Generelle forutsetninger'!$B$10+'Generelle forutsetninger'!$B$11,$J$6+CY4,IF(OR(CX6="Restverdi",CX6=""),"","Restverdi")) ->  | CZ6: =IF($J$6+CZ4<'Generelle forutsetninger'!$B$10+'Generelle forutsetninger'!$B$11,$J$6+CZ4,IF(OR(CY6="Restverdi",CY6=""),"","Restverdi")) ->  | DA6: =IF($J$6+DA4<'Generelle forutsetninger'!$B$10+'Generelle forutsetninger'!$B$11,$J$6+DA4,IF(OR(CZ6="Restverdi",CZ6=""),"","Restverdi")) ->  | DB6: =IF($J$6+DB4<'Generelle forutsetninger'!$B$10+'Generelle forutsetninger'!$B$11,$J$6+DB4,IF(OR(DA6="Restverdi",DA6=""),"","Restverdi")) ->  | DC6: =IF($J$6+DC4<'Generelle forutsetninger'!$B$10+'Generelle forutsetninger'!$B$11,$J$6+DC4,IF(OR(DB6="Restverdi",DB6=""),"","Restverdi")) ->  | DD6: =IF($J$6+DD4<'Generelle forutsetninger'!$B$10+'Generelle forutsetninger'!$B$11,$J$6+DD4,IF(OR(DC6="Restverdi",DC6=""),"","Restverdi")) ->  | DE6: =IF($J$6+DE4<'Generelle forutsetninger'!$B$10+'Generelle forutsetninger'!$B$11,$J$6+DE4,IF(OR(DD6="Restverdi",DD6=""),"","Restverdi")) ->  | DF6: =IF($J$6+DF4<'Generelle forutsetninger'!$B$10+'Generelle forutsetninger'!$B$11,$J$6+DF4,IF(OR(DE6="Restverdi",DE6=""),"","Restverdi")) ->  | DG6: =IF($J$6+DG4<'Generelle forutsetninger'!$B$10+'Generelle forutsetninger'!$B$11,$J$6+DG4,IF(OR(DF6="Restverdi",DF6=""),"","Restverdi")) -> 
A7: 72 | C7: 1 | D7: =1 -> 1 | E7: =1 + Celleref_Skattekostnad -> 1.2 | F7: =0 -> 0 | H7: Kroner
A8: k404 | B8: Nytte for virksomheten
A9: k405 | B9: Nytte for øvrig offentlig sektor
A10: k406 | B10: Nytte for privat næringsliv
A11: k408 | B11: Nytte for privatpersoner
A14: B | B14: Prissatte nyttevirkninger - direkte virkning | H14: Enhet | I14: Nåverdi | J14: =J6 -> 2019 | K14: 2020 | L14: 2021 | M14: 2022 | N14: 2023 | O14: 2024 | P14: 2025 | Q14: 2026 | R14: 2027 | S14: 2028 | T14: 2029 | U14: 2030 | V14: 2031 | W14: 2032 | X14: 2033 | Y14: Restverdi | BV14: =BV6 -> 
A15: 72 | B15: =VLOOKUP(A15,$A$7:$B$13,2,FALSE) -> 0 | C15: =C7 -> 1 | D15: 1 | E15: 1.2 | F15: 0 | G15: 0 | H15: Kroner | I15: =J15+NPV(Celleref_kalkulasjonsrente,K15:DG15) -> 0 | J15: =IF(J$6="Restverdi",IF(J7=0,0,J7*$C7*$D7^(I$6+1-$J$6)),IF(J7=0,0,J7*$C7*$D7^(J$6-$J$6))) -> 0 | K15: =IF(K$6="Restverdi",IF(K7=0,0,K7*$C7*$D7^(J$6+1-$J$6)),IF(K7=0,0,K7*$C7*$D7^(K$6-$J$6))) -> 0 | L15: 0 | M15: 0 | N15: 0 | O15: 0 | P15: 0 | Q15: 0 | R15: 0 | S15: 0 | T15: 0 | U15: 0 | V15: 0 | W15: 0 | X15: 0 | Y15: 0 | Z15: 0 | AA15: 0 | AB15: 0 | AC15: 0 | AD15: 0 | AE15: 0 | AF15: 0 | AG15: 0 | AH15: 0 | AI15: 0 | AJ15: 0 | AK15: 0 | AL15: 0 | AM15: 0 | AN15: 0 | AO15: 0 | AP15: 0 | AQ15: 0 | AR15: 0 | AS15: 0 | AT15: 0 | AU15: 0 | AV15: 0 | AW15: 0 | AX15: 0 | AY15: 0 | AZ15: 0 | BA15: 0 | BB15: 0 | BC15: 0 | BD15: 0 | BE15: 0 | BF15: 0 | BG15: 0 | BH15: 0 | BI15: 0 | BJ15: 0 | BK15: 0 | BL15: 0 | BM15: 0 | BN15: 0 | BO15: 0 | BP15: 0 | BQ15: 0 | BR15: 0 | BS15: 0 | BT15: 0 | BU15: 0 | BV15: 0 | BW15: =IF(BW$6="Restverdi",IF(BW7=0,0,BW7*$C7*$D7^(BV$6+1-$J$6)),IF(BW7=0,0,BW7*$C7*$D7^(BW$6-$J$6))) -> 0 | BX15: 0 | BY15: 0 | BZ15: 0 | CA15: 0 | CB15: 0 | CC15: 0 | CD15: 0 | CE15: 0 | CF15: 0 | CG15: 0 | CH15: 0 | CI15: 0 | CJ15: 0 | CK15: 0 | CL15: 0 | CM15: 0 | CN15: 0 | CO15: 0 | CP15: 0 | CQ15: 0 | CR15: 0 | CS15: 0 | CT15: 0 | CU15: 0 | CV15: 0 | CW15: 0 | CX15: 0 | CY15: 0 | CZ15: 0 | DA15: 0 | DB15: 0 | DC15: 0 | DD15: 0 | DE15: 0 | DF15: 0 | DG15: 0
A16: k404 | B16: =VLOOKUP(A16,$A$7:$B$13,2,FALSE) -> Nytte for virksomheten | C16: 0 | D16: 0 | E16: 0 | F16: 0 | G16: 0 | H16: Kroner | I16: =J16+NPV(Celleref_kalkulasjonsrente,K16:DG16) -> 0 | J16: =IF(J$6="Restverdi",IF(J8=0,0,J8*$C8*$D8^(I$6+1-$J$6)),IF(J8=0,0,J8*$C8*$D8^(J$6-$J$6))) -> 0 | K16: 0 | L16: 0 | M16: 0 | N16: 0 | O16: 0 | P16: 0 | Q16: 0 | R16: 0 | S16: 0 | T16: 0 | U16: 0 | V16: 0 | W16: 0 | X16: 0 | Y16: 0 | Z16: 0 | AA16: 0 | AB16: 0 | AC16: 0 | AD16: 0 | AE16: 0 | AF16: 0 | AG16: 0 | AH16: 0 | AI16: 0 | AJ16: 0 | AK16: 0 | AL16: 0 | AM16: 0 | AN16: 0 | AO16: 0 | AP16: 0 | AQ16: 0 | AR16: 0 | AS16: 0 | AT16: 0 | AU16: 0 | AV16: 0 | AW16: 0 | AX16: 0 | AY16: 0 | AZ16: 0 | BA16: 0 | BB16: 0 | BC16: 0 | BD16: 0 | BE16: 0 | BF16: 0 | BG16: 0 | BH16: 0 | BI16: 0 | BJ16: 0 | BK16: 0 | BL16: 0 | BM16: 0 | BN16: 0 | BO16: 0 | BP16: 0 | BQ16: 0 | BR16: 0 | BS16: 0 | BT16: 0 | BU16: 0 | BV16: 0 | BW16: 0 | BX16: 0 | BY16: 0 | BZ16: 0 | CA16: 0 | CB16: 0 | CC16: 0 | CD16: 0 | CE16: 0 | CF16: 0 | CG16: 0 | CH16: 0 | CI16: 0 | CJ16: 0 | CK16: 0 | CL16: 0 | CM16: 0 | CN16: 0 | CO16: 0 | CP16: 0 | CQ16: 0 | CR16: 0 | CS16: 0 | CT16: 0 | CU16: 0 | CV16: 0 | CW16: 0 | CX16: 0 | CY16: 0 | CZ16: 0 | DA16: 0 | DB16: 0 | DC16: 0 | DD16: 0 | DE16: 0 | DF16: 0 | DG16: 0
A17: k405 | B17: =VLOOKUP(A17,$A$7:$B$13,2,FALSE) -> Nytte for øvrig offentlig sektor | C17: 0 | D17: 0 | E17: 0 | F17: 0 | G17: 0 | H17: Kroner | I17: =J17+NPV(Celleref_kalkulasjonsrente,K17:DG17) -> 0 | J17: =IF(J$6="Restverdi",IF(J9=0,0,J9*$C9*$D9^(I$6+1-$J$6)),IF(J9=0,0,J9*$C9*$D9^(J$6-$J$6))) -> 0 | K17: 0 | L17: 0 | M17: 0 | N17: 0 | O17: 0 | P17: 0 | Q17: 0 | R17: 0 | S17: 0 | T17: 0 | U17: 0 | V17: 0 | W17: 0 | X17: 0 | Y17: 0 | Z17: 0 | AA17: 0 | AB17: 0 | AC17: 0 | AD17: 0 | AE17: 0 | AF17: 0 | AG17: 0 | AH17: 0 | AI17: 0 | AJ17: 0 | AK17: 0 | AL17: 0 | AM17: 0 | AN17: 0 | AO17: 0 | AP17: 0 | AQ17: 0 | AR17: 0 | AS17: 0 | AT17: 0 | AU17: 0 | AV17: 0 | AW17: 0 | AX17: 0 | AY17: 0 | AZ17: 0 | BA17: 0 | BB17: 0 | BC17: 0 | BD17: 0 | BE17: 0 | BF17: 0 | BG17: 0 | BH17: 0 | BI17: 0 | BJ17: 0 | BK17: 0 | BL17: 0 | BM17: 0 | BN17: 0 | BO17: 0 | BP17: 0 | BQ17: 0 | BR17: 0 | BS17: 0 | BT17: 0 | BU17: 0 | BV17: 0 | BW17: 0 | BX17: 0 | BY17: 0 | BZ17: 0 | CA17: 0 | CB17: 0 | CC17: 0 | CD17: 0 | CE17: 0 | CF17: 0 | CG17: 0 | CH17: 0 | CI17: 0 | CJ17: 0 | CK17: 0 | CL17: 0 | CM17: 0 | CN17: 0 | CO17: 0 | CP17: 0 | CQ17: 0 | CR17: 0 | CS17: 0 | CT17: 0 | CU17: 0 | CV17: 0 | CW17: 0 | CX17: 0 | CY17: 0 | CZ17: 0 | DA17: 0 | DB17: 0 | DC17: 0 | DD17: 0 | DE17: 0 | DF17: 0 | DG17: 0
A18: k406 | B18: =VLOOKUP(A18,$A$7:$B$13,2,FALSE) -> Nytte for privat næringsliv | C18: 0 | D18: 0 | E18: 0 | F18: 0 | G18: 0 | H18: Kroner | I18: =J18+NPV(Celleref_kalkulasjonsrente,K18:DG18) -> 0 | J18: =IF(J$6="Restverdi",IF(J10=0,0,J10*$C10*$D10^(I$6+1-$J$6)),IF(J10=0,0,J10*$C10*$D10^(J$6-$J$6))) -> 0 | K18: 0 | L18: 0 | M18: 0 | N18: 0 | O18: 0 | P18: 0 | Q18: 0 | R18: 0 | S18: 0 | T18: 0 | U18: 0 | V18: 0 | W18: 0 | X18: 0 | Y18: 0 | Z18: 0 | AA18: 0 | AB18: 0 | AC18: 0 | AD18: 0 | AE18: 0 | AF18: 0 | AG18: 0 | AH18: 0 | AI18: 0 | AJ18: 0 | AK18: 0 | AL18: 0 | AM18: 0 | AN18: 0 | AO18: 0 | AP18: 0 | AQ18: 0 | AR18: 0 | AS18: 0 | AT18: 0 | AU18: 0 | AV18: 0 | AW18: 0 | AX18: 0 | AY18: 0 | AZ18: 0 | BA18: 0 | BB18: 0 | BC18: 0 | BD18: 0 | BE18: 0 | BF18: 0 | BG18: 0 | BH18: 0 | BI18: 0 | BJ18: 0 | BK18: 0 | BL18: 0 | BM18: 0 | BN18: 0 | BO18: 0 | BP18: 0 | BQ18: 0 | BR18: 0 | BS18: 0 | BT18: 0 | BU18: 0 | BV18: =IF(BV$6="Restverdi",IF(BV10=0,0,BV10*$C10*$D10^(BU$6+1-$J$6)),IF(BV10=0,0,BV10*$C10*$D10^(BV$6-$J$6))) -> 0 | BW18: 0 | BX18: 0 | BY18: 0 | BZ18: 0 | CA18: 0 | CB18: 0 | CC18: 0 | CD18: 0 | CE18: 0 | CF18: 0 | CG18: 0 | CH18: 0 | CI18: 0 | CJ18: 0 | CK18: 0 | CL18: 0 | CM18: 0 | CN18: 0 | CO18: 0 | CP18: 0 | CQ18: 0 | CR18: 0 | CS18: 0 | CT18: 0 | CU18: 0 | CV18: 0 | CW18: 0 | CX18: 0 | CY18: 0 | CZ18: 0 | DA18: 0 | DB18: 0 | DC18: 0 | DD18: 0 | DE18: 0 | DF18: 0 | DG18: 0
A19: k408 | B19: =VLOOKUP(A19,$A$7:$B$13,2,FALSE) -> Nytte for privatpersoner | C19: 0 | D19: 0 | E19: 0 | F19: 0 | G19: 0 | H19: Kroner | I19: =J19+NPV(Celleref_kalkulasjonsrente,K19:DG19) -> 0 | J19: =IF(J$6="Restverdi",IF(J11=0,0,J11*$C11*$D11^(I$6+1-$J$6)),IF(J11=0,0,J11*$C11*$D11^(J$6-$J$6))) -> 0 | K19: 0 | L19: 0 | M19: 0 | N19: 0 | O19: 0 | P19: 0 | Q19: 0 | R19: 0 | S19: 0 | T19: 0 | U19: 0 | V19: 0 | W19: 0 | X19: 0 | Y19: 0 | Z19: 0 | AA19: 0 | AB19: 0 | AC19: 0 | AD19: 0 | AE19: 0 | AF19: 0 | AG19: 0 | AH19: 0 | AI19: 0 | AJ19: 0 | AK19: 0 | AL19: 0 | AM19: 0 | AN19: 0 | AO19: 0 | AP19: 0 | AQ19: 0 | AR19: 0 | AS19: 0 | AT19: 0 | AU19: 0 | AV19: 0 | AW19: 0 | AX19: 0 | AY19: 0 | AZ19: 0 | BA19: 0 | BB19: 0 | BC19: 0 | BD19: 0 | BE19: 0 | BF19: 0 | BG19: 0 | BH19: 0 | BI19: 0 | BJ19: 0 | BK19: 0 | BL19: 0 | BM19: 0 | BN19: 0 | BO19: 0 | BP19: 0 | BQ19: 0 | BR19: 0 | BS19: 0 | BT19: 0 | BU19: 0 | BV19: 0 | BW19: 0 | BX19: 0 | BY19: 0 | BZ19: 0 | CA19: 0 | CB19: 0 | CC19: 0 | CD19: 0 | CE19: 0 | CF19: 0 | CG19: 0 | CH19: 0 | CI19: 0 | CJ19: 0 | CK19: 0 | CL19: 0 | CM19: 0 | CN19: 0 | CO19: 0 | CP19: 0 | CQ19: 0 | CR19: 0 | CS19: 0 | CT19: 0 | CU19: 0 | CV19: 0 | CW19: 0 | CX19: 0 | CY19: 0 | CZ19: 0 | DA19: 0 | DB19: 0 | DC19: 0 | DD19: 0 | DE19: 0 | DF19: 0 | DG19: 0
A22: S | B22: Prissatte nyttevirkninger - Skattefinansieringskostnad | H22: Enhet | I22: Nåverdi | J22: =J14 -> 2019 | K22: 2020 | L22: 2021 | M22: 2022 | N22: 2023 | O22: 2024 | P22: 2025 | Q22: 2026 | R22: 2027 | S22: 2028 | T22: 2029 | U22: 2030 | V22: 2031 | W22: 2032 | X22: 2033 | Y22: Restverdi | BV22: =BV14 -> 
A23: 72 | B23: =VLOOKUP(A23,$A$7:$B$13,2,FALSE) -> 0 | H23: Kroner | I23: =J23+NPV(Celleref_kalkulasjonsrente,K23:DG23) -> 0 | J23: =IF(J7=0,0,J15*($E7-1)) -> 0 | K23: 0 | L23: 0 | M23: 0 | N23: 0 | O23: 0 | P23: 0 | Q23: 0 | R23: 0 | S23: 0 | T23: 0 | U23: 0 | V23: 0 | W23: 0 | X23: 0 | Y23: 0 | Z23: 0 | AA23: 0 | AB23: 0 | AC23: 0 | AD23: 0 | AE23: 0 | AF23: 0 | AG23: 0 | AH23: 0 | AI23: 0 | AJ23: 0 | AK23: 0 | AL23: 0 | AM23: 0 | AN23: 0 | AO23: 0 | AP23: 0 | AQ23: 0 | AR23: 0 | AS23: 0 | AT23: 0 | AU23: 0 | AV23: 0 | AW23: 0 | AX23: 0 | AY23: 0 | AZ23: 0 | BA23: 0 | BB23: 0 | BC23: 0 | BD23: 0 | BE23: 0 | BF23: 0 | BG23: 0 | BH23: 0 | BI23: 0 | BJ23: 0 | BK23: 0 | BL23: 0 | BM23: 0 | BN23: 0 | BO23: 0 | BP23: 0 | BQ23: 0 | BR23: 0 | BS23: 0 | BT23: 0 | BU23: 0 | BV23: =IF(BV7=0,0,BV15*($E7-1)) -> 0 | BW23: 0 | BX23: 0 | BY23: 0 | BZ23: 0 | CA23: 0 | CB23: 0 | CC23: 0 | CD23: 0 | CE23: 0 | CF23: 0 | CG23: 0 | CH23: 0 | CI23: 0 | CJ23: 0 | CK23: 0 | CL23: 0 | CM23: 0 | CN23: 0 | CO23: 0 | CP23: 0 | CQ23: 0 | CR23: 0 | CS23: 0 | CT23: 0 | CU23: 0 | CV23: 0 | CW23: 0 | CX23: 0 | CY23: 0 | CZ23: 0 | DA23: 0 | DB23: 0 | DC23: 0 | DD23: 0 | DE23: 0 | DF23: 0 | DG23: 0
A24: k404 | B24: =VLOOKUP(A24,$A$7:$B$13,2,FALSE) -> Nytte for virksomheten | H24: Kroner | I24: =J24+NPV(Celleref_kalkulasjonsrente,K24:DG24) -> 0 | J24: 0 | K24: 0 | L24: 0 | M24: 0 | N24: 0 | O24: 0 | P24: 0 | Q24: 0 | R24: 0 | S24: 0 | T24: 0 | U24: 0 | V24: 0 | W24: 0 | X24: 0 | Y24: 0 | Z24: 0 | AA24: 0 | AB24: 0 | AC24: 0 | AD24: 0 | AE24: 0 | AF24: 0 | AG24: 0 | AH24: 0 | AI24: 0 | AJ24: 0 | AK24: 0 | AL24: 0 | AM24: 0 | AN24: 0 | AO24: 0 | AP24: 0 | AQ24: 0 | AR24: 0 | AS24: 0 | AT24: 0 | AU24: 0 | AV24: 0 | AW24: 0 | AX24: 0 | AY24: 0 | AZ24: 0 | BA24: 0 | BB24: 0 | BC24: 0 | BD24: 0 | BE24: 0 | BF24: 0 | BG24: 0 | BH24: 0 | BI24: 0 | BJ24: 0 | BK24: 0 | BL24: 0 | BM24: 0 | BN24: 0 | BO24: 0 | BP24: 0 | BQ24: 0 | BR24: 0 | BS24: 0 | BT24: 0 | BU24: 0 | BV24: 0 | BW24: 0 | BX24: 0 | BY24: 0 | BZ24: 0 | CA24: 0 | CB24: 0 | CC24: 0 | CD24: 0 | CE24: 0 | CF24: 0 | CG24: 0 | CH24: 0 | CI24: 0 | CJ24: 0 | CK24: 0 | CL24: 0 | CM24: 0 | CN24: 0 | CO24: 0 | CP24: 0 | CQ24: 0 | CR24: 0 | CS24: 0 | CT24: 0 | CU24: 0 | CV24: 0 | CW24: 0 | CX24: 0 | CY24: 0 | CZ24: 0 | DA24: 0 | DB24: 0 | DC24: 0 | DD24: 0 | DE24: 0 | DF24: 0 | DG24: 0
A25: k405 | B25: =VLOOKUP(A25,$A$7:$B$13,2,FALSE) -> Nytte for øvrig offentlig sektor | H25: Kroner | I25: =J25+NPV(Celleref_kalkulasjonsrente,K25:DG25) -> 0 | J25: 0 | K25: 0 | L25: 0 | M25: 0 | N25: 0 | O25: 0 | P25: 0 | Q25: 0 | R25: 0 | S25: 0 | T25: 0 | U25: 0 | V25: 0 | W25: 0 | X25: 0 | Y25: 0 | Z25: 0 | AA25: 0 | AB25: 0 | AC25: 0 | AD25: 0 | AE25: 0 | AF25: 0 | AG25: 0 | AH25: 0 | AI25: 0 | AJ25: 0 | AK25: 0 | AL25: 0 | AM25: 0 | AN25: 0 | AO25: 0 | AP25: 0 | AQ25: 0 | AR25: 0 | AS25: 0 | AT25: 0 | AU25: 0 | AV25: 0 | AW25: 0 | AX25: 0 | AY25: 0 | AZ25: 0 | BA25: 0 | BB25: 0 | BC25: 0 | BD25: 0 | BE25: 0 | BF25: 0 | BG25: 0 | BH25: 0 | BI25: 0 | BJ25: 0 | BK25: 0 | BL25: 0 | BM25: 0 | BN25: 0 | BO25: 0 | BP25: 0 | BQ25: 0 | BR25: 0 | BS25: 0 | BT25: 0 | BU25: 0 | BV25: 0 | BW25: 0 | BX25: 0 | BY25: 0 | BZ25: 0 | CA25: 0 | CB25: 0 | CC25: 0 | CD25: 0 | CE25: 0 | CF25: 0 | CG25: 0 | CH25: 0 | CI25: 0 | CJ25: 0 | CK25: 0 | CL25: 0 | CM25: 0 | CN25: 0 | CO25: 0 | CP25: 0 | CQ25: 0 | CR25: 0 | CS25: 0 | CT25: 0 | CU25: 0 | CV25: 0 | CW25: 0 | CX25: 0 | CY25: 0 | CZ25: 0 | DA25: 0 | DB25: 0 | DC25: 0 | DD25: 0 | DE25: 0 | DF25: 0 | DG25: 0
A26: k406 | B26: =VLOOKUP(A26,$A$7:$B$13,2,FALSE) -> Nytte for privat næringsliv | H26: Kroner | I26: =J26+NPV(Celleref_kalkulasjonsrente,K26:DG26) -> 0 | J26: 0 | K26: 0 | L26: 0 | M26: 0 | N26: 0 | O26: 0 | P26: 0 | Q26: 0 | R26: 0 | S26: 0 | T26: 0 | U26: 0 | V26: 0 | W26: 0 | X26: 0 | Y26: 0 | Z26: 0 | AA26: 0 | AB26: 0 | AC26: 0 | AD26: 0 | AE26: 0 | AF26: 0 | AG26: 0 | AH26: 0 | AI26: 0 | AJ26: 0 | AK26: 0 | AL26: 0 | AM26: 0 | AN26: 0 | AO26: 0 | AP26: 0 | AQ26: 0 | AR26: 0 | AS26: 0 | AT26: 0 | AU26: 0 | AV26: 0 | AW26: 0 | AX26: 0 | AY26: 0 | AZ26: 0 | BA26: 0 | BB26: 0 | BC26: 0 | BD26: 0 | BE26: 0 | BF26: 0 | BG26: 0 | BH26: 0 | BI26: 0 | BJ26: 0 | BK26: 0 | BL26: 0 | BM26: 0 | BN26: 0 | BO26: 0 | BP26: 0 | BQ26: 0 | BR26: 0 | BS26: 0 | BT26: 0 | BU26: =IF(BU10=0,0,BU18*($E10-1)) -> 0 | BV26: 0 | BW26: 0 | BX26: 0 | BY26: 0 | BZ26: 0 | CA26: 0 | CB26: 0 | CC26: 0 | CD26: 0 | CE26: 0 | CF26: 0 | CG26: 0 | CH26: 0 | CI26: 0 | CJ26: 0 | CK26: 0 | CL26: 0 | CM26: 0 | CN26: 0 | CO26: 0 | CP26: 0 | CQ26: 0 | CR26: 0 | CS26: 0 | CT26: 0 | CU26: 0 | CV26: 0 | CW26: 0 | CX26: 0 | CY26: 0 | CZ26: 0 | DA26: 0 | DB26: 0 | DC26: 0 | DD26: 0 | DE26: 0 | DF26: 0 | DG26: 0
A27: k408 | B27: =VLOOKUP(A27,$A$7:$B$13,2,FALSE) -> Nytte for privatpersoner | H27: Kroner | I27: =J27+NPV(Celleref_kalkulasjonsrente,K27:DG27) -> 0 | J27: =IF(J11=0,0,J19*($E11-1)) -> 0 | K27: 0 | L27: 0 | M27: 0 | N27: 0 | O27: 0 | P27: 0 | Q27: 0 | R27: 0 | S27: 0 | T27: 0 | U27: 0 | V27: 0 | W27: 0 | X27: 0 | Y27: 0 | Z27: 0 | AA27: 0 | AB27: 0 | AC27: 0 | AD27: 0 | AE27: 0 | AF27: 0 | AG27: 0 | AH27: 0 | AI27: 0 | AJ27: 0 | AK27: 0 | AL27: 0 | AM27: 0 | AN27: 0 | AO27: 0 | AP27: 0 | AQ27: 0 | AR27: 0 | AS27: 0 | AT27: 0 | AU27: 0 | AV27: 0 | AW27: 0 | AX27: 0 | AY27: 0 | AZ27: 0 | BA27: 0 | BB27: 0 | BC27: 0 | BD27: 0 | BE27: 0 | BF27: 0 | BG27: 0 | BH27: 0 | BI27: 0 | BJ27: 0 | BK27: 0 | BL27: 0 | BM27: 0 | BN27: 0 | BO27: 0 | BP27: 0 | BQ27: 0 | BR27: 0 | BS27: 0 | BT27: 0 | BU27: 0 | BV27: 0 | BW27: 0 | BX27: 0 | BY27: 0 | BZ27: 0 | CA27: 0 | CB27: 0 | CC27: 0 | CD27: 0 | CE27: 0 | CF27: 0 | CG27: 0 | CH27: 0 | CI27: 0 | CJ27: 0 | CK27: 0 | CL27: 0 | CM27: 0 | CN27: 0 | CO27: 0 | CP27: 0 | CQ27: 0 | CR27: 0 | CS27: 0 | CT27: 0 | CU27: 0 | CV27: 0 | CW27: 0 | CX27: 0 | CY27: 0 | CZ27: 0 | DA27: 0 | DB27: 0 | DC27: 0 | DD27: 0 | DE27: 0 | DF27: 0 | DG27: 0

Sheet Nytte alternativ 1
A1: Nytte alternativ 1 | B1: Alternativnavn: | C1: =VLOOKUP(RIGHT(A1,12),Alternativområde,2,FALSE) -> Droner
J4: 0 | K4: 1 | L4: 2 | M4: 3 | N4: 4 | O4: 5 | P4: 6 | Q4: 7 | R4: 8 | S4: 9 | T4: 10 | U4: 11 | V4: 12 | W4: 13 | X4: 14 | Y4: 15 | Z4: 16 | AA4: 17 | AB4: 18 | AC4: 19 | AD4: 20 | AE4: 21 | AF4: 22 | AG4: 23 | AH4: 24 | AI4: 25 | AJ4: 26 | AK4: 27 | AL4: 28 | AM4: 29 | AN4: 30 | AO4: 31 | AP4: 32 | AQ4: 33 | AR4: 34 | AS4: 35 | AT4: 36 | AU4: 37 | AV4: 38 | AW4: 39 | AX4: 40 | AY4: 41 | AZ4: 42 | BA4: 43 | BB4: 44 | BC4: 45 | BD4: 46 | BE4: 47 | BF4: 48 | BG4: 49 | BH4: 50 | BI4: 51 | BJ4: 52 | BK4: 53 | BL4: 54 | BM4: 55 | BN4: 56 | BO4: 57 | BP4: 58 | BQ4: 59 | BR4: 60 | BS4: 61 | BT4: 62 | BU4: 63 | BV4: 64 | BW4: 65 | BX4: 66 | BY4: 67 | BZ4: 68 | CA4: 69 | CB4: 70 | CC4: 71 | CD4: 72 | CE4: 73 | CF4: 74 | CG4: 75 | CH4: 76 | CI4: 77 | CJ4: 78 | CK4: 79 | CL4: 80 | CM4: 81 | CN4: 82 | CO4: 83 | CP4: 84 | CQ4: 85 | CR4: 86 | CS4: 87 | CT4: 88 | CU4: 89 | CV4: 90 | CW4: 91 | CX4: 92 | CY4: 93 | CZ4: 94 | DA4: 95 | DB4: 96 | DC4: 97 | DD4: 98 | DE4: 99 | DF4: 100 | DG4: 101
